Workbook

Sheet Setting
A2: 日期設定 | C2: 2017/08/28
A4: 分數篩選 | C4: 9
A6: 重大負面訊息 | C6: 1260
A9: Noted: 1.請先輸入您所需要查詢的日期 2.接下來請輸入您所需要篩選的分數 3.於重大負面訊息輸入您所需要查詢的公司 4.點選按鈕更新即可 5.融資張數大於20日均量比率->此張工作表須於黃色欄位自行輸入資料 如果有任何問題請洽(02)87681088分機125林小姐或分機118顏先生

Sheet 高風險股票篩選結果
A1: =Raw!A1 -> 2017/08/28 | K1: ='Raw3'!B2 -> 2017-07-31
A2: 股票碼 | B2: 市場別 | C2: 股價(元) | D2: 股價日報酬率% | E2: 股價週報酬率% | F2: 融資餘額(張) | G2: 月營收單月成長率% | H2: 月營收累計成長率% | I2: 負債占淨值比% | J2: 董監質押率% | K2: 董監質押股數-未含他人持股% | L2: 融資使用率% | M2: 融資餘額(千元) | N2: (最高)個別券商進出比率% | O2: TCRI信用評等 | P2: 市場模型等級 | Q2: 近60日危險區% | R2: 重大負面訊息 | S2: 券資比% | T2: 股價淨值比-TSE | U2: 註記_月營收單月(嚴重衰退) | V2: 註記_月營收累計(嚴重衰退) | W2: 註記_負債淨值比偏高 | X2: 註記_董監質押率偏高 | Y2: 註記_股價週報酬率異常波動 | Z2: 註記_融資使用率偏高 | AA2: 註記_個別券商進出比(集中度) | AB2: 註記_注意股票 | AC2: 註記_處置股票 | AD2: 註記_全額交割股票 | AE2: 註記_管理股票 | AF2: 註記_暫停交易 | AG2: 本公司融資餘額市佔率 | AH2: 本公司融資張數佔市場20日均量比 | AI2: 月營收單月成長率% | AJ2: 月營收累計成長率% | AK2: 負債占淨值比% | AL2: 持股10%以上之大股東質押比率 | AM2: 董監質押比率 | AN2: 股價週報酬率% | AO2: 融資使用率% | AP2: 券資比 | AQ2: (最高)個別券商進出比率% | AR2: 本公司融資餘額市佔率 | AS2: 股價淨值比 | AT2: 本公司融資張數 佔市場20日均量比 | AU2: TCRI信用評等 | AV2: 近60日危險區% | AW2: 高風險股票分數
A3: =IF(Raw!BA3="","",Raw!BA3) -> 1201 味全 | B3: =IF(Raw!BB3="","",Raw!BB3) -> TSE | C3: =IF(Raw!BC3="","",Raw!BC3) -> 19.45 | D3: =IF(Raw!BD3="","",Raw!BD3) -> 1.8325 | E3: =IF(Raw!BE3="","",Raw!BE3) -> 1.5666 | F3: =IF(Raw!BF3="","",Raw!BF3) -> 8578 | G3: =IF(Raw!BG3="","",Raw!BG3) -> 1.66 | H3: =IF(Raw!BH3="","",Raw!BH3) -> -1.69 | I3: =IF(Raw!BI3="","",Raw!BI3) -> 378.97 | J3: =IF(Raw!BJ3="","",Raw!BJ3) -> 0 | K3: =IFERROR(ROUND(VLOOKUP(A3,'Raw3'!A:F,6,0),2),"") -> 0 | L3: =IF(Raw!BK3="","",Raw!BK3) ->  | M3: =IF(Raw!BL3="","",Raw!BL3) -> 167271 | N3: =IF(Raw!BM3="","",Raw!BM3) -> 28.48 | O3: =IF(Raw!BN3="","",Raw!BN3) -> 9 | P3: =IF(Raw!BO3="","",Raw!BO3) -> 8 | Q3: =IF(Raw!BP3="","",Raw!BP3) -> 100 | R3: =IF(Raw!BQ3="","",Raw!BQ3) ->  | S3: =IF(Raw!BR3="","",Raw!BR3) -> 0 | T3: =IF(Raw!BS3="","",Raw!BS3) -> 2.15 | U3: =IF(Raw!BT3="","",Raw!BT3) ->  | V3: =IF(Raw!BU3="","",Raw!BU3) ->  | W3: =IF(Raw!BV3="","",Raw!BV3) -> Y | X3: =IF(Raw!BW3="","",Raw!BW3) ->  | Y3: =IF(Raw!BX3="","",Raw!BX3) ->  | Z3: =IF(Raw!BY3="","",Raw!BY3) ->  | AA3: =IF(Raw!BZ3="","",Raw!BZ3) ->  | AB3: =IF(Raw!CA3="","",Raw!CA3) ->  | AC3: =IF(Raw!CB3="","",Raw!CB3) ->  | AD3: =IF(Raw!CC3="","",Raw!CC3) ->  | AE3: =IF(Raw!CD3="","",Raw!CD3) ->  | AF3: =IF(Raw!CE3="","",Raw!CE3) ->  | AG3: =IF(Raw!CF3="","",Raw!CF3) ->  | AH3: =IF(Raw!CG3="","",Raw!CG3) ->  | AI3: =IF(Raw!CH3="","",Raw!CH3) -> 1.66 | AJ3: =IF(Raw!CI3="","",Raw!CI3) -> -1.69 | AK3: =IF(Raw!CJ3="","",Raw!CJ3) -> 378.97 | AL3: =IF(Raw!CK3="","",Raw!CK3) -> 0 | AM3: =IF(Raw!CL3="","",Raw!CL3) -> 0 | AN3: =IF(Raw!CM3="","",Raw!CM3) -> 0 | AO3: =IF(Raw!CN3="","",Raw!CN3) ->  | AP3: =IF(Raw!CO3="","",Raw!CO3) -> 0 | AQ3: =IF(Raw!CP3="","",Raw!CP3) -> 28.48 | AR3: =IF(Raw!CQ3="","",Raw!CQ3) ->  | AS3: =IF(Raw!CR3="","",Raw!CR3) -> 0 | AT3: =IF(Raw!CS3="","",Raw!CS3) ->  | AU3: =IF(Raw!CT3="","",Raw!CT3) -> 9 | AV3: =IF(Raw!CU3="","",Raw!CU3) -> 100 | AW3: =IF(Raw!CV3="","",Raw!CV3) -> 9
A4: =IF(Raw!BA4="","",Raw!BA4) -> 1235 興泰 | B4: =IF(Raw!BB4="","",Raw!BB4) -> TSE | C4: =IF(Raw!BC4="","",Raw!BC4) -> 33.25 | D4: =IF(Raw!BD4="","",Raw!BD4) -> -0.8942 | E4: =IF(Raw!BE4="","",Raw!BE4) -> -2.7778 | F4: =IF(Raw!BF4="","",Raw!BF4) -> 7987 | G4: =IF(Raw!BG4="","",Raw!BG4) -> -36.21 | H4: =IF(Raw!BH4="","",Raw!BH4) -> -55.5 | I4: =IF(Raw!BI4="","",Raw!BI4) -> 46.45 | J4: =IF(Raw!BJ4="","",Raw!BJ4) -> 12.47 | K4: =IFERROR(ROUND(VLOOKUP(A4,'Raw3'!A:F,6,0),2),"") -> 12.47 | L4: =IF(Raw!BK4="","",Raw!BK4) -> 52.67 | M4: =IF(Raw!BL4="","",Raw!BL4) -> 268682.68 | N4: =IF(Raw!BM4="","",Raw!BM4) -> 40.36 | O4: =IF(Raw!BN4="","",Raw!BN4) -> 8 | P4: =IF(Raw!BO4="","",Raw!BO4) -> 6 | Q4: =IF(Raw!BP4="","",Raw!BP4) -> 0 | R4: =IF(Raw!BQ4="","",Raw!BQ4) ->  | S4: =IF(Raw!BR4="","",Raw!BR4) -> 0.16 | T4: =IF(Raw!BS4="","",Raw!BS4) -> 0.59 | U4: =IF(Raw!BT4="","",Raw!BT4) ->  | V4: =IF(Raw!BU4="","",Raw!BU4) -> Y | W4: =IF(Raw!BV4="","",Raw!BV4) ->  | X4: =IF(Raw!BW4="","",Raw!BW4) ->  | Y4: =IF(Raw!BX4="","",Raw!BX4) ->  | Z4: =IF(Raw!BY4="","",Raw!BY4) ->  | AA4: =IF(Raw!BZ4="","",Raw!BZ4) ->  | AB4: =IF(Raw!CA4="","",Raw!CA4) ->  | AC4: =IF(Raw!CB4="","",Raw!CB4) ->  | AD4: =IF(Raw!CC4="","",Raw!CC4) ->  | AE4: =IF(Raw!CD4="","",Raw!CD4) ->  | AF4: =IF(Raw!CE4="","",Raw!CE4) ->  | AG4: =IF(Raw!CF4="","",Raw!CF4) ->  | AH4: =IF(Raw!CG4="","",Raw!CG4) ->  | AI4: =IF(Raw!CH4="","",Raw!CH4) -> -36.21 | AJ4: =IF(Raw!CI4="","",Raw!CI4) -> -55.5 | AK4: =IF(Raw!CJ4="","",Raw!CJ4) -> 46.45 | AL4: =IF(Raw!CK4="","",Raw!CK4) -> 0 | AM4: =IF(Raw!CL4="","",Raw!CL4) -> 0 | AN4: =IF(Raw!CM4="","",Raw!CM4) -> 0 | AO4: =IF(Raw!CN4="","",Raw!CN4) -> 52.67 | AP4: =IF(Raw!CO4="","",Raw!CO4) -> 0 | AQ4: =IF(Raw!CP4="","",Raw!CP4) -> 40.36 | AR4: =IF(Raw!CQ4="","",Raw!CQ4) ->  | AS4: =IF(Raw!CR4="","",Raw!CR4) -> 0 | AT4: =IF(Raw!CS4="","",Raw!CS4) ->  | AU4: =IF(Raw!CT4="","",Raw!CT4) -> 8 | AV4: =IF(Raw!CU4="","",Raw!CU4) -> 0 | AW4: =IF(Raw!CV4="","",Raw!CV4) -> 11
A5: =IF(Raw!BA5="","",Raw!BA5) -> 1333 恩得利 | B5: =IF(Raw!BB5="","",Raw!BB5) -> OTC | C5: =IF(Raw!BC5="","",Raw!BC5) -> 3.89 | D5: =IF(Raw!BD5="","",Raw!BD5) -> -0.7653 | E5: =IF(Raw!BE5="","",Raw!BE5) -> -1.2691 | F5: =IF(Raw!BF5="","",Raw!BF5) -> 0 | G5: =IF(Raw!BG5="","",Raw!BG5) -> -38.7 | H5: =IF(Raw!BH5="","",Raw!BH5) -> -33.57 | I5: =IF(Raw!BI5="","",Raw!BI5) -> 146.79 | J5: =IF(Raw!BJ5="","",Raw!BJ5) -> 0 | K5: =IFERROR(ROUND(VLOOKUP(A5,'Raw3'!A:F,6,0),2),"") -> 0 | L5: =IF(Raw!BK5="","",Raw!BK5) -> 0 | M5: =IF(Raw!BL5="","",Raw!BL5) -> 0 | N5: =IF(Raw!BM5="","",Raw!BM5) -> 35.72 | O5: =IF(Raw!BN5="","",Raw!BN5) -> 9 | P5: =IF(Raw!BO5="","",Raw!BO5) -> 8 | Q5: =IF(Raw!BP5="","",Raw!BP5) -> 100 | R5: =IF(Raw!BQ5="","",Raw!BQ5) ->  | S5: =IF(Raw!BR5="","",Raw!BR5) ->  | T5: =IF(Raw!BS5="","",Raw!BS5) -> 0.76 | U5: =IF(Raw!BT5="","",Raw!BT5) ->  | V5: =IF(Raw!BU5="","",Raw!BU5) ->  | W5: =IF(Raw!BV5="","",Raw!BV5) ->  | X5: =IF(Raw!BW5="","",Raw!BW5) ->  | Y5: =IF(Raw!BX5="","",Raw!BX5) ->  | Z5: =IF(Raw!BY5="","",Raw!BY5) ->  | AA5: =IF(Raw!BZ5="","",Raw!BZ5) ->  | AB5: =IF(Raw!CA5="","",Raw!CA5) ->  | AC5: =IF(Raw!CB5="","",Raw!CB5) ->  | AD5: =IF(Raw!CC5="","",Raw!CC5) -> Y | AE5: =IF(Raw!CD5="","",Raw!CD5) ->  | AF5: =IF(Raw!CE5="","",Raw!CE5) ->  | AG5: =IF(Raw!CF5="","",Raw!CF5) ->  | AH5: =IF(Raw!CG5="","",Raw!CG5) ->  | AI5: =IF(Raw!CH5="","",Raw!CH5) -> -38.7 | AJ5: =IF(Raw!CI5="","",Raw!CI5) -> -33.57 | AK5: =IF(Raw!CJ5="","",Raw!CJ5) -> 146.79 | AL5: =IF(Raw!CK5="","",Raw!CK5) -> 0 | AM5: =IF(Raw!CL5="","",Raw!CL5) -> 0 | AN5: =IF(Raw!CM5="","",Raw!CM5) -> 0 | AO5: =IF(Raw!CN5="","",Raw!CN5) -> 0 | AP5: =IF(Raw!CO5="","",Raw!CO5) -> 0 | AQ5: =IF(Raw!CP5="","",Raw!CP5) -> 35.72 | AR5: =IF(Raw!CQ5="","",Raw!CQ5) ->  | AS5: =IF(Raw!CR5="","",Raw!CR5) -> 0 | AT5: =IF(Raw!CS5="","",Raw!CS5) ->  | AU5: =IF(Raw!CT5="","",Raw!CT5) -> 9 | AV5: =IF(Raw!CU5="","",Raw!CU5) -> 100 | AW5: =IF(Raw!CV5="","",Raw!CV5) -> 13
A6: =IF(Raw!BA6="","",Raw!BA6) -> 1418 東華 | B6: =IF(Raw!BB6="","",Raw!BB6) -> TSE | C6: =IF(Raw!BC6="","",Raw!BC6) -> 5.15 | D6: =IF(Raw!BD6="","",Raw!BD6) -> 8.4211 | E6: =IF(Raw!BE6="","",Raw!BE6) -> -0.7707 | F6: =IF(Raw!BF6="","",Raw!BF6) -> 0 | G6: =IF(Raw!BG6="","",Raw!BG6) -> -29.88 | H6: =IF(Raw!BH6="","",Raw!BH6) -> -2.01 | I6: =IF(Raw!BI6="","",Raw!BI6) -> 972.03 | J6: =IF(Raw!BJ6="","",Raw!BJ6) -> 0 | K6: =IFERROR(ROUND(VLOOKUP(A6,'Raw3'!A:F,6,0),2),"") -> 0 | L6: =IF(Raw!BK6="","",Raw!BK6) ->  | M6: =IF(Raw!BL6="","",Raw!BL6) -> 0 | N6: =IF(Raw!BM6="","",Raw!BM6) -> 49.56 | O6: =IF(Raw!BN6="","",Raw!BN6) -> D | P6: =IF(Raw!BO6="","",Raw!BO6) -> D | Q6: =IF(Raw!BP6="","",Raw!BP6) -> 100 | R6: =IF(Raw!BQ6="","",Raw!BQ6) -> Y_繼續經營疑慮 | S6: =IF(Raw!BR6="","",Raw!BR6) ->  | T6: =IF(Raw!BS6="","",Raw!BS6) -> 4.02 | U6: =IF(Raw!BT6="","",Raw!BT6) ->  | V6: =IF(Raw!BU6="","",Raw!BU6) ->  | W6: =IF(Raw!BV6="","",Raw!BV6) -> Y | X6: =IF(Raw!BW6="","",Raw!BW6) ->  | Y6: =IF(Raw!BX6="","",Raw!BX6) ->  | Z6: =IF(Raw!BY6="","",Raw!BY6) ->  | AA6: =IF(Raw!BZ6="","",Raw!BZ6) ->  | AB6: =IF(Raw!CA6="","",Raw!CA6) ->  | AC6: =IF(Raw!CB6="","",Raw!CB6) ->  | AD6: =IF(Raw!CC6="","",Raw!CC6) -> Y | AE6: =IF(Raw!CD6="","",Raw!CD6) ->  | AF6: =IF(Raw!CE6="","",Raw!CE6) ->  | AG6: =IF(Raw!CF6="","",Raw!CF6) ->  | AH6: =IF(Raw!CG6="","",Raw!CG6) ->  | AI6: =IF(Raw!CH6="","",Raw!CH6) -> -29.88 | AJ6: =IF(Raw!CI6="","",Raw!CI6) -> -2.01 | AK6: =IF(Raw!CJ6="","",Raw!CJ6) -> 972.03 | AL6: =IF(Raw!CK6="","",Raw!CK6) -> 0 | AM6: =IF(Raw!CL6="","",Raw!CL6) -> 0 | AN6: =IF(Raw!CM6="","",Raw!CM6) -> 0 | AO6: =IF(Raw!CN6="","",Raw!CN6) ->  | AP6: =IF(Raw!CO6="","",Raw!CO6) -> 0 | AQ6: =IF(Raw!CP6="","",Raw!CP6) -> 49.56 | AR6: =IF(Raw!CQ6="","",Raw!CQ6) ->  | AS6: =IF(Raw!CR6="","",Raw!CR6) -> 2 | AT6: =IF(Raw!CS6="","",Raw!CS6) ->  | AU6: =IF(Raw!CT6="","",Raw!CT6) -> D | AV6: =IF(Raw!CU6="","",Raw!CU6) -> 100 | AW6: =IF(Raw!CV6="","",Raw!CV6) -> 15
A7: =IF(Raw!BA7="","",Raw!BA7) -> 1432 大魯閣 | B7: =IF(Raw!BB7="","",Raw!BB7) -> TSE | C7: =IF(Raw!BC7="","",Raw!BC7) -> 14.8 | D7: =IF(Raw!BD7="","",Raw!BD7) -> -1.3333 | E7: =IF(Raw!BE7="","",Raw!BE7) -> -4.516 | F7: =IF(Raw!BF7="","",Raw!BF7) -> 10391 | G7: =IF(Raw!BG7="","",Raw!BG7) -> 4.15 | H7: =IF(Raw!BH7="","",Raw!BH7) -> 42.45 | I7: =IF(Raw!BI7="","",Raw!BI7) -> 223.28 | J7: =IF(Raw!BJ7="","",Raw!BJ7) -> 62.9 | K7: =IFERROR(ROUND(VLOOKUP(A7,'Raw3'!A:F,6,0),2),"") -> 62.9 | L7: =IF(Raw!BK7="","",Raw!BK7) -> 24.24 | M7: =IF(Raw!BL7="","",Raw!BL7) -> 154618.08 | N7: =IF(Raw!BM7="","",Raw!BM7) -> 23.19 | O7: =IF(Raw!BN7="","",Raw!BN7) -> 8 | P7: =IF(Raw!BO7="","",Raw!BO7) -> 7 | Q7: =IF(Raw!BP7="","",Raw!BP7) -> 96.67 | R7: =IF(Raw!BQ7="","",Raw!BQ7) ->  | S7: =IF(Raw!BR7="","",Raw!BR7) -> 0.85 | T7: =IF(Raw!BS7="","",Raw!BS7) -> 1.29 | U7: =IF(Raw!BT7="","",Raw!BT7) ->  | V7: =IF(Raw!BU7="","",Raw!BU7) ->  | W7: =IF(Raw!BV7="","",Raw!BV7) ->  | X7: =IF(Raw!BW7="","",Raw!BW7) ->  | Y7: =IF(Raw!BX7="","",Raw!BX7) ->  | Z7: =IF(Raw!BY7="","",Raw!BY7) ->  | AA7: =IF(Raw!BZ7="","",Raw!BZ7) ->  | AB7: =IF(Raw!CA7="","",Raw!CA7) ->  | AC7: =IF(Raw!CB7="","",Raw!CB7) ->  | AD7: =IF(Raw!CC7="","",Raw!CC7) ->  | AE7: =IF(Raw!CD7="","",Raw!CD7) ->  | AF7: =IF(Raw!CE7="","",Raw!CE7) ->  | AG7: =IF(Raw!CF7="","",Raw!CF7) ->  | AH7: =IF(Raw!CG7="","",Raw!CG7) ->  | AI7: =IF(Raw!CH7="","",Raw!CH7) -> 4.15 | AJ7: =IF(Raw!CI7="","",Raw!CI7) -> 42.45 | AK7: =IF(Raw!CJ7="","",Raw!CJ7) -> 223.28 | AL7: =IF(Raw!CK7="","",Raw!CK7) -> 3 | AM7: =IF(Raw!CL7="","",Raw!CL7) -> 3 | AN7: =IF(Raw!CM7="","",Raw!CM7) -> 0 | AO7: =IF(Raw!CN7="","",Raw!CN7) -> 24.24 | AP7: =IF(Raw!CO7="","",Raw!CO7) -> 0 | AQ7: =IF(Raw!CP7="","",Raw!CP7) -> 23.19 | AR7: =IF(Raw!CQ7="","",Raw!CQ7) ->  | AS7: =IF(Raw!CR7="","",Raw!CR7) -> 0 | AT7: =IF(Raw!CS7="","",Raw!CS7) ->  | AU7: =IF(Raw!CT7="","",Raw!CT7) -> 8 | AV7: =IF(Raw!CU7="","",Raw!CU7) -> 96.67 | AW7: =IF(Raw!CV7="","",Raw!CV7) -> 13
A8: =IF(Raw!BA8="","",Raw!BA8) -> 1438 裕豐 | B8: =IF(Raw!BB8="","",Raw!BB8) -> TSE | C8: =IF(Raw!BC8="","",Raw!BC8) -> 4.9 | D8: =IF(Raw!BD8="","",Raw!BD8) -> -0.8097 | E8: =IF(Raw!BE8="","",Raw!BE8) -> -1.0101 | F8: =IF(Raw!BF8="","",Raw!BF8) -> 0 | G8: =IF(Raw!BG8="","",Raw!BG8) -> -100 | H8: =IF(Raw!BH8="","",Raw!BH8) -> -72.41 | I8: =IF(Raw!BI8="","",Raw!BI8) -> 13.12 | J8: =IF(Raw!BJ8="","",Raw!BJ8) -> 0 | K8: =IFERROR(ROUND(VLOOKUP(A8,'Raw3'!A:F,6,0),2),"") -> 0 | L8: =IF(Raw!BK8="","",Raw!BK8) ->  | M8: =IF(Raw!BL8="","",Raw!BL8) -> 0 | N8: =IF(Raw!BM8="","",Raw!BM8) -> 61.52 | O8: =IF(Raw!BN8="","",Raw!BN8) -> 8 | P8: =IF(Raw!BO8="","",Raw!BO8) -> 6 | Q8: =IF(Raw!BP8="","",Raw!BP8) -> 0 | R8: =IF(Raw!BQ8="","",Raw!BQ8) ->  | S8: =IF(Raw!BR8="","",Raw!BR8) ->  | T8: =IF(Raw!BS8="","",Raw!BS8) -> 0.93 | U8: =IF(Raw!BT8="","",Raw!BT8) -> Y | V8: =IF(Raw!BU8="","",Raw!BU8) -> Y | W8: =IF(Raw!BV8="","",Raw!BV8) ->  | X8: =IF(Raw!BW8="","",Raw!BW8) ->  | Y8: =IF(Raw!BX8="","",Raw!BX8) ->  | Z8: =IF(Raw!BY8="","",Raw!BY8) ->  | AA8: =IF(Raw!BZ8="","",Raw!BZ8) -> Y | AB8: =IF(Raw!CA8="","",Raw!CA8) ->  | AC8: =IF(Raw!CB8="","",Raw!CB8) ->  | AD8: =IF(Raw!CC8="","",Raw!CC8) ->  | AE8: =IF(Raw!CD8="","",Raw!CD8) ->  | AF8: =IF(Raw!CE8="","",Raw!CE8) ->  | AG8: =IF(Raw!CF8="","",Raw!CF8) ->  | AH8: =IF(Raw!CG8="","",Raw!CG8) ->  | AI8: =IF(Raw!CH8="","",Raw!CH8) -> -100 | AJ8: =IF(Raw!CI8="","",Raw!CI8) -> -72.41 | AK8: =IF(Raw!CJ8="","",Raw!CJ8) -> 13.12 | AL8: =IF(Raw!CK8="","",Raw!CK8) -> 0 | AM8: =IF(Raw!CL8="","",Raw!CL8) -> 0 | AN8: =IF(Raw!CM8="","",Raw!CM8) -> 0 | AO8: =IF(Raw!CN8="","",Raw!CN8) ->  | AP8: =IF(Raw!CO8="","",Raw!CO8) -> 0 | AQ8: =IF(Raw!CP8="","",Raw!CP8) -> 61.52 | AR8: =IF(Raw!CQ8="","",Raw!CQ8) ->  | AS8: =IF(Raw!CR8="","",Raw!CR8) -> 0 | AT8: =IF(Raw!CS8="","",Raw!CS8) ->  | AU8: =IF(Raw!CT8="","",Raw!CT8) -> 8 | AV8: =IF(Raw!CU8="","",Raw!CU8) -> 0 | AW8: =IF(Raw!CV8="","",Raw!CV8) -> 9
A9: =IF(Raw!BA9="","",Raw!BA9) -> 1443 立益 | B9: =IF(Raw!BB9="","",Raw!BB9) -> TSE | C9: =IF(Raw!BC9="","",Raw!BC9) -> 5.86 | D9: =IF(Raw!BD9="","",Raw!BD9) -> -2.1703 | E9: =IF(Raw!BE9="","",Raw!BE9) -> -6.8364 | F9: =IF(Raw!BF9="","",Raw!BF9) -> 0 | G9: =IF(Raw!BG9="","",Raw!BG9) -> -21.47 | H9: =IF(Raw!BH9="","",Raw!BH9) -> 7.76 | I9: =IF(Raw!BI9="","",Raw!BI9) -> 509.67 | J9: =IF(Raw!BJ9="","",Raw!BJ9) -> 0 | K9: =IFERROR(ROUND(VLOOKUP(A9,'Raw3'!A:F,6,0),2),"") -> 0 | L9: =IF(Raw!BK9="","",Raw!BK9) ->  | M9: =IF(Raw!BL9="","",Raw!BL9) -> 0 | N9: =IF(Raw!BM9="","",Raw!BM9) -> 47.13 | O9: =IF(Raw!BN9="","",Raw!BN9) -> 9 | P9: =IF(Raw!BO9="","",Raw!BO9) -> 9 | Q9: =IF(Raw!BP9="","",Raw!BP9) -> 100 | R9: =IF(Raw!BQ9="","",Raw!BQ9) ->  | S9: =IF(Raw!BR9="","",Raw!BR9) ->  | T9: =IF(Raw!BS9="","",Raw!BS9) -> 0.81 | U9: =IF(Raw!BT9="","",Raw!BT9) ->  | V9: =IF(Raw!BU9="","",Raw!BU9) ->  | W9: =IF(Raw!BV9="","",Raw!BV9) -> Y | X9: =IF(Raw!BW9="","",Raw!BW9) ->  | Y9: =IF(Raw!BX9="","",Raw!BX9) ->  | Z9: =IF(Raw!BY9="","",Raw!BY9) ->  | AA9: =IF(Raw!BZ9="","",Raw!BZ9) ->  | AB9: =IF(Raw!CA9="","",Raw!CA9) ->  | AC9: =IF(Raw!CB9="","",Raw!CB9) ->  | AD9: =IF(Raw!CC9="","",Raw!CC9) ->  | AE9: =IF(Raw!CD9="","",Raw!CD9) ->  | AF9: =IF(Raw!CE9="","",Raw!CE9) ->  | AG9: =IF(Raw!CF9="","",Raw!CF9) ->  | AH9: =IF(Raw!CG9="","",Raw!CG9) ->  | AI9: =IF(Raw!CH9="","",Raw!CH9) -> -21.47 | AJ9: =IF(Raw!CI9="","",Raw!CI9) -> 7.76 | AK9: =IF(Raw!CJ9="","",Raw!CJ9) -> 509.67 | AL9: =IF(Raw!CK9="","",Raw!CK9) -> 0 | AM9: =IF(Raw!CL9="","",Raw!CL9) -> 0 | AN9: =IF(Raw!CM9="","",Raw!CM9) -> 0 | AO9: =IF(Raw!CN9="","",Raw!CN9) ->  | AP9: =IF(Raw!CO9="","",Raw!CO9) -> 0 | AQ9: =IF(Raw!CP9="","",Raw!CP9) -> 47.13 | AR9: =IF(Raw!CQ9="","",Raw!CQ9) ->  | AS9: =IF(Raw!CR9="","",Raw!CR9) -> 0 | AT9: =IF(Raw!CS9="","",Raw!CS9) ->  | AU9: =IF(Raw!CT9="","",Raw!CT9) -> 9 | AV9: =IF(Raw!CU9="","",Raw!CU9) -> 100 | AW9: =IF(Raw!CV9="","",Raw!CV9) -> 12
A10: =IF(Raw!BA10="","",Raw!BA10) -> 1449 佳和 | B10: =IF(Raw!BB10="","",Raw!BB10) -> TSE | C10: =IF(Raw!BC10="","",Raw!BC10) -> 5.36 | D10: =IF(Raw!BD10="","",Raw!BD10) -> -2.011 | E10: =IF(Raw!BE10="","",Raw!BE10) -> -1.6514 | F10: =IF(Raw!BF10="","",Raw!BF10) -> 0 | G10: =IF(Raw!BG10="","",Raw!BG10) -> -16.72 | H10: =IF(Raw!BH10="","",Raw!BH10) -> 0.75 | I10: =IF(Raw!BI10="","",Raw!BI10) -> 518.57 | J10: =IF(Raw!BJ10="","",Raw!BJ10) -> 0.44 | K10: =IFERROR(ROUND(VLOOKUP(A10,'Raw3'!A:F,6,0),2),"") -> 0.44 | L10: =IF(Raw!BK10="","",Raw!BK10) ->  | M10: =IF(Raw!BL10="","",Raw!BL10) -> 0 | N10: =IF(Raw!BM10="","",Raw!BM10) -> 30.84 | O10: =IF(Raw!BN10="","",Raw!BN10) -> 9 | P10: =IF(Raw!BO10="","",Raw!BO10) -> 9 | Q10: =IF(Raw!BP10="","",Raw!BP10) -> 100 | R10: =IF(Raw!BQ10="","",Raw!BQ10) ->  | S10: =IF(Raw!BR10="","",Raw!BR10) ->  | T10: =IF(Raw!BS10="","",Raw!BS10) -> 1.06 | U10: =IF(Raw!BT10="","",Raw!BT10) ->  | V10: =IF(Raw!BU10="","",Raw!BU10) ->  | W10: =IF(Raw!BV10="","",Raw!BV10) -> Y | X10: =IF(Raw!BW10="","",Raw!BW10) ->  | Y10: =IF(Raw!BX10="","",Raw!BX10) ->  | Z10: =IF(Raw!BY10="","",Raw!BY10) ->  | AA10: =IF(Raw!BZ10="","",Raw!BZ10) ->  | AB10: =IF(Raw!CA10="","",Raw!CA10) ->  | AC10: =IF(Raw!CB10="","",Raw!CB10) ->  | AD10: =IF(Raw!CC10="","",Raw!CC10) ->  | AE10: =IF(Raw!CD10="","",Raw!CD10) ->  | AF10: =IF(Raw!CE10="","",Raw!CE10) ->  | AG10: =IF(Raw!CF10="","",Raw!CF10) ->  | AH10: =IF(Raw!CG10="","",Raw!CG10) ->  | AI10: =IF(Raw!CH10="","",Raw!CH10) -> -16.72 | AJ10: =IF(Raw!CI10="","",Raw!CI10) -> 0.75 | AK10: =IF(Raw!CJ10="","",Raw!CJ10) -> 518.57 | AL10: =IF(Raw!CK10="","",Raw!CK10) -> 0 | AM10: =IF(Raw!CL10="","",Raw!CL10) -> 0 | AN10: =IF(Raw!CM10="","",Raw!CM10) -> 0 | AO10: =IF(Raw!CN10="","",Raw!CN10) ->  | AP10: =IF(Raw!CO10="","",Raw!CO10) -> 0 | AQ10: =IF(Raw!CP10="","",Raw!CP10) -> 30.84 | AR10: =IF(Raw!CQ10="","",Raw!CQ10) ->  | AS10: =IF(Raw!CR10="","",Raw!CR10) -> 0 | AT10: =IF(Raw!CS10="","",Raw!CS10) ->  | AU10: =IF(Raw!CT10="","",Raw!CT10) -> 9 | AV10: =IF(Raw!CU10="","",Raw!CU10) -> 100 | AW10: =IF(Raw!CV10="","",Raw!CV10) -> 11
A11: =IF(Raw!BA11="","",Raw!BA11) -> 1456 怡華 | B11: =IF(Raw!BB11="","",Raw!BB11) -> TSE | C11: =IF(Raw!BC11="","",Raw!BC11) -> 10.8 | D11: =IF(Raw!BD11="","",Raw!BD11) -> 0.9346 | E11: =IF(Raw!BE11="","",Raw!BE11) -> -1.3699 | F11: =IF(Raw!BF11="","",Raw!BF11) -> 728 | G11: =IF(Raw!BG11="","",Raw!BG11) -> 111.58 | H11: =IF(Raw!BH11="","",Raw!BH11) -> 83.71 | I11: =IF(Raw!BI11="","",Raw!BI11) -> 294.02 | J11: =IF(Raw!BJ11="","",Raw!BJ11) -> 0 | K11: =IFERROR(ROUND(VLOOKUP(A11,'Raw3'!A:F,6,0),2),"") -> 0 | L11: =IF(Raw!BK11="","",Raw!BK11) -> 9.88 | M11: =IF(Raw!BL11="","",Raw!BL11) -> 7745.92 | N11: =IF(Raw!BM11="","",Raw!BM11) -> 39.31 | O11: =IF(Raw!BN11="","",Raw!BN11) -> 9 | P11: =IF(Raw!BO11="","",Raw!BO11) -> 8 | Q11: =IF(Raw!BP11="","",Raw!BP11) -> 100 | R11: =IF(Raw!BQ11="","",Raw!BQ11) ->  | S11: =IF(Raw!BR11="","",Raw!BR11) -> 0 | T11: =IF(Raw!BS11="","",Raw!BS11) -> 0.89 | U11: =IF(Raw!BT11="","",Raw!BT11) ->  | V11: =IF(Raw!BU11="","",Raw!BU11) ->  | W11: =IF(Raw!BV11="","",Raw!BV11) -> Y | X11: =IF(Raw!BW11="","",Raw!BW11) ->  | Y11: =IF(Raw!BX11="","",Raw!BX11) ->  | Z11: =IF(Raw!BY11="","",Raw!BY11) ->  | AA11: =IF(Raw!BZ11="","",Raw!BZ11) ->  | AB11: =IF(Raw!CA11="","",Raw!CA11) ->  | AC11: =IF(Raw!CB11="","",Raw!CB11) ->  | AD11: =IF(Raw!CC11="","",Raw!CC11) ->  | AE11: =IF(Raw!CD11="","",Raw!CD11) ->  | AF11: =IF(Raw!CE11="","",Raw!CE11) ->  | AG11: =IF(Raw!CF11="","",Raw!CF11) ->  | AH11: =IF(Raw!CG11="","",Raw!CG11) ->  | AI11: =IF(Raw!CH11="","",Raw!CH11) -> 111.58 | AJ11: =IF(Raw!CI11="","",Raw!CI11) -> 83.71 | AK11: =IF(Raw!CJ11="","",Raw!CJ11) -> 294.02 | AL11: =IF(Raw!CK11="","",Raw!CK11) -> 0 | AM11: =IF(Raw!CL11="","",Raw!CL11) -> 0 | AN11: =IF(Raw!CM11="","",Raw!CM11) -> 0 | AO11: =IF(Raw!CN11="","",Raw!CN11) -> 9.88 | AP11: =IF(Raw!CO11="","",Raw!CO11) -> 0 | AQ11: =IF(Raw!CP11="","",Raw!CP11) -> 39.31 | AR11: =IF(Raw!CQ11="","",Raw!CQ11) ->  | AS11: =IF(Raw!CR11="","",Raw!CR11) -> 0 | AT11: =IF(Raw!CS11="","",Raw!CS11) ->  | AU11: =IF(Raw!CT11="","",Raw!CT11) -> 9 | AV11: =IF(Raw!CU11="","",Raw!CU11) -> 100 | AW11: =IF(Raw!CV11="","",Raw!CV11) -> 10
A12: =IF(Raw!BA12="","",Raw!BA12) -> 1475 本盟 | B12: =IF(Raw!BB12="","",Raw!BB12) -> TSE | C12: =IF(Raw!BC12="","",Raw!BC12) -> 43.7 | D12: =IF(Raw!BD12="","",Raw!BD12) -> -1.1312 | E12: =IF(Raw!BE12="","",Raw!BE12) -> 7.371 | F12: =IF(Raw!BF12="","",Raw!BF12) -> 0 | G12: =IF(Raw!BG12="","",Raw!BG12) -> -40.44 | H12: =IF(Raw!BH12="","",Raw!BH12) -> -27.8 | I12: =IF(Raw!BI12="","",Raw!BI12) -> 100.74 | J12: =IF(Raw!BJ12="","",Raw!BJ12) -> 0 | K12: =IFERROR(ROUND(VLOOKUP(A12,'Raw3'!A:F,6,0),2),"") -> 0 | L12: =IF(Raw!BK12="","",Raw!BK12) ->  | M12: =IF(Raw!BL12="","",Raw!BL12) -> 0 | N12: =IF(Raw!BM12="","",Raw!BM12) -> 21.04 | O12: =IF(Raw!BN12="","",Raw!BN12) -> 9 | P12: =IF(Raw!BO12="","",Raw!BO12) -> 7 | Q12: =IF(Raw!BP12="","",Raw!BP12) -> 0 | R12: =IF(Raw!BQ12="","",Raw!BQ12) ->  | S12: =IF(Raw!BR12="","",Raw!BR12) ->  | T12: =IF(Raw!BS12="","",Raw!BS12) -> 8.34 | U12: =IF(Raw!BT12="","",Raw!BT12) ->  | V12: =IF(Raw!BU12="","",Raw!BU12) ->  | W12: =IF(Raw!BV12="","",Raw!BV12) ->  | X12: =IF(Raw!BW12="","",Raw!BW12) ->  | Y12: =IF(Raw!BX12="","",Raw!BX12) ->  | Z12: =IF(Raw!BY12="","",Raw!BY12) ->  | AA12: =IF(Raw!BZ12="","",Raw!BZ12) ->  | AB12: =IF(Raw!CA12="","",Raw!CA12) ->  | AC12: =IF(Raw!CB12="","",Raw!CB12) ->  | AD12: =IF(Raw!CC12="","",Raw!CC12) ->  | AE12: =IF(Raw!CD12="","",Raw!CD12) ->  | AF12: =IF(Raw!CE12="","",Raw!CE12) ->  | AG12: =IF(Raw!CF12="","",Raw!CF12) ->  | AH12: =IF(Raw!CG12="","",Raw!CG12) ->  | AI12: =IF(Raw!CH12="","",Raw!CH12) -> -40.44 | AJ12: =IF(Raw!CI12="","",Raw!CI12) -> -27.8 | AK12: =IF(Raw!CJ12="","",Raw!CJ12) -> 100.74 | AL12: =IF(Raw!CK12="","",Raw!CK12) -> 0 | AM12: =IF(Raw!CL12="","",Raw!CL12) -> 0 | AN12: =IF(Raw!CM12="","",Raw!CM12) -> 0 | AO12: =IF(Raw!CN12="","",Raw!CN12) ->  | AP12: =IF(Raw!CO12="","",Raw!CO12) -> 0 | AQ12: =IF(Raw!CP12="","",Raw!CP12) -> 21.04 | AR12: =IF(Raw!CQ12="","",Raw!CQ12) ->  | AS12: =IF(Raw!CR12="","",Raw!CR12) -> 3 | AT12: =IF(Raw!CS12="","",Raw!CS12) ->  | AU12: =IF(Raw!CT12="","",Raw!CT12) -> 9 | AV12: =IF(Raw!CU12="","",Raw!CU12) -> 0 | AW12: =IF(Raw!CV12="","",Raw!CV12) -> 12
A13: =IF(Raw!BA13="","",Raw!BA13) -> 1506 正道 | B13: =IF(Raw!BB13="","",Raw!BB13) -> TSE | C13: =IF(Raw!BC13="","",Raw!BC13) -> 21.2 | D13: =IF(Raw!BD13="","",Raw!BD13) -> 1.4354 | E13: =IF(Raw!BE13="","",Raw!BE13) -> 6.2657 | F13: =IF(Raw!BF13="","",Raw!BF13) -> 20446 | G13: =IF(Raw!BG13="","",Raw!BG13) -> -13.83 | H13: =IF(Raw!BH13="","",Raw!BH13) -> -15.77 | I13: =IF(Raw!BI13="","",Raw!BI13) -> 114.96 | J13: =IF(Raw!BJ13="","",Raw!BJ13) -> 62.43 | K13: =IFERROR(ROUND(VLOOKUP(A13,'Raw3'!A:F,6,0),2),"") -> 62.43 | L13: =IF(Raw!BK13="","",Raw!BK13) -> 88.65 | M13: =IF(Raw!BL13="","",Raw!BL13) -> 431410.6 | N13: =IF(Raw!BM13="","",Raw!BM13) -> 26.63 | O13: =IF(Raw!BN13="","",Raw!BN13) -> 7 | P13: =IF(Raw!BO13="","",Raw!BO13) -> 5 | Q13: =IF(Raw!BP13="","",Raw!BP13) -> 0 | R13: =IF(Raw!BQ13="","",Raw!BQ13) ->  | S13: =IF(Raw!BR13="","",Raw!BR13) -> 1.35 | T13: =IF(Raw!BS13="","",Raw!BS13) -> 2.08 | U13: =IF(Raw!BT13="","",Raw!BT13) ->  | V13: =IF(Raw!BU13="","",Raw!BU13) ->  | W13: =IF(Raw!BV13="","",Raw!BV13) ->  | X13: =IF(Raw!BW13="","",Raw!BW13) ->  | Y13: =IF(Raw!BX13="","",Raw!BX13) ->  | Z13: =IF(Raw!BY13="","",Raw!BY13) -> Y | AA13: =IF(Raw!BZ13="","",Raw!BZ13) ->  | AB13: =IF(Raw!CA13="","",Raw!CA13) ->  | AC13: =IF(Raw!CB13="","",Raw!CB13) ->  | AD13: =IF(Raw!CC13="","",Raw!CC13) ->  | AE13: =IF(Raw!CD13="","",Raw!CD13) ->  | AF13: =IF(Raw!CE13="","",Raw!CE13) ->  | AG13: =IF(Raw!CF13="","",Raw!CF13) ->  | AH13: =IF(Raw!CG13="","",Raw!CG13) ->  | AI13: =IF(Raw!CH13="","",Raw!CH13) -> -13.83 | AJ13: =IF(Raw!CI13="","",Raw!CI13) -> -15.77 | AK13: =IF(Raw!CJ13="","",Raw!CJ13) -> 114.96 | AL13: =IF(Raw!CK13="","",Raw!CK13) -> 3 | AM13: =IF(Raw!CL13="","",Raw!CL13) -> 3 | AN13: =IF(Raw!CM13="","",Raw!CM13) -> 0 | AO13: =IF(Raw!CN13="","",Raw!CN13) -> 88.65 | AP13: =IF(Raw!CO13="","",Raw!CO13) -> 0 | AQ13: =IF(Raw!CP13="","",Raw!CP13) -> 26.63 | AR13: =IF(Raw!CQ13="","",Raw!CQ13) ->  | AS13: =IF(Raw!CR13="","",Raw!CR13) -> 0 | AT13: =IF(Raw!CS13="","",Raw!CS13) ->  | AU13: =IF(Raw!CT13="","",Raw!CT13) -> 7 | AV13: =IF(Raw!CU13="","",Raw!CU13) -> 0 | AW13: =IF(Raw!CV13="","",Raw!CV13) -> 11
A14: =IF(Raw!BA14="","",Raw!BA14) -> 1512 瑞利 | B14: =IF(Raw!BB14="","",Raw!BB14) -> TSE | C14: =IF(Raw!BC14="","",Raw!BC14) -> 12 | D14: =IF(Raw!BD14="","",Raw!BD14) -> -0.8264 | E14: =IF(Raw!BE14="","",Raw!BE14) -> 0.4184 | F14: =IF(Raw!BF14="","",Raw!BF14) -> 0 | G14: =IF(Raw!BG14="","",Raw!BG14) -> -40.66 | H14: =IF(Raw!BH14="","",Raw!BH14) -> -33.02 | I14: =IF(Raw!BI14="","",Raw!BI14) -> 268.44 | J14: =IF(Raw!BJ14="","",Raw!BJ14) -> 5.77 | K14: =IFERROR(ROUND(VLOOKUP(A14,'Raw3'!A:F,6,0),2),"") -> 5.77 | L14: =IF(Raw!BK14="","",Raw!BK14) ->  | M14: =IF(Raw!BL14="","",Raw!BL14) -> 0 | N14: =IF(Raw!BM14="","",Raw!BM14) -> 24.01 | O14: =IF(Raw!BN14="","",Raw!BN14) -> 9 | P14: =IF(Raw!BO14="","",Raw!BO14) -> 8 | Q14: =IF(Raw!BP14="","",Raw!BP14) -> 100 | R14: =IF(Raw!BQ14="","",Raw!BQ14) ->  | S14: =IF(Raw!BR14="","",Raw!BR14) ->  | T14: =IF(Raw!BS14="","",Raw!BS14) -> 2.23 | U14: =IF(Raw!BT14="","",Raw!BT14) ->  | V14: =IF(Raw!BU14="","",Raw!BU14) ->  | W14: =IF(Raw!BV14="","",Raw!BV14) -> Y | X14: =IF(Raw!BW14="","",Raw!BW14) ->  | Y14: =IF(Raw!BX14="","",Raw!BX14) ->  | Z14: =IF(Raw!BY14="","",Raw!BY14) ->  | AA14: =IF(Raw!BZ14="","",Raw!BZ14) ->  | AB14: =IF(Raw!CA14="","",Raw!CA14) ->  | AC14: =IF(Raw!CB14="","",Raw!CB14) ->  | AD14: =IF(Raw!CC14="","",Raw!CC14) ->  | AE14: =IF(Raw!CD14="","",Raw!CD14) ->  | AF14: =IF(Raw!CE14="","",Raw!CE14) ->  | AG14: =IF(Raw!CF14="","",Raw!CF14) ->  | AH14: =IF(Raw!CG14="","",Raw!CG14) ->  | AI14: =IF(Raw!CH14="","",Raw!CH14) -> -40.66 | AJ14: =IF(Raw!CI14="","",Raw!CI14) -> -33.02 | AK14: =IF(Raw!CJ14="","",Raw!CJ14) -> 268.44 | AL14: =IF(Raw!CK14="","",Raw!CK14) -> 0 | AM14: =IF(Raw!CL14="","",Raw!CL14) -> 0 | AN14: =IF(Raw!CM14="","",Raw!CM14) -> 0 | AO14: =IF(Raw!CN14="","",Raw!CN14) ->  | AP14: =IF(Raw!CO14="","",Raw!CO14) -> 0 | AQ14: =IF(Raw!CP14="","",Raw!CP14) -> 24.01 | AR14: =IF(Raw!CQ14="","",Raw!CQ14) ->  | AS14: =IF(Raw!CR14="","",Raw!CR14) -> 0 | AT14: =IF(Raw!CS14="","",Raw!CS14) ->  | AU14: =IF(Raw!CT14="","",Raw!CT14) -> 9 | AV14: =IF(Raw!CU14="","",Raw!CU14) -> 100 | AW14: =IF(Raw!CV14="","",Raw!CV14) -> 15
A15: =IF(Raw!BA15="","",Raw!BA15) -> 1538 正峰新 | B15: =IF(Raw!BB15="","",Raw!BB15) -> TSE | C15: =IF(Raw!BC15="","",Raw!BC15) -> 5.99 | D15: =IF(Raw!BD15="","",Raw!BD15) -> -2.1242 | E15: =IF(Raw!BE15="","",Raw!BE15) -> -0.3328 | F15: =IF(Raw!BF15="","",Raw!BF15) -> 0 | G15: =IF(Raw!BG15="","",Raw!BG15) -> -40.6 | H15: =IF(Raw!BH15="","",Raw!BH15) -> 2.53 | I15: =IF(Raw!BI15="","",Raw!BI15) -> 199.32 | J15: =IF(Raw!BJ15="","",Raw!BJ15) -> 0 | K15: =IFERROR(ROUND(VLOOKUP(A15,'Raw3'!A:F,6,0),2),"") -> 0 | L15: =IF(Raw!BK15="","",Raw!BK15) ->  | M15: =IF(Raw!BL15="","",Raw!BL15) -> 0 | N15: =IF(Raw!BM15="","",Raw!BM15) -> 41.72 | O15: =IF(Raw!BN15="","",Raw!BN15) -> 9 | P15: =IF(Raw!BO15="","",Raw!BO15) -> 8 | Q15: =IF(Raw!BP15="","",Raw!BP15) -> 100 | R15: =IF(Raw!BQ15="","",Raw!BQ15) ->  | S15: =IF(Raw!BR15="","",Raw!BR15) ->  | T15: =IF(Raw!BS15="","",Raw!BS15) -> 1.05 | U15: =IF(Raw!BT15="","",Raw!BT15) ->  | V15: =IF(Raw!BU15="","",Raw!BU15) ->  | W15: =IF(Raw!BV15="","",Raw!BV15) ->  | X15: =IF(Raw!BW15="","",Raw!BW15) ->  | Y15: =IF(Raw!BX15="","",Raw!BX15) ->  | Z15: =IF(Raw!BY15="","",Raw!BY15) ->  | AA15: =IF(Raw!BZ15="","",Raw!BZ15) ->  | AB15: =IF(Raw!CA15="","",Raw!CA15) ->  | AC15: =IF(Raw!CB15="","",Raw!CB15) ->  | AD15: =IF(Raw!CC15="","",Raw!CC15) ->  | AE15: =IF(Raw!CD15="","",Raw!CD15) ->  | AF15: =IF(Raw!CE15="","",Raw!CE15) ->  | AG15: =IF(Raw!CF15="","",Raw!CF15) ->  | AH15: =IF(Raw!CG15="","",Raw!CG15) ->  | AI15: =IF(Raw!CH15="","",Raw!CH15) -> -40.6 | AJ15: =IF(Raw!CI15="","",Raw!CI15) -> 2.53 | AK15: =IF(Raw!CJ15="","",Raw!CJ15) -> 199.32 | AL15: =IF(Raw!CK15="","",Raw!CK15) -> 0 | AM15: =IF(Raw!CL15="","",Raw!CL15) -> 0 | AN15: =IF(Raw!CM15="","",Raw!CM15) -> 0 | AO15: =IF(Raw!CN15="","",Raw!CN15) ->  | AP15: =IF(Raw!CO15="","",Raw!CO15) -> 0 | AQ15: =IF(Raw!CP15="","",Raw!CP15) -> 41.72 | AR15: =IF(Raw!CQ15="","",Raw!CQ15) ->  | AS15: =IF(Raw!CR15="","",Raw!CR15) -> 0 | AT15: =IF(Raw!CS15="","",Raw!CS15) ->  | AU15: =IF(Raw!CT15="","",Raw!CT15) -> 9 | AV15: =IF(Raw!CU15="","",Raw!CU15) -> 100 | AW15: =IF(Raw!CV15="","",Raw!CV15) -> 11
A16: =IF(Raw!BA16="","",Raw!BA16) -> 1718 中纖 | B16: =IF(Raw!BB16="","",Raw!BB16) -> TSE | C16: =IF(Raw!BC16="","",Raw!BC16) -> 8.62 | D16: =IF(Raw!BD16="","",Raw!BD16) -> 0.8187 | E16: =IF(Raw!BE16="","",Raw!BE16) -> 2.0118 | F16: =IF(Raw!BF16="","",Raw!BF16) -> 36314 | G16: =IF(Raw!BG16="","",Raw!BG16) -> 6.34 | H16: =IF(Raw!BH16="","",Raw!BH16) -> 8.41 | I16: =IF(Raw!BI16="","",Raw!BI16) -> 1209.45 | J16: =IF(Raw!BJ16="","",Raw!BJ16) -> 42.68 | K16: =IFERROR(ROUND(VLOOKUP(A16,'Raw3'!A:F,6,0),2),"") -> 42.68 | L16: =IF(Raw!BK16="","",Raw!BK16) -> 10.16 | M16: =IF(Raw!BL16="","",Raw!BL16) -> 312663.54 | N16: =IF(Raw!BM16="","",Raw!BM16) -> 17.84 | O16: =IF(Raw!BN16="","",Raw!BN16) -> 7 | P16: =IF(Raw!BO16="","",Raw!BO16) -> 9 | Q16: =IF(Raw!BP16="","",Raw!BP16) -> 100 | R16: =IF(Raw!BQ16="","",Raw!BQ16) ->  | S16: =IF(Raw!BR16="","",Raw!BR16) -> 0.54 | T16: =IF(Raw!BS16="","",Raw!BS16) -> 0.49 | U16: =IF(Raw!BT16="","",Raw!BT16) ->  | V16: =IF(Raw!BU16="","",Raw!BU16) ->  | W16: =IF(Raw!BV16="","",Raw!BV16) -> Y | X16: =IF(Raw!BW16="","",Raw!BW16) ->  | Y16: =IF(Raw!BX16="","",Raw!BX16) ->  | Z16: =IF(Raw!BY16="","",Raw!BY16) ->  | AA16: =IF(Raw!BZ16="","",Raw!BZ16) ->  | AB16: =IF(Raw!CA16="","",Raw!CA16) ->  | AC16: =IF(Raw!CB16="","",Raw!CB16) ->  | AD16: =IF(Raw!CC16="","",Raw!CC16) ->  | AE16: =IF(Raw!CD16="","",Raw!CD16) ->  | AF16: =IF(Raw!CE16="","",Raw!CE16) ->  | AG16: =IF(Raw!CF16="","",Raw!CF16) ->  | AH16: =IF(Raw!CG16="","",Raw!CG16) ->  | AI16: =IF(Raw!CH16="","",Raw!CH16) -> 6.34 | AJ16: =IF(Raw!CI16="","",Raw!CI16) -> 8.41 | AK16: =IF(Raw!CJ16="","",Raw!CJ16) -> 1209.45 | AL16: =IF(Raw!CK16="","",Raw!CK16) -> 0 | AM16: =IF(Raw!CL16="","",Raw!CL16) -> 2 | AN16: =IF(Raw!CM16="","",Raw!CM16) -> 0 | AO16: =IF(Raw!CN16="","",Raw!CN16) -> 10.16 | AP16: =IF(Raw!CO16="","",Raw!CO16) -> 0 | AQ16: =IF(Raw!CP16="","",Raw!CP16) -> 17.84 | AR16: =IF(Raw!CQ16="","",Raw!CQ16) ->  | AS16: =IF(Raw!CR16="","",Raw!CR16) -> 0 | AT16: =IF(Raw!CS16="","",Raw!CS16) ->  | AU16: =IF(Raw!CT16="","",Raw!CT16) -> 7 | AV16: =IF(Raw!CU16="","",Raw!CU16) -> 100 | AW16: =IF(Raw!CV16="","",Raw!CV16) -> 9
A17: =IF(Raw!BA17="","",Raw!BA17) -> 1785 光洋科 | B17: =IF(Raw!BB17="","",Raw!BB17) -> OTC | C17: =IF(Raw!BC17="","",Raw!BC17) -> 14.9 | D17: =IF(Raw!BD17="","",Raw!BD17) -> 4.9296 | E17: =IF(Raw!BE17="","",Raw!BE17) -> 6.0498 | F17: =IF(Raw!BF17="","",Raw!BF17) -> 2583 | G17: =IF(Raw!BG17="","",Raw!BG17) -> -26.99 | H17: =IF(Raw!BH17="","",Raw!BH17) -> -54.22 | I17: =IF(Raw!BI17="","",Raw!BI17) -> 360.91 | J17: =IF(Raw!BJ17="","",Raw!BJ17) -> 95.4 | K17: =IFERROR(ROUND(VLOOKUP(A17,'Raw3'!A:F,6,0),2),"") -> 95.4 | L17: =IF(Raw!BK17="","",Raw!BK17) -> 0 | M17: =IF(Raw!BL17="","",Raw!BL17) -> 37711.8 | N17: =IF(Raw!BM17="","",Raw!BM17) -> 21.35 | O17: =IF(Raw!BN17="","",Raw!BN17) -> D | P17: =IF(Raw!BO17="","",Raw!BO17) -> D | Q17: =IF(Raw!BP17="","",Raw!BP17) -> 100 | R17: =IF(Raw!BQ17="","",Raw!BQ17) -> Y_紓困-財危 | S17: =IF(Raw!BR17="","",Raw!BR17) -> 0 | T17: =IF(Raw!BS17="","",Raw!BS17) -> 1.54 | U17: =IF(Raw!BT17="","",Raw!BT17) ->  | V17: =IF(Raw!BU17="","",Raw!BU17) -> Y | W17: =IF(Raw!BV17="","",Raw!BV17) -> Y | X17: =IF(Raw!BW17="","",Raw!BW17) -> Y | Y17: =IF(Raw!BX17="","",Raw!BX17) ->  | Z17: =IF(Raw!BY17="","",Raw!BY17) ->  | AA17: =IF(Raw!BZ17="","",Raw!BZ17) ->  | AB17: =IF(Raw!CA17="","",Raw!CA17) ->  | AC17: =IF(Raw!CB17="","",Raw!CB17) ->  | AD17: =IF(Raw!CC17="","",Raw!CC17) ->  | AE17: =IF(Raw!CD17="","",Raw!CD17) ->  | AF17: =IF(Raw!CE17="","",Raw!CE17) ->  | AG17: =IF(Raw!CF17="","",Raw!CF17) ->  | AH17: =IF(Raw!CG17="","",Raw!CG17) ->  | AI17: =IF(Raw!CH17="","",Raw!CH17) -> -26.99 | AJ17: =IF(Raw!CI17="","",Raw!CI17) -> -54.22 | AK17: =IF(Raw!CJ17="","",Raw!CJ17) -> 360.91 | AL17: =IF(Raw!CK17="","",Raw!CK17) -> 0 | AM17: =IF(Raw!CL17="","",Raw!CL17) -> 3 | AN17: =IF(Raw!CM17="","",Raw!CM17) -> 0 | AO17: =IF(Raw!CN17="","",Raw!CN17) -> 0 | AP17: =IF(Raw!CO17="","",Raw!CO17) -> 0 | AQ17: =IF(Raw!CP17="","",Raw!CP17) -> 21.35 | AR17: =IF(Raw!CQ17="","",Raw!CQ17) ->  | AS17: =IF(Raw!CR17="","",Raw!CR17) -> 0 | AT17: =IF(Raw!CS17="","",Raw!CS17) ->  | AU17: =IF(Raw!CT17="","",Raw!CT17) -> D | AV17: =IF(Raw!CU17="","",Raw!CU17) -> 100 | AW17: =IF(Raw!CV17="","",Raw!CV17) -> 18
A18: =IF(Raw!BA18="","",Raw!BA18) -> 2025 千興 | B18: =IF(Raw!BB18="","",Raw!BB18) -> TSE | C18: =IF(Raw!BC18="","",Raw!BC18) -> 2.97 | D18: =IF(Raw!BD18="","",Raw!BD18) -> 0 | E18: =IF(Raw!BE18="","",Raw!BE18) -> 12.9278 | F18: =IF(Raw!BF18="","",Raw!BF18) -> 0 | G18: =IF(Raw!BG18="","",Raw!BG18) -> 3.04 | H18: =IF(Raw!BH18="","",Raw!BH18) -> 0.66 | I18: =IF(Raw!BI18="","",Raw!BI18) -> 107.15 | J18: =IF(Raw!BJ18="","",Raw!BJ18) -> 85.3 | K18: =IFERROR(ROUND(VLOOKUP(A18,'Raw3'!A:F,6,0),2),"") -> 85.3 | L18: =IF(Raw!BK18="","",Raw!BK18) ->  | M18: =IF(Raw!BL18="","",Raw!BL18) -> 0 | N18: =IF(Raw!BM18="","",Raw!BM18) -> 18.11 | O18: =IF(Raw!BN18="","",Raw!BN18) -> D | P18: =IF(Raw!BO18="","",Raw!BO18) -> D | Q18: =IF(Raw!BP18="","",Raw!BP18) -> 100 | R18: =IF(Raw!BQ18="","",Raw!BQ18) -> Y_重整 | S18: =IF(Raw!BR18="","",Raw!BR18) ->  | T18: =IF(Raw!BS18="","",Raw!BS18) -> 0.72 | U18: =IF(Raw!BT18="","",Raw!BT18) ->  | V18: =IF(Raw!BU18="","",Raw!BU18) ->  | W18: =IF(Raw!BV18="","",Raw!BV18) ->  | X18: =IF(Raw!BW18="","",Raw!BW18) -> Y | Y18: =IF(Raw!BX18="","",Raw!BX18) ->  | Z18: =IF(Raw!BY18="","",Raw!BY18) ->  | AA18: =IF(Raw!BZ18="","",Raw!BZ18) ->  | AB18: =IF(Raw!CA18="","",Raw!CA18) ->  | AC18: =IF(Raw!CB18="","",Raw!CB18) ->  | AD18: =IF(Raw!CC18="","",Raw!CC18) -> Y | AE18: =IF(Raw!CD18="","",Raw!CD18) ->  | AF18: =IF(Raw!CE18="","",Raw!CE18) ->  | AG18: =IF(Raw!CF18="","",Raw!CF18) ->  | AH18: =IF(Raw!CG18="","",Raw!CG18) ->  | AI18: =IF(Raw!CH18="","",Raw!CH18) -> 3.04 | AJ18: =IF(Raw!CI18="","",Raw!CI18) -> 0.66 | AK18: =IF(Raw!CJ18="","",Raw!CJ18) -> 107.15 | AL18: =IF(Raw!CK18="","",Raw!CK18) -> 0 | AM18: =IF(Raw!CL18="","",Raw!CL18) -> 3 | AN18: =IF(Raw!CM18="","",Raw!CM18) -> 0 | AO18: =IF(Raw!CN18="","",Raw!CN18) ->  | AP18: =IF(Raw!CO18="","",Raw!CO18) -> 0 | AQ18: =IF(Raw!CP18="","",Raw!CP18) -> 18.11 | AR18: =IF(Raw!CQ18="","",Raw!CQ18) ->  | AS18: =IF(Raw!CR18="","",Raw!CR18) -> 0 | AT18: =IF(Raw!CS18="","",Raw!CS18) ->  | AU18: =IF(Raw!CT18="","",Raw!CT18) -> D | AV18: =IF(Raw!CU18="","",Raw!CU18) -> 100 | AW18: =IF(Raw!CV18="","",Raw!CV18) -> 9
A19: =IF(Raw!BA19="","",Raw!BA19) -> 2027 大成鋼 | B19: =IF(Raw!BB19="","",Raw!BB19) -> TSE | C19: =IF(Raw!BC19="","",Raw!BC19) -> 18.95 | D19: =IF(Raw!BD19="","",Raw!BD19) -> 0.5305 | E19: =IF(Raw!BE19="","",Raw!BE19) -> 4.4078 | F19: =IF(Raw!BF19="","",Raw!BF19) -> 8550 | G19: =IF(Raw!BG19="","",Raw!BG19) -> 51.66 | H19: =IF(Raw!BH19="","",Raw!BH19) -> 21.39 | I19: =IF(Raw!BI19="","",Raw!BI19) -> 269.39 | J19: =IF(Raw!BJ19="","",Raw!BJ19) -> 52.95 | K19: =IFERROR(ROUND(VLOOKUP(A19,'Raw3'!A:F,6,0),2),"") -> 52.95 | L19: =IF(Raw!BK19="","",Raw!BK19) -> 4.11 | M19: =IF(Raw!BL19="","",Raw!BL19) -> 161595 | N19: =IF(Raw!BM19="","",Raw!BM19) -> 13.92 | O19: =IF(Raw!BN19="","",Raw!BN19) -> 7 | P19: =IF(Raw!BO19="","",Raw!BO19) -> 7 | Q19: =IF(Raw!BP19="","",Raw!BP19) -> 100 | R19: =IF(Raw!BQ19="","",Raw!BQ19) ->  | S19: =IF(Raw!BR19="","",Raw!BR19) -> 0.12 | T19: =IF(Raw!BS19="","",Raw!BS19) -> 1.43 | U19: =IF(Raw!BT19="","",Raw!BT19) ->  | V19: =IF(Raw!BU19="","",Raw!BU19) ->  | W19: =IF(Raw!BV19="","",Raw!BV19) -> Y | X19: =IF(Raw!BW19="","",Raw!BW19) ->  | Y19: =IF(Raw!BX19="","",Raw!BX19) ->  | Z19: =IF(Raw!BY19="","",Raw!BY19) ->  | AA19: =IF(Raw!BZ19="","",Raw!BZ19) ->  | AB19: =IF(Raw!CA19="","",Raw!CA19) ->  | AC19: =IF(Raw!CB19="","",Raw!CB19) ->  | AD19: =IF(Raw!CC19="","",Raw!CC19) ->  | AE19: =IF(Raw!CD19="","",Raw!CD19) ->  | AF19: =IF(Raw!CE19="","",Raw!CE19) ->  | AG19: =IF(Raw!CF19="","",Raw!CF19) ->  | AH19: =IF(Raw!CG19="","",Raw!CG19) ->  | AI19: =IF(Raw!CH19="","",Raw!CH19) -> 51.66 | AJ19: =IF(Raw!CI19="","",Raw!CI19) -> 21.39 | AK19: =IF(Raw!CJ19="","",Raw!CJ19) -> 269.39 | AL19: =IF(Raw!CK19="","",Raw!CK19) -> 0 | AM19: =IF(Raw!CL19="","",Raw!CL19) -> 3 | AN19: =IF(Raw!CM19="","",Raw!CM19) -> 0 | AO19: =IF(Raw!CN19="","",Raw!CN19) -> 4.11 | AP19: =IF(Raw!CO19="","",Raw!CO19) -> 0 | AQ19: =IF(Raw!CP19="","",Raw!CP19) -> 13.92 | AR19: =IF(Raw!CQ19="","",Raw!CQ19) ->  | AS19: =IF(Raw!CR19="","",Raw!CR19) -> 0 | AT19: =IF(Raw!CS19="","",Raw!CS19) ->  | AU19: =IF(Raw!CT19="","",Raw!CT19) -> 7 | AV19: =IF(Raw!CU19="","",Raw!CU19) -> 100 | AW19: =IF(Raw!CV19="","",Raw!CV19) -> 10
A20: =IF(Raw!BA20="","",Raw!BA20) -> 2028 威致 | B20: =IF(Raw!BB20="","",Raw!BB20) -> TSE | C20: =IF(Raw!BC20="","",Raw!BC20) -> 7.13 | D20: =IF(Raw!BD20="","",Raw!BD20) -> 0.1404 | E20: =IF(Raw!BE20="","",Raw!BE20) -> 1.1346 | F20: =IF(Raw!BF20="","",Raw!BF20) -> 0 | G20: =IF(Raw!BG20="","",Raw!BG20) -> 29.82 | H20: =IF(Raw!BH20="","",Raw!BH20) -> 41.25 | I20: =IF(Raw!BI20="","",Raw!BI20) -> 325.89 | J20: =IF(Raw!BJ20="","",Raw!BJ20) -> 4.97 | K20: =IFERROR(ROUND(VLOOKUP(A20,'Raw3'!A:F,6,0),2),"") -> 4.97 | L20: =IF(Raw!BK20="","",Raw!BK20) ->  | M20: =IF(Raw!BL20="","",Raw!BL20) -> 0 | N20: =IF(Raw!BM20="","",Raw!BM20) -> 44.42 | O20: =IF(Raw!BN20="","",Raw!BN20) -> D | P20: =IF(Raw!BO20="","",Raw!BO20) -> D | Q20: =IF(Raw!BP20="","",Raw!BP20) -> 100 | R20: =IF(Raw!BQ20="","",Raw!BQ20) -> Y_紓困-財危 | S20: =IF(Raw!BR20="","",Raw!BR20) ->  | T20: =IF(Raw!BS20="","",Raw!BS20) -> 1.62 | U20: =IF(Raw!BT20="","",Raw!BT20) ->  | V20: =IF(Raw!BU20="","",Raw!BU20) ->  | W20: =IF(Raw!BV20="","",Raw!BV20) -> Y | X20: =IF(Raw!BW20="","",Raw!BW20) ->  | Y20: =IF(Raw!BX20="","",Raw!BX20) ->  | Z20: =IF(Raw!BY20="","",Raw!BY20) ->  | AA20: =IF(Raw!BZ20="","",Raw!BZ20) ->  | AB20: =IF(Raw!CA20="","",Raw!CA20) ->  | AC20: =IF(Raw!CB20="","",Raw!CB20) ->  | AD20: =IF(Raw!CC20="","",Raw!CC20) -> Y | AE20: =IF(Raw!CD20="","",Raw!CD20) ->  | AF20: =IF(Raw!CE20="","",Raw!CE20) ->  | AG20: =IF(Raw!CF20="","",Raw!CF20) ->  | AH20: =IF(Raw!CG20="","",Raw!CG20) ->  | AI20: =IF(Raw!CH20="","",Raw!CH20) -> 29.82 | AJ20: =IF(Raw!CI20="","",Raw!CI20) -> 41.25 | AK20: =IF(Raw!CJ20="","",Raw!CJ20) -> 325.89 | AL20: =IF(Raw!CK20="","",Raw!CK20) -> 0 | AM20: =IF(Raw!CL20="","",Raw!CL20) -> 0 | AN20: =IF(Raw!CM20="","",Raw!CM20) -> 0 | AO20: =IF(Raw!CN20="","",Raw!CN20) ->  | AP20: =IF(Raw!CO20="","",Raw!CO20) -> 0 | AQ20: =IF(Raw!CP20="","",Raw!CP20) -> 44.42 | AR20: =IF(Raw!CQ20="","",Raw!CQ20) ->  | AS20: =IF(Raw!CR20="","",Raw!CR20) -> 0 | AT20: =IF(Raw!CS20="","",Raw!CS20) ->  | AU20: =IF(Raw!CT20="","",Raw!CT20) -> D | AV20: =IF(Raw!CU20="","",Raw!CU20) -> 100 | AW20: =IF(Raw!CV20="","",Raw!CV20) -> 10
A21: =IF(Raw!BA21="","",Raw!BA21) -> 2067 嘉鋼 | B21: =IF(Raw!BB21="","",Raw!BB21) -> OTC | C21: =IF(Raw!BC21="","",Raw!BC21) -> 11.4 | D21: =IF(Raw!BD21="","",Raw!BD21) -> 0 | E21: =IF(Raw!BE21="","",Raw!BE21) -> 0.8849 | F21: =IF(Raw!BF21="","",Raw!BF21) ->  | G21: =IF(Raw!BG21="","",Raw!BG21) -> 29.51 | H21: =IF(Raw!BH21="","",Raw!BH21) -> 18.42 | I21: =IF(Raw!BI21="","",Raw!BI21) -> 251.72 | J21: =IF(Raw!BJ21="","",Raw!BJ21) -> 45.79 | K21: =IFERROR(ROUND(VLOOKUP(A21,'Raw3'!A:F,6,0),2),"") -> 45.79 | L21: =IF(Raw!BK21="","",Raw!BK21) ->  | M21: =IF(Raw!BL21="","",Raw!BL21) ->  | N21: =IF(Raw!BM21="","",Raw!BM21) -> 56.52 | O21: =IF(Raw!BN21="","",Raw!BN21) -> 8 | P21: =IF(Raw!BO21="","",Raw!BO21) -> 7 | Q21: =IF(Raw!BP21="","",Raw!BP21) -> 100 | R21: =IF(Raw!BQ21="","",Raw!BQ21) ->  | S21: =IF(Raw!BR21="","",Raw!BR21) ->  | T21: =IF(Raw!BS21="","",Raw!BS21) -> 1.15 | U21: =IF(Raw!BT21="","",Raw!BT21) ->  | V21: =IF(Raw!BU21="","",Raw!BU21) ->  | W21: =IF(Raw!BV21="","",Raw!BV21) -> Y | X21: =IF(Raw!BW21="","",Raw!BW21) ->  | Y21: =IF(Raw!BX21="","",Raw!BX21) ->  | Z21: =IF(Raw!BY21="","",Raw!BY21) ->  | AA21: =IF(Raw!BZ21="","",Raw!BZ21) -> Y | AB21: =IF(Raw!CA21="","",Raw!CA21) ->  | AC21: =IF(Raw!CB21="","",Raw!CB21) ->  | AD21: =IF(Raw!CC21="","",Raw!CC21) ->  | AE21: =IF(Raw!CD21="","",Raw!CD21) ->  | AF21: =IF(Raw!CE21="","",Raw!CE21) ->  | AG21: =IF(Raw!CF21="","",Raw!CF21) ->  | AH21: =IF(Raw!CG21="","",Raw!CG21) ->  | AI21: =IF(Raw!CH21="","",Raw!CH21) -> 29.51 | AJ21: =IF(Raw!CI21="","",Raw!CI21) -> 18.42 | AK21: =IF(Raw!CJ21="","",Raw!CJ21) -> 251.72 | AL21: =IF(Raw!CK21="","",Raw!CK21) -> 0 | AM21: =IF(Raw!CL21="","",Raw!CL21) -> 2 | AN21: =IF(Raw!CM21="","",Raw!CM21) -> 0 | AO21: =IF(Raw!CN21="","",Raw!CN21) ->  | AP21: =IF(Raw!CO21="","",Raw!CO21) -> 0 | AQ21: =IF(Raw!CP21="","",Raw!CP21) -> 56.52 | AR21: =IF(Raw!CQ21="","",Raw!CQ21) ->  | AS21: =IF(Raw!CR21="","",Raw!CR21) -> 0 | AT21: =IF(Raw!CS21="","",Raw!CS21) ->  | AU21: =IF(Raw!CT21="","",Raw!CT21) -> 8 | AV21: =IF(Raw!CU21="","",Raw!CU21) -> 100 | AW21: =IF(Raw!CV21="","",Raw!CV21) -> 11
A22: =IF(Raw!BA22="","",Raw!BA22) -> 2321 東訊 | B22: =IF(Raw!BB22="","",Raw!BB22) -> TSE | C22: =IF(Raw!BC22="","",Raw!BC22) -> 2.26 | D22: =IF(Raw!BD22="","",Raw!BD22) -> 0.4444 | E22: =IF(Raw!BE22="","",Raw!BE22) -> -2.5862 | F22: =IF(Raw!BF22="","",Raw!BF22) -> 0 | G22: =IF(Raw!BG22="","",Raw!BG22) -> -6.54 | H22: =IF(Raw!BH22="","",Raw!BH22) -> -21.71 | I22: =IF(Raw!BI22="","",Raw!BI22) -> 278.26 | J22: =IF(Raw!BJ22="","",Raw!BJ22) -> 0 | K22: =IFERROR(ROUND(VLOOKUP(A22,'Raw3'!A:F,6,0),2),"") -> 0 | L22: =IF(Raw!BK22="","",Raw!BK22) ->  | M22: =IF(Raw!BL22="","",Raw!BL22) -> 0 | N22: =IF(Raw!BM22="","",Raw!BM22) -> 53.15 | O22: =IF(Raw!BN22="","",Raw!BN22) -> 9 | P22: =IF(Raw!BO22="","",Raw!BO22) -> 8 | Q22: =IF(Raw!BP22="","",Raw!BP22) -> 100 | R22: =IF(Raw!BQ22="","",Raw!BQ22) ->  | S22: =IF(Raw!BR22="","",Raw!BR22) ->  | T22: =IF(Raw!BS22="","",Raw!BS22) -> 3.96 | U22: =IF(Raw!BT22="","",Raw!BT22) ->  | V22: =IF(Raw!BU22="","",Raw!BU22) ->  | W22: =IF(Raw!BV22="","",Raw!BV22) -> Y | X22: =IF(Raw!BW22="","",Raw!BW22) ->  | Y22: =IF(Raw!BX22="","",Raw!BX22) ->  | Z22: =IF(Raw!BY22="","",Raw!BY22) ->  | AA22: =IF(Raw!BZ22="","",Raw!BZ22) -> Y | AB22: =IF(Raw!CA22="","",Raw!CA22) ->  | AC22: =IF(Raw!CB22="","",Raw!CB22) ->  | AD22: =IF(Raw!CC22="","",Raw!CC22) -> Y | AE22: =IF(Raw!CD22="","",Raw!CD22) ->  | AF22: =IF(Raw!CE22="","",Raw!CE22) ->  | AG22: =IF(Raw!CF22="","",Raw!CF22) ->  | AH22: =IF(Raw!CG22="","",Raw!CG22) ->  | AI22: =IF(Raw!CH22="","",Raw!CH22) -> -6.54 | AJ22: =IF(Raw!CI22="","",Raw!CI22) -> -21.71 | AK22: =IF(Raw!CJ22="","",Raw!CJ22) -> 278.26 | AL22: =IF(Raw!CK22="","",Raw!CK22) -> 0 | AM22: =IF(Raw!CL22="","",Raw!CL22) -> 0 | AN22: =IF(Raw!CM22="","",Raw!CM22) -> 0 | AO22: =IF(Raw!CN22="","",Raw!CN22) ->  | AP22: =IF(Raw!CO22="","",Raw!CO22) -> 0 | AQ22: =IF(Raw!CP22="","",Raw!CP22) -> 53.15 | AR22: =IF(Raw!CQ22="","",Raw!CQ22) ->  | AS22: =IF(Raw!CR22="","",Raw!CR22) -> 1 | AT22: =IF(Raw!CS22="","",Raw!CS22) ->  | AU22: =IF(Raw!CT22="","",Raw!CT22) -> 9 | AV22: =IF(Raw!CU22="","",Raw!CU22) -> 100 | AW22: =IF(Raw!CV22="","",Raw!CV22) -> 13
A23: =IF(Raw!BA23="","",Raw!BA23) -> 2364 倫飛 | B23: =IF(Raw!BB23="","",Raw!BB23) -> TSE | C23: =IF(Raw!BC23="","",Raw!BC23) -> 2.67 | D23: =IF(Raw!BD23="","",Raw!BD23) -> -0.7435 | E23: =IF(Raw!BE23="","",Raw!BE23) -> 12.6582 | F23: =IF(Raw!BF23="","",Raw!BF23) -> 0 | G23: =IF(Raw!BG23="","",Raw!BG23) -> 20.54 | H23: =IF(Raw!BH23="","",Raw!BH23) -> -39.71 | I23: =IF(Raw!BI23="","",Raw!BI23) -> 184.6 | J23: =IF(Raw!BJ23="","",Raw!BJ23) -> 0 | K23: =IFERROR(ROUND(VLOOKUP(A23,'Raw3'!A:F,6,0),2),"") -> 0 | L23: =IF(Raw!BK23="","",Raw!BK23) ->  | M23: =IF(Raw!BL23="","",Raw!BL23) -> 0 | N23: =IF(Raw!BM23="","",Raw!BM23) -> 44.7 | O23: =IF(Raw!BN23="","",Raw!BN23) -> 9 | P23: =IF(Raw!BO23="","",Raw!BO23) -> 8 | Q23: =IF(Raw!BP23="","",Raw!BP23) -> 100 | R23: =IF(Raw!BQ23="","",Raw!BQ23) ->  | S23: =IF(Raw!BR23="","",Raw!BR23) ->  | T23: =IF(Raw!BS23="","",Raw!BS23) -> 0.92 | U23: =IF(Raw!BT23="","",Raw!BT23) ->  | V23: =IF(Raw!BU23="","",Raw!BU23) ->  | W23: =IF(Raw!BV23="","",Raw!BV23) ->  | X23: =IF(Raw!BW23="","",Raw!BW23) ->  | Y23: =IF(Raw!BX23="","",Raw!BX23) ->  | Z23: =IF(Raw!BY23="","",Raw!BY23) ->  | AA23: =IF(Raw!BZ23="","",Raw!BZ23) ->  | AB23: =IF(Raw!CA23="","",Raw!CA23) ->  | AC23: =IF(Raw!CB23="","",Raw!CB23) ->  | AD23: =IF(Raw!CC23="","",Raw!CC23) -> Y | AE23: =IF(Raw!CD23="","",Raw!CD23) ->  | AF23: =IF(Raw!CE23="","",Raw!CE23) ->  | AG23: =IF(Raw!CF23="","",Raw!CF23) ->  | AH23: =IF(Raw!CG23="","",Raw!CG23) ->  | AI23: =IF(Raw!CH23="","",Raw!CH23) -> 20.54 | AJ23: =IF(Raw!CI23="","",Raw!CI23) -> -39.71 | AK23: =IF(Raw!CJ23="","",Raw!CJ23) -> 184.6 | AL23: =IF(Raw!CK23="","",Raw!CK23) -> 0 | AM23: =IF(Raw!CL23="","",Raw!CL23) -> 0 | AN23: =IF(Raw!CM23="","",Raw!CM23) -> 0 | AO23: =IF(Raw!CN23="","",Raw!CN23) ->  | AP23: =IF(Raw!CO23="","",Raw!CO23) -> 0 | AQ23: =IF(Raw!CP23="","",Raw!CP23) -> 44.7 | AR23: =IF(Raw!CQ23="","",Raw!CQ23) ->  | AS23: =IF(Raw!CR23="","",Raw!CR23) -> 0 | AT23: =IF(Raw!CS23="","",Raw!CS23) ->  | AU23: =IF(Raw!CT23="","",Raw!CT23) -> 9 | AV23: =IF(Raw!CU23="","",Raw!CU23) -> 100 | AW23: =IF(Raw!CV23="","",Raw!CV23) -> 11
A24: =IF(Raw!BA24="","",Raw!BA24) -> 2406 國碩 | B24: =IF(Raw!BB24="","",Raw!BB24) -> TSE | C24: =IF(Raw!BC24="","",Raw!BC24) -> 15.7 | D24: =IF(Raw!BD24="","",Raw!BD24) -> -0.6329 | E24: =IF(Raw!BE24="","",Raw!BE24) -> 2.6143 | F24: =IF(Raw!BF24="","",Raw!BF24) -> 32325 | G24: =IF(Raw!BG24="","",Raw!BG24) -> -35.7 | H24: =IF(Raw!BH24="","",Raw!BH24) -> -45.45 | I24: =IF(Raw!BI24="","",Raw!BI24) -> 201.72 | J24: =IF(Raw!BJ24="","",Raw!BJ24) -> 9.36 | K24: =IFERROR(ROUND(VLOOKUP(A24,'Raw3'!A:F,6,0),2),"") -> 9.36 | L24: =IF(Raw!BK24="","",Raw!BK24) -> 38.14 | M24: =IF(Raw!BL24="","",Raw!BL24) -> 512351.25 | N24: =IF(Raw!BM24="","",Raw!BM24) -> 14.11 | O24: =IF(Raw!BN24="","",Raw!BN24) -> 6 | P24: =IF(Raw!BO24="","",Raw!BO24) -> 8 | Q24: =IF(Raw!BP24="","",Raw!BP24) -> 100 | R24: =IF(Raw!BQ24="","",Raw!BQ24) ->  | S24: =IF(Raw!BR24="","",Raw!BR24) -> 10.14 | T24: =IF(Raw!BS24="","",Raw!BS24) -> 1.18 | U24: =IF(Raw!BT24="","",Raw!BT24) ->  | V24: =IF(Raw!BU24="","",Raw!BU24) ->  | W24: =IF(Raw!BV24="","",Raw!BV24) ->  | X24: =IF(Raw!BW24="","",Raw!BW24) ->  | Y24: =IF(Raw!BX24="","",Raw!BX24) ->  | Z24: =IF(Raw!BY24="","",Raw!BY24) ->  | AA24: =IF(Raw!BZ24="","",Raw!BZ24) ->  | AB24: =IF(Raw!CA24="","",Raw!CA24) ->  | AC24: =IF(Raw!CB24="","",Raw!CB24) ->  | AD24: =IF(Raw!CC24="","",Raw!CC24) ->  | AE24: =IF(Raw!CD24="","",Raw!CD24) ->  | AF24: =IF(Raw!CE24="","",Raw!CE24) ->  | AG24: =IF(Raw!CF24="","",Raw!CF24) ->  | AH24: =IF(Raw!CG24="","",Raw!CG24) ->  | AI24: =IF(Raw!CH24="","",Raw!CH24) -> -35.7 | AJ24: =IF(Raw!CI24="","",Raw!CI24) -> -45.45 | AK24: =IF(Raw!CJ24="","",Raw!CJ24) -> 201.72 | AL24: =IF(Raw!CK24="","",Raw!CK24) -> 0 | AM24: =IF(Raw!CL24="","",Raw!CL24) -> 0 | AN24: =IF(Raw!CM24="","",Raw!CM24) -> 0 | AO24: =IF(Raw!CN24="","",Raw!CN24) -> 38.14 | AP24: =IF(Raw!CO24="","",Raw!CO24) -> 1 | AQ24: =IF(Raw!CP24="","",Raw!CP24) -> 14.11 | AR24: =IF(Raw!CQ24="","",Raw!CQ24) ->  | AS24: =IF(Raw!CR24="","",Raw!CR24) -> 0 | AT24: =IF(Raw!CS24="","",Raw!CS24) ->  | AU24: =IF(Raw!CT24="","",Raw!CT24) -> 6 | AV24: =IF(Raw!CU24="","",Raw!CU24) -> 100 | AW24: =IF(Raw!CV24="","",Raw!CV24) -> 12
A25: =IF(Raw!BA25="","",Raw!BA25) -> 2429 銘旺科 | B25: =IF(Raw!BB25="","",Raw!BB25) -> TSE | C25: =IF(Raw!BC25="","",Raw!BC25) -> 12.5 | D25: =IF(Raw!BD25="","",Raw!BD25) -> 0.4016 | E25: =IF(Raw!BE25="","",Raw!BE25) -> -1.9608 | F25: =IF(Raw!BF25="","",Raw!BF25) -> 0 | G25: =IF(Raw!BG25="","",Raw!BG25) -> 29.54 | H25: =IF(Raw!BH25="","",Raw!BH25) -> 7.86 | I25: =IF(Raw!BI25="","",Raw!BI25) -> 236.4 | J25: =IF(Raw!BJ25="","",Raw!BJ25) -> 19.93 | K25: =IFERROR(ROUND(VLOOKUP(A25,'Raw3'!A:F,6,0),2),"") -> 19.93 | L25: =IF(Raw!BK25="","",Raw!BK25) ->  | M25: =IF(Raw!BL25="","",Raw!BL25) -> 0 | N25: =IF(Raw!BM25="","",Raw!BM25) -> 42.85 | O25: =IF(Raw!BN25="","",Raw!BN25) -> 9 | P25: =IF(Raw!BO25="","",Raw!BO25) -> 8 | Q25: =IF(Raw!BP25="","",Raw!BP25) -> 100 | R25: =IF(Raw!BQ25="","",Raw!BQ25) ->  | S25: =IF(Raw!BR25="","",Raw!BR25) ->  | T25: =IF(Raw!BS25="","",Raw!BS25) -> 1.44 | U25: =IF(Raw!BT25="","",Raw!BT25) ->  | V25: =IF(Raw!BU25="","",Raw!BU25) ->  | W25: =IF(Raw!BV25="","",Raw!BV25) ->  | X25: =IF(Raw!BW25="","",Raw!BW25) ->  | Y25: =IF(Raw!BX25="","",Raw!BX25) ->  | Z25: =IF(Raw!BY25="","",Raw!BY25) ->  | AA25: =IF(Raw!BZ25="","",Raw!BZ25) ->  | AB25: =IF(Raw!CA25="","",Raw!CA25) ->  | AC25: =IF(Raw!CB25="","",Raw!CB25) ->  | AD25: =IF(Raw!CC25="","",Raw!CC25) ->  | AE25: =IF(Raw!CD25="","",Raw!CD25) ->  | AF25: =IF(Raw!CE25="","",Raw!CE25) ->  | AG25: =IF(Raw!CF25="","",Raw!CF25) ->  | AH25: =IF(Raw!CG25="","",Raw!CG25) ->  | AI25: =IF(Raw!CH25="","",Raw!CH25) -> 29.54 | AJ25: =IF(Raw!CI25="","",Raw!CI25) -> 7.86 | AK25: =IF(Raw!CJ25="","",Raw!CJ25) -> 236.4 | AL25: =IF(Raw!CK25="","",Raw!CK25) -> 0 | AM25: =IF(Raw!CL25="","",Raw!CL25) -> 0 | AN25: =IF(Raw!CM25="","",Raw!CM25) -> 0 | AO25: =IF(Raw!CN25="","",Raw!CN25) ->  | AP25: =IF(Raw!CO25="","",Raw!CO25) -> 0 | AQ25: =IF(Raw!CP25="","",Raw!CP25) -> 42.85 | AR25: =IF(Raw!CQ25="","",Raw!CQ25) ->  | AS25: =IF(Raw!CR25="","",Raw!CR25) -> 0 | AT25: =IF(Raw!CS25="","",Raw!CS25) ->  | AU25: =IF(Raw!CT25="","",Raw!CT25) -> 9 | AV25: =IF(Raw!CU25="","",Raw!CU25) -> 100 | AW25: =IF(Raw!CV25="","",Raw!CV25) -> 9
A26: =IF(Raw!BA26="","",Raw!BA26) -> 2465 麗臺 | B26: =IF(Raw!BB26="","",Raw!BB26) -> TSE | C26: =IF(Raw!BC26="","",Raw!BC26) -> 6.7 | D26: =IF(Raw!BD26="","",Raw!BD26) -> -1.6153 | E26: =IF(Raw!BE26="","",Raw!BE26) -> -3.7357 | F26: =IF(Raw!BF26="","",Raw!BF26) -> 0 | G26: =IF(Raw!BG26="","",Raw!BG26) -> 12.83 | H26: =IF(Raw!BH26="","",Raw!BH26) -> 3.63 | I26: =IF(Raw!BI26="","",Raw!BI26) -> 151.64 | J26: =IF(Raw!BJ26="","",Raw!BJ26) -> 42.95 | K26: =IFERROR(ROUND(VLOOKUP(A26,'Raw3'!A:F,6,0),2),"") -> 42.95 | L26: =IF(Raw!BK26="","",Raw!BK26) ->  | M26: =IF(Raw!BL26="","",Raw!BL26) -> 0 | N26: =IF(Raw!BM26="","",Raw!BM26) -> 30.54 | O26: =IF(Raw!BN26="","",Raw!BN26) -> 8 | P26: =IF(Raw!BO26="","",Raw!BO26) -> 8 | Q26: =IF(Raw!BP26="","",Raw!BP26) -> 100 | R26: =IF(Raw!BQ26="","",Raw!BQ26) ->  | S26: =IF(Raw!BR26="","",Raw!BR26) ->  | T26: =IF(Raw!BS26="","",Raw!BS26) -> 1.33 | U26: =IF(Raw!BT26="","",Raw!BT26) ->  | V26: =IF(Raw!BU26="","",Raw!BU26) ->  | W26: =IF(Raw!BV26="","",Raw!BV26) ->  | X26: =IF(Raw!BW26="","",Raw!BW26) ->  | Y26: =IF(Raw!BX26="","",Raw!BX26) ->  | Z26: =IF(Raw!BY26="","",Raw!BY26) ->  | AA26: =IF(Raw!BZ26="","",Raw!BZ26) ->  | AB26: =IF(Raw!CA26="","",Raw!CA26) ->  | AC26: =IF(Raw!CB26="","",Raw!CB26) ->  | AD26: =IF(Raw!CC26="","",Raw!CC26) ->  | AE26: =IF(Raw!CD26="","",Raw!CD26) ->  | AF26: =IF(Raw!CE26="","",Raw!CE26) ->  | AG26: =IF(Raw!CF26="","",Raw!CF26) ->  | AH26: =IF(Raw!CG26="","",Raw!CG26) ->  | AI26: =IF(Raw!CH26="","",Raw!CH26) -> 12.83 | AJ26: =IF(Raw!CI26="","",Raw!CI26) -> 3.63 | AK26: =IF(Raw!CJ26="","",Raw!CJ26) -> 151.64 | AL26: =IF(Raw!CK26="","",Raw!CK26) -> 0 | AM26: =IF(Raw!CL26="","",Raw!CL26) -> 2 | AN26: =IF(Raw!CM26="","",Raw!CM26) -> 0 | AO26: =IF(Raw!CN26="","",Raw!CN26) ->  | AP26: =IF(Raw!CO26="","",Raw!CO26) -> 0 | AQ26: =IF(Raw!CP26="","",Raw!CP26) -> 30.54 | AR26: =IF(Raw!CQ26="","",Raw!CQ26) ->  | AS26: =IF(Raw!CR26="","",Raw!CR26) -> 0 | AT26: =IF(Raw!CS26="","",Raw!CS26) ->  | AU26: =IF(Raw!CT26="","",Raw!CT26) -> 8 | AV26: =IF(Raw!CU26="","",Raw!CU26) -> 100 | AW26: =IF(Raw!CV26="","",Raw!CV26) -> 9
A27: =IF(Raw!BA27="","",Raw!BA27) -> 2499 東貝 | B27: =IF(Raw!BB27="","",Raw!BB27) -> TSE | C27: =IF(Raw!BC27="","",Raw!BC27) -> 11.95 | D27: =IF(Raw!BD27="","",Raw!BD27) -> 0 | E27: =IF(Raw!BE27="","",Raw!BE27) -> 1.7022 | F27: =IF(Raw!BF27="","",Raw!BF27) -> 24086 | G27: =IF(Raw!BG27="","",Raw!BG27) -> -31.75 | H27: =IF(Raw!BH27="","",Raw!BH27) -> -30.3 | I27: =IF(Raw!BI27="","",Raw!BI27) -> 170.04 | J27: =IF(Raw!BJ27="","",Raw!BJ27) -> 38.28 | K27: =IFERROR(ROUND(VLOOKUP(A27,'Raw3'!A:F,6,0),2),"") -> 38.28 | L27: =IF(Raw!BK27="","",Raw!BK27) -> 25.79 | M27: =IF(Raw!BL27="","",Raw!BL27) -> 289032 | N27: =IF(Raw!BM27="","",Raw!BM27) -> 19.77 | O27: =IF(Raw!BN27="","",Raw!BN27) -> 7 | P27: =IF(Raw!BO27="","",Raw!BO27) -> 8 | Q27: =IF(Raw!BP27="","",Raw!BP27) -> 100 | R27: =IF(Raw!BQ27="","",Raw!BQ27) ->  | S27: =IF(Raw!BR27="","",Raw!BR27) -> 2.3 | T27: =IF(Raw!BS27="","",Raw!BS27) -> 0.74 | U27: =IF(Raw!BT27="","",Raw!BT27) ->  | V27: =IF(Raw!BU27="","",Raw!BU27) ->  | W27: =IF(Raw!BV27="","",Raw!BV27) ->  | X27: =IF(Raw!BW27="","",Raw!BW27) ->  | Y27: =IF(Raw!BX27="","",Raw!BX27) ->  | Z27: =IF(Raw!BY27="","",Raw!BY27) ->  | AA27: =IF(Raw!BZ27="","",Raw!BZ27) ->  | AB27: =IF(Raw!CA27="","",Raw!CA27) ->  | AC27: =IF(Raw!CB27="","",Raw!CB27) ->  | AD27: =IF(Raw!CC27="","",Raw!CC27) ->  | AE27: =IF(Raw!CD27="","",Raw!CD27) ->  | AF27: =IF(Raw!CE27="","",Raw!CE27) ->  | AG27: =IF(Raw!CF27="","",Raw!CF27) ->  | AH27: =IF(Raw!CG27="","",Raw!CG27) ->  | AI27: =IF(Raw!CH27="","",Raw!CH27) -> -31.75 | AJ27: =IF(Raw!CI27="","",Raw!CI27) -> -30.3 | AK27: =IF(Raw!CJ27="","",Raw!CJ27) -> 170.04 | AL27: =IF(Raw!CK27="","",Raw!CK27) -> 0 | AM27: =IF(Raw!CL27="","",Raw!CL27) -> 1 | AN27: =IF(Raw!CM27="","",Raw!CM27) -> 0 | AO27: =IF(Raw!CN27="","",Raw!CN27) -> 25.79 | AP27: =IF(Raw!CO27="","",Raw!CO27) -> 0 | AQ27: =IF(Raw!CP27="","",Raw!CP27) -> 19.77 | AR27: =IF(Raw!CQ27="","",Raw!CQ27) ->  | AS27: =IF(Raw!CR27="","",Raw!CR27) -> 0 | AT27: =IF(Raw!CS27="","",Raw!CS27) ->  | AU27: =IF(Raw!CT27="","",Raw!CT27) -> 7 | AV27: =IF(Raw!CU27="","",Raw!CU27) -> 100 | AW27: =IF(Raw!CV27="","",Raw!CV27) -> 12
A28: =IF(Raw!BA28="","",Raw!BA28) -> 2504 國產 | B28: =IF(Raw!BB28="","",Raw!BB28) -> TSE | C28: =IF(Raw!BC28="","",Raw!BC28) -> 9.02 | D28: =IF(Raw!BD28="","",Raw!BD28) -> 0.4454 | E28: =IF(Raw!BE28="","",Raw!BE28) -> 0.8947 | F28: =IF(Raw!BF28="","",Raw!BF28) -> 14695 | G28: =IF(Raw!BG28="","",Raw!BG28) -> -43.66 | H28: =IF(Raw!BH28="","",Raw!BH28) -> -45.09 | I28: =IF(Raw!BI28="","",Raw!BI28) -> 64.96 | J28: =IF(Raw!BJ28="","",Raw!BJ28) -> 17.97 | K28: =IFERROR(ROUND(VLOOKUP(A28,'Raw3'!A:F,6,0),2),"") -> 17.97 | L28: =IF(Raw!BK28="","",Raw!BK28) -> 4.12 | M28: =IF(Raw!BL28="","",Raw!BL28) -> 132255 | N28: =IF(Raw!BM28="","",Raw!BM28) -> 21.06 | O28: =IF(Raw!BN28="","",Raw!BN28) -> 6 | P28: =IF(Raw!BO28="","",Raw!BO28) -> 7 | Q28: =IF(Raw!BP28="","",Raw!BP28) -> 80 | R28: =IF(Raw!BQ28="","",Raw!BQ28) ->  | S28: =IF(Raw!BR28="","",Raw!BR28) -> 0.53 | T28: =IF(Raw!BS28="","",Raw!BS28) -> 0.63 | U28: =IF(Raw!BT28="","",Raw!BT28) ->  | V28: =IF(Raw!BU28="","",Raw!BU28) ->  | W28: =IF(Raw!BV28="","",Raw!BV28) ->  | X28: =IF(Raw!BW28="","",Raw!BW28) ->  | Y28: =IF(Raw!BX28="","",Raw!BX28) ->  | Z28: =IF(Raw!BY28="","",Raw!BY28) ->  | AA28: =IF(Raw!BZ28="","",Raw!BZ28) ->  | AB28: =IF(Raw!CA28="","",Raw!CA28) ->  | AC28: =IF(Raw!CB28="","",Raw!CB28) ->  | AD28: =IF(Raw!CC28="","",Raw!CC28) ->  | AE28: =IF(Raw!CD28="","",Raw!CD28) ->  | AF28: =IF(Raw!CE28="","",Raw!CE28) ->  | AG28: =IF(Raw!CF28="","",Raw!CF28) ->  | AH28: =IF(Raw!CG28="","",Raw!CG28) ->  | AI28: =IF(Raw!CH28="","",Raw!CH28) -> -43.66 | AJ28: =IF(Raw!CI28="","",Raw!CI28) -> -45.09 | AK28: =IF(Raw!CJ28="","",Raw!CJ28) -> 64.96 | AL28: =IF(Raw!CK28="","",Raw!CK28) -> 0 | AM28: =IF(Raw!CL28="","",Raw!CL28) -> 0 | AN28: =IF(Raw!CM28="","",Raw!CM28) -> 0 | AO28: =IF(Raw!CN28="","",Raw!CN28) -> 4.12 | AP28: =IF(Raw!CO28="","",Raw!CO28) -> 0 | AQ28: =IF(Raw!CP28="","",Raw!CP28) -> 21.06 | AR28: =IF(Raw!CQ28="","",Raw!CQ28) ->  | AS28: =IF(Raw!CR28="","",Raw!CR28) -> 0 | AT28: =IF(Raw!CS28="","",Raw!CS28) ->  | AU28: =IF(Raw!CT28="","",Raw!CT28) -> 6 | AV28: =IF(Raw!CU28="","",Raw!CU28) -> 80 | AW28: =IF(Raw!CV28="","",Raw!CV28) -> 9
A29: =IF(Raw!BA29="","",Raw!BA29) -> 2527 宏璟 | B29: =IF(Raw!BB29="","",Raw!BB29) -> TSE | C29: =IF(Raw!BC29="","",Raw!BC29) -> 19.45 | D29: =IF(Raw!BD29="","",Raw!BD29) -> -0.2564 | E29: =IF(Raw!BE29="","",Raw!BE29) -> 2.3685 | F29: =IF(Raw!BF29="","",Raw!BF29) -> 7453 | G29: =IF(Raw!BG29="","",Raw!BG29) -> 19.87 | H29: =IF(Raw!BH29="","",Raw!BH29) -> -81.22 | I29: =IF(Raw!BI29="","",Raw!BI29) -> 168.46 | J29: =IF(Raw!BJ29="","",Raw!BJ29) -> 8.18 | K29: =IFERROR(ROUND(VLOOKUP(A29,'Raw3'!A:F,6,0),2),"") -> 8.18 | L29: =IF(Raw!BK29="","",Raw!BK29) -> 11.03 | M29: =IF(Raw!BL29="","",Raw!BL29) -> 145184.44 | N29: =IF(Raw!BM29="","",Raw!BM29) -> 32.94 | O29: =IF(Raw!BN29="","",Raw!BN29) -> 7 | P29: =IF(Raw!BO29="","",Raw!BO29) -> 7 | Q29: =IF(Raw!BP29="","",Raw!BP29) -> 100 | R29: =IF(Raw!BQ29="","",Raw!BQ29) ->  | S29: =IF(Raw!BR29="","",Raw!BR29) -> 0.05 | T29: =IF(Raw!BS29="","",Raw!BS29) -> 0.71 | U29: =IF(Raw!BT29="","",Raw!BT29) ->  | V29: =IF(Raw!BU29="","",Raw!BU29) -> Y | W29: =IF(Raw!BV29="","",Raw!BV29) ->  | X29: =IF(Raw!BW29="","",Raw!BW29) ->  | Y29: =IF(Raw!BX29="","",Raw!BX29) ->  | Z29: =IF(Raw!BY29="","",Raw!BY29) ->  | AA29: =IF(Raw!BZ29="","",Raw!BZ29) ->  | AB29: =IF(Raw!CA29="","",Raw!CA29) ->  | AC29: =IF(Raw!CB29="","",Raw!CB29) ->  | AD29: =IF(Raw!CC29="","",Raw!CC29) ->  | AE29: =IF(Raw!CD29="","",Raw!CD29) ->  | AF29: =IF(Raw!CE29="","",Raw!CE29) ->  | AG29: =IF(Raw!CF29="","",Raw!CF29) ->  | AH29: =IF(Raw!CG29="","",Raw!CG29) ->  | AI29: =IF(Raw!CH29="","",Raw!CH29) -> 19.87 | AJ29: =IF(Raw!CI29="","",Raw!CI29) -> -81.22 | AK29: =IF(Raw!CJ29="","",Raw!CJ29) -> 168.46 | AL29: =IF(Raw!CK29="","",Raw!CK29) -> 0 | AM29: =IF(Raw!CL29="","",Raw!CL29) -> 0 | AN29: =IF(Raw!CM29="","",Raw!CM29) -> 0 | AO29: =IF(Raw!CN29="","",Raw!CN29) -> 11.03 | AP29: =IF(Raw!CO29="","",Raw!CO29) -> 0 | AQ29: =IF(Raw!CP29="","",Raw!CP29) -> 32.94 | AR29: =IF(Raw!CQ29="","",Raw!CQ29) ->  | AS29: =IF(Raw!CR29="","",Raw!CR29) -> 0 | AT29: =IF(Raw!CS29="","",Raw!CS29) ->  | AU29: =IF(Raw!CT29="","",Raw!CT29) -> 7 | AV29: =IF(Raw!CU29="","",Raw!CU29) -> 100 | AW29: =IF(Raw!CV29="","",Raw!CV29) -> 9
A30: =IF(Raw!BA30="","",Raw!BA30) -> 2528 皇普 | B30: =IF(Raw!BB30="","",Raw!BB30) -> TSE | C30: =IF(Raw!BC30="","",Raw!BC30) -> 20.55 | D30: =IF(Raw!BD30="","",Raw!BD30) -> 0.2439 | E30: =IF(Raw!BE30="","",Raw!BE30) -> -6.5909 | F30: =IF(Raw!BF30="","",Raw!BF30) -> 1670 | G30: =IF(Raw!BG30="","",Raw!BG30) -> -48.57 | H30: =IF(Raw!BH30="","",Raw!BH30) -> -24.94 | I30: =IF(Raw!BI30="","",Raw!BI30) -> 30.26 | J30: =IF(Raw!BJ30="","",Raw!BJ30) -> 0 | K30: =IFERROR(ROUND(VLOOKUP(A30,'Raw3'!A:F,6,0),2),"") -> 0 | L30: =IF(Raw!BK30="","",Raw!BK30) -> 4.87 | M30: =IF(Raw!BL30="","",Raw!BL30) -> 34702.6 | N30: =IF(Raw!BM30="","",Raw!BM30) -> 20.19 | O30: =IF(Raw!BN30="","",Raw!BN30) -> 8 | P30: =IF(Raw!BO30="","",Raw!BO30) -> 6 | Q30: =IF(Raw!BP30="","",Raw!BP30) -> 0 | R30: =IF(Raw!BQ30="","",Raw!BQ30) ->  | S30: =IF(Raw!BR30="","",Raw!BR30) -> 23.53 | T30: =IF(Raw!BS30="","",Raw!BS30) -> 1.93 | U30: =IF(Raw!BT30="","",Raw!BT30) ->  | V30: =IF(Raw!BU30="","",Raw!BU30) ->  | W30: =IF(Raw!BV30="","",Raw!BV30) ->  | X30: =IF(Raw!BW30="","",Raw!BW30) ->  | Y30: =IF(Raw!BX30="","",Raw!BX30) ->  | Z30: =IF(Raw!BY30="","",Raw!BY30) ->  | AA30: =IF(Raw!BZ30="","",Raw!BZ30) ->  | AB30: =IF(Raw!CA30="","",Raw!CA30) ->  | AC30: =IF(Raw!CB30="","",Raw!CB30) ->  | AD30: =IF(Raw!CC30="","",Raw!CC30) ->  | AE30: =IF(Raw!CD30="","",Raw!CD30) ->  | AF30: =IF(Raw!CE30="","",Raw!CE30) ->  | AG30: =IF(Raw!CF30="","",Raw!CF30) ->  | AH30: =IF(Raw!CG30="","",Raw!CG30) ->  | AI30: =IF(Raw!CH30="","",Raw!CH30) -> -48.57 | AJ30: =IF(Raw!CI30="","",Raw!CI30) -> -24.94 | AK30: =IF(Raw!CJ30="","",Raw!CJ30) -> 30.26 | AL30: =IF(Raw!CK30="","",Raw!CK30) -> 0 | AM30: =IF(Raw!CL30="","",Raw!CL30) -> 0 | AN30: =IF(Raw!CM30="","",Raw!CM30) -> 0 | AO30: =IF(Raw!CN30="","",Raw!CN30) -> 4.87 | AP30: =IF(Raw!CO30="","",Raw!CO30) -> 3 | AQ30: =IF(Raw!CP30="","",Raw!CP30) -> 20.19 | AR30: =IF(Raw!CQ30="","",Raw!CQ30) ->  | AS30: =IF(Raw!CR30="","",Raw!CR30) -> 0 | AT30: =IF(Raw!CS30="","",Raw!CS30) ->  | AU30: =IF(Raw!CT30="","",Raw!CT30) -> 8 | AV30: =IF(Raw!CU30="","",Raw!CU30) -> 0 | AW30: =IF(Raw!CV30="","",Raw!CV30) -> 10
A31: =IF(Raw!BA31="","",Raw!BA31) -> 2530 華建 | B31: =IF(Raw!BB31="","",Raw!BB31) -> TSE | C31: =IF(Raw!BC31="","",Raw!BC31) -> 13.65 | D31: =IF(Raw!BD31="","",Raw!BD31) -> 0.738 | E31: =IF(Raw!BE31="","",Raw!BE31) -> 3.2565 | F31: =IF(Raw!BF31="","",Raw!BF31) -> 27465 | G31: =IF(Raw!BG31="","",Raw!BG31) -> -99.16 | H31: =IF(Raw!BH31="","",Raw!BH31) -> -97.38 | I31: =IF(Raw!BI31="","",Raw!BI31) -> 67.68 | J31: =IF(Raw!BJ31="","",Raw!BJ31) -> 15.23 | K31: =IFERROR(ROUND(VLOOKUP(A31,'Raw3'!A:F,6,0),2),"") -> 15.23 | L31: =IF(Raw!BK31="","",Raw!BK31) -> 40.58 | M31: =IF(Raw!BL31="","",Raw!BL31) -> 372974.7 | N31: =IF(Raw!BM31="","",Raw!BM31) -> 19.02 | O31: =IF(Raw!BN31="","",Raw!BN31) -> 6 | P31: =IF(Raw!BO31="","",Raw!BO31) -> 4 | Q31: =IF(Raw!BP31="","",Raw!BP31) -> 0 | R31: =IF(Raw!BQ31="","",Raw!BQ31) ->  | S31: =IF(Raw!BR31="","",Raw!BR31) -> 0.01 | T31: =IF(Raw!BS31="","",Raw!BS31) -> 1.12 | U31: =IF(Raw!BT31="","",Raw!BT31) -> Y | V31: =IF(Raw!BU31="","",Raw!BU31) -> Y | W31: =IF(Raw!BV31="","",Raw!BV31) ->  | X31: =IF(Raw!BW31="","",Raw!BW31) ->  | Y31: =IF(Raw!BX31="","",Raw!BX31) ->  | Z31: =IF(Raw!BY31="","",Raw!BY31) ->  | AA31: =IF(Raw!BZ31="","",Raw!BZ31) ->  | AB31: =IF(Raw!CA31="","",Raw!CA31) ->  | AC31: =IF(Raw!CB31="","",Raw!CB31) ->  | AD31: =IF(Raw!CC31="","",Raw!CC31) ->  | AE31: =IF(Raw!CD31="","",Raw!CD31) ->  | AF31: =IF(Raw!CE31="","",Raw!CE31) ->  | AG31: =IF(Raw!CF31="","",Raw!CF31) ->  | AH31: =IF(Raw!CG31="","",Raw!CG31) ->  | AI31: =IF(Raw!CH31="","",Raw!CH31) -> -99.16 | AJ31: =IF(Raw!CI31="","",Raw!CI31) -> -97.38 | AK31: =IF(Raw!CJ31="","",Raw!CJ31) -> 67.68 | AL31: =IF(Raw!CK31="","",Raw!CK31) -> 3 | AM31: =IF(Raw!CL31="","",Raw!CL31) -> 0 | AN31: =IF(Raw!CM31="","",Raw!CM31) -> 0 | AO31: =IF(Raw!CN31="","",Raw!CN31) -> 40.58 | AP31: =IF(Raw!CO31="","",Raw!CO31) -> 0 | AQ31: =IF(Raw!CP31="","",Raw!CP31) -> 19.02 | AR31: =IF(Raw!CQ31="","",Raw!CQ31) ->  | AS31: =IF(Raw!CR31="","",Raw!CR31) -> 0 | AT31: =IF(Raw!CS31="","",Raw!CS31) ->  | AU31: =IF(Raw!CT31="","",Raw!CT31) -> 6 | AV31: =IF(Raw!CU31="","",Raw!CU31) -> 0 | AW31: =IF(Raw!CV31="","",Raw!CV31) -> 10
A32: =IF(Raw!BA32="","",Raw!BA32) -> 2535 達欣工 | B32: =IF(Raw!BB32="","",Raw!BB32) -> TSE | C32: =IF(Raw!BC32="","",Raw!BC32) -> 17.35 | D32: =IF(Raw!BD32="","",Raw!BD32) -> 0 | E32: =IF(Raw!BE32="","",Raw!BE32) -> 0.289 | F32: =IF(Raw!BF32="","",Raw!BF32) -> 1636 | G32: =IF(Raw!BG32="","",Raw!BG32) -> -21.88 | H32: =IF(Raw!BH32="","",Raw!BH32) -> -18.49 | I32: =IF(Raw!BI32="","",Raw!BI32) -> 201.43 | J32: =IF(Raw!BJ32="","",Raw!BJ32) -> 31.15 | K32: =IFERROR(ROUND(VLOOKUP(A32,'Raw3'!A:F,6,0),2),"") -> 31.15 | L32: =IF(Raw!BK32="","",Raw!BK32) -> 2.82 | M32: =IF(Raw!BL32="","",Raw!BL32) -> 28433.68 | N32: =IF(Raw!BM32="","",Raw!BM32) -> 22.59 | O32: =IF(Raw!BN32="","",Raw!BN32) -> 5 | P32: =IF(Raw!BO32="","",Raw!BO32) -> 7 | Q32: =IF(Raw!BP32="","",Raw!BP32) -> 100 | R32: =IF(Raw!BQ32="","",Raw!BQ32) ->  | S32: =IF(Raw!BR32="","",Raw!BR32) -> 6.05 | T32: =IF(Raw!BS32="","",Raw!BS32) -> 0.76 | U32: =IF(Raw!BT32="","",Raw!BT32) ->  | V32: =IF(Raw!BU32="","",Raw!BU32) ->  | W32: =IF(Raw!BV32="","",Raw!BV32) ->  | X32: =IF(Raw!BW32="","",Raw!BW32) ->  | Y32: =IF(Raw!BX32="","",Raw!BX32) ->  | Z32: =IF(Raw!BY32="","",Raw!BY32) ->  | AA32: =IF(Raw!BZ32="","",Raw!BZ32) ->  | AB32: =IF(Raw!CA32="","",Raw!CA32) ->  | AC32: =IF(Raw!CB32="","",Raw!CB32) ->  | AD32: =IF(Raw!CC32="","",Raw!CC32) ->  | AE32: =IF(Raw!CD32="","",Raw!CD32) ->  | AF32: =IF(Raw!CE32="","",Raw!CE32) ->  | AG32: =IF(Raw!CF32="","",Raw!CF32) ->  | AH32: =IF(Raw!CG32="","",Raw!CG32) ->  | AI32: =IF(Raw!CH32="","",Raw!CH32) -> -21.88 | AJ32: =IF(Raw!CI32="","",Raw!CI32) -> -18.49 | AK32: =IF(Raw!CJ32="","",Raw!CJ32) -> 201.43 | AL32: =IF(Raw!CK32="","",Raw!CK32) -> 0 | AM32: =IF(Raw!CL32="","",Raw!CL32) -> 1 | AN32: =IF(Raw!CM32="","",Raw!CM32) -> 0 | AO32: =IF(Raw!CN32="","",Raw!CN32) -> 2.82 | AP32: =IF(Raw!CO32="","",Raw!CO32) -> 0 | AQ32: =IF(Raw!CP32="","",Raw!CP32) -> 22.59 | AR32: =IF(Raw!CQ32="","",Raw!CQ32) ->  | AS32: =IF(Raw!CR32="","",Raw!CR32) -> 0 | AT32: =IF(Raw!CS32="","",Raw!CS32) ->  | AU32: =IF(Raw!CT32="","",Raw!CT32) -> 5 | AV32: =IF(Raw!CU32="","",Raw!CU32) -> 100 | AW32: =IF(Raw!CV32="","",Raw!CV32) -> 9
A33: =IF(Raw!BA33="","",Raw!BA33) -> 2542 興富發 | B33: =IF(Raw!BB33="","",Raw!BB33) -> TSE | C33: =IF(Raw!BC33="","",Raw!BC33) -> 47.9 | D33: =IF(Raw!BD33="","",Raw!BD33) -> 0 | E33: =IF(Raw!BE33="","",Raw!BE33) -> 1.4831 | F33: =IF(Raw!BF33="","",Raw!BF33) -> 6882 | G33: =IF(Raw!BG33="","",Raw!BG33) -> -49.58 | H33: =IF(Raw!BH33="","",Raw!BH33) -> -49.36 | I33: =IF(Raw!BI33="","",Raw!BI33) -> 251.2 | J33: =IF(Raw!BJ33="","",Raw!BJ33) -> 0 | K33: =IFERROR(ROUND(VLOOKUP(A33,'Raw3'!A:F,6,0),2),"") -> 0 | L33: =IF(Raw!BK33="","",Raw!BK33) -> 2.36 | M33: =IF(Raw!BL33="","",Raw!BL33) -> 328477.86 | N33: =IF(Raw!BM33="","",Raw!BM33) -> 10.91 | O33: =IF(Raw!BN33="","",Raw!BN33) -> 7 | P33: =IF(Raw!BO33="","",Raw!BO33) -> 5 | Q33: =IF(Raw!BP33="","",Raw!BP33) -> 0 | R33: =IF(Raw!BQ33="","",Raw!BQ33) ->  | S33: =IF(Raw!BR33="","",Raw!BR33) -> 6.92 | T33: =IF(Raw!BS33="","",Raw!BS33) -> 1.86 | U33: =IF(Raw!BT33="","",Raw!BT33) ->  | V33: =IF(Raw!BU33="","",Raw!BU33) ->  | W33: =IF(Raw!BV33="","",Raw!BV33) -> Y | X33: =IF(Raw!BW33="","",Raw!BW33) ->  | Y33: =IF(Raw!BX33="","",Raw!BX33) ->  | Z33: =IF(Raw!BY33="","",Raw!BY33) ->  | AA33: =IF(Raw!BZ33="","",Raw!BZ33) ->  | AB33: =IF(Raw!CA33="","",Raw!CA33) ->  | AC33: =IF(Raw!CB33="","",Raw!CB33) ->  | AD33: =IF(Raw!CC33="","",Raw!CC33) ->  | AE33: =IF(Raw!CD33="","",Raw!CD33) ->  | AF33: =IF(Raw!CE33="","",Raw!CE33) ->  | AG33: =IF(Raw!CF33="","",Raw!CF33) ->  | AH33: =IF(Raw!CG33="","",Raw!CG33) ->  | AI33: =IF(Raw!CH33="","",Raw!CH33) -> -49.58 | AJ33: =IF(Raw!CI33="","",Raw!CI33) -> -49.36 | AK33: =IF(Raw!CJ33="","",Raw!CJ33) -> 251.2 | AL33: =IF(Raw!CK33="","",Raw!CK33) -> 0 | AM33: =IF(Raw!CL33="","",Raw!CL33) -> 0 | AN33: =IF(Raw!CM33="","",Raw!CM33) -> 0 | AO33: =IF(Raw!CN33="","",Raw!CN33) -> 2.36 | AP33: =IF(Raw!CO33="","",Raw!CO33) -> 0 | AQ33: =IF(Raw!CP33="","",Raw!CP33) -> 10.91 | AR33: =IF(Raw!CQ33="","",Raw!CQ33) ->  | AS33: =IF(Raw!CR33="","",Raw!CR33) -> 0 | AT33: =IF(Raw!CS33="","",Raw!CS33) ->  | AU33: =IF(Raw!CT33="","",Raw!CT33) -> 7 | AV33: =IF(Raw!CU33="","",Raw!CU33) -> 0 | AW33: =IF(Raw!CV33="","",Raw!CV33) -> 10
A34: =IF(Raw!BA34="","",Raw!BA34) -> 2545 皇翔 | B34: =IF(Raw!BB34="","",Raw!BB34) -> TSE | C34: =IF(Raw!BC34="","",Raw!BC34) -> 32.85 | D34: =IF(Raw!BD34="","",Raw!BD34) -> 1.2327 | E34: =IF(Raw!BE34="","",Raw!BE34) -> 0.1525 | F34: =IF(Raw!BF34="","",Raw!BF34) -> 4388 | G34: =IF(Raw!BG34="","",Raw!BG34) -> 334.23 | H34: =IF(Raw!BH34="","",Raw!BH34) -> -82.99 | I34: =IF(Raw!BI34="","",Raw!BI34) -> 275.94 | J34: =IF(Raw!BJ34="","",Raw!BJ34) -> 3.78 | K34: =IFERROR(ROUND(VLOOKUP(A34,'Raw3'!A:F,6,0),2),"") -> 3.78 | L34: =IF(Raw!BK34="","",Raw!BK34) -> 5.36 | M34: =IF(Raw!BL34="","",Raw!BL34) -> 142478.36 | N34: =IF(Raw!BM34="","",Raw!BM34) -> 33.13 | O34: =IF(Raw!BN34="","",Raw!BN34) -> 8 | P34: =IF(Raw!BO34="","",Raw!BO34) -> 7 | Q34: =IF(Raw!BP34="","",Raw!BP34) -> 40 | R34: =IF(Raw!BQ34="","",Raw!BQ34) ->  | S34: =IF(Raw!BR34="","",Raw!BR34) -> 6.63 | T34: =IF(Raw!BS34="","",Raw!BS34) -> 1.05 | U34: =IF(Raw!BT34="","",Raw!BT34) ->  | V34: =IF(Raw!BU34="","",Raw!BU34) -> Y | W34: =IF(Raw!BV34="","",Raw!BV34) -> Y | X34: =IF(Raw!BW34="","",Raw!BW34) ->  | Y34: =IF(Raw!BX34="","",Raw!BX34) ->  | Z34: =IF(Raw!BY34="","",Raw!BY34) ->  | AA34: =IF(Raw!BZ34="","",Raw!BZ34) ->  | AB34: =IF(Raw!CA34="","",Raw!CA34) ->  | AC34: =IF(Raw!CB34="","",Raw!CB34) ->  | AD34: =IF(Raw!CC34="","",Raw!CC34) ->  | AE34: =IF(Raw!CD34="","",Raw!CD34) ->  | AF34: =IF(Raw!CE34="","",Raw!CE34) ->  | AG34: =IF(Raw!CF34="","",Raw!CF34) ->  | AH34: =IF(Raw!CG34="","",Raw!CG34) ->  | AI34: =IF(Raw!CH34="","",Raw!CH34) -> 334.23 | AJ34: =IF(Raw!CI34="","",Raw!CI34) -> -82.99 | AK34: =IF(Raw!CJ34="","",Raw!CJ34) -> 275.94 | AL34: =IF(Raw!CK34="","",Raw!CK34) -> 0 | AM34: =IF(Raw!CL34="","",Raw!CL34) -> 0 | AN34: =IF(Raw!CM34="","",Raw!CM34) -> 0 | AO34: =IF(Raw!CN34="","",Raw!CN34) -> 5.36 | AP34: =IF(Raw!CO34="","",Raw!CO34) -> 0 | AQ34: =IF(Raw!CP34="","",Raw!CP34) -> 33.13 | AR34: =IF(Raw!CQ34="","",Raw!CQ34) ->  | AS34: =IF(Raw!CR34="","",Raw!CR34) -> 0 | AT34: =IF(Raw!CS34="","",Raw!CS34) ->  | AU34: =IF(Raw!CT34="","",Raw!CT34) -> 8 | AV34: =IF(Raw!CU34="","",Raw!CU34) -> 40 | AW34: =IF(Raw!CV34="","",Raw!CV34) -> 9
A35: =IF(Raw!BA35="","",Raw!BA35) -> 2547 日勝生 | B35: =IF(Raw!BB35="","",Raw!BB35) -> TSE | C35: =IF(Raw!BC35="","",Raw!BC35) -> 13 | D35: =IF(Raw!BD35="","",Raw!BD35) -> -0.7634 | E35: =IF(Raw!BE35="","",Raw!BE35) -> -1.5152 | F35: =IF(Raw!BF35="","",Raw!BF35) -> 19068 | G35: =IF(Raw!BG35="","",Raw!BG35) -> -28.46 | H35: =IF(Raw!BH35="","",Raw!BH35) -> 37.2 | I35: =IF(Raw!BI35="","",Raw!BI35) -> 869.01 | J35: =IF(Raw!BJ35="","",Raw!BJ35) -> 45.38 | K35: =IFERROR(ROUND(VLOOKUP(A35,'Raw3'!A:F,6,0),2),"") -> 45.38 | L35: =IF(Raw!BK35="","",Raw!BK35) ->  | M35: =IF(Raw!BL35="","",Raw!BL35) -> 248646.72 | N35: =IF(Raw!BM35="","",Raw!BM35) -> 12.22 | O35: =IF(Raw!BN35="","",Raw!BN35) -> 9 | P35: =IF(Raw!BO35="","",Raw!BO35) -> 9 | Q35: =IF(Raw!BP35="","",Raw!BP35) -> 100 | R35: =IF(Raw!BQ35="","",Raw!BQ35) ->  | S35: =IF(Raw!BR35="","",Raw!BR35) -> 0.65 | T35: =IF(Raw!BS35="","",Raw!BS35) -> 1.45 | U35: =IF(Raw!BT35="","",Raw!BT35) ->  | V35: =IF(Raw!BU35="","",Raw!BU35) ->  | W35: =IF(Raw!BV35="","",Raw!BV35) -> Y | X35: =IF(Raw!BW35="","",Raw!BW35) ->  | Y35: =IF(Raw!BX35="","",Raw!BX35) ->  | Z35: =IF(Raw!BY35="","",Raw!BY35) ->  | AA35: =IF(Raw!BZ35="","",Raw!BZ35) ->  | AB35: =IF(Raw!CA35="","",Raw!CA35) ->  | AC35: =IF(Raw!CB35="","",Raw!CB35) ->  | AD35: =IF(Raw!CC35="","",Raw!CC35) ->  | AE35: =IF(Raw!CD35="","",Raw!CD35) ->  | AF35: =IF(Raw!CE35="","",Raw!CE35) ->  | AG35: =IF(Raw!CF35="","",Raw!CF35) ->  | AH35: =IF(Raw!CG35="","",Raw!CG35) ->  | AI35: =IF(Raw!CH35="","",Raw!CH35) -> -28.46 | AJ35: =IF(Raw!CI35="","",Raw!CI35) -> 37.2 | AK35: =IF(Raw!CJ35="","",Raw!CJ35) -> 869.01 | AL35: =IF(Raw!CK35="","",Raw!CK35) -> 0 | AM35: =IF(Raw!CL35="","",Raw!CL35) -> 2 | AN35: =IF(Raw!CM35="","",Raw!CM35) -> 0 | AO35: =IF(Raw!CN35="","",Raw!CN35) ->  | AP35: =IF(Raw!CO35="","",Raw!CO35) -> 0 | AQ35: =IF(Raw!CP35="","",Raw!CP35) -> 12.22 | AR35: =IF(Raw!CQ35="","",Raw!CQ35) ->  | AS35: =IF(Raw!CR35="","",Raw!CR35) -> 0 | AT35: =IF(Raw!CS35="","",Raw!CS35) ->  | AU35: =IF(Raw!CT35="","",Raw!CT35) -> 9 | AV35: =IF(Raw!CU35="","",Raw!CU35) -> 100 | AW35: =IF(Raw!CV35="","",Raw!CV35) -> 14
A36: =IF(Raw!BA36="","",Raw!BA36) -> 2611 志信 | B36: =IF(Raw!BB36="","",Raw!BB36) -> TSE | C36: =IF(Raw!BC36="","",Raw!BC36) -> 7.06 | D36: =IF(Raw!BD36="","",Raw!BD36) -> 1.5827 | E36: =IF(Raw!BE36="","",Raw!BE36) -> 2.1708 | F36: =IF(Raw!BF36="","",Raw!BF36) -> 7105 | G36: =IF(Raw!BG36="","",Raw!BG36) -> -15.93 | H36: =IF(Raw!BH36="","",Raw!BH36) -> -15.67 | I36: =IF(Raw!BI36="","",Raw!BI36) -> 64.44 | J36: =IF(Raw!BJ36="","",Raw!BJ36) -> 32.32 | K36: =IFERROR(ROUND(VLOOKUP(A36,'Raw3'!A:F,6,0),2),"") -> 32.32 | L36: =IF(Raw!BK36="","",Raw!BK36) -> 15.97 | M36: =IF(Raw!BL36="","",Raw!BL36) -> 49308.7 | N36: =IF(Raw!BM36="","",Raw!BM36) -> 48.84 | O36: =IF(Raw!BN36="","",Raw!BN36) -> 8 | P36: =IF(Raw!BO36="","",Raw!BO36) -> 6 | Q36: =IF(Raw!BP36="","",Raw!BP36) -> 0 | R36: =IF(Raw!BQ36="","",Raw!BQ36) ->  | S36: =IF(Raw!BR36="","",Raw!BR36) -> 0 | T36: =IF(Raw!BS36="","",Raw!BS36) -> 0.51 | U36: =IF(Raw!BT36="","",Raw!BT36) ->  | V36: =IF(Raw!BU36="","",Raw!BU36) ->  | W36: =IF(Raw!BV36="","",Raw!BV36) ->  | X36: =IF(Raw!BW36="","",Raw!BW36) ->  | Y36: =IF(Raw!BX36="","",Raw!BX36) ->  | Z36: =IF(Raw!BY36="","",Raw!BY36) ->  | AA36: =IF(Raw!BZ36="","",Raw!BZ36) ->  | AB36: =IF(Raw!CA36="","",Raw!CA36) ->  | AC36: =IF(Raw!CB36="","",Raw!CB36) ->  | AD36: =IF(Raw!CC36="","",Raw!CC36) ->  | AE36: =IF(Raw!CD36="","",Raw!CD36) ->  | AF36: =IF(Raw!CE36="","",Raw!CE36) ->  | AG36: =IF(Raw!CF36="","",Raw!CF36) ->  | AH36: =IF(Raw!CG36="","",Raw!CG36) ->  | AI36: =IF(Raw!CH36="","",Raw!CH36) -> -15.93 | AJ36: =IF(Raw!CI36="","",Raw!CI36) -> -15.67 | AK36: =IF(Raw!CJ36="","",Raw!CJ36) -> 64.44 | AL36: =IF(Raw!CK36="","",Raw!CK36) -> 3 | AM36: =IF(Raw!CL36="","",Raw!CL36) -> 1 | AN36: =IF(Raw!CM36="","",Raw!CM36) -> 0 | AO36: =IF(Raw!CN36="","",Raw!CN36) -> 15.97 | AP36: =IF(Raw!CO36="","",Raw!CO36) -> 0 | AQ36: =IF(Raw!CP36="","",Raw!CP36) -> 48.84 | AR36: =IF(Raw!CQ36="","",Raw!CQ36) ->  | AS36: =IF(Raw!CR36="","",Raw!CR36) -> 0 | AT36: =IF(Raw!CS36="","",Raw!CS36) ->  | AU36: =IF(Raw!CT36="","",Raw!CT36) -> 8 | AV36: =IF(Raw!CU36="","",Raw!CU36) -> 0 | AW36: =IF(Raw!CV36="","",Raw!CV36) -> 9
A37: =IF(Raw!BA37="","",Raw!BA37) -> 2637 慧洋-KY | B37: =IF(Raw!BB37="","",Raw!BB37) -> TSE | C37: =IF(Raw!BC37="","",Raw!BC37) -> 29.8 | D37: =IF(Raw!BD37="","",Raw!BD37) -> -0.3344 | E37: =IF(Raw!BE37="","",Raw!BE37) -> 2.4056 | F37: =IF(Raw!BF37="","",Raw!BF37) -> 4692 | G37: =IF(Raw!BG37="","",Raw!BG37) -> 10.17 | H37: =IF(Raw!BH37="","",Raw!BH37) -> -1.06 | I37: =IF(Raw!BI37="","",Raw!BI37) -> 224.05 | J37: =IF(Raw!BJ37="","",Raw!BJ37) -> 62.56 | K37: =IFERROR(ROUND(VLOOKUP(A37,'Raw3'!A:F,6,0),2),"") -> 62.56 | L37: =IF(Raw!BK37="","",Raw!BK37) -> 3.21 | M37: =IF(Raw!BL37="","",Raw!BL37) -> 139962.36 | N37: =IF(Raw!BM37="","",Raw!BM37) -> 20.25 | O37: =IF(Raw!BN37="","",Raw!BN37) -> 7 | P37: =IF(Raw!BO37="","",Raw!BO37) -> 8 | Q37: =IF(Raw!BP37="","",Raw!BP37) -> 100 | R37: =IF(Raw!BQ37="","",Raw!BQ37) ->  | S37: =IF(Raw!BR37="","",Raw!BR37) -> 0.38 | T37: =IF(Raw!BS37="","",Raw!BS37) -> 0.65 | U37: =IF(Raw!BT37="","",Raw!BT37) ->  | V37: =IF(Raw!BU37="","",Raw!BU37) ->  | W37: =IF(Raw!BV37="","",Raw!BV37) ->  | X37: =IF(Raw!BW37="","",Raw!BW37) ->  | Y37: =IF(Raw!BX37="","",Raw!BX37) ->  | Z37: =IF(Raw!BY37="","",Raw!BY37) ->  | AA37: =IF(Raw!BZ37="","",Raw!BZ37) ->  | AB37: =IF(Raw!CA37="","",Raw!CA37) ->  | AC37: =IF(Raw!CB37="","",Raw!CB37) ->  | AD37: =IF(Raw!CC37="","",Raw!CC37) ->  | AE37: =IF(Raw!CD37="","",Raw!CD37) ->  | AF37: =IF(Raw!CE37="","",Raw!CE37) ->  | AG37: =IF(Raw!CF37="","",Raw!CF37) ->  | AH37: =IF(Raw!CG37="","",Raw!CG37) ->  | AI37: =IF(Raw!CH37="","",Raw!CH37) -> 10.17 | AJ37: =IF(Raw!CI37="","",Raw!CI37) -> -1.06 | AK37: =IF(Raw!CJ37="","",Raw!CJ37) -> 224.05 | AL37: =IF(Raw!CK37="","",Raw!CK37) -> 0 | AM37: =IF(Raw!CL37="","",Raw!CL37) -> 3 | AN37: =IF(Raw!CM37="","",Raw!CM37) -> 0 | AO37: =IF(Raw!CN37="","",Raw!CN37) -> 3.21 | AP37: =IF(Raw!CO37="","",Raw!CO37) -> 0 | AQ37: =IF(Raw!CP37="","",Raw!CP37) -> 20.25 | AR37: =IF(Raw!CQ37="","",Raw!CQ37) ->  | AS37: =IF(Raw!CR37="","",Raw!CR37) -> 0 | AT37: =IF(Raw!CS37="","",Raw!CS37) ->  | AU37: =IF(Raw!CT37="","",Raw!CT37) -> 7 | AV37: =IF(Raw!CU37="","",Raw!CU37) -> 100 | AW37: =IF(Raw!CV37="","",Raw!CV37) -> 9
A38: =IF(Raw!BA38="","",Raw!BA38) -> 2702 華園 | B38: =IF(Raw!BB38="","",Raw!BB38) -> TSE | C38: =IF(Raw!BC38="","",Raw!BC38) -> 14.9 | D38: =IF(Raw!BD38="","",Raw!BD38) -> -1.3245 | E38: =IF(Raw!BE38="","",Raw!BE38) -> -0.9842 | F38: =IF(Raw!BF38="","",Raw!BF38) -> 400 | G38: =IF(Raw!BG38="","",Raw!BG38) -> -9.91 | H38: =IF(Raw!BH38="","",Raw!BH38) -> -0.18 | I38: =IF(Raw!BI38="","",Raw!BI38) -> 371.11 | J38: =IF(Raw!BJ38="","",Raw!BJ38) -> 28.97 | K38: =IFERROR(ROUND(VLOOKUP(A38,'Raw3'!A:F,6,0),2),"") -> 28.97 | L38: =IF(Raw!BK38="","",Raw!BK38) -> 1.63 | M38: =IF(Raw!BL38="","",Raw!BL38) -> 5956 | N38: =IF(Raw!BM38="","",Raw!BM38) -> 77.52 | O38: =IF(Raw!BN38="","",Raw!BN38) -> 8 | P38: =IF(Raw!BO38="","",Raw!BO38) -> 7 | Q38: =IF(Raw!BP38="","",Raw!BP38) -> 100 | R38: =IF(Raw!BQ38="","",Raw!BQ38) ->  | S38: =IF(Raw!BR38="","",Raw!BR38) -> 0 | T38: =IF(Raw!BS38="","",Raw!BS38) -> 1.29 | U38: =IF(Raw!BT38="","",Raw!BT38) ->  | V38: =IF(Raw!BU38="","",Raw!BU38) ->  | W38: =IF(Raw!BV38="","",Raw!BV38) -> Y | X38: =IF(Raw!BW38="","",Raw!BW38) ->  | Y38: =IF(Raw!BX38="","",Raw!BX38) ->  | Z38: =IF(Raw!BY38="","",Raw!BY38) ->  | AA38: =IF(Raw!BZ38="","",Raw!BZ38) -> Y | AB38: =IF(Raw!CA38="","",Raw!CA38) ->  | AC38: =IF(Raw!CB38="","",Raw!CB38) ->  | AD38: =IF(Raw!CC38="","",Raw!CC38) ->  | AE38: =IF(Raw!CD38="","",Raw!CD38) ->  | AF38: =IF(Raw!CE38="","",Raw!CE38) ->  | AG38: =IF(Raw!CF38="","",Raw!CF38) ->  | AH38: =IF(Raw!CG38="","",Raw!CG38) ->  | AI38: =IF(Raw!CH38="","",Raw!CH38) -> -9.91 | AJ38: =IF(Raw!CI38="","",Raw!CI38) -> -0.18 | AK38: =IF(Raw!CJ38="","",Raw!CJ38) -> 371.11 | AL38: =IF(Raw!CK38="","",Raw!CK38) -> 0 | AM38: =IF(Raw!CL38="","",Raw!CL38) -> 0 | AN38: =IF(Raw!CM38="","",Raw!CM38) -> 0 | AO38: =IF(Raw!CN38="","",Raw!CN38) -> 1.63 | AP38: =IF(Raw!CO38="","",Raw!CO38) -> 0 | AQ38: =IF(Raw!CP38="","",Raw!CP38) -> 77.52 | AR38: =IF(Raw!CQ38="","",Raw!CQ38) ->  | AS38: =IF(Raw!CR38="","",Raw!CR38) -> 0 | AT38: =IF(Raw!CS38="","",Raw!CS38) ->  | AU38: =IF(Raw!CT38="","",Raw!CT38) -> 8 | AV38: =IF(Raw!CU38="","",Raw!CU38) -> 100 | AW38: =IF(Raw!CV38="","",Raw!CV38) -> 9
A39: =IF(Raw!BA39="","",Raw!BA39) -> 2841 台開 | B39: =IF(Raw!BB39="","",Raw!BB39) -> TSE | C39: =IF(Raw!BC39="","",Raw!BC39) -> 10.5 | D39: =IF(Raw!BD39="","",Raw!BD39) -> 0.4785 | E39: =IF(Raw!BE39="","",Raw!BE39) -> 3.4483 | F39: =IF(Raw!BF39="","",Raw!BF39) -> 16892 | G39: =IF(Raw!BG39="","",Raw!BG39) -> -42.71 | H39: =IF(Raw!BH39="","",Raw!BH39) -> 292.79 | I39: =IF(Raw!BI39="","",Raw!BI39) -> 87.18 | J39: =IF(Raw!BJ39="","",Raw!BJ39) -> 7.77 | K39: =IFERROR(ROUND(VLOOKUP(A39,'Raw3'!A:F,6,0),2),"") -> 7.77 | L39: =IF(Raw!BK39="","",Raw!BK39) -> 8.88 | M39: =IF(Raw!BL39="","",Raw!BL39) -> 177872.76 | N39: =IF(Raw!BM39="","",Raw!BM39) -> 21.91 | O39: =IF(Raw!BN39="","",Raw!BN39) -> 9 | P39: =IF(Raw!BO39="","",Raw!BO39) -> 7 | Q39: =IF(Raw!BP39="","",Raw!BP39) -> 100 | R39: =IF(Raw!BQ39="","",Raw!BQ39) ->  | S39: =IF(Raw!BR39="","",Raw!BR39) -> 0.17 | T39: =IF(Raw!BS39="","",Raw!BS39) -> 0.43 | U39: =IF(Raw!BT39="","",Raw!BT39) ->  | V39: =IF(Raw!BU39="","",Raw!BU39) ->  | W39: =IF(Raw!BV39="","",Raw!BV39) ->  | X39: =IF(Raw!BW39="","",Raw!BW39) ->  | Y39: =IF(Raw!BX39="","",Raw!BX39) ->  | Z39: =IF(Raw!BY39="","",Raw!BY39) ->  | AA39: =IF(Raw!BZ39="","",Raw!BZ39) ->  | AB39: =IF(Raw!CA39="","",Raw!CA39) ->  | AC39: =IF(Raw!CB39="","",Raw!CB39) ->  | AD39: =IF(Raw!CC39="","",Raw!CC39) ->  | AE39: =IF(Raw!CD39="","",Raw!CD39) ->  | AF39: =IF(Raw!CE39="","",Raw!CE39) ->  | AG39: =IF(Raw!CF39="","",Raw!CF39) ->  | AH39: =IF(Raw!CG39="","",Raw!CG39) ->  | AI39: =IF(Raw!CH39="","",Raw!CH39) -> -42.71 | AJ39: =IF(Raw!CI39="","",Raw!CI39) -> 292.79 | AK39: =IF(Raw!CJ39="","",Raw!CJ39) -> 87.18 | AL39: =IF(Raw!CK39="","",Raw!CK39) -> 0 | AM39: =IF(Raw!CL39="","",Raw!CL39) -> 0 | AN39: =IF(Raw!CM39="","",Raw!CM39) -> 0 | AO39: =IF(Raw!CN39="","",Raw!CN39) -> 8.88 | AP39: =IF(Raw!CO39="","",Raw!CO39) -> 0 | AQ39: =IF(Raw!CP39="","",Raw!CP39) -> 21.91 | AR39: =IF(Raw!CQ39="","",Raw!CQ39) ->  | AS39: =IF(Raw!CR39="","",Raw!CR39) -> 0 | AT39: =IF(Raw!CS39="","",Raw!CS39) ->  | AU39: =IF(Raw!CT39="","",Raw!CT39) -> 9 | AV39: =IF(Raw!CU39="","",Raw!CU39) -> 100 | AW39: =IF(Raw!CV39="","",Raw!CV39) -> 9
A40: =IF(Raw!BA40="","",Raw!BA40) -> 2849 安泰銀 | B40: =IF(Raw!BB40="","",Raw!BB40) -> TSE | C40: =IF(Raw!BC40="","",Raw!BC40) -> 12.65 | D40: =IF(Raw!BD40="","",Raw!BD40) -> -0.3937 | E40: =IF(Raw!BE40="","",Raw!BE40) -> -0.7843 | F40: =IF(Raw!BF40="","",Raw!BF40) -> 579 | G40: =IF(Raw!BG40="","",Raw!BG40) -> -11.17 | H40: =IF(Raw!BH40="","",Raw!BH40) -> 2.07 | I40: =IF(Raw!BI40="","",Raw!BI40) -> 898.39 | J40: =IF(Raw!BJ40="","",Raw!BJ40) -> 62.01 | K40: =IFERROR(ROUND(VLOOKUP(A40,'Raw3'!A:F,6,0),2),"") -> 62.01 | L40: =IF(Raw!BK40="","",Raw!BK40) -> 0.26 | M40: =IF(Raw!BL40="","",Raw!BL40) -> 7278.03 | N40: =IF(Raw!BM40="","",Raw!BM40) -> 23.81 | O40: =IF(Raw!BN40="","",Raw!BN40) ->  | P40: =IF(Raw!BO40="","",Raw!BO40) ->  | Q40: =IF(Raw!BP40="","",Raw!BP40) -> 0 | R40: =IF(Raw!BQ40="","",Raw!BQ40) ->  | S40: =IF(Raw!BR40="","",Raw!BR40) -> 0 | T40: =IF(Raw!BS40="","",Raw!BS40) -> 0.69 | U40: =IF(Raw!BT40="","",Raw!BT40) ->  | V40: =IF(Raw!BU40="","",Raw!BU40) ->  | W40: =IF(Raw!BV40="","",Raw!BV40) ->  | X40: =IF(Raw!BW40="","",Raw!BW40) ->  | Y40: =IF(Raw!BX40="","",Raw!BX40) ->  | Z40: =IF(Raw!BY40="","",Raw!BY40) ->  | AA40: =IF(Raw!BZ40="","",Raw!BZ40) ->  | AB40: =IF(Raw!CA40="","",Raw!CA40) ->  | AC40: =IF(Raw!CB40="","",Raw!CB40) ->  | AD40: =IF(Raw!CC40="","",Raw!CC40) ->  | AE40: =IF(Raw!CD40="","",Raw!CD40) ->  | AF40: =IF(Raw!CE40="","",Raw!CE40) ->  | AG40: =IF(Raw!CF40="","",Raw!CF40) ->  | AH40: =IF(Raw!CG40="","",Raw!CG40) ->  | AI40: =IF(Raw!CH40="","",Raw!CH40) -> -11.17 | AJ40: =IF(Raw!CI40="","",Raw!CI40) -> 2.07 | AK40: =IF(Raw!CJ40="","",Raw!CJ40) -> 898.39 | AL40: =IF(Raw!CK40="","",Raw!CK40) -> 3 | AM40: =IF(Raw!CL40="","",Raw!CL40) -> 3 | AN40: =IF(Raw!CM40="","",Raw!CM40) -> 0 | AO40: =IF(Raw!CN40="","",Raw!CN40) -> 0.26 | AP40: =IF(Raw!CO40="","",Raw!CO40) -> 0 | AQ40: =IF(Raw!CP40="","",Raw!CP40) -> 23.81 | AR40: =IF(Raw!CQ40="","",Raw!CQ40) ->  | AS40: =IF(Raw!CR40="","",Raw!CR40) -> 0 | AT40: =IF(Raw!CS40="","",Raw!CS40) ->  | AU40: =IF(Raw!CT40="","",Raw!CT40) ->  | AV40: =IF(Raw!CU40="","",Raw!CU40) -> 0 | AW40: =IF(Raw!CV40="","",Raw!CV40) -> 9
A41: =IF(Raw!BA41="","",Raw!BA41) -> 2910 統領 | B41: =IF(Raw!BB41="","",Raw!BB41) -> TSE | C41: =IF(Raw!BC41="","",Raw!BC41) -> 27.5 | D41: =IF(Raw!BD41="","",Raw!BD41) -> 1.476 | E41: =IF(Raw!BE41="","",Raw!BE41) -> 2.0407 | F41: =IF(Raw!BF41="","",Raw!BF41) -> 77 | G41: =IF(Raw!BG41="","",Raw!BG41) -> -58.04 | H41: =IF(Raw!BH41="","",Raw!BH41) -> -48.2 | I41: =IF(Raw!BI41="","",Raw!BI41) -> 163.03 | J41: =IF(Raw!BJ41="","",Raw!BJ41) -> 46.79 | K41: =IFERROR(ROUND(VLOOKUP(A41,'Raw3'!A:F,6,0),2),"") -> 46.79 | L41: =IF(Raw!BK41="","",Raw!BK41) -> 0.15 | M41: =IF(Raw!BL41="","",Raw!BL41) -> 2121.35 | N41: =IF(Raw!BM41="","",Raw!BM41) -> 66.63 | O41: =IF(Raw!BN41="","",Raw!BN41) -> 6 | P41: =IF(Raw!BO41="","",Raw!BO41) -> 5 | Q41: =IF(Raw!BP41="","",Raw!BP41) -> 0 | R41: =IF(Raw!BQ41="","",Raw!BQ41) ->  | S41: =IF(Raw!BR41="","",Raw!BR41) -> 0 | T41: =IF(Raw!BS41="","",Raw!BS41) -> 2.18 | U41: =IF(Raw!BT41="","",Raw!BT41) -> Y | V41: =IF(Raw!BU41="","",Raw!BU41) ->  | W41: =IF(Raw!BV41="","",Raw!BV41) ->  | X41: =IF(Raw!BW41="","",Raw!BW41) ->  | Y41: =IF(Raw!BX41="","",Raw!BX41) ->  | Z41: =IF(Raw!BY41="","",Raw!BY41) ->  | AA41: =IF(Raw!BZ41="","",Raw!BZ41) -> Y | AB41: =IF(Raw!CA41="","",Raw!CA41) ->  | AC41: =IF(Raw!CB41="","",Raw!CB41) ->  | AD41: =IF(Raw!CC41="","",Raw!CC41) ->  | AE41: =IF(Raw!CD41="","",Raw!CD41) ->  | AF41: =IF(Raw!CE41="","",Raw!CE41) ->  | AG41: =IF(Raw!CF41="","",Raw!CF41) ->  | AH41: =IF(Raw!CG41="","",Raw!CG41) ->  | AI41: =IF(Raw!CH41="","",Raw!CH41) -> -58.04 | AJ41: =IF(Raw!CI41="","",Raw!CI41) -> -48.2 | AK41: =IF(Raw!CJ41="","",Raw!CJ41) -> 163.03 | AL41: =IF(Raw!CK41="","",Raw!CK41) -> 3 | AM41: =IF(Raw!CL41="","",Raw!CL41) -> 2 | AN41: =IF(Raw!CM41="","",Raw!CM41) -> 0 | AO41: =IF(Raw!CN41="","",Raw!CN41) -> 0.15 | AP41: =IF(Raw!CO41="","",Raw!CO41) -> 0 | AQ41: =IF(Raw!CP41="","",Raw!CP41) -> 66.63 | AR41: =IF(Raw!CQ41="","",Raw!CQ41) ->  | AS41: =IF(Raw!CR41="","",Raw!CR41) -> 0 | AT41: =IF(Raw!CS41="","",Raw!CS41) ->  | AU41: =IF(Raw!CT41="","",Raw!CT41) -> 6 | AV41: =IF(Raw!CU41="","",Raw!CU41) -> 0 | AW41: =IF(Raw!CV41="","",Raw!CV41) -> 13
A42: =IF(Raw!BA42="","",Raw!BA42) -> 3018 同開 | B42: =IF(Raw!BB42="","",Raw!BB42) -> TSE | C42: =IF(Raw!BC42="","",Raw!BC42) -> 61.4 | D42: =IF(Raw!BD42="","",Raw!BD42) -> 4.9573 | E42: =IF(Raw!BE42="","",Raw!BE42) -> 9.4474 | F42: =IF(Raw!BF42="","",Raw!BF42) -> 8816 | G42: =IF(Raw!BG42="","",Raw!BG42) -> -26.65 | H42: =IF(Raw!BH42="","",Raw!BH42) -> 12.56 | I42: =IF(Raw!BI42="","",Raw!BI42) -> 101.83 | J42: =IF(Raw!BJ42="","",Raw!BJ42) -> 0 | K42: =IFERROR(ROUND(VLOOKUP(A42,'Raw3'!A:F,6,0),2),"") -> 0 | L42: =IF(Raw!BK42="","",Raw!BK42) -> 63.05 | M42: =IF(Raw!BL42="","",Raw!BL42) -> 536982.56 | N42: =IF(Raw!BM42="","",Raw!BM42) -> 17.88 | O42: =IF(Raw!BN42="","",Raw!BN42) -> 7 | P42: =IF(Raw!BO42="","",Raw!BO42) -> 5 | Q42: =IF(Raw!BP42="","",Raw!BP42) -> 0 | R42: =IF(Raw!BQ42="","",Raw!BQ42) ->  | S42: =IF(Raw!BR42="","",Raw!BR42) -> 2.99 | T42: =IF(Raw!BS42="","",Raw!BS42) -> 4.88 | U42: =IF(Raw!BT42="","",Raw!BT42) ->  | V42: =IF(Raw!BU42="","",Raw!BU42) ->  | W42: =IF(Raw!BV42="","",Raw!BV42) ->  | X42: =IF(Raw!BW42="","",Raw!BW42) ->  | Y42: =IF(Raw!BX42="","",Raw!BX42) ->  | Z42: =IF(Raw!BY42="","",Raw!BY42) ->  | AA42: =IF(Raw!BZ42="","",Raw!BZ42) ->  | AB42: =IF(Raw!CA42="","",Raw!CA42) ->  | AC42: =IF(Raw!CB42="","",Raw!CB42) ->  | AD42: =IF(Raw!CC42="","",Raw!CC42) ->  | AE42: =IF(Raw!CD42="","",Raw!CD42) ->  | AF42: =IF(Raw!CE42="","",Raw!CE42) ->  | AG42: =IF(Raw!CF42="","",Raw!CF42) ->  | AH42: =IF(Raw!CG42="","",Raw!CG42) ->  | AI42: =IF(Raw!CH42="","",Raw!CH42) -> -26.65 | AJ42: =IF(Raw!CI42="","",Raw!CI42) -> 12.56 | AK42: =IF(Raw!CJ42="","",Raw!CJ42) -> 101.83 | AL42: =IF(Raw!CK42="","",Raw!CK42) -> 0 | AM42: =IF(Raw!CL42="","",Raw!CL42) -> 0 | AN42: =IF(Raw!CM42="","",Raw!CM42) -> 0 | AO42: =IF(Raw!CN42="","",Raw!CN42) -> 63.05 | AP42: =IF(Raw!CO42="","",Raw!CO42) -> 0 | AQ42: =IF(Raw!CP42="","",Raw!CP42) -> 17.88 | AR42: =IF(Raw!CQ42="","",Raw!CQ42) ->  | AS42: =IF(Raw!CR42="","",Raw!CR42) -> 2 | AT42: =IF(Raw!CS42="","",Raw!CS42) ->  | AU42: =IF(Raw!CT42="","",Raw!CT42) -> 7 | AV42: =IF(Raw!CU42="","",Raw!CU42) -> 0 | AW42: =IF(Raw!CV42="","",Raw!CV42) -> 9
A43: =IF(Raw!BA43="","",Raw!BA43) -> 3043 科風 | B43: =IF(Raw!BB43="","",Raw!BB43) -> TSE | C43: =IF(Raw!BC43="","",Raw!BC43) -> 2.58 | D43: =IF(Raw!BD43="","",Raw!BD43) -> 2.7888 | E43: =IF(Raw!BE43="","",Raw!BE43) -> 7.0539 | F43: =IF(Raw!BF43="","",Raw!BF43) -> 0 | G43: =IF(Raw!BG43="","",Raw!BG43) -> -2.29 | H43: =IF(Raw!BH43="","",Raw!BH43) -> -8.99 | I43: =IF(Raw!BI43="","",Raw!BI43) -> 4023.05 | J43: =IF(Raw!BJ43="","",Raw!BJ43) -> 0 | K43: =IFERROR(ROUND(VLOOKUP(A43,'Raw3'!A:F,6,0),2),"") -> 0 | L43: =IF(Raw!BK43="","",Raw!BK43) ->  | M43: =IF(Raw!BL43="","",Raw!BL43) -> 0 | N43: =IF(Raw!BM43="","",Raw!BM43) -> 39.62 | O43: =IF(Raw!BN43="","",Raw!BN43) -> D | P43: =IF(Raw!BO43="","",Raw!BO43) -> D | Q43: =IF(Raw!BP43="","",Raw!BP43) -> 100 | R43: =IF(Raw!BQ43="","",Raw!BQ43) -> Y_繼續經營疑慮 | S43: =IF(Raw!BR43="","",Raw!BR43) ->  | T43: =IF(Raw!BS43="","",Raw!BS43) -> 86 | U43: =IF(Raw!BT43="","",Raw!BT43) ->  | V43: =IF(Raw!BU43="","",Raw!BU43) ->  | W43: =IF(Raw!BV43="","",Raw!BV43) -> Y | X43: =IF(Raw!BW43="","",Raw!BW43) ->  | Y43: =IF(Raw!BX43="","",Raw!BX43) ->  | Z43: =IF(Raw!BY43="","",Raw!BY43) ->  | AA43: =IF(Raw!BZ43="","",Raw!BZ43) ->  | AB43: =IF(Raw!CA43="","",Raw!CA43) ->  | AC43: =IF(Raw!CB43="","",Raw!CB43) ->  | AD43: =IF(Raw!CC43="","",Raw!CC43) -> Y | AE43: =IF(Raw!CD43="","",Raw!CD43) ->  | AF43: =IF(Raw!CE43="","",Raw!CE43) ->  | AG43: =IF(Raw!CF43="","",Raw!CF43) ->  | AH43: =IF(Raw!CG43="","",Raw!CG43) ->  | AI43: =IF(Raw!CH43="","",Raw!CH43) -> -2.29 | AJ43: =IF(Raw!CI43="","",Raw!CI43) -> -8.99 | AK43: =IF(Raw!CJ43="","",Raw!CJ43) -> 4023.05 | AL43: =IF(Raw!CK43="","",Raw!CK43) -> 0 | AM43: =IF(Raw!CL43="","",Raw!CL43) -> 0 | AN43: =IF(Raw!CM43="","",Raw!CM43) -> 0 | AO43: =IF(Raw!CN43="","",Raw!CN43) ->  | AP43: =IF(Raw!CO43="","",Raw!CO43) -> 0 | AQ43: =IF(Raw!CP43="","",Raw!CP43) -> 39.62 | AR43: =IF(Raw!CQ43="","",Raw!CQ43) ->  | AS43: =IF(Raw!CR43="","",Raw!CR43) -> 3 | AT43: =IF(Raw!CS43="","",Raw!CS43) ->  | AU43: =IF(Raw!CT43="","",Raw!CT43) -> D | AV43: =IF(Raw!CU43="","",Raw!CU43) -> 100 | AW43: =IF(Raw!CV43="","",Raw!CV43) -> 13
A44: =IF(Raw!BA44="","",Raw!BA44) -> 3051 力特 | B44: =IF(Raw!BB44="","",Raw!BB44) -> TSE | C44: =IF(Raw!BC44="","",Raw!BC44) -> 3.95 | D44: =IF(Raw!BD44="","",Raw!BD44) -> 2.0672 | E44: =IF(Raw!BE44="","",Raw!BE44) -> 2.0672 | F44: =IF(Raw!BF44="","",Raw!BF44) -> 0 | G44: =IF(Raw!BG44="","",Raw!BG44) -> -2.26 | H44: =IF(Raw!BH44="","",Raw!BH44) -> -19.47 | I44: =IF(Raw!BI44="","",Raw!BI44) -> 482.7 | J44: =IF(Raw!BJ44="","",Raw!BJ44) -> 0 | K44: =IFERROR(ROUND(VLOOKUP(A44,'Raw3'!A:F,6,0),2),"") -> 0 | L44: =IF(Raw!BK44="","",Raw!BK44) ->  | M44: =IF(Raw!BL44="","",Raw!BL44) -> 0 | N44: =IF(Raw!BM44="","",Raw!BM44) -> 15.68 | O44: =IF(Raw!BN44="","",Raw!BN44) -> D | P44: =IF(Raw!BO44="","",Raw!BO44) -> D | Q44: =IF(Raw!BP44="","",Raw!BP44) -> 100 | R44: =IF(Raw!BQ44="","",Raw!BQ44) -> Y_紓困-財危 | S44: =IF(Raw!BR44="","",Raw!BR44) ->  | T44: =IF(Raw!BS44="","",Raw!BS44) -> 0.79 | U44: =IF(Raw!BT44="","",Raw!BT44) ->  | V44: =IF(Raw!BU44="","",Raw!BU44) ->  | W44: =IF(Raw!BV44="","",Raw!BV44) -> Y | X44: =IF(Raw!BW44="","",Raw!BW44) ->  | Y44: =IF(Raw!BX44="","",Raw!BX44) ->  | Z44: =IF(Raw!BY44="","",Raw!BY44) ->  | AA44: =IF(Raw!BZ44="","",Raw!BZ44) ->  | AB44: =IF(Raw!CA44="","",Raw!CA44) ->  | AC44: =IF(Raw!CB44="","",Raw!CB44) ->  | AD44: =IF(Raw!CC44="","",Raw!CC44) ->  | AE44: =IF(Raw!CD44="","",Raw!CD44) ->  | AF44: =IF(Raw!CE44="","",Raw!CE44) ->  | AG44: =IF(Raw!CF44="","",Raw!CF44) ->  | AH44: =IF(Raw!CG44="","",Raw!CG44) ->  | AI44: =IF(Raw!CH44="","",Raw!CH44) -> -2.26 | AJ44: =IF(Raw!CI44="","",Raw!CI44) -> -19.47 | AK44: =IF(Raw!CJ44="","",Raw!CJ44) -> 482.7 | AL44: =IF(Raw!CK44="","",Raw!CK44) -> 0 | AM44: =IF(Raw!CL44="","",Raw!CL44) -> 0 | AN44: =IF(Raw!CM44="","",Raw!CM44) -> 0 | AO44: =IF(Raw!CN44="","",Raw!CN44) ->  | AP44: =IF(Raw!CO44="","",Raw!CO44) -> 0 | AQ44: =IF(Raw!CP44="","",Raw!CP44) -> 15.68 | AR44: =IF(Raw!CQ44="","",Raw!CQ44) ->  | AS44: =IF(Raw!CR44="","",Raw!CR44) -> 0 | AT44: =IF(Raw!CS44="","",Raw!CS44) ->  | AU44: =IF(Raw!CT44="","",Raw!CT44) -> D | AV44: =IF(Raw!CU44="","",Raw!CU44) -> 100 | AW44: =IF(Raw!CV44="","",Raw!CV44) -> 10
A45: =IF(Raw!BA45="","",Raw!BA45) -> 3064 泰偉 | B45: =IF(Raw!BB45="","",Raw!BB45) -> OTC | C45: =IF(Raw!BC45="","",Raw!BC45) -> 14.9 | D45: =IF(Raw!BD45="","",Raw!BD45) -> -1.3245 | E45: =IF(Raw!BE45="","",Raw!BE45) -> -4.4872 | F45: =IF(Raw!BF45="","",Raw!BF45) -> 0 | G45: =IF(Raw!BG45="","",Raw!BG45) -> -70.86 | H45: =IF(Raw!BH45="","",Raw!BH45) -> -90.19 | I45: =IF(Raw!BI45="","",Raw!BI45) -> 213.2 | J45: =IF(Raw!BJ45="","",Raw!BJ45) -> 36.35 | K45: =IFERROR(ROUND(VLOOKUP(A45,'Raw3'!A:F,6,0),2),"") -> 36.35 | L45: =IF(Raw!BK45="","",Raw!BK45) -> 0 | M45: =IF(Raw!BL45="","",Raw!BL45) -> 0 | N45: =IF(Raw!BM45="","",Raw!BM45) -> 20.99 | O45: =IF(Raw!BN45="","",Raw!BN45) -> 9 | P45: =IF(Raw!BO45="","",Raw!BO45) -> 7 | Q45: =IF(Raw!BP45="","",Raw!BP45) -> 100 | R45: =IF(Raw!BQ45="","",Raw!BQ45) ->  | S45: =IF(Raw!BR45="","",Raw!BR45) ->  | T45: =IF(Raw!BS45="","",Raw!BS45) -> 4.33 | U45: =IF(Raw!BT45="","",Raw!BT45) -> Y | V45: =IF(Raw!BU45="","",Raw!BU45) -> Y | W45: =IF(Raw!BV45="","",Raw!BV45) ->  | X45: =IF(Raw!BW45="","",Raw!BW45) ->  | Y45: =IF(Raw!BX45="","",Raw!BX45) ->  | Z45: =IF(Raw!BY45="","",Raw!BY45) ->  | AA45: =IF(Raw!BZ45="","",Raw!BZ45) ->  | AB45: =IF(Raw!CA45="","",Raw!CA45) ->  | AC45: =IF(Raw!CB45="","",Raw!CB45) ->  | AD45: =IF(Raw!CC45="","",Raw!CC45) -> Y | AE45: =IF(Raw!CD45="","",Raw!CD45) ->  | AF45: =IF(Raw!CE45="","",Raw!CE45) ->  | AG45: =IF(Raw!CF45="","",Raw!CF45) ->  | AH45: =IF(Raw!CG45="","",Raw!CG45) ->  | AI45: =IF(Raw!CH45="","",Raw!CH45) -> -70.86 | AJ45: =IF(Raw!CI45="","",Raw!CI45) -> -90.19 | AK45: =IF(Raw!CJ45="","",Raw!CJ45) -> 213.2 | AL45: =IF(Raw!CK45="","",Raw!CK45) -> 0 | AM45: =IF(Raw!CL45="","",Raw!CL45) -> 1 | AN45: =IF(Raw!CM45="","",Raw!CM45) -> 0 | AO45: =IF(Raw!CN45="","",Raw!CN45) -> 0 | AP45: =IF(Raw!CO45="","",Raw!CO45) -> 0 | AQ45: =IF(Raw!CP45="","",Raw!CP45) -> 20.99 | AR45: =IF(Raw!CQ45="","",Raw!CQ45) ->  | AS45: =IF(Raw!CR45="","",Raw!CR45) -> 2 | AT45: =IF(Raw!CS45="","",Raw!CS45) ->  | AU45: =IF(Raw!CT45="","",Raw!CT45) -> 9 | AV45: =IF(Raw!CU45="","",Raw!CU45) -> 100 | AW45: =IF(Raw!CV45="","",Raw!CV45) -> 17
A46: =IF(Raw!BA46="","",Raw!BA46) -> 3073 凱柏實業 | B46: =IF(Raw!BB46="","",Raw!BB46) -> OTC | C46: =IF(Raw!BC46="","",Raw!BC46) -> 8.88 | D46: =IF(Raw!BD46="","",Raw!BD46) -> 0.339 | E46: =IF(Raw!BE46="","",Raw!BE46) -> -2.4176 | F46: =IF(Raw!BF46="","",Raw!BF46) -> 0 | G46: =IF(Raw!BG46="","",Raw!BG46) -> -80.24 | H46: =IF(Raw!BH46="","",Raw!BH46) -> -73.33 | I46: =IF(Raw!BI46="","",Raw!BI46) -> 67.47 | J46: =IF(Raw!BJ46="","",Raw!BJ46) -> 19.3 | K46: =IFERROR(ROUND(VLOOKUP(A46,'Raw3'!A:F,6,0),2),"") -> 19.3 | L46: =IF(Raw!BK46="","",Raw!BK46) -> 0 | M46: =IF(Raw!BL46="","",Raw!BL46) -> 0 | N46: =IF(Raw!BM46="","",Raw!BM46) -> 23.78 | O46: =IF(Raw!BN46="","",Raw!BN46) -> 9 | P46: =IF(Raw!BO46="","",Raw!BO46) -> 7 | Q46: =IF(Raw!BP46="","",Raw!BP46) -> 73.33 | R46: =IF(Raw!BQ46="","",Raw!BQ46) ->  | S46: =IF(Raw!BR46="","",Raw!BR46) ->  | T46: =IF(Raw!BS46="","",Raw!BS46) -> 1.41 | U46: =IF(Raw!BT46="","",Raw!BT46) -> Y | V46: =IF(Raw!BU46="","",Raw!BU46) -> Y | W46: =IF(Raw!BV46="","",Raw!BV46) ->  | X46: =IF(Raw!BW46="","",Raw!BW46) ->  | Y46: =IF(Raw!BX46="","",Raw!BX46) ->  | Z46: =IF(Raw!BY46="","",Raw!BY46) ->  | AA46: =IF(Raw!BZ46="","",Raw!BZ46) ->  | AB46: =IF(Raw!CA46="","",Raw!CA46) ->  | AC46: =IF(Raw!CB46="","",Raw!CB46) ->  | AD46: =IF(Raw!CC46="","",Raw!CC46) ->  | AE46: =IF(Raw!CD46="","",Raw!CD46) ->  | AF46: =IF(Raw!CE46="","",Raw!CE46) ->  | AG46: =IF(Raw!CF46="","",Raw!CF46) ->  | AH46: =IF(Raw!CG46="","",Raw!CG46) ->  | AI46: =IF(Raw!CH46="","",Raw!CH46) -> -80.24 | AJ46: =IF(Raw!CI46="","",Raw!CI46) -> -73.33 | AK46: =IF(Raw!CJ46="","",Raw!CJ46) -> 67.47 | AL46: =IF(Raw!CK46="","",Raw!CK46) -> 0 | AM46: =IF(Raw!CL46="","",Raw!CL46) -> 0 | AN46: =IF(Raw!CM46="","",Raw!CM46) -> 0 | AO46: =IF(Raw!CN46="","",Raw!CN46) -> 0 | AP46: =IF(Raw!CO46="","",Raw!CO46) -> 0 | AQ46: =IF(Raw!CP46="","",Raw!CP46) -> 23.78 | AR46: =IF(Raw!CQ46="","",Raw!CQ46) ->  | AS46: =IF(Raw!CR46="","",Raw!CR46) -> 0 | AT46: =IF(Raw!CS46="","",Raw!CS46) ->  | AU46: =IF(Raw!CT46="","",Raw!CT46) -> 9 | AV46: =IF(Raw!CU46="","",Raw!CU46) -> 73.33 | AW46: =IF(Raw!CV46="","",Raw!CV46) -> 12
A47: =IF(Raw!BA47="","",Raw!BA47) -> 3086 華義 | B47: =IF(Raw!BB47="","",Raw!BB47) -> OTC | C47: =IF(Raw!BC47="","",Raw!BC47) -> 14.9 | D47: =IF(Raw!BD47="","",Raw!BD47) -> -0.6667 | E47: =IF(Raw!BE47="","",Raw!BE47) -> -0.6666 | F47: =IF(Raw!BF47="","",Raw!BF47) -> 0 | G47: =IF(Raw!BG47="","",Raw!BG47) -> -37.71 | H47: =IF(Raw!BH47="","",Raw!BH47) -> -55.43 | I47: =IF(Raw!BI47="","",Raw!BI47) -> 276.46 | J47: =IF(Raw!BJ47="","",Raw!BJ47) -> 0 | K47: =IFERROR(ROUND(VLOOKUP(A47,'Raw3'!A:F,6,0),2),"") -> 0 | L47: =IF(Raw!BK47="","",Raw!BK47) -> 0 | M47: =IF(Raw!BL47="","",Raw!BL47) -> 0 | N47: =IF(Raw!BM47="","",Raw!BM47) -> 27.77 | O47: =IF(Raw!BN47="","",Raw!BN47) -> 9 | P47: =IF(Raw!BO47="","",Raw!BO47) -> 9 | Q47: =IF(Raw!BP47="","",Raw!BP47) -> 100 | R47: =IF(Raw!BQ47="","",Raw!BQ47) ->  | S47: =IF(Raw!BR47="","",Raw!BR47) ->  | T47: =IF(Raw!BS47="","",Raw!BS47) -> 4.56 | U47: =IF(Raw!BT47="","",Raw!BT47) ->  | V47: =IF(Raw!BU47="","",Raw!BU47) -> Y | W47: =IF(Raw!BV47="","",Raw!BV47) -> Y | X47: =IF(Raw!BW47="","",Raw!BW47) ->  | Y47: =IF(Raw!BX47="","",Raw!BX47) ->  | Z47: =IF(Raw!BY47="","",Raw!BY47) ->  | AA47: =IF(Raw!BZ47="","",Raw!BZ47) ->  | AB47: =IF(Raw!CA47="","",Raw!CA47) ->  | AC47: =IF(Raw!CB47="","",Raw!CB47) ->  | AD47: =IF(Raw!CC47="","",Raw!CC47) -> Y | AE47: =IF(Raw!CD47="","",Raw!CD47) ->  | AF47: =IF(Raw!CE47="","",Raw!CE47) ->  | AG47: =IF(Raw!CF47="","",Raw!CF47) ->  | AH47: =IF(Raw!CG47="","",Raw!CG47) ->  | AI47: =IF(Raw!CH47="","",Raw!CH47) -> -37.71 | AJ47: =IF(Raw!CI47="","",Raw!CI47) -> -55.43 | AK47: =IF(Raw!CJ47="","",Raw!CJ47) -> 276.46 | AL47: =IF(Raw!CK47="","",Raw!CK47) -> 0 | AM47: =IF(Raw!CL47="","",Raw!CL47) -> 0 | AN47: =IF(Raw!CM47="","",Raw!CM47) -> 0 | AO47: =IF(Raw!CN47="","",Raw!CN47) -> 0 | AP47: =IF(Raw!CO47="","",Raw!CO47) -> 0 | AQ47: =IF(Raw!CP47="","",Raw!CP47) -> 27.77 | AR47: =IF(Raw!CQ47="","",Raw!CQ47) ->  | AS47: =IF(Raw!CR47="","",Raw!CR47) -> 2 | AT47: =IF(Raw!CS47="","",Raw!CS47) ->  | AU47: =IF(Raw!CT47="","",Raw!CT47) -> 9 | AV47: =IF(Raw!CU47="","",Raw!CU47) -> 100 | AW47: =IF(Raw!CV47="","",Raw!CV47) -> 17
A48: =IF(Raw!BA48="","",Raw!BA48) -> 3095 及成 | B48: =IF(Raw!BB48="","",Raw!BB48) -> OTC | C48: =IF(Raw!BC48="","",Raw!BC48) -> 2.58 | D48: =IF(Raw!BD48="","",Raw!BD48) -> -4.4444 | E48: =IF(Raw!BE48="","",Raw!BE48) -> -5.147 | F48: =IF(Raw!BF48="","",Raw!BF48) -> 0 | G48: =IF(Raw!BG48="","",Raw!BG48) -> -9.52 | H48: =IF(Raw!BH48="","",Raw!BH48) -> -35.58 | I48: =IF(Raw!BI48="","",Raw!BI48) -> 434.7 | J48: =IF(Raw!BJ48="","",Raw!BJ48) -> 0 | K48: =IFERROR(ROUND(VLOOKUP(A48,'Raw3'!A:F,6,0),2),"") -> 0 | L48: =IF(Raw!BK48="","",Raw!BK48) -> 0 | M48: =IF(Raw!BL48="","",Raw!BL48) -> 0 | N48: =IF(Raw!BM48="","",Raw!BM48) -> 42.59 | O48: =IF(Raw!BN48="","",Raw!BN48) -> D | P48: =IF(Raw!BO48="","",Raw!BO48) -> D | Q48: =IF(Raw!BP48="","",Raw!BP48) -> 100 | R48: =IF(Raw!BQ48="","",Raw!BQ48) -> Y_繼續經營疑慮 | S48: =IF(Raw!BR48="","",Raw!BR48) ->  | T48: =IF(Raw!BS48="","",Raw!BS48) -> 2.66 | U48: =IF(Raw!BT48="","",Raw!BT48) ->  | V48: =IF(Raw!BU48="","",Raw!BU48) ->  | W48: =IF(Raw!BV48="","",Raw!BV48) -> Y | X48: =IF(Raw!BW48="","",Raw!BW48) ->  | Y48: =IF(Raw!BX48="","",Raw!BX48) ->  | Z48: =IF(Raw!BY48="","",Raw!BY48) ->  | AA48: =IF(Raw!BZ48="","",Raw!BZ48) ->  | AB48: =IF(Raw!CA48="","",Raw!CA48) ->  | AC48: =IF(Raw!CB48="","",Raw!CB48) ->  | AD48: =IF(Raw!CC48="","",Raw!CC48) -> Y | AE48: =IF(Raw!CD48="","",Raw!CD48) ->  | AF48: =IF(Raw!CE48="","",Raw!CE48) ->  | AG48: =IF(Raw!CF48="","",Raw!CF48) ->  | AH48: =IF(Raw!CG48="","",Raw!CG48) ->  | AI48: =IF(Raw!CH48="","",Raw!CH48) -> -9.52 | AJ48: =IF(Raw!CI48="","",Raw!CI48) -> -35.58 | AK48: =IF(Raw!CJ48="","",Raw!CJ48) -> 434.7 | AL48: =IF(Raw!CK48="","",Raw!CK48) -> 0 | AM48: =IF(Raw!CL48="","",Raw!CL48) -> 0 | AN48: =IF(Raw!CM48="","",Raw!CM48) -> 0 | AO48: =IF(Raw!CN48="","",Raw!CN48) -> 0 | AP48: =IF(Raw!CO48="","",Raw!CO48) -> 0 | AQ48: =IF(Raw!CP48="","",Raw!CP48) -> 42.59 | AR48: =IF(Raw!CQ48="","",Raw!CQ48) ->  | AS48: =IF(Raw!CR48="","",Raw!CR48) -> 0 | AT48: =IF(Raw!CS48="","",Raw!CS48) ->  | AU48: =IF(Raw!CT48="","",Raw!CT48) -> D | AV48: =IF(Raw!CU48="","",Raw!CU48) -> 100 | AW48: =IF(Raw!CV48="","",Raw!CV48) -> 13
A49: =IF(Raw!BA49="","",Raw!BA49) -> 3149 正達 | B49: =IF(Raw!BB49="","",Raw!BB49) -> TSE | C49: =IF(Raw!BC49="","",Raw!BC49) -> 22.25 | D49: =IF(Raw!BD49="","",Raw!BD49) -> 9.8765 | E49: =IF(Raw!BE49="","",Raw!BE49) -> 10.9727 | F49: =IF(Raw!BF49="","",Raw!BF49) -> 243 | G49: =IF(Raw!BG49="","",Raw!BG49) -> 51.09 | H49: =IF(Raw!BH49="","",Raw!BH49) -> 30.36 | I49: =IF(Raw!BI49="","",Raw!BI49) -> 333.09 | J49: =IF(Raw!BJ49="","",Raw!BJ49) -> 3.99 | K49: =IFERROR(ROUND(VLOOKUP(A49,'Raw3'!A:F,6,0),2),"") -> 3.99 | L49: =IF(Raw!BK49="","",Raw!BK49) ->  | M49: =IF(Raw!BL49="","",Raw!BL49) -> 5149.17 | N49: =IF(Raw!BM49="","",Raw!BM49) -> 20.81 | O49: =IF(Raw!BN49="","",Raw!BN49) -> 9 | P49: =IF(Raw!BO49="","",Raw!BO49) -> 7 | Q49: =IF(Raw!BP49="","",Raw!BP49) -> 100 | R49: =IF(Raw!BQ49="","",Raw!BQ49) ->  | S49: =IF(Raw!BR49="","",Raw!BR49) -> 0 | T49: =IF(Raw!BS49="","",Raw!BS49) -> 2.97 | U49: =IF(Raw!BT49="","",Raw!BT49) ->  | V49: =IF(Raw!BU49="","",Raw!BU49) ->  | W49: =IF(Raw!BV49="","",Raw!BV49) -> Y | X49: =IF(Raw!BW49="","",Raw!BW49) ->  | Y49: =IF(Raw!BX49="","",Raw!BX49) ->  | Z49: =IF(Raw!BY49="","",Raw!BY49) ->  | AA49: =IF(Raw!BZ49="","",Raw!BZ49) ->  | AB49: =IF(Raw!CA49="","",Raw!CA49) ->  | AC49: =IF(Raw!CB49="","",Raw!CB49) ->  | AD49: =IF(Raw!CC49="","",Raw!CC49) ->  | AE49: =IF(Raw!CD49="","",Raw!CD49) ->  | AF49: =IF(Raw!CE49="","",Raw!CE49) ->  | AG49: =IF(Raw!CF49="","",Raw!CF49) ->  | AH49: =IF(Raw!CG49="","",Raw!CG49) ->  | AI49: =IF(Raw!CH49="","",Raw!CH49) -> 51.09 | AJ49: =IF(Raw!CI49="","",Raw!CI49) -> 30.36 | AK49: =IF(Raw!CJ49="","",Raw!CJ49) -> 333.09 | AL49: =IF(Raw!CK49="","",Raw!CK49) -> 0 | AM49: =IF(Raw!CL49="","",Raw!CL49) -> 0 | AN49: =IF(Raw!CM49="","",Raw!CM49) -> 0 | AO49: =IF(Raw!CN49="","",Raw!CN49) ->  | AP49: =IF(Raw!CO49="","",Raw!CO49) -> 0 | AQ49: =IF(Raw!CP49="","",Raw!CP49) -> 20.81 | AR49: =IF(Raw!CQ49="","",Raw!CQ49) ->  | AS49: =IF(Raw!CR49="","",Raw!CR49) -> 0 | AT49: =IF(Raw!CS49="","",Raw!CS49) ->  | AU49: =IF(Raw!CT49="","",Raw!CT49) -> 9 | AV49: =IF(Raw!CU49="","",Raw!CU49) -> 100 | AW49: =IF(Raw!CV49="","",Raw!CV49) -> 9
A50: =IF(Raw!BA50="","",Raw!BA50) -> 3162 精確 | B50: =IF(Raw!BB50="","",Raw!BB50) -> OTC | C50: =IF(Raw!BC50="","",Raw!BC50) -> 26.4 | D50: =IF(Raw!BD50="","",Raw!BD50) -> 10 | E50: =IF(Raw!BE50="","",Raw!BE50) -> 13.0622 | F50: =IF(Raw!BF50="","",Raw!BF50) -> 0 | G50: =IF(Raw!BG50="","",Raw!BG50) -> -12.13 | H50: =IF(Raw!BH50="","",Raw!BH50) -> -17.05 | I50: =IF(Raw!BI50="","",Raw!BI50) -> 148.91 | J50: =IF(Raw!BJ50="","",Raw!BJ50) -> 0 | K50: =IFERROR(ROUND(VLOOKUP(A50,'Raw3'!A:F,6,0),2),"") -> 0 | L50: =IF(Raw!BK50="","",Raw!BK50) -> 0 | M50: =IF(Raw!BL50="","",Raw!BL50) -> 0 | N50: =IF(Raw!BM50="","",Raw!BM50) -> 18.26 | O50: =IF(Raw!BN50="","",Raw!BN50) -> 9 | P50: =IF(Raw!BO50="","",Raw!BO50) -> 7 | Q50: =IF(Raw!BP50="","",Raw!BP50) -> 75 | R50: =IF(Raw!BQ50="","",Raw!BQ50) ->  | S50: =IF(Raw!BR50="","",Raw!BR50) ->  | T50: =IF(Raw!BS50="","",Raw!BS50) -> 5.09 | U50: =IF(Raw!BT50="","",Raw!BT50) ->  | V50: =IF(Raw!BU50="","",Raw!BU50) ->  | W50: =IF(Raw!BV50="","",Raw!BV50) ->  | X50: =IF(Raw!BW50="","",Raw!BW50) ->  | Y50: =IF(Raw!BX50="","",Raw!BX50) ->  | Z50: =IF(Raw!BY50="","",Raw!BY50) ->  | AA50: =IF(Raw!BZ50="","",Raw!BZ50) ->  | AB50: =IF(Raw!CA50="","",Raw!CA50) ->  | AC50: =IF(Raw!CB50="","",Raw!CB50) -> Y | AD50: =IF(Raw!CC50="","",Raw!CC50) ->  | AE50: =IF(Raw!CD50="","",Raw!CD50) ->  | AF50: =IF(Raw!CE50="","",Raw!CE50) ->  | AG50: =IF(Raw!CF50="","",Raw!CF50) ->  | AH50: =IF(Raw!CG50="","",Raw!CG50) ->  | AI50: =IF(Raw!CH50="","",Raw!CH50) -> -12.13 | AJ50: =IF(Raw!CI50="","",Raw!CI50) -> -17.05 | AK50: =IF(Raw!CJ50="","",Raw!CJ50) -> 148.91 | AL50: =IF(Raw!CK50="","",Raw!CK50) -> 0 | AM50: =IF(Raw!CL50="","",Raw!CL50) -> 0 | AN50: =IF(Raw!CM50="","",Raw!CM50) -> 0 | AO50: =IF(Raw!CN50="","",Raw!CN50) -> 0 | AP50: =IF(Raw!CO50="","",Raw!CO50) -> 0 | AQ50: =IF(Raw!CP50="","",Raw!CP50) -> 18.26 | AR50: =IF(Raw!CQ50="","",Raw!CQ50) ->  | AS50: =IF(Raw!CR50="","",Raw!CR50) -> 3 | AT50: =IF(Raw!CS50="","",Raw!CS50) ->  | AU50: =IF(Raw!CT50="","",Raw!CT50) -> 9 | AV50: =IF(Raw!CU50="","",Raw!CU50) -> 75 | AW50: =IF(Raw!CV50="","",Raw!CV50) -> 10
A51: =IF(Raw!BA51="","",Raw!BA51) -> 3191 和進 | B51: =IF(Raw!BB51="","",Raw!BB51) -> OTC | C51: =IF(Raw!BC51="","",Raw!BC51) -> 17.7 | D51: =IF(Raw!BD51="","",Raw!BD51) -> -1.1173 | E51: =IF(Raw!BE51="","",Raw!BE51) -> 4.1176 | F51: =IF(Raw!BF51="","",Raw!BF51) -> 70 | G51: =IF(Raw!BG51="","",Raw!BG51) -> -41.52 | H51: =IF(Raw!BH51="","",Raw!BH51) -> -55.77 | I51: =IF(Raw!BI51="","",Raw!BI51) -> 53.32 | J51: =IF(Raw!BJ51="","",Raw!BJ51) -> 0 | K51: =IFERROR(ROUND(VLOOKUP(A51,'Raw3'!A:F,6,0),2),"") -> 0 | L51: =IF(Raw!BK51="","",Raw!BK51) -> 0 | M51: =IF(Raw!BL51="","",Raw!BL51) -> 1229.2 | N51: =IF(Raw!BM51="","",Raw!BM51) -> 18.51 | O51: =IF(Raw!BN51="","",Raw!BN51) -> 8 | P51: =IF(Raw!BO51="","",Raw!BO51) -> 6 | Q51: =IF(Raw!BP51="","",Raw!BP51) -> 0 | R51: =IF(Raw!BQ51="","",Raw!BQ51) ->  | S51: =IF(Raw!BR51="","",Raw!BR51) -> 0 | T51: =IF(Raw!BS51="","",Raw!BS51) -> 3.53 | U51: =IF(Raw!BT51="","",Raw!BT51) ->  | V51: =IF(Raw!BU51="","",Raw!BU51) -> Y | W51: =IF(Raw!BV51="","",Raw!BV51) ->  | X51: =IF(Raw!BW51="","",Raw!BW51) ->  | Y51: =IF(Raw!BX51="","",Raw!BX51) ->  | Z51: =IF(Raw!BY51="","",Raw!BY51) ->  | AA51: =IF(Raw!BZ51="","",Raw!BZ51) ->  | AB51: =IF(Raw!CA51="","",Raw!CA51) ->  | AC51: =IF(Raw!CB51="","",Raw!CB51) ->  | AD51: =IF(Raw!CC51="","",Raw!CC51) ->  | AE51: =IF(Raw!CD51="","",Raw!CD51) ->  | AF51: =IF(Raw!CE51="","",Raw!CE51) ->  | AG51: =IF(Raw!CF51="","",Raw!CF51) ->  | AH51: =IF(Raw!CG51="","",Raw!CG51) ->  | AI51: =IF(Raw!CH51="","",Raw!CH51) -> -41.52 | AJ51: =IF(Raw!CI51="","",Raw!CI51) -> -55.77 | AK51: =IF(Raw!CJ51="","",Raw!CJ51) -> 53.32 | AL51: =IF(Raw!CK51="","",Raw!CK51) -> 0 | AM51: =IF(Raw!CL51="","",Raw!CL51) -> 0 | AN51: =IF(Raw!CM51="","",Raw!CM51) -> 0 | AO51: =IF(Raw!CN51="","",Raw!CN51) -> 0 | AP51: =IF(Raw!CO51="","",Raw!CO51) -> 0 | AQ51: =IF(Raw!CP51="","",Raw!CP51) -> 18.51 | AR51: =IF(Raw!CQ51="","",Raw!CQ51) ->  | AS51: =IF(Raw!CR51="","",Raw!CR51) -> 1 | AT51: =IF(Raw!CS51="","",Raw!CS51) ->  | AU51: =IF(Raw!CT51="","",Raw!CT51) -> 8 | AV51: =IF(Raw!CU51="","",Raw!CU51) -> 0 | AW51: =IF(Raw!CV51="","",Raw!CV51) -> 9
A52: =IF(Raw!BA52="","",Raw!BA52) -> 3224 三顧 | B52: =IF(Raw!BB52="","",Raw!BB52) -> OTC | C52: =IF(Raw!BC52="","",Raw!BC52) -> 38.85 | D52: =IF(Raw!BD52="","",Raw!BD52) -> -0.5122 | E52: =IF(Raw!BE52="","",Raw!BE52) -> 1.7015 | F52: =IF(Raw!BF52="","",Raw!BF52) -> 6659 | G52: =IF(Raw!BG52="","",Raw!BG52) -> -4.61 | H52: =IF(Raw!BH52="","",Raw!BH52) -> -25.46 | I52: =IF(Raw!BI52="","",Raw!BI52) -> 31.93 | J52: =IF(Raw!BJ52="","",Raw!BJ52) -> 0 | K52: =IFERROR(ROUND(VLOOKUP(A52,'Raw3'!A:F,6,0),2),"") -> 0 | L52: =IF(Raw!BK52="","",Raw!BK52) -> 60.51 | M52: =IF(Raw!BL52="","",Raw!BL52) -> 258369.2 | N52: =IF(Raw!BM52="","",Raw!BM52) -> 29.8 | O52: =IF(Raw!BN52="","",Raw!BN52) -> 7 | P52: =IF(Raw!BO52="","",Raw!BO52) -> 5 | Q52: =IF(Raw!BP52="","",Raw!BP52) -> 0 | R52: =IF(Raw!BQ52="","",Raw!BQ52) ->  | S52: =IF(Raw!BR52="","",Raw!BR52) -> 7.4 | T52: =IF(Raw!BS52="","",Raw!BS52) -> 2.85 | U52: =IF(Raw!BT52="","",Raw!BT52) ->  | V52: =IF(Raw!BU52="","",Raw!BU52) ->  | W52: =IF(Raw!BV52="","",Raw!BV52) ->  | X52: =IF(Raw!BW52="","",Raw!BW52) ->  | Y52: =IF(Raw!BX52="","",Raw!BX52) ->  | Z52: =IF(Raw!BY52="","",Raw!BY52) ->  | AA52: =IF(Raw!BZ52="","",Raw!BZ52) ->  | AB52: =IF(Raw!CA52="","",Raw!CA52) ->  | AC52: =IF(Raw!CB52="","",Raw!CB52) ->  | AD52: =IF(Raw!CC52="","",Raw!CC52) ->  | AE52: =IF(Raw!CD52="","",Raw!CD52) ->  | AF52: =IF(Raw!CE52="","",Raw!CE52) ->  | AG52: =IF(Raw!CF52="","",Raw!CF52) ->  | AH52: =IF(Raw!CG52="","",Raw!CG52) ->  | AI52: =IF(Raw!CH52="","",Raw!CH52) -> -4.61 | AJ52: =IF(Raw!CI52="","",Raw!CI52) -> -25.46 | AK52: =IF(Raw!CJ52="","",Raw!CJ52) -> 31.93 | AL52: =IF(Raw!CK52="","",Raw!CK52) -> 0 | AM52: =IF(Raw!CL52="","",Raw!CL52) -> 0 | AN52: =IF(Raw!CM52="","",Raw!CM52) -> 0 | AO52: =IF(Raw!CN52="","",Raw!CN52) -> 60.51 | AP52: =IF(Raw!CO52="","",Raw!CO52) -> 0 | AQ52: =IF(Raw!CP52="","",Raw!CP52) -> 29.8 | AR52: =IF(Raw!CQ52="","",Raw!CQ52) ->  | AS52: =IF(Raw!CR52="","",Raw!CR52) -> 0 | AT52: =IF(Raw!CS52="","",Raw!CS52) -> 3 | AU52: =IF(Raw!CT52="","",Raw!CT52) -> 7 | AV52: =IF(Raw!CU52="","",Raw!CU52) -> 0 | AW52: =IF(Raw!CV52="","",Raw!CV52) -> 10
A53: =IF(Raw!BA53="","",Raw!BA53) -> 3234 光環 | B53: =IF(Raw!BB53="","",Raw!BB53) -> OTC | C53: =IF(Raw!BC53="","",Raw!BC53) -> 31.95 | D53: =IF(Raw!BD53="","",Raw!BD53) -> 0.4717 | E53: =IF(Raw!BE53="","",Raw!BE53) -> 1.7515 | F53: =IF(Raw!BF53="","",Raw!BF53) -> 11658 | G53: =IF(Raw!BG53="","",Raw!BG53) -> -62.93 | H53: =IF(Raw!BH53="","",Raw!BH53) -> -56.27 | I53: =IF(Raw!BI53="","",Raw!BI53) -> 147.54 | J53: =IF(Raw!BJ53="","",Raw!BJ53) -> 0 | K53: =IFERROR(ROUND(VLOOKUP(A53,'Raw3'!A:F,6,0),2),"") -> 0 | L53: =IF(Raw!BK53="","",Raw!BK53) -> 64.29 | M53: =IF(Raw!BL53="","",Raw!BL53) -> 372356.52 | N53: =IF(Raw!BM53="","",Raw!BM53) -> 15.08 | O53: =IF(Raw!BN53="","",Raw!BN53) -> 5 | P53: =IF(Raw!BO53="","",Raw!BO53) -> 6 | Q53: =IF(Raw!BP53="","",Raw!BP53) -> 0 | R53: =IF(Raw!BQ53="","",Raw!BQ53) ->  | S53: =IF(Raw!BR53="","",Raw!BR53) -> 19.39 | T53: =IF(Raw!BS53="","",Raw!BS53) -> 1.4 | U53: =IF(Raw!BT53="","",Raw!BT53) -> Y | V53: =IF(Raw!BU53="","",Raw!BU53) -> Y | W53: =IF(Raw!BV53="","",Raw!BV53) ->  | X53: =IF(Raw!BW53="","",Raw!BW53) ->  | Y53: =IF(Raw!BX53="","",Raw!BX53) ->  | Z53: =IF(Raw!BY53="","",Raw!BY53) ->  | AA53: =IF(Raw!BZ53="","",Raw!BZ53) ->  | AB53: =IF(Raw!CA53="","",Raw!CA53) ->  | AC53: =IF(Raw!CB53="","",Raw!CB53) ->  | AD53: =IF(Raw!CC53="","",Raw!CC53) ->  | AE53: =IF(Raw!CD53="","",Raw!CD53) ->  | AF53: =IF(Raw!CE53="","",Raw!CE53) ->  | AG53: =IF(Raw!CF53="","",Raw!CF53) ->  | AH53: =IF(Raw!CG53="","",Raw!CG53) ->  | AI53: =IF(Raw!CH53="","",Raw!CH53) -> -62.93 | AJ53: =IF(Raw!CI53="","",Raw!CI53) -> -56.27 | AK53: =IF(Raw!CJ53="","",Raw!CJ53) -> 147.54 | AL53: =IF(Raw!CK53="","",Raw!CK53) -> 0 | AM53: =IF(Raw!CL53="","",Raw!CL53) -> 0 | AN53: =IF(Raw!CM53="","",Raw!CM53) -> 0 | AO53: =IF(Raw!CN53="","",Raw!CN53) -> 64.29 | AP53: =IF(Raw!CO53="","",Raw!CO53) -> 2 | AQ53: =IF(Raw!CP53="","",Raw!CP53) -> 15.08 | AR53: =IF(Raw!CQ53="","",Raw!CQ53) ->  | AS53: =IF(Raw!CR53="","",Raw!CR53) -> 0 | AT53: =IF(Raw!CS53="","",Raw!CS53) ->  | AU53: =IF(Raw!CT53="","",Raw!CT53) -> 5 | AV53: =IF(Raw!CU53="","",Raw!CU53) -> 0 | AW53: =IF(Raw!CV53="","",Raw!CV53) -> 11
A54: =IF(Raw!BA54="","",Raw!BA54) -> 3252 海灣 | B54: =IF(Raw!BB54="","",Raw!BB54) -> OTC | C54: =IF(Raw!BC54="","",Raw!BC54) -> 21.1 | D54: =IF(Raw!BD54="","",Raw!BD54) -> 0 | E54: =IF(Raw!BE54="","",Raw!BE54) -> -1.8605 | F54: =IF(Raw!BF54="","",Raw!BF54) -> 6063 | G54: =IF(Raw!BG54="","",Raw!BG54) -> 78.63 | H54: =IF(Raw!BH54="","",Raw!BH54) -> 135.77 | I54: =IF(Raw!BI54="","",Raw!BI54) -> 137.21 | J54: =IF(Raw!BJ54="","",Raw!BJ54) -> 0 | K54: =IFERROR(ROUND(VLOOKUP(A54,'Raw3'!A:F,6,0),2),"") -> 0 | L54: =IF(Raw!BK54="","",Raw!BK54) -> 77.12 | M54: =IF(Raw!BL54="","",Raw!BL54) -> 127201.74 | N54: =IF(Raw!BM54="","",Raw!BM54) -> 23.47 | O54: =IF(Raw!BN54="","",Raw!BN54) -> 9 | P54: =IF(Raw!BO54="","",Raw!BO54) -> 9 | Q54: =IF(Raw!BP54="","",Raw!BP54) -> 100 | R54: =IF(Raw!BQ54="","",Raw!BQ54) ->  | S54: =IF(Raw!BR54="","",Raw!BR54) -> 0 | T54: =IF(Raw!BS54="","",Raw!BS54) -> 0.39 | U54: =IF(Raw!BT54="","",Raw!BT54) ->  | V54: =IF(Raw!BU54="","",Raw!BU54) ->  | W54: =IF(Raw!BV54="","",Raw!BV54) ->  | X54: =IF(Raw!BW54="","",Raw!BW54) ->  | Y54: =IF(Raw!BX54="","",Raw!BX54) ->  | Z54: =IF(Raw!BY54="","",Raw!BY54) ->  | AA54: =IF(Raw!BZ54="","",Raw!BZ54) ->  | AB54: =IF(Raw!CA54="","",Raw!CA54) ->  | AC54: =IF(Raw!CB54="","",Raw!CB54) ->  | AD54: =IF(Raw!CC54="","",Raw!CC54) ->  | AE54: =IF(Raw!CD54="","",Raw!CD54) ->  | AF54: =IF(Raw!CE54="","",Raw!CE54) ->  | AG54: =IF(Raw!CF54="","",Raw!CF54) ->  | AH54: =IF(Raw!CG54="","",Raw!CG54) ->  | AI54: =IF(Raw!CH54="","",Raw!CH54) -> 78.63 | AJ54: =IF(Raw!CI54="","",Raw!CI54) -> 135.77 | AK54: =IF(Raw!CJ54="","",Raw!CJ54) -> 137.21 | AL54: =IF(Raw!CK54="","",Raw!CK54) -> 0 | AM54: =IF(Raw!CL54="","",Raw!CL54) -> 0 | AN54: =IF(Raw!CM54="","",Raw!CM54) -> 0 | AO54: =IF(Raw!CN54="","",Raw!CN54) -> 77.12 | AP54: =IF(Raw!CO54="","",Raw!CO54) -> 0 | AQ54: =IF(Raw!CP54="","",Raw!CP54) -> 23.47 | AR54: =IF(Raw!CQ54="","",Raw!CQ54) ->  | AS54: =IF(Raw!CR54="","",Raw!CR54) -> 0 | AT54: =IF(Raw!CS54="","",Raw!CS54) ->  | AU54: =IF(Raw!CT54="","",Raw!CT54) -> 9 | AV54: =IF(Raw!CU54="","",Raw!CU54) -> 100 | AW54: =IF(Raw!CV54="","",Raw!CV54) -> 9
A55: =IF(Raw!BA55="","",Raw!BA55) -> 3287 廣寰科 | B55: =IF(Raw!BB55="","",Raw!BB55) -> OTC | C55: =IF(Raw!BC55="","",Raw!BC55) -> 6.58 | D55: =IF(Raw!BD55="","",Raw!BD55) -> -0.9036 | E55: =IF(Raw!BE55="","",Raw!BE55) -> -0.303 | F55: =IF(Raw!BF55="","",Raw!BF55) -> 45 | G55: =IF(Raw!BG55="","",Raw!BG55) -> -41.03 | H55: =IF(Raw!BH55="","",Raw!BH55) -> -24.23 | I55: =IF(Raw!BI55="","",Raw!BI55) -> 25.7 | J55: =IF(Raw!BJ55="","",Raw!BJ55) -> 0 | K55: =IFERROR(ROUND(VLOOKUP(A55,'Raw3'!A:F,6,0),2),"") -> 0 | L55: =IF(Raw!BK55="","",Raw!BK55) -> 0 | M55: =IF(Raw!BL55="","",Raw!BL55) -> 294.3 | N55: =IF(Raw!BM55="","",Raw!BM55) -> 30.77 | O55: =IF(Raw!BN55="","",Raw!BN55) -> 7 | P55: =IF(Raw!BO55="","",Raw!BO55) -> 6 | Q55: =IF(Raw!BP55="","",Raw!BP55) -> 0 | R55: =IF(Raw!BQ55="","",Raw!BQ55) ->  | S55: =IF(Raw!BR55="","",Raw!BR55) -> 0 | T55: =IF(Raw!BS55="","",Raw!BS55) -> 0.75 | U55: =IF(Raw!BT55="","",Raw!BT55) ->  | V55: =IF(Raw!BU55="","",Raw!BU55) ->  | W55: =IF(Raw!BV55="","",Raw!BV55) ->  | X55: =IF(Raw!BW55="","",Raw!BW55) ->  | Y55: =IF(Raw!BX55="","",Raw!BX55) ->  | Z55: =IF(Raw!BY55="","",Raw!BY55) ->  | AA55: =IF(Raw!BZ55="","",Raw!BZ55) ->  | AB55: =IF(Raw!CA55="","",Raw!CA55) ->  | AC55: =IF(Raw!CB55="","",Raw!CB55) ->  | AD55: =IF(Raw!CC55="","",Raw!CC55) ->  | AE55: =IF(Raw!CD55="","",Raw!CD55) ->  | AF55: =IF(Raw!CE55="","",Raw!CE55) ->  | AG55: =IF(Raw!CF55="","",Raw!CF55) ->  | AH55: =IF(Raw!CG55="","",Raw!CG55) ->  | AI55: =IF(Raw!CH55="","",Raw!CH55) -> -41.03 | AJ55: =IF(Raw!CI55="","",Raw!CI55) -> -24.23 | AK55: =IF(Raw!CJ55="","",Raw!CJ55) -> 25.7 | AL55: =IF(Raw!CK55="","",Raw!CK55) -> 0 | AM55: =IF(Raw!CL55="","",Raw!CL55) -> 0 | AN55: =IF(Raw!CM55="","",Raw!CM55) -> 0 | AO55: =IF(Raw!CN55="","",Raw!CN55) -> 0 | AP55: =IF(Raw!CO55="","",Raw!CO55) -> 0 | AQ55: =IF(Raw!CP55="","",Raw!CP55) -> 30.77 | AR55: =IF(Raw!CQ55="","",Raw!CQ55) ->  | AS55: =IF(Raw!CR55="","",Raw!CR55) -> 0 | AT55: =IF(Raw!CS55="","",Raw!CS55) -> 0 | AU55: =IF(Raw!CT55="","",Raw!CT55) -> 7 | AV55: =IF(Raw!CU55="","",Raw!CU55) -> 0 | AW55: =IF(Raw!CV55="","",Raw!CV55) -> 10
A56: =IF(Raw!BA56="","",Raw!BA56) -> 3288 點晶 | B56: =IF(Raw!BB56="","",Raw!BB56) -> OTC | C56: =IF(Raw!BC56="","",Raw!BC56) -> 3.39 | D56: =IF(Raw!BD56="","",Raw!BD56) -> 0 | E56: =IF(Raw!BE56="","",Raw!BE56) -> -0.2941 | F56: =IF(Raw!BF56="","",Raw!BF56) -> 0 | G56: =IF(Raw!BG56="","",Raw!BG56) -> -1.42 | H56: =IF(Raw!BH56="","",Raw!BH56) -> -6.12 | I56: =IF(Raw!BI56="","",Raw!BI56) -> 437.37 | J56: =IF(Raw!BJ56="","",Raw!BJ56) -> 0 | K56: =IFERROR(ROUND(VLOOKUP(A56,'Raw3'!A:F,6,0),2),"") -> 0 | L56: =IF(Raw!BK56="","",Raw!BK56) -> 0 | M56: =IF(Raw!BL56="","",Raw!BL56) -> 0 | N56: =IF(Raw!BM56="","",Raw!BM56) -> 45.83 | O56: =IF(Raw!BN56="","",Raw!BN56) -> D | P56: =IF(Raw!BO56="","",Raw!BO56) -> D | Q56: =IF(Raw!BP56="","",Raw!BP56) -> 100 | R56: =IF(Raw!BQ56="","",Raw!BQ56) -> Y_繼續經營疑慮 | S56: =IF(Raw!BR56="","",Raw!BR56) ->  | T56: =IF(Raw!BS56="","",Raw!BS56) -> 1.89 | U56: =IF(Raw!BT56="","",Raw!BT56) ->  | V56: =IF(Raw!BU56="","",Raw!BU56) ->  | W56: =IF(Raw!BV56="","",Raw!BV56) -> Y | X56: =IF(Raw!BW56="","",Raw!BW56) ->  | Y56: =IF(Raw!BX56="","",Raw!BX56) ->  | Z56: =IF(Raw!BY56="","",Raw!BY56) ->  | AA56: =IF(Raw!BZ56="","",Raw!BZ56) ->  | AB56: =IF(Raw!CA56="","",Raw!CA56) ->  | AC56: =IF(Raw!CB56="","",Raw!CB56) ->  | AD56: =IF(Raw!CC56="","",Raw!CC56) -> Y | AE56: =IF(Raw!CD56="","",Raw!CD56) ->  | AF56: =IF(Raw!CE56="","",Raw!CE56) ->  | AG56: =IF(Raw!CF56="","",Raw!CF56) ->  | AH56: =IF(Raw!CG56="","",Raw!CG56) ->  | AI56: =IF(Raw!CH56="","",Raw!CH56) -> -1.42 | AJ56: =IF(Raw!CI56="","",Raw!CI56) -> -6.12 | AK56: =IF(Raw!CJ56="","",Raw!CJ56) -> 437.37 | AL56: =IF(Raw!CK56="","",Raw!CK56) -> 0 | AM56: =IF(Raw!CL56="","",Raw!CL56) -> 0 | AN56: =IF(Raw!CM56="","",Raw!CM56) -> 0 | AO56: =IF(Raw!CN56="","",Raw!CN56) -> 0 | AP56: =IF(Raw!CO56="","",Raw!CO56) -> 0 | AQ56: =IF(Raw!CP56="","",Raw!CP56) -> 45.83 | AR56: =IF(Raw!CQ56="","",Raw!CQ56) ->  | AS56: =IF(Raw!CR56="","",Raw!CR56) -> 0 | AT56: =IF(Raw!CS56="","",Raw!CS56) ->  | AU56: =IF(Raw!CT56="","",Raw!CT56) -> D | AV56: =IF(Raw!CU56="","",Raw!CU56) -> 100 | AW56: =IF(Raw!CV56="","",Raw!CV56) -> 10
A57: =IF(Raw!BA57="","",Raw!BA57) -> 3313 斐成 | B57: =IF(Raw!BB57="","",Raw!BB57) -> OTC | C57: =IF(Raw!BC57="","",Raw!BC57) -> 33.2 | D57: =IF(Raw!BD57="","",Raw!BD57) -> 0.1508 | E57: =IF(Raw!BE57="","",Raw!BE57) -> 0.7586 | F57: =IF(Raw!BF57="","",Raw!BF57) -> 6109 | G57: =IF(Raw!BG57="","",Raw!BG57) -> -21.08 | H57: =IF(Raw!BH57="","",Raw!BH57) -> -25.45 | I57: =IF(Raw!BI57="","",Raw!BI57) -> 14.23 | J57: =IF(Raw!BJ57="","",Raw!BJ57) -> 0 | K57: =IFERROR(ROUND(VLOOKUP(A57,'Raw3'!A:F,6,0),2),"") -> 0 | L57: =IF(Raw!BK57="","",Raw!BK57) -> 40.46 | M57: =IF(Raw!BL57="","",Raw!BL57) -> 202574.44 | N57: =IF(Raw!BM57="","",Raw!BM57) -> 22.62 | O57: =IF(Raw!BN57="","",Raw!BN57) -> 7 | P57: =IF(Raw!BO57="","",Raw!BO57) -> 5 | Q57: =IF(Raw!BP57="","",Raw!BP57) -> 0 | R57: =IF(Raw!BQ57="","",Raw!BQ57) ->  | S57: =IF(Raw!BR57="","",Raw!BR57) -> 26.49 | T57: =IF(Raw!BS57="","",Raw!BS57) -> 3.23 | U57: =IF(Raw!BT57="","",Raw!BT57) ->  | V57: =IF(Raw!BU57="","",Raw!BU57) ->  | W57: =IF(Raw!BV57="","",Raw!BV57) ->  | X57: =IF(Raw!BW57="","",Raw!BW57) ->  | Y57: =IF(Raw!BX57="","",Raw!BX57) ->  | Z57: =IF(Raw!BY57="","",Raw!BY57) ->  | AA57: =IF(Raw!BZ57="","",Raw!BZ57) ->  | AB57: =IF(Raw!CA57="","",Raw!CA57) ->  | AC57: =IF(Raw!CB57="","",Raw!CB57) ->  | AD57: =IF(Raw!CC57="","",Raw!CC57) ->  | AE57: =IF(Raw!CD57="","",Raw!CD57) ->  | AF57: =IF(Raw!CE57="","",Raw!CE57) ->  | AG57: =IF(Raw!CF57="","",Raw!CF57) ->  | AH57: =IF(Raw!CG57="","",Raw!CG57) ->  | AI57: =IF(Raw!CH57="","",Raw!CH57) -> -21.08 | AJ57: =IF(Raw!CI57="","",Raw!CI57) -> -25.45 | AK57: =IF(Raw!CJ57="","",Raw!CJ57) -> 14.23 | AL57: =IF(Raw!CK57="","",Raw!CK57) -> 0 | AM57: =IF(Raw!CL57="","",Raw!CL57) -> 0 | AN57: =IF(Raw!CM57="","",Raw!CM57) -> 0 | AO57: =IF(Raw!CN57="","",Raw!CN57) -> 40.46 | AP57: =IF(Raw!CO57="","",Raw!CO57) -> 3 | AQ57: =IF(Raw!CP57="","",Raw!CP57) -> 22.62 | AR57: =IF(Raw!CQ57="","",Raw!CQ57) ->  | AS57: =IF(Raw!CR57="","",Raw!CR57) -> 1 | AT57: =IF(Raw!CS57="","",Raw!CS57) ->  | AU57: =IF(Raw!CT57="","",Raw!CT57) -> 7 | AV57: =IF(Raw!CU57="","",Raw!CU57) -> 0 | AW57: =IF(Raw!CV57="","",Raw!CV57) -> 11
A58: =IF(Raw!BA58="","",Raw!BA58) -> 3339 泰谷 | B58: =IF(Raw!BB58="","",Raw!BB58) -> OTC | C58: =IF(Raw!BC58="","",Raw!BC58) -> 5.14 | D58: =IF(Raw!BD58="","",Raw!BD58) -> -2.8355 | E58: =IF(Raw!BE58="","",Raw!BE58) -> -6.0328 | F58: =IF(Raw!BF58="","",Raw!BF58) -> 0 | G58: =IF(Raw!BG58="","",Raw!BG58) -> -19.09 | H58: =IF(Raw!BH58="","",Raw!BH58) -> -18.81 | I58: =IF(Raw!BI58="","",Raw!BI58) -> 149.88 | J58: =IF(Raw!BJ58="","",Raw!BJ58) -> 0 | K58: =IFERROR(ROUND(VLOOKUP(A58,'Raw3'!A:F,6,0),2),"") -> 0 | L58: =IF(Raw!BK58="","",Raw!BK58) -> 0 | M58: =IF(Raw!BL58="","",Raw!BL58) -> 0 | N58: =IF(Raw!BM58="","",Raw!BM58) -> 48.68 | O58: =IF(Raw!BN58="","",Raw!BN58) -> 9 | P58: =IF(Raw!BO58="","",Raw!BO58) -> 9 | Q58: =IF(Raw!BP58="","",Raw!BP58) -> 100 | R58: =IF(Raw!BQ58="","",Raw!BQ58) ->  | S58: =IF(Raw!BR58="","",Raw!BR58) ->  | T58: =IF(Raw!BS58="","",Raw!BS58) -> 0.86 | U58: =IF(Raw!BT58="","",Raw!BT58) ->  | V58: =IF(Raw!BU58="","",Raw!BU58) ->  | W58: =IF(Raw!BV58="","",Raw!BV58) ->  | X58: =IF(Raw!BW58="","",Raw!BW58) ->  | Y58: =IF(Raw!BX58="","",Raw!BX58) ->  | Z58: =IF(Raw!BY58="","",Raw!BY58) ->  | AA58: =IF(Raw!BZ58="","",Raw!BZ58) ->  | AB58: =IF(Raw!CA58="","",Raw!CA58) ->  | AC58: =IF(Raw!CB58="","",Raw!CB58) ->  | AD58: =IF(Raw!CC58="","",Raw!CC58) -> Y | AE58: =IF(Raw!CD58="","",Raw!CD58) ->  | AF58: =IF(Raw!CE58="","",Raw!CE58) ->  | AG58: =IF(Raw!CF58="","",Raw!CF58) ->  | AH58: =IF(Raw!CG58="","",Raw!CG58) ->  | AI58: =IF(Raw!CH58="","",Raw!CH58) -> -19.09 | AJ58: =IF(Raw!CI58="","",Raw!CI58) -> -18.81 | AK58: =IF(Raw!CJ58="","",Raw!CJ58) -> 149.88 | AL58: =IF(Raw!CK58="","",Raw!CK58) -> 0 | AM58: =IF(Raw!CL58="","",Raw!CL58) -> 0 | AN58: =IF(Raw!CM58="","",Raw!CM58) -> 0 | AO58: =IF(Raw!CN58="","",Raw!CN58) -> 0 | AP58: =IF(Raw!CO58="","",Raw!CO58) -> 0 | AQ58: =IF(Raw!CP58="","",Raw!CP58) -> 48.68 | AR58: =IF(Raw!CQ58="","",Raw!CQ58) ->  | AS58: =IF(Raw!CR58="","",Raw!CR58) -> 0 | AT58: =IF(Raw!CS58="","",Raw!CS58) ->  | AU58: =IF(Raw!CT58="","",Raw!CT58) -> 9 | AV58: =IF(Raw!CU58="","",Raw!CU58) -> 100 | AW58: =IF(Raw!CV58="","",Raw!CV58) -> 9
A59: =IF(Raw!BA59="","",Raw!BA59) -> 3360 尚立 | B59: =IF(Raw!BB59="","",Raw!BB59) -> OTC | C59: =IF(Raw!BC59="","",Raw!BC59) -> 18.3 | D59: =IF(Raw!BD59="","",Raw!BD59) -> 1.105 | E59: =IF(Raw!BE59="","",Raw!BE59) -> 14.7338 | F59: =IF(Raw!BF59="","",Raw!BF59) -> 7112 | G59: =IF(Raw!BG59="","",Raw!BG59) -> -48.98 | H59: =IF(Raw!BH59="","",Raw!BH59) -> 9.42 | I59: =IF(Raw!BI59="","",Raw!BI59) -> 330.21 | J59: =IF(Raw!BJ59="","",Raw!BJ59) -> 0 | K59: =IFERROR(ROUND(VLOOKUP(A59,'Raw3'!A:F,6,0),2),"") -> 0 | L59: =IF(Raw!BK59="","",Raw!BK59) -> 37.7 | M59: =IF(Raw!BL59="","",Raw!BL59) -> 128087.12 | N59: =IF(Raw!BM59="","",Raw!BM59) -> 15.16 | O59: =IF(Raw!BN59="","",Raw!BN59) -> 6 | P59: =IF(Raw!BO59="","",Raw!BO59) -> 7 | Q59: =IF(Raw!BP59="","",Raw!BP59) -> 95 | R59: =IF(Raw!BQ59="","",Raw!BQ59) ->  | S59: =IF(Raw!BR59="","",Raw!BR59) -> 32.23 | T59: =IF(Raw!BS59="","",Raw!BS59) -> 1.25 | U59: =IF(Raw!BT59="","",Raw!BT59) ->  | V59: =IF(Raw!BU59="","",Raw!BU59) ->  | W59: =IF(Raw!BV59="","",Raw!BV59) -> Y | X59: =IF(Raw!BW59="","",Raw!BW59) ->  | Y59: =IF(Raw!BX59="","",Raw!BX59) ->  | Z59: =IF(Raw!BY59="","",Raw!BY59) ->  | AA59: =IF(Raw!BZ59="","",Raw!BZ59) ->  | AB59: =IF(Raw!CA59="","",Raw!CA59) ->  | AC59: =IF(Raw!CB59="","",Raw!CB59) ->  | AD59: =IF(Raw!CC59="","",Raw!CC59) ->  | AE59: =IF(Raw!CD59="","",Raw!CD59) ->  | AF59: =IF(Raw!CE59="","",Raw!CE59) ->  | AG59: =IF(Raw!CF59="","",Raw!CF59) ->  | AH59: =IF(Raw!CG59="","",Raw!CG59) ->  | AI59: =IF(Raw!CH59="","",Raw!CH59) -> -48.98 | AJ59: =IF(Raw!CI59="","",Raw!CI59) -> 9.42 | AK59: =IF(Raw!CJ59="","",Raw!CJ59) -> 330.21 | AL59: =IF(Raw!CK59="","",Raw!CK59) -> 0 | AM59: =IF(Raw!CL59="","",Raw!CL59) -> 0 | AN59: =IF(Raw!CM59="","",Raw!CM59) -> 0 | AO59: =IF(Raw!CN59="","",Raw!CN59) -> 37.7 | AP59: =IF(Raw!CO59="","",Raw!CO59) -> 3 | AQ59: =IF(Raw!CP59="","",Raw!CP59) -> 15.16 | AR59: =IF(Raw!CQ59="","",Raw!CQ59) ->  | AS59: =IF(Raw!CR59="","",Raw!CR59) -> 0 | AT59: =IF(Raw!CS59="","",Raw!CS59) ->  | AU59: =IF(Raw!CT59="","",Raw!CT59) -> 6 | AV59: =IF(Raw!CU59="","",Raw!CU59) -> 95 | AW59: =IF(Raw!CV59="","",Raw!CV59) -> 12
A60: =IF(Raw!BA60="","",Raw!BA60) -> 3362 先進光 | B60: =IF(Raw!BB60="","",Raw!BB60) -> OTC | C60: =IF(Raw!BC60="","",Raw!BC60) -> 78.8 | D60: =IF(Raw!BD60="","",Raw!BD60) -> 3.8208 | E60: =IF(Raw!BE60="","",Raw!BE60) -> -2.1119 | F60: =IF(Raw!BF60="","",Raw!BF60) -> 13339 | G60: =IF(Raw!BG60="","",Raw!BG60) -> 18.79 | H60: =IF(Raw!BH60="","",Raw!BH60) -> 19.8 | I60: =IF(Raw!BI60="","",Raw!BI60) -> 62.48 | J60: =IF(Raw!BJ60="","",Raw!BJ60) -> 0 | K60: =IFERROR(ROUND(VLOOKUP(A60,'Raw3'!A:F,6,0),2),"") -> 0 | L60: =IF(Raw!BK60="","",Raw!BK60) -> 57.14 | M60: =IF(Raw!BL60="","",Raw!BL60) -> 1034572.84 | N60: =IF(Raw!BM60="","",Raw!BM60) -> 20.56 | O60: =IF(Raw!BN60="","",Raw!BN60) -> 7 | P60: =IF(Raw!BO60="","",Raw!BO60) -> 6 | Q60: =IF(Raw!BP60="","",Raw!BP60) -> 0 | R60: =IF(Raw!BQ60="","",Raw!BQ60) ->  | S60: =IF(Raw!BR60="","",Raw!BR60) -> 46.11 | T60: =IF(Raw!BS60="","",Raw!BS60) -> 5.61 | U60: =IF(Raw!BT60="","",Raw!BT60) ->  | V60: =IF(Raw!BU60="","",Raw!BU60) ->  | W60: =IF(Raw!BV60="","",Raw!BV60) ->  | X60: =IF(Raw!BW60="","",Raw!BW60) ->  | Y60: =IF(Raw!BX60="","",Raw!BX60) ->  | Z60: =IF(Raw!BY60="","",Raw!BY60) ->  | AA60: =IF(Raw!BZ60="","",Raw!BZ60) ->  | AB60: =IF(Raw!CA60="","",Raw!CA60) -> Y | AC60: =IF(Raw!CB60="","",Raw!CB60) ->  | AD60: =IF(Raw!CC60="","",Raw!CC60) ->  | AE60: =IF(Raw!CD60="","",Raw!CD60) ->  | AF60: =IF(Raw!CE60="","",Raw!CE60) ->  | AG60: =IF(Raw!CF60="","",Raw!CF60) ->  | AH60: =IF(Raw!CG60="","",Raw!CG60) ->  | AI60: =IF(Raw!CH60="","",Raw!CH60) -> 18.79 | AJ60: =IF(Raw!CI60="","",Raw!CI60) -> 19.8 | AK60: =IF(Raw!CJ60="","",Raw!CJ60) -> 62.48 | AL60: =IF(Raw!CK60="","",Raw!CK60) -> 0 | AM60: =IF(Raw!CL60="","",Raw!CL60) -> 0 | AN60: =IF(Raw!CM60="","",Raw!CM60) -> 0 | AO60: =IF(Raw!CN60="","",Raw!CN60) -> 57.14 | AP60: =IF(Raw!CO60="","",Raw!CO60) -> 3 | AQ60: =IF(Raw!CP60="","",Raw!CP60) -> 20.56 | AR60: =IF(Raw!CQ60="","",Raw!CQ60) ->  | AS60: =IF(Raw!CR60="","",Raw!CR60) -> 3 | AT60: =IF(Raw!CS60="","",Raw!CS60) ->  | AU60: =IF(Raw!CT60="","",Raw!CT60) -> 7 | AV60: =IF(Raw!CU60="","",Raw!CU60) -> 0 | AW60: =IF(Raw!CV60="","",Raw!CV60) -> 9
A61: =IF(Raw!BA61="","",Raw!BA61) -> 3374 精材 | B61: =IF(Raw!BB61="","",Raw!BB61) -> OTC | C61: =IF(Raw!BC61="","",Raw!BC61) -> 62.8 | D61: =IF(Raw!BD61="","",Raw!BD61) -> 0.641 | E61: =IF(Raw!BE61="","",Raw!BE61) -> 7.5342 | F61: =IF(Raw!BF61="","",Raw!BF61) -> 35807 | G61: =IF(Raw!BG61="","",Raw!BG61) -> -24.58 | H61: =IF(Raw!BH61="","",Raw!BH61) -> -28.43 | I61: =IF(Raw!BI61="","",Raw!BI61) -> 84.24 | J61: =IF(Raw!BJ61="","",Raw!BJ61) -> 0 | K61: =IFERROR(ROUND(VLOOKUP(A61,'Raw3'!A:F,6,0),2),"") -> 0 | L61: =IF(Raw!BK61="","",Raw!BK61) -> 52.63 | M61: =IF(Raw!BL61="","",Raw!BL61) -> 2270879.94 | N61: =IF(Raw!BM61="","",Raw!BM61) -> 19.77 | O61: =IF(Raw!BN61="","",Raw!BN61) -> 6 | P61: =IF(Raw!BO61="","",Raw!BO61) -> 6 | Q61: =IF(Raw!BP61="","",Raw!BP61) -> 0 | R61: =IF(Raw!BQ61="","",Raw!BQ61) ->  | S61: =IF(Raw!BR61="","",Raw!BR61) -> 23.03 | T61: =IF(Raw!BS61="","",Raw!BS61) -> 3.78 | U61: =IF(Raw!BT61="","",Raw!BT61) ->  | V61: =IF(Raw!BU61="","",Raw!BU61) ->  | W61: =IF(Raw!BV61="","",Raw!BV61) ->  | X61: =IF(Raw!BW61="","",Raw!BW61) ->  | Y61: =IF(Raw!BX61="","",Raw!BX61) ->  | Z61: =IF(Raw!BY61="","",Raw!BY61) ->  | AA61: =IF(Raw!BZ61="","",Raw!BZ61) ->  | AB61: =IF(Raw!CA61="","",Raw!CA61) ->  | AC61: =IF(Raw!CB61="","",Raw!CB61) ->  | AD61: =IF(Raw!CC61="","",Raw!CC61) ->  | AE61: =IF(Raw!CD61="","",Raw!CD61) ->  | AF61: =IF(Raw!CE61="","",Raw!CE61) ->  | AG61: =IF(Raw!CF61="","",Raw!CF61) ->  | AH61: =IF(Raw!CG61="","",Raw!CG61) ->  | AI61: =IF(Raw!CH61="","",Raw!CH61) -> -24.58 | AJ61: =IF(Raw!CI61="","",Raw!CI61) -> -28.43 | AK61: =IF(Raw!CJ61="","",Raw!CJ61) -> 84.24 | AL61: =IF(Raw!CK61="","",Raw!CK61) -> 0 | AM61: =IF(Raw!CL61="","",Raw!CL61) -> 0 | AN61: =IF(Raw!CM61="","",Raw!CM61) -> 0 | AO61: =IF(Raw!CN61="","",Raw!CN61) -> 52.63 | AP61: =IF(Raw!CO61="","",Raw!CO61) -> 3 | AQ61: =IF(Raw!CP61="","",Raw!CP61) -> 19.77 | AR61: =IF(Raw!CQ61="","",Raw!CQ61) ->  | AS61: =IF(Raw!CR61="","",Raw!CR61) -> 1 | AT61: =IF(Raw!CS61="","",Raw!CS61) ->  | AU61: =IF(Raw!CT61="","",Raw!CT61) -> 6 | AV61: =IF(Raw!CU61="","",Raw!CU61) -> 0 | AW61: =IF(Raw!CV61="","",Raw!CV61) -> 11
A62: =IF(Raw!BA62="","",Raw!BA62) -> 3383 新世紀 | B62: =IF(Raw!BB62="","",Raw!BB62) -> TSE | C62: =IF(Raw!BC62="","",Raw!BC62) -> 2.47 | D62: =IF(Raw!BD62="","",Raw!BD62) -> -2.3715 | E62: =IF(Raw!BE62="","",Raw!BE62) -> -1.9841 | F62: =IF(Raw!BF62="","",Raw!BF62) -> 3696 | G62: =IF(Raw!BG62="","",Raw!BG62) -> -17.2 | H62: =IF(Raw!BH62="","",Raw!BH62) -> -14.43 | I62: =IF(Raw!BI62="","",Raw!BI62) -> 221.78 | J62: =IF(Raw!BJ62="","",Raw!BJ62) -> 53.03 | K62: =IFERROR(ROUND(VLOOKUP(A62,'Raw3'!A:F,6,0),2),"") -> 53.03 | L62: =IF(Raw!BK62="","",Raw!BK62) ->  | M62: =IF(Raw!BL62="","",Raw!BL62) -> 9166.08 | N62: =IF(Raw!BM62="","",Raw!BM62) -> 29.04 | O62: =IF(Raw!BN62="","",Raw!BN62) -> D | P62: =IF(Raw!BO62="","",Raw!BO62) -> D | Q62: =IF(Raw!BP62="","",Raw!BP62) -> 100 | R62: =IF(Raw!BQ62="","",Raw!BQ62) -> Y_繼續經營疑慮 | S62: =IF(Raw!BR62="","",Raw!BR62) -> 0 | T62: =IF(Raw!BS62="","",Raw!BS62) -> 0.6 | U62: =IF(Raw!BT62="","",Raw!BT62) ->  | V62: =IF(Raw!BU62="","",Raw!BU62) ->  | W62: =IF(Raw!BV62="","",Raw!BV62) ->  | X62: =IF(Raw!BW62="","",Raw!BW62) ->  | Y62: =IF(Raw!BX62="","",Raw!BX62) ->  | Z62: =IF(Raw!BY62="","",Raw!BY62) ->  | AA62: =IF(Raw!BZ62="","",Raw!BZ62) ->  | AB62: =IF(Raw!CA62="","",Raw!CA62) ->  | AC62: =IF(Raw!CB62="","",Raw!CB62) ->  | AD62: =IF(Raw!CC62="","",Raw!CC62) -> Y | AE62: =IF(Raw!CD62="","",Raw!CD62) ->  | AF62: =IF(Raw!CE62="","",Raw!CE62) ->  | AG62: =IF(Raw!CF62="","",Raw!CF62) ->  | AH62: =IF(Raw!CG62="","",Raw!CG62) ->  | AI62: =IF(Raw!CH62="","",Raw!CH62) -> -17.2 | AJ62: =IF(Raw!CI62="","",Raw!CI62) -> -14.43 | AK62: =IF(Raw!CJ62="","",Raw!CJ62) -> 221.78 | AL62: =IF(Raw!CK62="","",Raw!CK62) -> 0 | AM62: =IF(Raw!CL62="","",Raw!CL62) -> 3 | AN62: =IF(Raw!CM62="","",Raw!CM62) -> 0 | AO62: =IF(Raw!CN62="","",Raw!CN62) ->  | AP62: =IF(Raw!CO62="","",Raw!CO62) -> 0 | AQ62: =IF(Raw!CP62="","",Raw!CP62) -> 29.04 | AR62: =IF(Raw!CQ62="","",Raw!CQ62) ->  | AS62: =IF(Raw!CR62="","",Raw!CR62) -> 0 | AT62: =IF(Raw!CS62="","",Raw!CS62) ->  | AU62: =IF(Raw!CT62="","",Raw!CT62) -> D | AV62: =IF(Raw!CU62="","",Raw!CU62) -> 100 | AW62: =IF(Raw!CV62="","",Raw!CV62) -> 12
A63: =IF(Raw!BA63="","",Raw!BA63) -> 3406 玉晶光 | B63: =IF(Raw!BB63="","",Raw!BB63) -> TSE | C63: =IF(Raw!BC63="","",Raw!BC63) -> 475 | D63: =IF(Raw!BD63="","",Raw!BD63) -> 6.8616 | E63: =IF(Raw!BE63="","",Raw!BE63) -> 28.3783 | F63: =IF(Raw!BF63="","",Raw!BF63) -> 15871 | G63: =IF(Raw!BG63="","",Raw!BG63) -> -10.02 | H63: =IF(Raw!BH63="","",Raw!BH63) -> 2.68 | I63: =IF(Raw!BI63="","",Raw!BI63) -> 68.35 | J63: =IF(Raw!BJ63="","",Raw!BJ63) -> 5.4 | K63: =IFERROR(ROUND(VLOOKUP(A63,'Raw3'!A:F,6,0),2),"") -> 9.4 | L63: =IF(Raw!BK63="","",Raw!BK63) -> 63.63 | M63: =IF(Raw!BL63="","",Raw!BL63) -> 7300977.42 | N63: =IF(Raw!BM63="","",Raw!BM63) -> 11.38 | O63: =IF(Raw!BN63="","",Raw!BN63) -> 7 | P63: =IF(Raw!BO63="","",Raw!BO63) -> 6 | Q63: =IF(Raw!BP63="","",Raw!BP63) -> 0 | R63: =IF(Raw!BQ63="","",Raw!BQ63) ->  | S63: =IF(Raw!BR63="","",Raw!BR63) -> 52.73 | T63: =IF(Raw!BS63="","",Raw!BS63) -> 7.46 | U63: =IF(Raw!BT63="","",Raw!BT63) ->  | V63: =IF(Raw!BU63="","",Raw!BU63) ->  | W63: =IF(Raw!BV63="","",Raw!BV63) ->  | X63: =IF(Raw!BW63="","",Raw!BW63) ->  | Y63: =IF(Raw!BX63="","",Raw!BX63) ->  | Z63: =IF(Raw!BY63="","",Raw!BY63) ->  | AA63: =IF(Raw!BZ63="","",Raw!BZ63) ->  | AB63: =IF(Raw!CA63="","",Raw!CA63) -> Y | AC63: =IF(Raw!CB63="","",Raw!CB63) -> Y | AD63: =IF(Raw!CC63="","",Raw!CC63) ->  | AE63: =IF(Raw!CD63="","",Raw!CD63) ->  | AF63: =IF(Raw!CE63="","",Raw!CE63) ->  | AG63: =IF(Raw!CF63="","",Raw!CF63) ->  | AH63: =IF(Raw!CG63="","",Raw!CG63) ->  | AI63: =IF(Raw!CH63="","",Raw!CH63) -> -10.02 | AJ63: =IF(Raw!CI63="","",Raw!CI63) -> 2.68 | AK63: =IF(Raw!CJ63="","",Raw!CJ63) -> 68.35 | AL63: =IF(Raw!CK63="","",Raw!CK63) -> 0 | AM63: =IF(Raw!CL63="","",Raw!CL63) -> 0 | AN63: =IF(Raw!CM63="","",Raw!CM63) -> 3 | AO63: =IF(Raw!CN63="","",Raw!CN63) -> 63.63 | AP63: =IF(Raw!CO63="","",Raw!CO63) -> 3 | AQ63: =IF(Raw!CP63="","",Raw!CP63) -> 11.38 | AR63: =IF(Raw!CQ63="","",Raw!CQ63) ->  | AS63: =IF(Raw!CR63="","",Raw!CR63) -> 3 | AT63: =IF(Raw!CS63="","",Raw!CS63) ->  | AU63: =IF(Raw!CT63="","",Raw!CT63) -> 7 | AV63: =IF(Raw!CU63="","",Raw!CU63) -> 0 | AW63: =IF(Raw!CV63="","",Raw!CV63) -> 13
A64: =IF(Raw!BA64="","",Raw!BA64) -> 3431 長天 | B64: =IF(Raw!BB64="","",Raw!BB64) -> OTC | C64: =IF(Raw!BC64="","",Raw!BC64) -> 8.45 | D64: =IF(Raw!BD64="","",Raw!BD64) -> -0.8216 | E64: =IF(Raw!BE64="","",Raw!BE64) -> 0.8354 | F64: =IF(Raw!BF64="","",Raw!BF64) -> 0 | G64: =IF(Raw!BG64="","",Raw!BG64) -> -31.64 | H64: =IF(Raw!BH64="","",Raw!BH64) -> -35.78 | I64: =IF(Raw!BI64="","",Raw!BI64) -> 28.01 | J64: =IF(Raw!BJ64="","",Raw!BJ64) -> 33.22 | K64: =IFERROR(ROUND(VLOOKUP(A64,'Raw3'!A:F,6,0),2),"") -> 33.22 | L64: =IF(Raw!BK64="","",Raw!BK64) -> 0 | M64: =IF(Raw!BL64="","",Raw!BL64) -> 0 | N64: =IF(Raw!BM64="","",Raw!BM64) -> 19.85 | O64: =IF(Raw!BN64="","",Raw!BN64) -> 8 | P64: =IF(Raw!BO64="","",Raw!BO64) -> 6 | Q64: =IF(Raw!BP64="","",Raw!BP64) -> 0 | R64: =IF(Raw!BQ64="","",Raw!BQ64) ->  | S64: =IF(Raw!BR64="","",Raw!BR64) ->  | T64: =IF(Raw!BS64="","",Raw!BS64) -> 1.63 | U64: =IF(Raw!BT64="","",Raw!BT64) ->  | V64: =IF(Raw!BU64="","",Raw!BU64) ->  | W64: =IF(Raw!BV64="","",Raw!BV64) ->  | X64: =IF(Raw!BW64="","",Raw!BW64) ->  | Y64: =IF(Raw!BX64="","",Raw!BX64) ->  | Z64: =IF(Raw!BY64="","",Raw!BY64) ->  | AA64: =IF(Raw!BZ64="","",Raw!BZ64) ->  | AB64: =IF(Raw!CA64="","",Raw!CA64) ->  | AC64: =IF(Raw!CB64="","",Raw!CB64) ->  | AD64: =IF(Raw!CC64="","",Raw!CC64) ->  | AE64: =IF(Raw!CD64="","",Raw!CD64) ->  | AF64: =IF(Raw!CE64="","",Raw!CE64) ->  | AG64: =IF(Raw!CF64="","",Raw!CF64) ->  | AH64: =IF(Raw!CG64="","",Raw!CG64) ->  | AI64: =IF(Raw!CH64="","",Raw!CH64) -> -31.64 | AJ64: =IF(Raw!CI64="","",Raw!CI64) -> -35.78 | AK64: =IF(Raw!CJ64="","",Raw!CJ64) -> 28.01 | AL64: =IF(Raw!CK64="","",Raw!CK64) -> 0 | AM64: =IF(Raw!CL64="","",Raw!CL64) -> 1 | AN64: =IF(Raw!CM64="","",Raw!CM64) -> 0 | AO64: =IF(Raw!CN64="","",Raw!CN64) -> 0 | AP64: =IF(Raw!CO64="","",Raw!CO64) -> 0 | AQ64: =IF(Raw!CP64="","",Raw!CP64) -> 19.85 | AR64: =IF(Raw!CQ64="","",Raw!CQ64) ->  | AS64: =IF(Raw!CR64="","",Raw!CR64) -> 0 | AT64: =IF(Raw!CS64="","",Raw!CS64) ->  | AU64: =IF(Raw!CT64="","",Raw!CT64) -> 8 | AV64: =IF(Raw!CU64="","",Raw!CU64) -> 0 | AW64: =IF(Raw!CV64="","",Raw!CV64) -> 9
A65: =IF(Raw!BA65="","",Raw!BA65) -> 3465 祥業 | B65: =IF(Raw!BB65="","",Raw!BB65) -> OTC | C65: =IF(Raw!BC65="","",Raw!BC65) -> 15 | D65: =IF(Raw!BD65="","",Raw!BD65) -> 0 | E65: =IF(Raw!BE65="","",Raw!BE65) -> -1.9608 | F65: =IF(Raw!BF65="","",Raw!BF65) ->  | G65: =IF(Raw!BG65="","",Raw!BG65) -> -59.68 | H65: =IF(Raw!BH65="","",Raw!BH65) -> -49.93 | I65: =IF(Raw!BI65="","",Raw!BI65) -> 53.8 | J65: =IF(Raw!BJ65="","",Raw!BJ65) -> 0 | K65: =IFERROR(ROUND(VLOOKUP(A65,'Raw3'!A:F,6,0),2),"") -> 0 | L65: =IF(Raw!BK65="","",Raw!BK65) ->  | M65: =IF(Raw!BL65="","",Raw!BL65) ->  | N65: =IF(Raw!BM65="","",Raw!BM65) -> 50.85 | O65: =IF(Raw!BN65="","",Raw!BN65) -> 9 | P65: =IF(Raw!BO65="","",Raw!BO65) -> 7 | Q65: =IF(Raw!BP65="","",Raw!BP65) -> 100 | R65: =IF(Raw!BQ65="","",Raw!BQ65) ->  | S65: =IF(Raw!BR65="","",Raw!BR65) ->  | T65: =IF(Raw!BS65="","",Raw!BS65) -> 5.05 | U65: =IF(Raw!BT65="","",Raw!BT65) -> Y | V65: =IF(Raw!BU65="","",Raw!BU65) ->  | W65: =IF(Raw!BV65="","",Raw!BV65) ->  | X65: =IF(Raw!BW65="","",Raw!BW65) ->  | Y65: =IF(Raw!BX65="","",Raw!BX65) ->  | Z65: =IF(Raw!BY65="","",Raw!BY65) ->  | AA65: =IF(Raw!BZ65="","",Raw!BZ65) -> Y | AB65: =IF(Raw!CA65="","",Raw!CA65) ->  | AC65: =IF(Raw!CB65="","",Raw!CB65) ->  | AD65: =IF(Raw!CC65="","",Raw!CC65) -> Y | AE65: =IF(Raw!CD65="","",Raw!CD65) ->  | AF65: =IF(Raw!CE65="","",Raw!CE65) ->  | AG65: =IF(Raw!CF65="","",Raw!CF65) ->  | AH65: =IF(Raw!CG65="","",Raw!CG65) ->  | AI65: =IF(Raw!CH65="","",Raw!CH65) -> -59.68 | AJ65: =IF(Raw!CI65="","",Raw!CI65) -> -49.93 | AK65: =IF(Raw!CJ65="","",Raw!CJ65) -> 53.8 | AL65: =IF(Raw!CK65="","",Raw!CK65) -> 0 | AM65: =IF(Raw!CL65="","",Raw!CL65) -> 0 | AN65: =IF(Raw!CM65="","",Raw!CM65) -> 0 | AO65: =IF(Raw!CN65="","",Raw!CN65) ->  | AP65: =IF(Raw!CO65="","",Raw!CO65) -> 0 | AQ65: =IF(Raw!CP65="","",Raw!CP65) -> 50.85 | AR65: =IF(Raw!CQ65="","",Raw!CQ65) ->  | AS65: =IF(Raw!CR65="","",Raw!CR65) -> 3 | AT65: =IF(Raw!CS65="","",Raw!CS65) ->  | AU65: =IF(Raw!CT65="","",Raw!CT65) -> 9 | AV65: =IF(Raw!CU65="","",Raw!CU65) -> 100 | AW65: =IF(Raw!CV65="","",Raw!CV65) -> 16
A66: =IF(Raw!BA66="","",Raw!BA66) -> 3489 森寶 | B66: =IF(Raw!BB66="","",Raw!BB66) -> OTC | C66: =IF(Raw!BC66="","",Raw!BC66) -> 9.35 | D66: =IF(Raw!BD66="","",Raw!BD66) -> 1.8519 | E66: =IF(Raw!BE66="","",Raw!BE66) -> 4.1203 | F66: =IF(Raw!BF66="","",Raw!BF66) -> 1739 | G66: =IF(Raw!BG66="","",Raw!BG66) -> -59.96 | H66: =IF(Raw!BH66="","",Raw!BH66) -> -29.38 | I66: =IF(Raw!BI66="","",Raw!BI66) -> 184.14 | J66: =IF(Raw!BJ66="","",Raw!BJ66) -> 0 | K66: =IFERROR(ROUND(VLOOKUP(A66,'Raw3'!A:F,6,0),2),"") -> 0 | L66: =IF(Raw!BK66="","",Raw!BK66) -> 8.36 | M66: =IF(Raw!BL66="","",Raw!BL66) -> 16085.75 | N66: =IF(Raw!BM66="","",Raw!BM66) -> 34.62 | O66: =IF(Raw!BN66="","",Raw!BN66) -> 7 | P66: =IF(Raw!BO66="","",Raw!BO66) -> 7 | Q66: =IF(Raw!BP66="","",Raw!BP66) -> 100 | R66: =IF(Raw!BQ66="","",Raw!BQ66) ->  | S66: =IF(Raw!BR66="","",Raw!BR66) -> 0 | T66: =IF(Raw!BS66="","",Raw!BS66) -> 0.64 | U66: =IF(Raw!BT66="","",Raw!BT66) -> Y | V66: =IF(Raw!BU66="","",Raw!BU66) ->  | W66: =IF(Raw!BV66="","",Raw!BV66) ->  | X66: =IF(Raw!BW66="","",Raw!BW66) ->  | Y66: =IF(Raw!BX66="","",Raw!BX66) ->  | Z66: =IF(Raw!BY66="","",Raw!BY66) ->  | AA66: =IF(Raw!BZ66="","",Raw!BZ66) ->  | AB66: =IF(Raw!CA66="","",Raw!CA66) ->  | AC66: =IF(Raw!CB66="","",Raw!CB66) ->  | AD66: =IF(Raw!CC66="","",Raw!CC66) ->  | AE66: =IF(Raw!CD66="","",Raw!CD66) ->  | AF66: =IF(Raw!CE66="","",Raw!CE66) ->  | AG66: =IF(Raw!CF66="","",Raw!CF66) ->  | AH66: =IF(Raw!CG66="","",Raw!CG66) ->  | AI66: =IF(Raw!CH66="","",Raw!CH66) -> -59.96 | AJ66: =IF(Raw!CI66="","",Raw!CI66) -> -29.38 | AK66: =IF(Raw!CJ66="","",Raw!CJ66) -> 184.14 | AL66: =IF(Raw!CK66="","",Raw!CK66) -> 0 | AM66: =IF(Raw!CL66="","",Raw!CL66) -> 0 | AN66: =IF(Raw!CM66="","",Raw!CM66) -> 0 | AO66: =IF(Raw!CN66="","",Raw!CN66) -> 8.36 | AP66: =IF(Raw!CO66="","",Raw!CO66) -> 0 | AQ66: =IF(Raw!CP66="","",Raw!CP66) -> 34.62 | AR66: =IF(Raw!CQ66="","",Raw!CQ66) ->  | AS66: =IF(Raw!CR66="","",Raw!CR66) -> 0 | AT66: =IF(Raw!CS66="","",Raw!CS66) ->  | AU66: =IF(Raw!CT66="","",Raw!CT66) -> 7 | AV66: =IF(Raw!CU66="","",Raw!CU66) -> 100 | AW66: =IF(Raw!CV66="","",Raw!CV66) -> 12
A67: =IF(Raw!BA67="","",Raw!BA67) -> 3490 單井 | B67: =IF(Raw!BB67="","",Raw!BB67) -> OTC | C67: =IF(Raw!BC67="","",Raw!BC67) -> 27.2 | D67: =IF(Raw!BD67="","",Raw!BD67) -> -1.982 | E67: =IF(Raw!BE67="","",Raw!BE67) -> 2.0639 | F67: =IF(Raw!BF67="","",Raw!BF67) -> 9220 | G67: =IF(Raw!BG67="","",Raw!BG67) -> -33.93 | H67: =IF(Raw!BH67="","",Raw!BH67) -> -58.98 | I67: =IF(Raw!BI67="","",Raw!BI67) -> 31.46 | J67: =IF(Raw!BJ67="","",Raw!BJ67) -> 43.95 | K67: =IFERROR(ROUND(VLOOKUP(A67,'Raw3'!A:F,6,0),2),"") -> 59.67 | L67: =IF(Raw!BK67="","",Raw!BK67) -> 54.87 | M67: =IF(Raw!BL67="","",Raw!BL67) -> 253826.6 | N67: =IF(Raw!BM67="","",Raw!BM67) -> 15.61 | O67: =IF(Raw!BN67="","",Raw!BN67) -> 7 | P67: =IF(Raw!BO67="","",Raw!BO67) -> 5 | Q67: =IF(Raw!BP67="","",Raw!BP67) -> 0 | R67: =IF(Raw!BQ67="","",Raw!BQ67) ->  | S67: =IF(Raw!BR67="","",Raw!BR67) -> 18.1 | T67: =IF(Raw!BS67="","",Raw!BS67) -> 1.22 | U67: =IF(Raw!BT67="","",Raw!BT67) ->  | V67: =IF(Raw!BU67="","",Raw!BU67) -> Y | W67: =IF(Raw!BV67="","",Raw!BV67) ->  | X67: =IF(Raw!BW67="","",Raw!BW67) ->  | Y67: =IF(Raw!BX67="","",Raw!BX67) ->  | Z67: =IF(Raw!BY67="","",Raw!BY67) ->  | AA67: =IF(Raw!BZ67="","",Raw!BZ67) ->  | AB67: =IF(Raw!CA67="","",Raw!CA67) ->  | AC67: =IF(Raw!CB67="","",Raw!CB67) ->  | AD67: =IF(Raw!CC67="","",Raw!CC67) ->  | AE67: =IF(Raw!CD67="","",Raw!CD67) ->  | AF67: =IF(Raw!CE67="","",Raw!CE67) ->  | AG67: =IF(Raw!CF67="","",Raw!CF67) ->  | AH67: =IF(Raw!CG67="","",Raw!CG67) ->  | AI67: =IF(Raw!CH67="","",Raw!CH67) -> -33.93 | AJ67: =IF(Raw!CI67="","",Raw!CI67) -> -58.98 | AK67: =IF(Raw!CJ67="","",Raw!CJ67) -> 31.46 | AL67: =IF(Raw!CK67="","",Raw!CK67) -> 0 | AM67: =IF(Raw!CL67="","",Raw!CL67) -> 2 | AN67: =IF(Raw!CM67="","",Raw!CM67) -> 0 | AO67: =IF(Raw!CN67="","",Raw!CN67) -> 54.87 | AP67: =IF(Raw!CO67="","",Raw!CO67) -> 2 | AQ67: =IF(Raw!CP67="","",Raw!CP67) -> 15.61 | AR67: =IF(Raw!CQ67="","",Raw!CQ67) ->  | AS67: =IF(Raw!CR67="","",Raw!CR67) -> 0 | AT67: =IF(Raw!CS67="","",Raw!CS67) ->  | AU67: =IF(Raw!CT67="","",Raw!CT67) -> 7 | AV67: =IF(Raw!CU67="","",Raw!CU67) -> 0 | AW67: =IF(Raw!CV67="","",Raw!CV67) -> 13
A68: =IF(Raw!BA68="","",Raw!BA68) -> 3494 誠研 | B68: =IF(Raw!BB68="","",Raw!BB68) -> TSE | C68: =IF(Raw!BC68="","",Raw!BC68) -> 9.98 | D68: =IF(Raw!BD68="","",Raw!BD68) -> 0 | E68: =IF(Raw!BE68="","",Raw!BE68) -> 0.3015 | F68: =IF(Raw!BF68="","",Raw!BF68) -> 11981 | G68: =IF(Raw!BG68="","",Raw!BG68) -> -63.85 | H68: =IF(Raw!BH68="","",Raw!BH68) -> -26.38 | I68: =IF(Raw!BI68="","",Raw!BI68) -> 69.17 | J68: =IF(Raw!BJ68="","",Raw!BJ68) -> 1.46 | K68: =IFERROR(ROUND(VLOOKUP(A68,'Raw3'!A:F,6,0),2),"") -> 1.46 | L68: =IF(Raw!BK68="","",Raw!BK68) -> 26.71 | M68: =IF(Raw!BL68="","",Raw!BL68) -> 119690.19 | N68: =IF(Raw!BM68="","",Raw!BM68) -> 36.89 | O68: =IF(Raw!BN68="","",Raw!BN68) -> 8 | P68: =IF(Raw!BO68="","",Raw!BO68) -> 6 | Q68: =IF(Raw!BP68="","",Raw!BP68) -> 0 | R68: =IF(Raw!BQ68="","",Raw!BQ68) ->  | S68: =IF(Raw!BR68="","",Raw!BR68) -> 0.48 | T68: =IF(Raw!BS68="","",Raw!BS68) -> 0.85 | U68: =IF(Raw!BT68="","",Raw!BT68) -> Y | V68: =IF(Raw!BU68="","",Raw!BU68) ->  | W68: =IF(Raw!BV68="","",Raw!BV68) ->  | X68: =IF(Raw!BW68="","",Raw!BW68) ->  | Y68: =IF(Raw!BX68="","",Raw!BX68) ->  | Z68: =IF(Raw!BY68="","",Raw!BY68) ->  | AA68: =IF(Raw!BZ68="","",Raw!BZ68) ->  | AB68: =IF(Raw!CA68="","",Raw!CA68) ->  | AC68: =IF(Raw!CB68="","",Raw!CB68) ->  | AD68: =IF(Raw!CC68="","",Raw!CC68) ->  | AE68: =IF(Raw!CD68="","",Raw!CD68) ->  | AF68: =IF(Raw!CE68="","",Raw!CE68) ->  | AG68: =IF(Raw!CF68="","",Raw!CF68) ->  | AH68: =IF(Raw!CG68="","",Raw!CG68) ->  | AI68: =IF(Raw!CH68="","",Raw!CH68) -> -63.85 | AJ68: =IF(Raw!CI68="","",Raw!CI68) -> -26.38 | AK68: =IF(Raw!CJ68="","",Raw!CJ68) -> 69.17 | AL68: =IF(Raw!CK68="","",Raw!CK68) -> 0 | AM68: =IF(Raw!CL68="","",Raw!CL68) -> 0 | AN68: =IF(Raw!CM68="","",Raw!CM68) -> 0 | AO68: =IF(Raw!CN68="","",Raw!CN68) -> 26.71 | AP68: =IF(Raw!CO68="","",Raw!CO68) -> 0 | AQ68: =IF(Raw!CP68="","",Raw!CP68) -> 36.89 | AR68: =IF(Raw!CQ68="","",Raw!CQ68) ->  | AS68: =IF(Raw!CR68="","",Raw!CR68) -> 0 | AT68: =IF(Raw!CS68="","",Raw!CS68) ->  | AU68: =IF(Raw!CT68="","",Raw!CT68) -> 8 | AV68: =IF(Raw!CU68="","",Raw!CU68) -> 0 | AW68: =IF(Raw!CV68="","",Raw!CV68) -> 9
A69: =IF(Raw!BA69="","",Raw!BA69) -> 3508 位速 | B69: =IF(Raw!BB69="","",Raw!BB69) -> OTC | C69: =IF(Raw!BC69="","",Raw!BC69) -> 20.5 | D69: =IF(Raw!BD69="","",Raw!BD69) -> 1.4851 | E69: =IF(Raw!BE69="","",Raw!BE69) -> 20.5881 | F69: =IF(Raw!BF69="","",Raw!BF69) -> 4330 | G69: =IF(Raw!BG69="","",Raw!BG69) -> 7.65 | H69: =IF(Raw!BH69="","",Raw!BH69) -> -26.92 | I69: =IF(Raw!BI69="","",Raw!BI69) -> 131.94 | J69: =IF(Raw!BJ69="","",Raw!BJ69) -> 0 | K69: =IFERROR(ROUND(VLOOKUP(A69,'Raw3'!A:F,6,0),2),"") -> 0 | L69: =IF(Raw!BK69="","",Raw!BK69) -> 18.65 | M69: =IF(Raw!BL69="","",Raw!BL69) -> 88505.2 | N69: =IF(Raw!BM69="","",Raw!BM69) -> 16.34 | O69: =IF(Raw!BN69="","",Raw!BN69) -> 8 | P69: =IF(Raw!BO69="","",Raw!BO69) -> 6 | Q69: =IF(Raw!BP69="","",Raw!BP69) -> 95 | R69: =IF(Raw!BQ69="","",Raw!BQ69) ->  | S69: =IF(Raw!BR69="","",Raw!BR69) -> 15.96 | T69: =IF(Raw!BS69="","",Raw!BS69) -> 1.5 | U69: =IF(Raw!BT69="","",Raw!BT69) ->  | V69: =IF(Raw!BU69="","",Raw!BU69) ->  | W69: =IF(Raw!BV69="","",Raw!BV69) ->  | X69: =IF(Raw!BW69="","",Raw!BW69) ->  | Y69: =IF(Raw!BX69="","",Raw!BX69) ->  | Z69: =IF(Raw!BY69="","",Raw!BY69) ->  | AA69: =IF(Raw!BZ69="","",Raw!BZ69) ->  | AB69: =IF(Raw!CA69="","",Raw!CA69) ->  | AC69: =IF(Raw!CB69="","",Raw!CB69) ->  | AD69: =IF(Raw!CC69="","",Raw!CC69) ->  | AE69: =IF(Raw!CD69="","",Raw!CD69) ->  | AF69: =IF(Raw!CE69="","",Raw!CE69) ->  | AG69: =IF(Raw!CF69="","",Raw!CF69) ->  | AH69: =IF(Raw!CG69="","",Raw!CG69) ->  | AI69: =IF(Raw!CH69="","",Raw!CH69) -> 7.65 | AJ69: =IF(Raw!CI69="","",Raw!CI69) -> -26.92 | AK69: =IF(Raw!CJ69="","",Raw!CJ69) -> 131.94 | AL69: =IF(Raw!CK69="","",Raw!CK69) -> 0 | AM69: =IF(Raw!CL69="","",Raw!CL69) -> 0 | AN69: =IF(Raw!CM69="","",Raw!CM69) -> 2 | AO69: =IF(Raw!CN69="","",Raw!CN69) -> 18.65 | AP69: =IF(Raw!CO69="","",Raw!CO69) -> 2 | AQ69: =IF(Raw!CP69="","",Raw!CP69) -> 16.34 | AR69: =IF(Raw!CQ69="","",Raw!CQ69) ->  | AS69: =IF(Raw!CR69="","",Raw!CR69) -> 0 | AT69: =IF(Raw!CS69="","",Raw!CS69) ->  | AU69: =IF(Raw!CT69="","",Raw!CT69) -> 8 | AV69: =IF(Raw!CU69="","",Raw!CU69) -> 95 | AW69: =IF(Raw!CV69="","",Raw!CV69) -> 12
A70: =IF(Raw!BA70="","",Raw!BA70) -> 3519 綠能 | B70: =IF(Raw!BB70="","",Raw!BB70) -> TSE | C70: =IF(Raw!BC70="","",Raw!BC70) -> 13.6 | D70: =IF(Raw!BD70="","",Raw!BD70) -> 0.369 | E70: =IF(Raw!BE70="","",Raw!BE70) -> 1.4925 | F70: =IF(Raw!BF70="","",Raw!BF70) -> 25035 | G70: =IF(Raw!BG70="","",Raw!BG70) -> -23.78 | H70: =IF(Raw!BH70="","",Raw!BH70) -> -45.56 | I70: =IF(Raw!BI70="","",Raw!BI70) -> 205.3 | J70: =IF(Raw!BJ70="","",Raw!BJ70) -> 30.8 | K70: =IFERROR(ROUND(VLOOKUP(A70,'Raw3'!A:F,6,0),2),"") -> 30.8 | L70: =IF(Raw!BK70="","",Raw!BK70) -> 31.11 | M70: =IF(Raw!BL70="","",Raw!BL70) -> 341727.75 | N70: =IF(Raw!BM70="","",Raw!BM70) -> 21.82 | O70: =IF(Raw!BN70="","",Raw!BN70) -> 8 | P70: =IF(Raw!BO70="","",Raw!BO70) -> 7 | Q70: =IF(Raw!BP70="","",Raw!BP70) -> 100 | R70: =IF(Raw!BQ70="","",Raw!BQ70) ->  | S70: =IF(Raw!BR70="","",Raw!BR70) -> 4.65 | T70: =IF(Raw!BS70="","",Raw!BS70) -> 1.27 | U70: =IF(Raw!BT70="","",Raw!BT70) ->  | V70: =IF(Raw!BU70="","",Raw!BU70) ->  | W70: =IF(Raw!BV70="","",Raw!BV70) ->  | X70: =IF(Raw!BW70="","",Raw!BW70) ->  | Y70: =IF(Raw!BX70="","",Raw!BX70) ->  | Z70: =IF(Raw!BY70="","",Raw!BY70) ->  | AA70: =IF(Raw!BZ70="","",Raw!BZ70) ->  | AB70: =IF(Raw!CA70="","",Raw!CA70) ->  | AC70: =IF(Raw!CB70="","",Raw!CB70) ->  | AD70: =IF(Raw!CC70="","",Raw!CC70) ->  | AE70: =IF(Raw!CD70="","",Raw!CD70) ->  | AF70: =IF(Raw!CE70="","",Raw!CE70) ->  | AG70: =IF(Raw!CF70="","",Raw!CF70) ->  | AH70: =IF(Raw!CG70="","",Raw!CG70) ->  | AI70: =IF(Raw!CH70="","",Raw!CH70) -> -23.78 | AJ70: =IF(Raw!CI70="","",Raw!CI70) -> -45.56 | AK70: =IF(Raw!CJ70="","",Raw!CJ70) -> 205.3 | AL70: =IF(Raw!CK70="","",Raw!CK70) -> 0 | AM70: =IF(Raw!CL70="","",Raw!CL70) -> 1 | AN70: =IF(Raw!CM70="","",Raw!CM70) -> 0 | AO70: =IF(Raw!CN70="","",Raw!CN70) -> 31.11 | AP70: =IF(Raw!CO70="","",Raw!CO70) -> 0 | AQ70: =IF(Raw!CP70="","",Raw!CP70) -> 21.82 | AR70: =IF(Raw!CQ70="","",Raw!CQ70) ->  | AS70: =IF(Raw!CR70="","",Raw!CR70) -> 0 | AT70: =IF(Raw!CS70="","",Raw!CS70) ->  | AU70: =IF(Raw!CT70="","",Raw!CT70) -> 8 | AV70: =IF(Raw!CU70="","",Raw!CU70) -> 100 | AW70: =IF(Raw!CV70="","",Raw!CV70) -> 13
A71: =IF(Raw!BA71="","",Raw!BA71) -> 3523 迎輝 | B71: =IF(Raw!BB71="","",Raw!BB71) -> OTC | C71: =IF(Raw!BC71="","",Raw!BC71) -> 9.5 | D71: =IF(Raw!BD71="","",Raw!BD71) -> -2.9622 | E71: =IF(Raw!BE71="","",Raw!BE71) -> -2.0618 | F71: =IF(Raw!BF71="","",Raw!BF71) -> 0 | G71: =IF(Raw!BG71="","",Raw!BG71) -> -63.58 | H71: =IF(Raw!BH71="","",Raw!BH71) -> -41.77 | I71: =IF(Raw!BI71="","",Raw!BI71) -> 1218.51 | J71: =IF(Raw!BJ71="","",Raw!BJ71) -> 36.53 | K71: =IFERROR(ROUND(VLOOKUP(A71,'Raw3'!A:F,6,0),2),"") -> 36.53 | L71: =IF(Raw!BK71="","",Raw!BK71) -> 0 | M71: =IF(Raw!BL71="","",Raw!BL71) -> 0 | N71: =IF(Raw!BM71="","",Raw!BM71) -> 50 | O71: =IF(Raw!BN71="","",Raw!BN71) -> D | P71: =IF(Raw!BO71="","",Raw!BO71) -> D | Q71: =IF(Raw!BP71="","",Raw!BP71) -> 100 | R71: =IF(Raw!BQ71="","",Raw!BQ71) -> Y_繼續經營疑慮 | S71: =IF(Raw!BR71="","",Raw!BR71) ->  | T71: =IF(Raw!BS71="","",Raw!BS71) -> 7.48 | U71: =IF(Raw!BT71="","",Raw!BT71) -> Y | V71: =IF(Raw!BU71="","",Raw!BU71) ->  | W71: =IF(Raw!BV71="","",Raw!BV71) -> Y | X71: =IF(Raw!BW71="","",Raw!BW71) ->  | Y71: =IF(Raw!BX71="","",Raw!BX71) ->  | Z71: =IF(Raw!BY71="","",Raw!BY71) ->  | AA71: =IF(Raw!BZ71="","",Raw!BZ71) -> Y | AB71: =IF(Raw!CA71="","",Raw!CA71) ->  | AC71: =IF(Raw!CB71="","",Raw!CB71) ->  | AD71: =IF(Raw!CC71="","",Raw!CC71) -> Y | AE71: =IF(Raw!CD71="","",Raw!CD71) ->  | AF71: =IF(Raw!CE71="","",Raw!CE71) ->  | AG71: =IF(Raw!CF71="","",Raw!CF71) ->  | AH71: =IF(Raw!CG71="","",Raw!CG71) ->  | AI71: =IF(Raw!CH71="","",Raw!CH71) -> -63.58 | AJ71: =IF(Raw!CI71="","",Raw!CI71) -> -41.77 | AK71: =IF(Raw!CJ71="","",Raw!CJ71) -> 1218.51 | AL71: =IF(Raw!CK71="","",Raw!CK71) -> 0 | AM71: =IF(Raw!CL71="","",Raw!CL71) -> 1 | AN71: =IF(Raw!CM71="","",Raw!CM71) -> 0 | AO71: =IF(Raw!CN71="","",Raw!CN71) -> 0 | AP71: =IF(Raw!CO71="","",Raw!CO71) -> 0 | AQ71: =IF(Raw!CP71="","",Raw!CP71) -> 50 | AR71: =IF(Raw!CQ71="","",Raw!CQ71) ->  | AS71: =IF(Raw!CR71="","",Raw!CR71) -> 3 | AT71: =IF(Raw!CS71="","",Raw!CS71) ->  | AU71: =IF(Raw!CT71="","",Raw!CT71) -> D | AV71: =IF(Raw!CU71="","",Raw!CU71) -> 100 | AW71: =IF(Raw!CV71="","",Raw!CV71) -> 20
A72: =IF(Raw!BA72="","",Raw!BA72) -> 3576 新日光 | B72: =IF(Raw!BB72="","",Raw!BB72) -> TSE | C72: =IF(Raw!BC72="","",Raw!BC72) -> 13.65 | D72: =IF(Raw!BD72="","",Raw!BD72) -> 1.8657 | E72: =IF(Raw!BE72="","",Raw!BE72) -> 2.6316 | F72: =IF(Raw!BF72="","",Raw!BF72) -> 56740 | G72: =IF(Raw!BG72="","",Raw!BG72) -> -48.81 | H72: =IF(Raw!BH72="","",Raw!BH72) -> -56.89 | I72: =IF(Raw!BI72="","",Raw!BI72) -> 142.88 | J72: =IF(Raw!BJ72="","",Raw!BJ72) -> 0 | K72: =IFERROR(ROUND(VLOOKUP(A72,'Raw3'!A:F,6,0),2),"") -> 0 | L72: =IF(Raw!BK72="","",Raw!BK72) -> 24.28 | M72: =IF(Raw!BL72="","",Raw!BL72) -> 779040.2 | N72: =IF(Raw!BM72="","",Raw!BM72) -> 51.54 | O72: =IF(Raw!BN72="","",Raw!BN72) -> 7 | P72: =IF(Raw!BO72="","",Raw!BO72) -> 8 | Q72: =IF(Raw!BP72="","",Raw!BP72) -> 100 | R72: =IF(Raw!BQ72="","",Raw!BQ72) ->  | S72: =IF(Raw!BR72="","",Raw!BR72) -> 1.72 | T72: =IF(Raw!BS72="","",Raw!BS72) -> 1 | U72: =IF(Raw!BT72="","",Raw!BT72) ->  | V72: =IF(Raw!BU72="","",Raw!BU72) -> Y | W72: =IF(Raw!BV72="","",Raw!BV72) ->  | X72: =IF(Raw!BW72="","",Raw!BW72) ->  | Y72: =IF(Raw!BX72="","",Raw!BX72) ->  | Z72: =IF(Raw!BY72="","",Raw!BY72) ->  | AA72: =IF(Raw!BZ72="","",Raw!BZ72) -> Y | AB72: =IF(Raw!CA72="","",Raw!CA72) ->  | AC72: =IF(Raw!CB72="","",Raw!CB72) ->  | AD72: =IF(Raw!CC72="","",Raw!CC72) ->  | AE72: =IF(Raw!CD72="","",Raw!CD72) ->  | AF72: =IF(Raw!CE72="","",Raw!CE72) ->  | AG72: =IF(Raw!CF72="","",Raw!CF72) ->  | AH72: =IF(Raw!CG72="","",Raw!CG72) ->  | AI72: =IF(Raw!CH72="","",Raw!CH72) -> -48.81 | AJ72: =IF(Raw!CI72="","",Raw!CI72) -> -56.89 | AK72: =IF(Raw!CJ72="","",Raw!CJ72) -> 142.88 | AL72: =IF(Raw!CK72="","",Raw!CK72) -> 0 | AM72: =IF(Raw!CL72="","",Raw!CL72) -> 0 | AN72: =IF(Raw!CM72="","",Raw!CM72) -> 0 | AO72: =IF(Raw!CN72="","",Raw!CN72) -> 24.28 | AP72: =IF(Raw!CO72="","",Raw!CO72) -> 0 | AQ72: =IF(Raw!CP72="","",Raw!CP72) -> 51.54 | AR72: =IF(Raw!CQ72="","",Raw!CQ72) ->  | AS72: =IF(Raw!CR72="","",Raw!CR72) -> 0 | AT72: =IF(Raw!CS72="","",Raw!CS72) ->  | AU72: =IF(Raw!CT72="","",Raw!CT72) -> 7 | AV72: =IF(Raw!CU72="","",Raw!CU72) -> 100 | AW72: =IF(Raw!CV72="","",Raw!CV72) -> 11
A73: =IF(Raw!BA73="","",Raw!BA73) -> 3579 尚志 | B73: =IF(Raw!BB73="","",Raw!BB73) -> TSE | C73: =IF(Raw!BC73="","",Raw!BC73) -> 13.75 | D73: =IF(Raw!BD73="","",Raw!BD73) -> -1.0791 | E73: =IF(Raw!BE73="","",Raw!BE73) -> 3.7737 | F73: =IF(Raw!BF73="","",Raw!BF73) -> 3425 | G73: =IF(Raw!BG73="","",Raw!BG73) -> -23.59 | H73: =IF(Raw!BH73="","",Raw!BH73) -> -44.46 | I73: =IF(Raw!BI73="","",Raw!BI73) -> 191.88 | J73: =IF(Raw!BJ73="","",Raw!BJ73) -> 20.18 | K73: =IFERROR(ROUND(VLOOKUP(A73,'Raw3'!A:F,6,0),2),"") -> 20.18 | L73: =IF(Raw!BK73="","",Raw!BK73) -> 11.85 | M73: =IF(Raw!BL73="","",Raw!BL73) -> 47573.25 | N73: =IF(Raw!BM73="","",Raw!BM73) -> 27.89 | O73: =IF(Raw!BN73="","",Raw!BN73) -> 8 | P73: =IF(Raw!BO73="","",Raw!BO73) -> 9 | Q73: =IF(Raw!BP73="","",Raw!BP73) -> 100 | R73: =IF(Raw!BQ73="","",Raw!BQ73) ->  | S73: =IF(Raw!BR73="","",Raw!BR73) -> 2.72 | T73: =IF(Raw!BS73="","",Raw!BS73) -> 0.73 | U73: =IF(Raw!BT73="","",Raw!BT73) ->  | V73: =IF(Raw!BU73="","",Raw!BU73) ->  | W73: =IF(Raw!BV73="","",Raw!BV73) ->  | X73: =IF(Raw!BW73="","",Raw!BW73) ->  | Y73: =IF(Raw!BX73="","",Raw!BX73) ->  | Z73: =IF(Raw!BY73="","",Raw!BY73) ->  | AA73: =IF(Raw!BZ73="","",Raw!BZ73) ->  | AB73: =IF(Raw!CA73="","",Raw!CA73) ->  | AC73: =IF(Raw!CB73="","",Raw!CB73) ->  | AD73: =IF(Raw!CC73="","",Raw!CC73) ->  | AE73: =IF(Raw!CD73="","",Raw!CD73) ->  | AF73: =IF(Raw!CE73="","",Raw!CE73) ->  | AG73: =IF(Raw!CF73="","",Raw!CF73) ->  | AH73: =IF(Raw!CG73="","",Raw!CG73) ->  | AI73: =IF(Raw!CH73="","",Raw!CH73) -> -23.59 | AJ73: =IF(Raw!CI73="","",Raw!CI73) -> -44.46 | AK73: =IF(Raw!CJ73="","",Raw!CJ73) -> 191.88 | AL73: =IF(Raw!CK73="","",Raw!CK73) -> 0 | AM73: =IF(Raw!CL73="","",Raw!CL73) -> 0 | AN73: =IF(Raw!CM73="","",Raw!CM73) -> 0 | AO73: =IF(Raw!CN73="","",Raw!CN73) -> 11.85 | AP73: =IF(Raw!CO73="","",Raw!CO73) -> 0 | AQ73: =IF(Raw!CP73="","",Raw!CP73) -> 27.89 | AR73: =IF(Raw!CQ73="","",Raw!CQ73) ->  | AS73: =IF(Raw!CR73="","",Raw!CR73) -> 0 | AT73: =IF(Raw!CS73="","",Raw!CS73) ->  | AU73: =IF(Raw!CT73="","",Raw!CT73) -> 8 | AV73: =IF(Raw!CU73="","",Raw!CU73) -> 100 | AW73: =IF(Raw!CV73="","",Raw!CV73) -> 11
A74: =IF(Raw!BA74="","",Raw!BA74) -> 3580 友威科 | B74: =IF(Raw!BB74="","",Raw!BB74) -> OTC | C74: =IF(Raw!BC74="","",Raw!BC74) -> 35.7 | D74: =IF(Raw!BD74="","",Raw!BD74) -> 8.8415 | E74: =IF(Raw!BE74="","",Raw!BE74) -> 8.6758 | F74: =IF(Raw!BF74="","",Raw!BF74) -> 0 | G74: =IF(Raw!BG74="","",Raw!BG74) -> 80.46 | H74: =IF(Raw!BH74="","",Raw!BH74) -> 66.15 | I74: =IF(Raw!BI74="","",Raw!BI74) -> 261.18 | J74: =IF(Raw!BJ74="","",Raw!BJ74) -> 0 | K74: =IFERROR(ROUND(VLOOKUP(A74,'Raw3'!A:F,6,0),2),"") -> 0 | L74: =IF(Raw!BK74="","",Raw!BK74) -> 0 | M74: =IF(Raw!BL74="","",Raw!BL74) -> 0 | N74: =IF(Raw!BM74="","",Raw!BM74) -> 18.98 | O74: =IF(Raw!BN74="","",Raw!BN74) -> 9 | P74: =IF(Raw!BO74="","",Raw!BO74) -> 7 | Q74: =IF(Raw!BP74="","",Raw!BP74) -> 100 | R74: =IF(Raw!BQ74="","",Raw!BQ74) ->  | S74: =IF(Raw!BR74="","",Raw!BR74) ->  | T74: =IF(Raw!BS74="","",Raw!BS74) -> 6.21 | U74: =IF(Raw!BT74="","",Raw!BT74) ->  | V74: =IF(Raw!BU74="","",Raw!BU74) ->  | W74: =IF(Raw!BV74="","",Raw!BV74) -> Y | X74: =IF(Raw!BW74="","",Raw!BW74) ->  | Y74: =IF(Raw!BX74="","",Raw!BX74) ->  | Z74: =IF(Raw!BY74="","",Raw!BY74) ->  | AA74: =IF(Raw!BZ74="","",Raw!BZ74) ->  | AB74: =IF(Raw!CA74="","",Raw!CA74) ->  | AC74: =IF(Raw!CB74="","",Raw!CB74) ->  | AD74: =IF(Raw!CC74="","",Raw!CC74) ->  | AE74: =IF(Raw!CD74="","",Raw!CD74) ->  | AF74: =IF(Raw!CE74="","",Raw!CE74) ->  | AG74: =IF(Raw!CF74="","",Raw!CF74) ->  | AH74: =IF(Raw!CG74="","",Raw!CG74) ->  | AI74: =IF(Raw!CH74="","",Raw!CH74) -> 80.46 | AJ74: =IF(Raw!CI74="","",Raw!CI74) -> 66.15 | AK74: =IF(Raw!CJ74="","",Raw!CJ74) -> 261.18 | AL74: =IF(Raw!CK74="","",Raw!CK74) -> 0 | AM74: =IF(Raw!CL74="","",Raw!CL74) -> 0 | AN74: =IF(Raw!CM74="","",Raw!CM74) -> 0 | AO74: =IF(Raw!CN74="","",Raw!CN74) -> 0 | AP74: =IF(Raw!CO74="","",Raw!CO74) -> 0 | AQ74: =IF(Raw!CP74="","",Raw!CP74) -> 18.98 | AR74: =IF(Raw!CQ74="","",Raw!CQ74) ->  | AS74: =IF(Raw!CR74="","",Raw!CR74) -> 3 | AT74: =IF(Raw!CS74="","",Raw!CS74) ->  | AU74: =IF(Raw!CT74="","",Raw!CT74) -> 9 | AV74: =IF(Raw!CU74="","",Raw!CU74) -> 100 | AW74: =IF(Raw!CV74="","",Raw!CV74) -> 12
A75: =IF(Raw!BA75="","",Raw!BA75) -> 3629 群富通 | B75: =IF(Raw!BB75="","",Raw!BB75) -> OTC | C75: =IF(Raw!BC75="","",Raw!BC75) -> 20.6 | D75: =IF(Raw!BD75="","",Raw!BD75) -> 1.9802 | E75: =IF(Raw!BE75="","",Raw!BE75) -> 0.7335 | F75: =IF(Raw!BF75="","",Raw!BF75) ->  | G75: =IF(Raw!BG75="","",Raw!BG75) -> 52.43 | H75: =IF(Raw!BH75="","",Raw!BH75) -> -33.01 | I75: =IF(Raw!BI75="","",Raw!BI75) -> 82.53 | J75: =IF(Raw!BJ75="","",Raw!BJ75) -> 0 | K75: =IFERROR(ROUND(VLOOKUP(A75,'Raw3'!A:F,6,0),2),"") -> 0 | L75: =IF(Raw!BK75="","",Raw!BK75) ->  | M75: =IF(Raw!BL75="","",Raw!BL75) ->  | N75: =IF(Raw!BM75="","",Raw!BM75) -> 50 | O75: =IF(Raw!BN75="","",Raw!BN75) -> 8 | P75: =IF(Raw!BO75="","",Raw!BO75) -> 7 | Q75: =IF(Raw!BP75="","",Raw!BP75) -> 81.67 | R75: =IF(Raw!BQ75="","",Raw!BQ75) ->  | S75: =IF(Raw!BR75="","",Raw!BR75) ->  | T75: =IF(Raw!BS75="","",Raw!BS75) -> 6.08 | U75: =IF(Raw!BT75="","",Raw!BT75) ->  | V75: =IF(Raw!BU75="","",Raw!BU75) ->  | W75: =IF(Raw!BV75="","",Raw!BV75) ->  | X75: =IF(Raw!BW75="","",Raw!BW75) ->  | Y75: =IF(Raw!BX75="","",Raw!BX75) ->  | Z75: =IF(Raw!BY75="","",Raw!BY75) ->  | AA75: =IF(Raw!BZ75="","",Raw!BZ75) -> Y | AB75: =IF(Raw!CA75="","",Raw!CA75) ->  | AC75: =IF(Raw!CB75="","",Raw!CB75) ->  | AD75: =IF(Raw!CC75="","",Raw!CC75) -> Y | AE75: =IF(Raw!CD75="","",Raw!CD75) ->  | AF75: =IF(Raw!CE75="","",Raw!CE75) ->  | AG75: =IF(Raw!CF75="","",Raw!CF75) ->  | AH75: =IF(Raw!CG75="","",Raw!CG75) ->  | AI75: =IF(Raw!CH75="","",Raw!CH75) -> 52.43 | AJ75: =IF(Raw!CI75="","",Raw!CI75) -> -33.01 | AK75: =IF(Raw!CJ75="","",Raw!CJ75) -> 82.53 | AL75: =IF(Raw!CK75="","",Raw!CK75) -> 0 | AM75: =IF(Raw!CL75="","",Raw!CL75) -> 0 | AN75: =IF(Raw!CM75="","",Raw!CM75) -> 0 | AO75: =IF(Raw!CN75="","",Raw!CN75) ->  | AP75: =IF(Raw!CO75="","",Raw!CO75) -> 0 | AQ75: =IF(Raw!CP75="","",Raw!CP75) -> 50 | AR75: =IF(Raw!CQ75="","",Raw!CQ75) ->  | AS75: =IF(Raw!CR75="","",Raw!CR75) -> 3 | AT75: =IF(Raw!CS75="","",Raw!CS75) ->  | AU75: =IF(Raw!CT75="","",Raw!CT75) -> 8 | AV75: =IF(Raw!CU75="","",Raw!CU75) -> 81.67 | AW75: =IF(Raw!CV75="","",Raw!CV75) -> 12
A76: =IF(Raw!BA76="","",Raw!BA76) -> 3630 新鉅科 | B76: =IF(Raw!BB76="","",Raw!BB76) -> OTC | C76: =IF(Raw!BC76="","",Raw!BC76) -> 69.6 | D76: =IF(Raw!BD76="","",Raw!BD76) -> 9.9526 | E76: =IF(Raw!BE76="","",Raw!BE76) -> 47.6139 | F76: =IF(Raw!BF76="","",Raw!BF76) -> 16899 | G76: =IF(Raw!BG76="","",Raw!BG76) -> -14.31 | H76: =IF(Raw!BH76="","",Raw!BH76) -> -2.82 | I76: =IF(Raw!BI76="","",Raw!BI76) -> 71.68 | J76: =IF(Raw!BJ76="","",Raw!BJ76) -> 0 | K76: =IFERROR(ROUND(VLOOKUP(A76,'Raw3'!A:F,6,0),2),"") -> 0 | L76: =IF(Raw!BK76="","",Raw!BK76) -> 66.69 | M76: =IF(Raw!BL76="","",Raw!BL76) -> 1176170.4 | N76: =IF(Raw!BM76="","",Raw!BM76) -> 21.73 | O76: =IF(Raw!BN76="","",Raw!BN76) -> 7 | P76: =IF(Raw!BO76="","",Raw!BO76) -> 6 | Q76: =IF(Raw!BP76="","",Raw!BP76) -> 18.33 | R76: =IF(Raw!BQ76="","",Raw!BQ76) ->  | S76: =IF(Raw!BR76="","",Raw!BR76) -> 44.74 | T76: =IF(Raw!BS76="","",Raw!BS76) -> 4.98 | U76: =IF(Raw!BT76="","",Raw!BT76) ->  | V76: =IF(Raw!BU76="","",Raw!BU76) ->  | W76: =IF(Raw!BV76="","",Raw!BV76) ->  | X76: =IF(Raw!BW76="","",Raw!BW76) ->  | Y76: =IF(Raw!BX76="","",Raw!BX76) -> + | Z76: =IF(Raw!BY76="","",Raw!BY76) ->  | AA76: =IF(Raw!BZ76="","",Raw!BZ76) ->  | AB76: =IF(Raw!CA76="","",Raw!CA76) -> Y | AC76: =IF(Raw!CB76="","",Raw!CB76) ->  | AD76: =IF(Raw!CC76="","",Raw!CC76) ->  | AE76: =IF(Raw!CD76="","",Raw!CD76) ->  | AF76: =IF(Raw!CE76="","",Raw!CE76) ->  | AG76: =IF(Raw!CF76="","",Raw!CF76) ->  | AH76: =IF(Raw!CG76="","",Raw!CG76) ->  | AI76: =IF(Raw!CH76="","",Raw!CH76) -> -14.31 | AJ76: =IF(Raw!CI76="","",Raw!CI76) -> -2.82 | AK76: =IF(Raw!CJ76="","",Raw!CJ76) -> 71.68 | AL76: =IF(Raw!CK76="","",Raw!CK76) -> 0 | AM76: =IF(Raw!CL76="","",Raw!CL76) -> 0 | AN76: =IF(Raw!CM76="","",Raw!CM76) -> 3 | AO76: =IF(Raw!CN76="","",Raw!CN76) -> 66.69 | AP76: =IF(Raw!CO76="","",Raw!CO76) -> 3 | AQ76: =IF(Raw!CP76="","",Raw!CP76) -> 21.73 | AR76: =IF(Raw!CQ76="","",Raw!CQ76) ->  | AS76: =IF(Raw!CR76="","",Raw!CR76) -> 2 | AT76: =IF(Raw!CS76="","",Raw!CS76) ->  | AU76: =IF(Raw!CT76="","",Raw!CT76) -> 7 | AV76: =IF(Raw!CU76="","",Raw!CU76) -> 18.33 | AW76: =IF(Raw!CV76="","",Raw!CV76) -> 12
A77: =IF(Raw!BA77="","",Raw!BA77) -> 3632 研勤 | B77: =IF(Raw!BB77="","",Raw!BB77) -> OTC | C77: =IF(Raw!BC77="","",Raw!BC77) -> 14.55 | D77: =IF(Raw!BD77="","",Raw!BD77) -> -0.3425 | E77: =IF(Raw!BE77="","",Raw!BE77) -> -0.8722 | F77: =IF(Raw!BF77="","",Raw!BF77) -> 1871 | G77: =IF(Raw!BG77="","",Raw!BG77) -> 69.51 | H77: =IF(Raw!BH77="","",Raw!BH77) -> -11.59 | I77: =IF(Raw!BI77="","",Raw!BI77) -> 205.26 | J77: =IF(Raw!BJ77="","",Raw!BJ77) -> 0 | K77: =IFERROR(ROUND(VLOOKUP(A77,'Raw3'!A:F,6,0),2),"") -> 0 | L77: =IF(Raw!BK77="","",Raw!BK77) -> 24.79 | M77: =IF(Raw!BL77="","",Raw!BL77) -> 27316.6 | N77: =IF(Raw!BM77="","",Raw!BM77) -> 15.66 | O77: =IF(Raw!BN77="","",Raw!BN77) -> 8 | P77: =IF(Raw!BO77="","",Raw!BO77) -> 6 | Q77: =IF(Raw!BP77="","",Raw!BP77) -> 71.67 | R77: =IF(Raw!BQ77="","",Raw!BQ77) ->  | S77: =IF(Raw!BR77="","",Raw!BR77) -> 47.35 | T77: =IF(Raw!BS77="","",Raw!BS77) -> 1.39 | U77: =IF(Raw!BT77="","",Raw!BT77) ->  | V77: =IF(Raw!BU77="","",Raw!BU77) ->  | W77: =IF(Raw!BV77="","",Raw!BV77) ->  | X77: =IF(Raw!BW77="","",Raw!BW77) ->  | Y77: =IF(Raw!BX77="","",Raw!BX77) ->  | Z77: =IF(Raw!BY77="","",Raw!BY77) ->  | AA77: =IF(Raw!BZ77="","",Raw!BZ77) ->  | AB77: =IF(Raw!CA77="","",Raw!CA77) ->  | AC77: =IF(Raw!CB77="","",Raw!CB77) ->  | AD77: =IF(Raw!CC77="","",Raw!CC77) ->  | AE77: =IF(Raw!CD77="","",Raw!CD77) ->  | AF77: =IF(Raw!CE77="","",Raw!CE77) ->  | AG77: =IF(Raw!CF77="","",Raw!CF77) ->  | AH77: =IF(Raw!CG77="","",Raw!CG77) ->  | AI77: =IF(Raw!CH77="","",Raw!CH77) -> 69.51 | AJ77: =IF(Raw!CI77="","",Raw!CI77) -> -11.59 | AK77: =IF(Raw!CJ77="","",Raw!CJ77) -> 205.26 | AL77: =IF(Raw!CK77="","",Raw!CK77) -> 0 | AM77: =IF(Raw!CL77="","",Raw!CL77) -> 0 | AN77: =IF(Raw!CM77="","",Raw!CM77) -> 0 | AO77: =IF(Raw!CN77="","",Raw!CN77) -> 24.79 | AP77: =IF(Raw!CO77="","",Raw!CO77) -> 3 | AQ77: =IF(Raw!CP77="","",Raw!CP77) -> 15.66 | AR77: =IF(Raw!CQ77="","",Raw!CQ77) ->  | AS77: =IF(Raw!CR77="","",Raw!CR77) -> 0 | AT77: =IF(Raw!CS77="","",Raw!CS77) ->  | AU77: =IF(Raw!CT77="","",Raw!CT77) -> 8 | AV77: =IF(Raw!CU77="","",Raw!CU77) -> 71.67 | AW77: =IF(Raw!CV77="","",Raw!CV77) -> 10
A78: =IF(Raw!BA78="","",Raw!BA78) -> 3642 駿熠電 | B78: =IF(Raw!BB78="","",Raw!BB78) -> OTC | C78: =IF(Raw!BC78="","",Raw!BC78) -> 21.1 | D78: =IF(Raw!BD78="","",Raw!BD78) -> 4.9751 | E78: =IF(Raw!BE78="","",Raw!BE78) -> 2.9268 | F78: =IF(Raw!BF78="","",Raw!BF78) -> 5077 | G78: =IF(Raw!BG78="","",Raw!BG78) -> -40.22 | H78: =IF(Raw!BH78="","",Raw!BH78) -> -25.71 | I78: =IF(Raw!BI78="","",Raw!BI78) -> 37.69 | J78: =IF(Raw!BJ78="","",Raw!BJ78) -> 0 | K78: =IFERROR(ROUND(VLOOKUP(A78,'Raw3'!A:F,6,0),2),"") -> 0 | L78: =IF(Raw!BK78="","",Raw!BK78) -> 66.87 | M78: =IF(Raw!BL78="","",Raw!BL78) -> 108140.1 | N78: =IF(Raw!BM78="","",Raw!BM78) -> 42.86 | O78: =IF(Raw!BN78="","",Raw!BN78) -> 8 | P78: =IF(Raw!BO78="","",Raw!BO78) -> 6 | Q78: =IF(Raw!BP78="","",Raw!BP78) -> 0 | R78: =IF(Raw!BQ78="","",Raw!BQ78) ->  | S78: =IF(Raw!BR78="","",Raw!BR78) -> 1.02 | T78: =IF(Raw!BS78="","",Raw!BS78) -> 1.43 | U78: =IF(Raw!BT78="","",Raw!BT78) ->  | V78: =IF(Raw!BU78="","",Raw!BU78) ->  | W78: =IF(Raw!BV78="","",Raw!BV78) ->  | X78: =IF(Raw!BW78="","",Raw!BW78) ->  | Y78: =IF(Raw!BX78="","",Raw!BX78) ->  | Z78: =IF(Raw!BY78="","",Raw!BY78) ->  | AA78: =IF(Raw!BZ78="","",Raw!BZ78) ->  | AB78: =IF(Raw!CA78="","",Raw!CA78) ->  | AC78: =IF(Raw!CB78="","",Raw!CB78) ->  | AD78: =IF(Raw!CC78="","",Raw!CC78) ->  | AE78: =IF(Raw!CD78="","",Raw!CD78) ->  | AF78: =IF(Raw!CE78="","",Raw!CE78) ->  | AG78: =IF(Raw!CF78="","",Raw!CF78) ->  | AH78: =IF(Raw!CG78="","",Raw!CG78) ->  | AI78: =IF(Raw!CH78="","",Raw!CH78) -> -40.22 | AJ78: =IF(Raw!CI78="","",Raw!CI78) -> -25.71 | AK78: =IF(Raw!CJ78="","",Raw!CJ78) -> 37.69 | AL78: =IF(Raw!CK78="","",Raw!CK78) -> 0 | AM78: =IF(Raw!CL78="","",Raw!CL78) -> 0 | AN78: =IF(Raw!CM78="","",Raw!CM78) -> 0 | AO78: =IF(Raw!CN78="","",Raw!CN78) -> 66.87 | AP78: =IF(Raw!CO78="","",Raw!CO78) -> 0 | AQ78: =IF(Raw!CP78="","",Raw!CP78) -> 42.86 | AR78: =IF(Raw!CQ78="","",Raw!CQ78) ->  | AS78: =IF(Raw!CR78="","",Raw!CR78) -> 0 | AT78: =IF(Raw!CS78="","",Raw!CS78) ->  | AU78: =IF(Raw!CT78="","",Raw!CT78) -> 8 | AV78: =IF(Raw!CU78="","",Raw!CU78) -> 0 | AW78: =IF(Raw!CV78="","",Raw!CV78) -> 12
A79: =IF(Raw!BA79="","",Raw!BA79) -> 3680 家登 | B79: =IF(Raw!BB79="","",Raw!BB79) -> OTC | C79: =IF(Raw!BC79="","",Raw!BC79) -> 32.5 | D79: =IF(Raw!BD79="","",Raw!BD79) -> 0.7752 | E79: =IF(Raw!BE79="","",Raw!BE79) -> 1.7214 | F79: =IF(Raw!BF79="","",Raw!BF79) -> 2690 | G79: =IF(Raw!BG79="","",Raw!BG79) -> -25.58 | H79: =IF(Raw!BH79="","",Raw!BH79) -> -30.19 | I79: =IF(Raw!BI79="","",Raw!BI79) -> 189.72 | J79: =IF(Raw!BJ79="","",Raw!BJ79) -> 69.79 | K79: =IFERROR(ROUND(VLOOKUP(A79,'Raw3'!A:F,6,0),2),"") -> 69.79 | L79: =IF(Raw!BK79="","",Raw!BK79) -> 16.31 | M79: =IF(Raw!BL79="","",Raw!BL79) -> 87882.3 | N79: =IF(Raw!BM79="","",Raw!BM79) -> 15.34 | O79: =IF(Raw!BN79="","",Raw!BN79) -> 9 | P79: =IF(Raw!BO79="","",Raw!BO79) -> 7 | Q79: =IF(Raw!BP79="","",Raw!BP79) -> 0 | R79: =IF(Raw!BQ79="","",Raw!BQ79) ->  | S79: =IF(Raw!BR79="","",Raw!BR79) -> 0.71 | T79: =IF(Raw!BS79="","",Raw!BS79) -> 1.69 | U79: =IF(Raw!BT79="","",Raw!BT79) ->  | V79: =IF(Raw!BU79="","",Raw!BU79) ->  | W79: =IF(Raw!BV79="","",Raw!BV79) ->  | X79: =IF(Raw!BW79="","",Raw!BW79) ->  | Y79: =IF(Raw!BX79="","",Raw!BX79) ->  | Z79: =IF(Raw!BY79="","",Raw!BY79) ->  | AA79: =IF(Raw!BZ79="","",Raw!BZ79) ->  | AB79: =IF(Raw!CA79="","",Raw!CA79) ->  | AC79: =IF(Raw!CB79="","",Raw!CB79) ->  | AD79: =IF(Raw!CC79="","",Raw!CC79) ->  | AE79: =IF(Raw!CD79="","",Raw!CD79) ->  | AF79: =IF(Raw!CE79="","",Raw!CE79) ->  | AG79: =IF(Raw!CF79="","",Raw!CF79) ->  | AH79: =IF(Raw!CG79="","",Raw!CG79) ->  | AI79: =IF(Raw!CH79="","",Raw!CH79) -> -25.58 | AJ79: =IF(Raw!CI79="","",Raw!CI79) -> -30.19 | AK79: =IF(Raw!CJ79="","",Raw!CJ79) -> 189.72 | AL79: =IF(Raw!CK79="","",Raw!CK79) -> 0 | AM79: =IF(Raw!CL79="","",Raw!CL79) -> 3 | AN79: =IF(Raw!CM79="","",Raw!CM79) -> 0 | AO79: =IF(Raw!CN79="","",Raw!CN79) -> 16.31 | AP79: =IF(Raw!CO79="","",Raw!CO79) -> 0 | AQ79: =IF(Raw!CP79="","",Raw!CP79) -> 15.34 | AR79: =IF(Raw!CQ79="","",Raw!CQ79) ->  | AS79: =IF(Raw!CR79="","",Raw!CR79) -> 0 | AT79: =IF(Raw!CS79="","",Raw!CS79) ->  | AU79: =IF(Raw!CT79="","",Raw!CT79) -> 9 | AV79: =IF(Raw!CU79="","",Raw!CU79) -> 0 | AW79: =IF(Raw!CV79="","",Raw!CV79) -> 13
A80: =IF(Raw!BA80="","",Raw!BA80) -> 3691 碩禾 | B80: =IF(Raw!BB80="","",Raw!BB80) -> OTC | C80: =IF(Raw!BC80="","",Raw!BC80) -> 235.5 | D80: =IF(Raw!BD80="","",Raw!BD80) -> -1.4644 | E80: =IF(Raw!BE80="","",Raw!BE80) -> 0.2128 | F80: =IF(Raw!BF80="","",Raw!BF80) -> 4527 | G80: =IF(Raw!BG80="","",Raw!BG80) -> -41.2 | H80: =IF(Raw!BH80="","",Raw!BH80) -> -48.15 | I80: =IF(Raw!BI80="","",Raw!BI80) -> 171.83 | J80: =IF(Raw!BJ80="","",Raw!BJ80) -> 45.94 | K80: =IFERROR(ROUND(VLOOKUP(A80,'Raw3'!A:F,6,0),2),"") -> 45.94 | L80: =IF(Raw!BK80="","",Raw!BK80) -> 29.69 | M80: =IF(Raw!BL80="","",Raw!BL80) -> 1079236.8 | N80: =IF(Raw!BM80="","",Raw!BM80) -> 15.49 | O80: =IF(Raw!BN80="","",Raw!BN80) -> 5 | P80: =IF(Raw!BO80="","",Raw!BO80) -> 5 | Q80: =IF(Raw!BP80="","",Raw!BP80) -> 0 | R80: =IF(Raw!BQ80="","",Raw!BQ80) ->  | S80: =IF(Raw!BR80="","",Raw!BR80) -> 54.85 | T80: =IF(Raw!BS80="","",Raw!BS80) -> 2.38 | U80: =IF(Raw!BT80="","",Raw!BT80) ->  | V80: =IF(Raw!BU80="","",Raw!BU80) ->  | W80: =IF(Raw!BV80="","",Raw!BV80) ->  | X80: =IF(Raw!BW80="","",Raw!BW80) ->  | Y80: =IF(Raw!BX80="","",Raw!BX80) ->  | Z80: =IF(Raw!BY80="","",Raw!BY80) ->  | AA80: =IF(Raw!BZ80="","",Raw!BZ80) ->  | AB80: =IF(Raw!CA80="","",Raw!CA80) ->  | AC80: =IF(Raw!CB80="","",Raw!CB80) ->  | AD80: =IF(Raw!CC80="","",Raw!CC80) ->  | AE80: =IF(Raw!CD80="","",Raw!CD80) ->  | AF80: =IF(Raw!CE80="","",Raw!CE80) ->  | AG80: =IF(Raw!CF80="","",Raw!CF80) ->  | AH80: =IF(Raw!CG80="","",Raw!CG80) ->  | AI80: =IF(Raw!CH80="","",Raw!CH80) -> -41.2 | AJ80: =IF(Raw!CI80="","",Raw!CI80) -> -48.15 | AK80: =IF(Raw!CJ80="","",Raw!CJ80) -> 171.83 | AL80: =IF(Raw!CK80="","",Raw!CK80) -> 0 | AM80: =IF(Raw!CL80="","",Raw!CL80) -> 2 | AN80: =IF(Raw!CM80="","",Raw!CM80) -> 0 | AO80: =IF(Raw!CN80="","",Raw!CN80) -> 29.69 | AP80: =IF(Raw!CO80="","",Raw!CO80) -> 3 | AQ80: =IF(Raw!CP80="","",Raw!CP80) -> 15.49 | AR80: =IF(Raw!CQ80="","",Raw!CQ80) ->  | AS80: =IF(Raw!CR80="","",Raw!CR80) -> 0 | AT80: =IF(Raw!CS80="","",Raw!CS80) ->  | AU80: =IF(Raw!CT80="","",Raw!CT80) -> 5 | AV80: =IF(Raw!CU80="","",Raw!CU80) -> 0 | AW80: =IF(Raw!CV80="","",Raw!CV80) -> 12
A81: =IF(Raw!BA81="","",Raw!BA81) -> 3701 大眾控 | B81: =IF(Raw!BB81="","",Raw!BB81) -> TSE | C81: =IF(Raw!BC81="","",Raw!BC81) -> 6.3 | D81: =IF(Raw!BD81="","",Raw!BD81) -> 0.639 | E81: =IF(Raw!BE81="","",Raw!BE81) -> -3.0769 | F81: =IF(Raw!BF81="","",Raw!BF81) ->  | G81: =IF(Raw!BG81="","",Raw!BG81) -> -20.8 | H81: =IF(Raw!BH81="","",Raw!BH81) -> -35.02 | I81: =IF(Raw!BI81="","",Raw!BI81) -> 146.16 | J81: =IF(Raw!BJ81="","",Raw!BJ81) -> 0 | K81: =IFERROR(ROUND(VLOOKUP(A81,'Raw3'!A:F,6,0),2),"") -> 0 | L81: =IF(Raw!BK81="","",Raw!BK81) ->  | M81: =IF(Raw!BL81="","",Raw!BL81) ->  | N81: =IF(Raw!BM81="","",Raw!BM81) -> 44.45 | O81: =IF(Raw!BN81="","",Raw!BN81) -> D | P81: =IF(Raw!BO81="","",Raw!BO81) -> D | Q81: =IF(Raw!BP81="","",Raw!BP81) -> 100 | R81: =IF(Raw!BQ81="","",Raw!BQ81) -> Y_繼續經營疑慮 | S81: =IF(Raw!BR81="","",Raw!BR81) ->  | T81: =IF(Raw!BS81="","",Raw!BS81) -> 1.27 | U81: =IF(Raw!BT81="","",Raw!BT81) ->  | V81: =IF(Raw!BU81="","",Raw!BU81) ->  | W81: =IF(Raw!BV81="","",Raw!BV81) ->  | X81: =IF(Raw!BW81="","",Raw!BW81) ->  | Y81: =IF(Raw!BX81="","",Raw!BX81) ->  | Z81: =IF(Raw!BY81="","",Raw!BY81) ->  | AA81: =IF(Raw!BZ81="","",Raw!BZ81) ->  | AB81: =IF(Raw!CA81="","",Raw!CA81) ->  | AC81: =IF(Raw!CB81="","",Raw!CB81) ->  | AD81: =IF(Raw!CC81="","",Raw!CC81) -> Y | AE81: =IF(Raw!CD81="","",Raw!CD81) ->  | AF81: =IF(Raw!CE81="","",Raw!CE81) ->  | AG81: =IF(Raw!CF81="","",Raw!CF81) ->  | AH81: =IF(Raw!CG81="","",Raw!CG81) ->  | AI81: =IF(Raw!CH81="","",Raw!CH81) -> -20.8 | AJ81: =IF(Raw!CI81="","",Raw!CI81) -> -35.02 | AK81: =IF(Raw!CJ81="","",Raw!CJ81) -> 146.16 | AL81: =IF(Raw!CK81="","",Raw!CK81) -> 0 | AM81: =IF(Raw!CL81="","",Raw!CL81) -> 0 | AN81: =IF(Raw!CM81="","",Raw!CM81) -> 0 | AO81: =IF(Raw!CN81="","",Raw!CN81) ->  | AP81: =IF(Raw!CO81="","",Raw!CO81) -> 0 | AQ81: =IF(Raw!CP81="","",Raw!CP81) -> 44.45 | AR81: =IF(Raw!CQ81="","",Raw!CQ81) ->  | AS81: =IF(Raw!CR81="","",Raw!CR81) -> 0 | AT81: =IF(Raw!CS81="","",Raw!CS81) ->  | AU81: =IF(Raw!CT81="","",Raw!CT81) -> D | AV81: =IF(Raw!CU81="","",Raw!CU81) -> 100 | AW81: =IF(Raw!CV81="","",Raw!CV81) -> 12
A82: =IF(Raw!BA82="","",Raw!BA82) -> 4173 久裕 | B82: =IF(Raw!BB82="","",Raw!BB82) -> OTC | C82: =IF(Raw!BC82="","",Raw!BC82) -> 19.25 | D82: =IF(Raw!BD82="","",Raw!BD82) -> 3.4946 | E82: =IF(Raw!BE82="","",Raw!BE82) -> 4.6195 | F82: =IF(Raw!BF82="","",Raw!BF82) -> 5623 | G82: =IF(Raw!BG82="","",Raw!BG82) -> -15.51 | H82: =IF(Raw!BH82="","",Raw!BH82) -> -4.81 | I82: =IF(Raw!BI82="","",Raw!BI82) -> 427.68 | J82: =IF(Raw!BJ82="","",Raw!BJ82) -> 0 | K82: =IFERROR(ROUND(VLOOKUP(A82,'Raw3'!A:F,6,0),2),"") -> 0 | L82: =IF(Raw!BK82="","",Raw!BK82) -> 50.46 | M82: =IF(Raw!BL82="","",Raw!BL82) -> 106555.85 | N82: =IF(Raw!BM82="","",Raw!BM82) -> 57.41 | O82: =IF(Raw!BN82="","",Raw!BN82) -> 7 | P82: =IF(Raw!BO82="","",Raw!BO82) -> 9 | Q82: =IF(Raw!BP82="","",Raw!BP82) -> 100 | R82: =IF(Raw!BQ82="","",Raw!BQ82) ->  | S82: =IF(Raw!BR82="","",Raw!BR82) -> 0.02 | T82: =IF(Raw!BS82="","",Raw!BS82) -> 0.82 | U82: =IF(Raw!BT82="","",Raw!BT82) ->  | V82: =IF(Raw!BU82="","",Raw!BU82) ->  | W82: =IF(Raw!BV82="","",Raw!BV82) -> Y | X82: =IF(Raw!BW82="","",Raw!BW82) ->  | Y82: =IF(Raw!BX82="","",Raw!BX82) ->  | Z82: =IF(Raw!BY82="","",Raw!BY82) ->  | AA82: =IF(Raw!BZ82="","",Raw!BZ82) -> Y | AB82: =IF(Raw!CA82="","",Raw!CA82) ->  | AC82: =IF(Raw!CB82="","",Raw!CB82) ->  | AD82: =IF(Raw!CC82="","",Raw!CC82) ->  | AE82: =IF(Raw!CD82="","",Raw!CD82) ->  | AF82: =IF(Raw!CE82="","",Raw!CE82) ->  | AG82: =IF(Raw!CF82="","",Raw!CF82) ->  | AH82: =IF(Raw!CG82="","",Raw!CG82) ->  | AI82: =IF(Raw!CH82="","",Raw!CH82) -> -15.51 | AJ82: =IF(Raw!CI82="","",Raw!CI82) -> -4.81 | AK82: =IF(Raw!CJ82="","",Raw!CJ82) -> 427.68 | AL82: =IF(Raw!CK82="","",Raw!CK82) -> 0 | AM82: =IF(Raw!CL82="","",Raw!CL82) -> 0 | AN82: =IF(Raw!CM82="","",Raw!CM82) -> 0 | AO82: =IF(Raw!CN82="","",Raw!CN82) -> 50.46 | AP82: =IF(Raw!CO82="","",Raw!CO82) -> 0 | AQ82: =IF(Raw!CP82="","",Raw!CP82) -> 57.41 | AR82: =IF(Raw!CQ82="","",Raw!CQ82) ->  | AS82: =IF(Raw!CR82="","",Raw!CR82) -> 0 | AT82: =IF(Raw!CS82="","",Raw!CS82) ->  | AU82: =IF(Raw!CT82="","",Raw!CT82) -> 7 | AV82: =IF(Raw!CU82="","",Raw!CU82) -> 100 | AW82: =IF(Raw!CV82="","",Raw!CV82) -> 11
A83: =IF(Raw!BA83="","",Raw!BA83) -> 4174 浩鼎 | B83: =IF(Raw!BB83="","",Raw!BB83) -> OTC | C83: =IF(Raw!BC83="","",Raw!BC83) -> 184 | D83: =IF(Raw!BD83="","",Raw!BD83) -> -0.8086 | E83: =IF(Raw!BE83="","",Raw!BE83) -> 0.5465 | F83: =IF(Raw!BF83="","",Raw!BF83) ->  | G83: =IF(Raw!BG83="","",Raw!BG83) ->  | H83: =IF(Raw!BH83="","",Raw!BH83) -> -99.6 | I83: =IF(Raw!BI83="","",Raw!BI83) -> 1.72 | J83: =IF(Raw!BJ83="","",Raw!BJ83) -> 69.19 | K83: =IFERROR(ROUND(VLOOKUP(A83,'Raw3'!A:F,6,0),2),"") -> 69.19 | L83: =IF(Raw!BK83="","",Raw!BK83) ->  | M83: =IF(Raw!BL83="","",Raw!BL83) ->  | N83: =IF(Raw!BM83="","",Raw!BM83) -> 24.74 | O83: =IF(Raw!BN83="","",Raw!BN83) -> 7 | P83: =IF(Raw!BO83="","",Raw!BO83) -> 5 | Q83: =IF(Raw!BP83="","",Raw!BP83) -> 0 | R83: =IF(Raw!BQ83="","",Raw!BQ83) ->  | S83: =IF(Raw!BR83="","",Raw!BR83) ->  | T83: =IF(Raw!BS83="","",Raw!BS83) -> 5.61 | U83: =IF(Raw!BT83="","",Raw!BT83) ->  | V83: =IF(Raw!BU83="","",Raw!BU83) -> Y | W83: =IF(Raw!BV83="","",Raw!BV83) ->  | X83: =IF(Raw!BW83="","",Raw!BW83) ->  | Y83: =IF(Raw!BX83="","",Raw!BX83) ->  | Z83: =IF(Raw!BY83="","",Raw!BY83) ->  | AA83: =IF(Raw!BZ83="","",Raw!BZ83) ->  | AB83: =IF(Raw!CA83="","",Raw!CA83) ->  | AC83: =IF(Raw!CB83="","",Raw!CB83) ->  | AD83: =IF(Raw!CC83="","",Raw!CC83) ->  | AE83: =IF(Raw!CD83="","",Raw!CD83) ->  | AF83: =IF(Raw!CE83="","",Raw!CE83) ->  | AG83: =IF(Raw!CF83="","",Raw!CF83) ->  | AH83: =IF(Raw!CG83="","",Raw!CG83) ->  | AI83: =IF(Raw!CH83="","",Raw!CH83) ->  | AJ83: =IF(Raw!CI83="","",Raw!CI83) -> -99.6 | AK83: =IF(Raw!CJ83="","",Raw!CJ83) -> 1.72 | AL83: =IF(Raw!CK83="","",Raw!CK83) -> 0 | AM83: =IF(Raw!CL83="","",Raw!CL83) -> 3 | AN83: =IF(Raw!CM83="","",Raw!CM83) -> 0 | AO83: =IF(Raw!CN83="","",Raw!CN83) ->  | AP83: =IF(Raw!CO83="","",Raw!CO83) -> 0 | AQ83: =IF(Raw!CP83="","",Raw!CP83) -> 24.74 | AR83: =IF(Raw!CQ83="","",Raw!CQ83) ->  | AS83: =IF(Raw!CR83="","",Raw!CR83) -> 3 | AT83: =IF(Raw!CS83="","",Raw!CS83) ->  | AU83: =IF(Raw!CT83="","",Raw!CT83) -> 7 | AV83: =IF(Raw!CU83="","",Raw!CU83) -> 0 | AW83: =IF(Raw!CV83="","",Raw!CV83) -> 10
A84: =IF(Raw!BA84="","",Raw!BA84) -> 4402 福大 | B84: =IF(Raw!BB84="","",Raw!BB84) -> OTC | C84: =IF(Raw!BC84="","",Raw!BC84) -> 15.35 | D84: =IF(Raw!BD84="","",Raw!BD84) -> 4.7782 | E84: =IF(Raw!BE84="","",Raw!BE84) -> 1.6556 | F84: =IF(Raw!BF84="","",Raw!BF84) ->  | G84: =IF(Raw!BG84="","",Raw!BG84) -> -12.94 | H84: =IF(Raw!BH84="","",Raw!BH84) -> -50.04 | I84: =IF(Raw!BI84="","",Raw!BI84) -> 266.58 | J84: =IF(Raw!BJ84="","",Raw!BJ84) -> 0 | K84: =IFERROR(ROUND(VLOOKUP(A84,'Raw3'!A:F,6,0),2),"") -> 0 | L84: =IF(Raw!BK84="","",Raw!BK84) ->  | M84: =IF(Raw!BL84="","",Raw!BL84) ->  | N84: =IF(Raw!BM84="","",Raw!BM84) -> 29.67 | O84: =IF(Raw!BN84="","",Raw!BN84) -> 9 | P84: =IF(Raw!BO84="","",Raw!BO84) -> 8 | Q84: =IF(Raw!BP84="","",Raw!BP84) -> 100 | R84: =IF(Raw!BQ84="","",Raw!BQ84) ->  | S84: =IF(Raw!BR84="","",Raw!BR84) ->  | T84: =IF(Raw!BS84="","",Raw!BS84) -> 2.56 | U84: =IF(Raw!BT84="","",Raw!BT84) ->  | V84: =IF(Raw!BU84="","",Raw!BU84) -> Y | W84: =IF(Raw!BV84="","",Raw!BV84) -> Y | X84: =IF(Raw!BW84="","",Raw!BW84) ->  | Y84: =IF(Raw!BX84="","",Raw!BX84) ->  | Z84: =IF(Raw!BY84="","",Raw!BY84) ->  | AA84: =IF(Raw!BZ84="","",Raw!BZ84) ->  | AB84: =IF(Raw!CA84="","",Raw!CA84) ->  | AC84: =IF(Raw!CB84="","",Raw!CB84) ->  | AD84: =IF(Raw!CC84="","",Raw!CC84) ->  | AE84: =IF(Raw!CD84="","",Raw!CD84) ->  | AF84: =IF(Raw!CE84="","",Raw!CE84) ->  | AG84: =IF(Raw!CF84="","",Raw!CF84) ->  | AH84: =IF(Raw!CG84="","",Raw!CG84) ->  | AI84: =IF(Raw!CH84="","",Raw!CH84) -> -12.94 | AJ84: =IF(Raw!CI84="","",Raw!CI84) -> -50.04 | AK84: =IF(Raw!CJ84="","",Raw!CJ84) -> 266.58 | AL84: =IF(Raw!CK84="","",Raw!CK84) -> 0 | AM84: =IF(Raw!CL84="","",Raw!CL84) -> 0 | AN84: =IF(Raw!CM84="","",Raw!CM84) -> 0 | AO84: =IF(Raw!CN84="","",Raw!CN84) ->  | AP84: =IF(Raw!CO84="","",Raw!CO84) -> 0 | AQ84: =IF(Raw!CP84="","",Raw!CP84) -> 29.67 | AR84: =IF(Raw!CQ84="","",Raw!CQ84) ->  | AS84: =IF(Raw!CR84="","",Raw!CR84) -> 0 | AT84: =IF(Raw!CS84="","",Raw!CS84) ->  | AU84: =IF(Raw!CT84="","",Raw!CT84) -> 9 | AV84: =IF(Raw!CU84="","",Raw!CU84) -> 100 | AW84: =IF(Raw!CV84="","",Raw!CV84) -> 12
A85: =IF(Raw!BA85="","",Raw!BA85) -> 4413 飛寶 | B85: =IF(Raw!BB85="","",Raw!BB85) -> OTC | C85: =IF(Raw!BC85="","",Raw!BC85) -> 11.9 | D85: =IF(Raw!BD85="","",Raw!BD85) -> 6.25 | E85: =IF(Raw!BE85="","",Raw!BE85) -> 19.3581 | F85: =IF(Raw!BF85="","",Raw!BF85) -> 0 | G85: =IF(Raw!BG85="","",Raw!BG85) -> 46.84 | H85: =IF(Raw!BH85="","",Raw!BH85) -> -22.81 | I85: =IF(Raw!BI85="","",Raw!BI85) -> 34.38 | J85: =IF(Raw!BJ85="","",Raw!BJ85) -> 0 | K85: =IFERROR(ROUND(VLOOKUP(A85,'Raw3'!A:F,6,0),2),"") -> 0 | L85: =IF(Raw!BK85="","",Raw!BK85) -> 0 | M85: =IF(Raw!BL85="","",Raw!BL85) -> 0 | N85: =IF(Raw!BM85="","",Raw!BM85) -> 42.95 | O85: =IF(Raw!BN85="","",Raw!BN85) -> D | P85: =IF(Raw!BO85="","",Raw!BO85) -> D | Q85: =IF(Raw!BP85="","",Raw!BP85) -> 93.33 | R85: =IF(Raw!BQ85="","",Raw!BQ85) -> Y_繼續經營疑慮 | S85: =IF(Raw!BR85="","",Raw!BR85) ->  | T85: =IF(Raw!BS85="","",Raw!BS85) -> 2.54 | U85: =IF(Raw!BT85="","",Raw!BT85) ->  | V85: =IF(Raw!BU85="","",Raw!BU85) ->  | W85: =IF(Raw!BV85="","",Raw!BV85) ->  | X85: =IF(Raw!BW85="","",Raw!BW85) ->  | Y85: =IF(Raw!BX85="","",Raw!BX85) ->  | Z85: =IF(Raw!BY85="","",Raw!BY85) ->  | AA85: =IF(Raw!BZ85="","",Raw!BZ85) ->  | AB85: =IF(Raw!CA85="","",Raw!CA85) ->  | AC85: =IF(Raw!CB85="","",Raw!CB85) ->  | AD85: =IF(Raw!CC85="","",Raw!CC85) -> Y | AE85: =IF(Raw!CD85="","",Raw!CD85) ->  | AF85: =IF(Raw!CE85="","",Raw!CE85) ->  | AG85: =IF(Raw!CF85="","",Raw!CF85) ->  | AH85: =IF(Raw!CG85="","",Raw!CG85) ->  | AI85: =IF(Raw!CH85="","",Raw!CH85) -> 46.84 | AJ85: =IF(Raw!CI85="","",Raw!CI85) -> -22.81 | AK85: =IF(Raw!CJ85="","",Raw!CJ85) -> 34.38 | AL85: =IF(Raw!CK85="","",Raw!CK85) -> 0 | AM85: =IF(Raw!CL85="","",Raw!CL85) -> 0 | AN85: =IF(Raw!CM85="","",Raw!CM85) -> 1 | AO85: =IF(Raw!CN85="","",Raw!CN85) -> 0 | AP85: =IF(Raw!CO85="","",Raw!CO85) -> 0 | AQ85: =IF(Raw!CP85="","",Raw!CP85) -> 42.95 | AR85: =IF(Raw!CQ85="","",Raw!CQ85) ->  | AS85: =IF(Raw!CR85="","",Raw!CR85) -> 0 | AT85: =IF(Raw!CS85="","",Raw!CS85) ->  | AU85: =IF(Raw!CT85="","",Raw!CT85) -> D | AV85: =IF(Raw!CU85="","",Raw!CU85) -> 93.33 | AW85: =IF(Raw!CV85="","",Raw!CV85) -> 10
A86: =IF(Raw!BA86="","",Raw!BA86) -> 4419 元勝國際 | B86: =IF(Raw!BB86="","",Raw!BB86) -> OTC | C86: =IF(Raw!BC86="","",Raw!BC86) -> 9.05 | D86: =IF(Raw!BD86="","",Raw!BD86) -> 0.5556 | E86: =IF(Raw!BE86="","",Raw!BE86) -> -9.5 | F86: =IF(Raw!BF86="","",Raw!BF86) ->  | G86: =IF(Raw!BG86="","",Raw!BG86) -> -78.5 | H86: =IF(Raw!BH86="","",Raw!BH86) -> -53.47 | I86: =IF(Raw!BI86="","",Raw!BI86) -> 89.71 | J86: =IF(Raw!BJ86="","",Raw!BJ86) -> 0 | K86: =IFERROR(ROUND(VLOOKUP(A86,'Raw3'!A:F,6,0),2),"") -> 0 | L86: =IF(Raw!BK86="","",Raw!BK86) ->  | M86: =IF(Raw!BL86="","",Raw!BL86) ->  | N86: =IF(Raw!BM86="","",Raw!BM86) ->  | O86: =IF(Raw!BN86="","",Raw!BN86) -> D | P86: =IF(Raw!BO86="","",Raw!BO86) -> D | Q86: =IF(Raw!BP86="","",Raw!BP86) -> 100 | R86: =IF(Raw!BQ86="","",Raw!BQ86) -> Y_跳票擠兌 | S86: =IF(Raw!BR86="","",Raw!BR86) ->  | T86: =IF(Raw!BS86="","",Raw!BS86) -> 1.94 | U86: =IF(Raw!BT86="","",Raw!BT86) -> Y | V86: =IF(Raw!BU86="","",Raw!BU86) -> Y | W86: =IF(Raw!BV86="","",Raw!BV86) ->  | X86: =IF(Raw!BW86="","",Raw!BW86) ->  | Y86: =IF(Raw!BX86="","",Raw!BX86) ->  | Z86: =IF(Raw!BY86="","",Raw!BY86) ->  | AA86: =IF(Raw!BZ86="","",Raw!BZ86) ->  | AB86: =IF(Raw!CA86="","",Raw!CA86) ->  | AC86: =IF(Raw!CB86="","",Raw!CB86) ->  | AD86: =IF(Raw!CC86="","",Raw!CC86) -> Y | AE86: =IF(Raw!CD86="","",Raw!CD86) ->  | AF86: =IF(Raw!CE86="","",Raw!CE86) ->  | AG86: =IF(Raw!CF86="","",Raw!CF86) ->  | AH86: =IF(Raw!CG86="","",Raw!CG86) ->  | AI86: =IF(Raw!CH86="","",Raw!CH86) -> -78.5 | AJ86: =IF(Raw!CI86="","",Raw!CI86) -> -53.47 | AK86: =IF(Raw!CJ86="","",Raw!CJ86) -> 89.71 | AL86: =IF(Raw!CK86="","",Raw!CK86) -> 0 | AM86: =IF(Raw!CL86="","",Raw!CL86) -> 0 | AN86: =IF(Raw!CM86="","",Raw!CM86) -> 0 | AO86: =IF(Raw!CN86="","",Raw!CN86) ->  | AP86: =IF(Raw!CO86="","",Raw!CO86) -> 0 | AQ86: =IF(Raw!CP86="","",Raw!CP86) ->  | AR86: =IF(Raw!CQ86="","",Raw!CQ86) ->  | AS86: =IF(Raw!CR86="","",Raw!CR86) -> 0 | AT86: =IF(Raw!CS86="","",Raw!CS86) ->  | AU86: =IF(Raw!CT86="","",Raw!CT86) -> D | AV86: =IF(Raw!CU86="","",Raw!CU86) -> 100 | AW86: =IF(Raw!CV86="","",Raw!CV86) -> 12
A87: =IF(Raw!BA87="","",Raw!BA87) -> 4529 淳紳 | B87: =IF(Raw!BB87="","",Raw!BB87) -> OTC | C87: =IF(Raw!BC87="","",Raw!BC87) -> 37.5 | D87: =IF(Raw!BD87="","",Raw!BD87) -> 2.1798 | E87: =IF(Raw!BE87="","",Raw!BE87) -> -0.0001 | F87: =IF(Raw!BF87="","",Raw!BF87) -> 6501 | G87: =IF(Raw!BG87="","",Raw!BG87) -> -56.23 | H87: =IF(Raw!BH87="","",Raw!BH87) -> -74.2 | I87: =IF(Raw!BI87="","",Raw!BI87) -> 9.1 | J87: =IF(Raw!BJ87="","",Raw!BJ87) -> 0 | K87: =IFERROR(ROUND(VLOOKUP(A87,'Raw3'!A:F,6,0),2),"") -> 0 | L87: =IF(Raw!BK87="","",Raw!BK87) -> 55.07 | M87: =IF(Raw!BL87="","",Raw!BL87) -> 245542.77 | N87: =IF(Raw!BM87="","",Raw!BM87) -> 18.98 | O87: =IF(Raw!BN87="","",Raw!BN87) -> 9 | P87: =IF(Raw!BO87="","",Raw!BO87) -> 7 | Q87: =IF(Raw!BP87="","",Raw!BP87) -> 0 | R87: =IF(Raw!BQ87="","",Raw!BQ87) ->  | S87: =IF(Raw!BR87="","",Raw!BR87) -> 15.71 | T87: =IF(Raw!BS87="","",Raw!BS87) -> 1.63 | U87: =IF(Raw!BT87="","",Raw!BT87) -> Y | V87: =IF(Raw!BU87="","",Raw!BU87) -> Y | W87: =IF(Raw!BV87="","",Raw!BV87) ->  | X87: =IF(Raw!BW87="","",Raw!BW87) ->  | Y87: =IF(Raw!BX87="","",Raw!BX87) ->  | Z87: =IF(Raw!BY87="","",Raw!BY87) ->  | AA87: =IF(Raw!BZ87="","",Raw!BZ87) ->  | AB87: =IF(Raw!CA87="","",Raw!CA87) ->  | AC87: =IF(Raw!CB87="","",Raw!CB87) ->  | AD87: =IF(Raw!CC87="","",Raw!CC87) ->  | AE87: =IF(Raw!CD87="","",Raw!CD87) ->  | AF87: =IF(Raw!CE87="","",Raw!CE87) ->  | AG87: =IF(Raw!CF87="","",Raw!CF87) ->  | AH87: =IF(Raw!CG87="","",Raw!CG87) ->  | AI87: =IF(Raw!CH87="","",Raw!CH87) -> -56.23 | AJ87: =IF(Raw!CI87="","",Raw!CI87) -> -74.2 | AK87: =IF(Raw!CJ87="","",Raw!CJ87) -> 9.1 | AL87: =IF(Raw!CK87="","",Raw!CK87) -> 0 | AM87: =IF(Raw!CL87="","",Raw!CL87) -> 0 | AN87: =IF(Raw!CM87="","",Raw!CM87) -> 0 | AO87: =IF(Raw!CN87="","",Raw!CN87) -> 55.07 | AP87: =IF(Raw!CO87="","",Raw!CO87) -> 2 | AQ87: =IF(Raw!CP87="","",Raw!CP87) -> 18.98 | AR87: =IF(Raw!CQ87="","",Raw!CQ87) ->  | AS87: =IF(Raw!CR87="","",Raw!CR87) -> 0 | AT87: =IF(Raw!CS87="","",Raw!CS87) ->  | AU87: =IF(Raw!CT87="","",Raw!CT87) -> 9 | AV87: =IF(Raw!CU87="","",Raw!CU87) -> 0 | AW87: =IF(Raw!CV87="","",Raw!CV87) -> 13
A88: =IF(Raw!BA88="","",Raw!BA88) -> 4702 中美實 | B88: =IF(Raw!BB88="","",Raw!BB88) -> OTC | C88: =IF(Raw!BC88="","",Raw!BC88) -> 6.59 | D88: =IF(Raw!BD88="","",Raw!BD88) -> -5.3161 | E88: =IF(Raw!BE88="","",Raw!BE88) -> 14.0138 | F88: =IF(Raw!BF88="","",Raw!BF88) ->  | G88: =IF(Raw!BG88="","",Raw!BG88) -> -34.95 | H88: =IF(Raw!BH88="","",Raw!BH88) -> -34.5 | I88: =IF(Raw!BI88="","",Raw!BI88) -> 24.91 | J88: =IF(Raw!BJ88="","",Raw!BJ88) -> 0 | K88: =IFERROR(ROUND(VLOOKUP(A88,'Raw3'!A:F,6,0),2),"") -> 0 | L88: =IF(Raw!BK88="","",Raw!BK88) ->  | M88: =IF(Raw!BL88="","",Raw!BL88) ->  | N88: =IF(Raw!BM88="","",Raw!BM88) -> 25.94 | O88: =IF(Raw!BN88="","",Raw!BN88) -> 8 | P88: =IF(Raw!BO88="","",Raw!BO88) -> 8 | Q88: =IF(Raw!BP88="","",Raw!BP88) -> 100 | R88: =IF(Raw!BQ88="","",Raw!BQ88) ->  | S88: =IF(Raw!BR88="","",Raw!BR88) ->  | T88: =IF(Raw!BS88="","",Raw!BS88) -> 0.7 | U88: =IF(Raw!BT88="","",Raw!BT88) ->  | V88: =IF(Raw!BU88="","",Raw!BU88) ->  | W88: =IF(Raw!BV88="","",Raw!BV88) ->  | X88: =IF(Raw!BW88="","",Raw!BW88) ->  | Y88: =IF(Raw!BX88="","",Raw!BX88) ->  | Z88: =IF(Raw!BY88="","",Raw!BY88) ->  | AA88: =IF(Raw!BZ88="","",Raw!BZ88) ->  | AB88: =IF(Raw!CA88="","",Raw!CA88) ->  | AC88: =IF(Raw!CB88="","",Raw!CB88) ->  | AD88: =IF(Raw!CC88="","",Raw!CC88) ->  | AE88: =IF(Raw!CD88="","",Raw!CD88) ->  | AF88: =IF(Raw!CE88="","",Raw!CE88) ->  | AG88: =IF(Raw!CF88="","",Raw!CF88) ->  | AH88: =IF(Raw!CG88="","",Raw!CG88) ->  | AI88: =IF(Raw!CH88="","",Raw!CH88) -> -34.95 | AJ88: =IF(Raw!CI88="","",Raw!CI88) -> -34.5 | AK88: =IF(Raw!CJ88="","",Raw!CJ88) -> 24.91 | AL88: =IF(Raw!CK88="","",Raw!CK88) -> 0 | AM88: =IF(Raw!CL88="","",Raw!CL88) -> 0 | AN88: =IF(Raw!CM88="","",Raw!CM88) -> 0 | AO88: =IF(Raw!CN88="","",Raw!CN88) ->  | AP88: =IF(Raw!CO88="","",Raw!CO88) -> 0 | AQ88: =IF(Raw!CP88="","",Raw!CP88) -> 25.94 | AR88: =IF(Raw!CQ88="","",Raw!CQ88) ->  | AS88: =IF(Raw!CR88="","",Raw!CR88) -> 0 | AT88: =IF(Raw!CS88="","",Raw!CS88) ->  | AU88: =IF(Raw!CT88="","",Raw!CT88) -> 8 | AV88: =IF(Raw!CU88="","",Raw!CU88) -> 100 | AW88: =IF(Raw!CV88="","",Raw!CV88) -> 11
A89: =IF(Raw!BA89="","",Raw!BA89) -> 5014 建錩 | B89: =IF(Raw!BB89="","",Raw!BB89) -> OTC | C89: =IF(Raw!BC89="","",Raw!BC89) -> 17.1 | D89: =IF(Raw!BD89="","",Raw!BD89) -> 0 | E89: =IF(Raw!BE89="","",Raw!BE89) -> 3.9513 | F89: =IF(Raw!BF89="","",Raw!BF89) -> 23875 | G89: =IF(Raw!BG89="","",Raw!BG89) -> 43.06 | H89: =IF(Raw!BH89="","",Raw!BH89) -> 34.09 | I89: =IF(Raw!BI89="","",Raw!BI89) -> 248.76 | J89: =IF(Raw!BJ89="","",Raw!BJ89) -> 36.76 | K89: =IFERROR(ROUND(VLOOKUP(A89,'Raw3'!A:F,6,0),2),"") -> 36.76 | L89: =IF(Raw!BK89="","",Raw!BK89) -> 57.76 | M89: =IF(Raw!BL89="","",Raw!BL89) -> 408740 | N89: =IF(Raw!BM89="","",Raw!BM89) -> 19.33 | O89: =IF(Raw!BN89="","",Raw!BN89) -> 8 | P89: =IF(Raw!BO89="","",Raw!BO89) -> 7 | Q89: =IF(Raw!BP89="","",Raw!BP89) -> 100 | R89: =IF(Raw!BQ89="","",Raw!BQ89) ->  | S89: =IF(Raw!BR89="","",Raw!BR89) -> 3.98 | T89: =IF(Raw!BS89="","",Raw!BS89) -> 1.67 | U89: =IF(Raw!BT89="","",Raw!BT89) ->  | V89: =IF(Raw!BU89="","",Raw!BU89) ->  | W89: =IF(Raw!BV89="","",Raw!BV89) ->  | X89: =IF(Raw!BW89="","",Raw!BW89) ->  | Y89: =IF(Raw!BX89="","",Raw!BX89) ->  | Z89: =IF(Raw!BY89="","",Raw!BY89) ->  | AA89: =IF(Raw!BZ89="","",Raw!BZ89) ->  | AB89: =IF(Raw!CA89="","",Raw!CA89) ->  | AC89: =IF(Raw!CB89="","",Raw!CB89) ->  | AD89: =IF(Raw!CC89="","",Raw!CC89) ->  | AE89: =IF(Raw!CD89="","",Raw!CD89) ->  | AF89: =IF(Raw!CE89="","",Raw!CE89) ->  | AG89: =IF(Raw!CF89="","",Raw!CF89) ->  | AH89: =IF(Raw!CG89="","",Raw!CG89) ->  | AI89: =IF(Raw!CH89="","",Raw!CH89) -> 43.06 | AJ89: =IF(Raw!CI89="","",Raw!CI89) -> 34.09 | AK89: =IF(Raw!CJ89="","",Raw!CJ89) -> 248.76 | AL89: =IF(Raw!CK89="","",Raw!CK89) -> 0 | AM89: =IF(Raw!CL89="","",Raw!CL89) -> 1 | AN89: =IF(Raw!CM89="","",Raw!CM89) -> 0 | AO89: =IF(Raw!CN89="","",Raw!CN89) -> 57.76 | AP89: =IF(Raw!CO89="","",Raw!CO89) -> 0 | AQ89: =IF(Raw!CP89="","",Raw!CP89) -> 19.33 | AR89: =IF(Raw!CQ89="","",Raw!CQ89) ->  | AS89: =IF(Raw!CR89="","",Raw!CR89) -> 0 | AT89: =IF(Raw!CS89="","",Raw!CS89) ->  | AU89: =IF(Raw!CT89="","",Raw!CT89) -> 8 | AV89: =IF(Raw!CU89="","",Raw!CU89) -> 100 | AW89: =IF(Raw!CV89="","",Raw!CV89) -> 10
A90: =IF(Raw!BA90="","",Raw!BA90) -> 5205 漢康 | B90: =IF(Raw!BB90="","",Raw!BB90) -> OTC | C90: =IF(Raw!BC90="","",Raw!BC90) -> 8.2 | D90: =IF(Raw!BD90="","",Raw!BD90) -> 0 | E90: =IF(Raw!BE90="","",Raw!BE90) -> 0 | F90: =IF(Raw!BF90="","",Raw!BF90) ->  | G90: =IF(Raw!BG90="","",Raw!BG90) -> 27310.42 | H90: =IF(Raw!BH90="","",Raw!BH90) -> 82.53 | I90: =IF(Raw!BI90="","",Raw!BI90) -> 609.29 | J90: =IF(Raw!BJ90="","",Raw!BJ90) -> 0 | K90: =IFERROR(ROUND(VLOOKUP(A90,'Raw3'!A:F,6,0),2),"") -> 0 | L90: =IF(Raw!BK90="","",Raw!BK90) ->  | M90: =IF(Raw!BL90="","",Raw!BL90) ->  | N90: =IF(Raw!BM90="","",Raw!BM90) ->  | O90: =IF(Raw!BN90="","",Raw!BN90) -> D | P90: =IF(Raw!BO90="","",Raw!BO90) -> D | Q90: =IF(Raw!BP90="","",Raw!BP90) -> 100 | R90: =IF(Raw!BQ90="","",Raw!BQ90) -> Y_繼續經營疑慮 | S90: =IF(Raw!BR90="","",Raw!BR90) ->  | T90: =IF(Raw!BS90="","",Raw!BS90) -> 10.38 | U90: =IF(Raw!BT90="","",Raw!BT90) ->  | V90: =IF(Raw!BU90="","",Raw!BU90) ->  | W90: =IF(Raw!BV90="","",Raw!BV90) -> Y | X90: =IF(Raw!BW90="","",Raw!BW90) ->  | Y90: =IF(Raw!BX90="","",Raw!BX90) ->  | Z90: =IF(Raw!BY90="","",Raw!BY90) ->  | AA90: =IF(Raw!BZ90="","",Raw!BZ90) ->  | AB90: =IF(Raw!CA90="","",Raw!CA90) ->  | AC90: =IF(Raw!CB90="","",Raw!CB90) ->  | AD90: =IF(Raw!CC90="","",Raw!CC90) -> Y | AE90: =IF(Raw!CD90="","",Raw!CD90) ->  | AF90: =IF(Raw!CE90="","",Raw!CE90) ->  | AG90: =IF(Raw!CF90="","",Raw!CF90) ->  | AH90: =IF(Raw!CG90="","",Raw!CG90) ->  | AI90: =IF(Raw!CH90="","",Raw!CH90) -> 27310.42 | AJ90: =IF(Raw!CI90="","",Raw!CI90) -> 82.53 | AK90: =IF(Raw!CJ90="","",Raw!CJ90) -> 609.29 | AL90: =IF(Raw!CK90="","",Raw!CK90) -> 0 | AM90: =IF(Raw!CL90="","",Raw!CL90) -> 0 | AN90: =IF(Raw!CM90="","",Raw!CM90) -> 0 | AO90: =IF(Raw!CN90="","",Raw!CN90) ->  | AP90: =IF(Raw!CO90="","",Raw!CO90) -> 0 | AQ90: =IF(Raw!CP90="","",Raw!CP90) ->  | AR90: =IF(Raw!CQ90="","",Raw!CQ90) ->  | AS90: =IF(Raw!CR90="","",Raw!CR90) -> 3 | AT90: =IF(Raw!CS90="","",Raw!CS90) ->  | AU90: =IF(Raw!CT90="","",Raw!CT90) -> D | AV90: =IF(Raw!CU90="","",Raw!CU90) -> 100 | AW90: =IF(Raw!CV90="","",Raw!CV90) -> 12
A91: =IF(Raw!BA91="","",Raw!BA91) -> 5213 亞昕 | B91: =IF(Raw!BB91="","",Raw!BB91) -> OTC | C91: =IF(Raw!BC91="","",Raw!BC91) -> 14 | D91: =IF(Raw!BD91="","",Raw!BD91) -> 0.3584 | E91: =IF(Raw!BE91="","",Raw!BE91) -> 0 | F91: =IF(Raw!BF91="","",Raw!BF91) -> 2930 | G91: =IF(Raw!BG91="","",Raw!BG91) -> -86.34 | H91: =IF(Raw!BH91="","",Raw!BH91) -> -61.35 | I91: =IF(Raw!BI91="","",Raw!BI91) -> 263.57 | J91: =IF(Raw!BJ91="","",Raw!BJ91) -> 49.95 | K91: =IFERROR(ROUND(VLOOKUP(A91,'Raw3'!A:F,6,0),2),"") -> 49.95 | L91: =IF(Raw!BK91="","",Raw!BK91) -> 3.08 | M91: =IF(Raw!BL91="","",Raw!BL91) -> 41020 | N91: =IF(Raw!BM91="","",Raw!BM91) -> 22.28 | O91: =IF(Raw!BN91="","",Raw!BN91) -> 8 | P91: =IF(Raw!BO91="","",Raw!BO91) -> 8 | Q91: =IF(Raw!BP91="","",Raw!BP91) -> 100 | R91: =IF(Raw!BQ91="","",Raw!BQ91) ->  | S91: =IF(Raw!BR91="","",Raw!BR91) -> 0 | T91: =IF(Raw!BS91="","",Raw!BS91) -> 0.76 | U91: =IF(Raw!BT91="","",Raw!BT91) -> Y | V91: =IF(Raw!BU91="","",Raw!BU91) -> Y | W91: =IF(Raw!BV91="","",Raw!BV91) -> Y | X91: =IF(Raw!BW91="","",Raw!BW91) ->  | Y91: =IF(Raw!BX91="","",Raw!BX91) ->  | Z91: =IF(Raw!BY91="","",Raw!BY91) ->  | AA91: =IF(Raw!BZ91="","",Raw!BZ91) ->  | AB91: =IF(Raw!CA91="","",Raw!CA91) ->  | AC91: =IF(Raw!CB91="","",Raw!CB91) ->  | AD91: =IF(Raw!CC91="","",Raw!CC91) ->  | AE91: =IF(Raw!CD91="","",Raw!CD91) ->  | AF91: =IF(Raw!CE91="","",Raw!CE91) ->  | AG91: =IF(Raw!CF91="","",Raw!CF91) ->  | AH91: =IF(Raw!CG91="","",Raw!CG91) ->  | AI91: =IF(Raw!CH91="","",Raw!CH91) -> -86.34 | AJ91: =IF(Raw!CI91="","",Raw!CI91) -> -61.35 | AK91: =IF(Raw!CJ91="","",Raw!CJ91) -> 263.57 | AL91: =IF(Raw!CK91="","",Raw!CK91) -> 0 | AM91: =IF(Raw!CL91="","",Raw!CL91) -> 2 | AN91: =IF(Raw!CM91="","",Raw!CM91) -> 0 | AO91: =IF(Raw!CN91="","",Raw!CN91) -> 3.08 | AP91: =IF(Raw!CO91="","",Raw!CO91) -> 0 | AQ91: =IF(Raw!CP91="","",Raw!CP91) -> 22.28 | AR91: =IF(Raw!CQ91="","",Raw!CQ91) ->  | AS91: =IF(Raw!CR91="","",Raw!CR91) -> 0 | AT91: =IF(Raw!CS91="","",Raw!CS91) ->  | AU91: =IF(Raw!CT91="","",Raw!CT91) -> 8 | AV91: =IF(Raw!CU91="","",Raw!CU91) -> 100 | AW91: =IF(Raw!CV91="","",Raw!CV91) -> 16
A92: =IF(Raw!BA92="","",Raw!BA92) -> 5259 清惠 | B92: =IF(Raw!BB92="","",Raw!BB92) -> TSE | C92: =IF(Raw!BC92="","",Raw!BC92) -> 3.99 | D92: =IF(Raw!BD92="","",Raw!BD92) -> 2.3077 | E92: =IF(Raw!BE92="","",Raw!BE92) -> 0.5038 | F92: =IF(Raw!BF92="","",Raw!BF92) -> 0 | G92: =IF(Raw!BG92="","",Raw!BG92) -> -10.89 | H92: =IF(Raw!BH92="","",Raw!BH92) -> -28.84 | I92: =IF(Raw!BI92="","",Raw!BI92) -> 2638.22 | J92: =IF(Raw!BJ92="","",Raw!BJ92) -> 0 | K92: =IFERROR(ROUND(VLOOKUP(A92,'Raw3'!A:F,6,0),2),"") -> 0 | L92: =IF(Raw!BK92="","",Raw!BK92) ->  | M92: =IF(Raw!BL92="","",Raw!BL92) -> 0 | N92: =IF(Raw!BM92="","",Raw!BM92) -> 51.48 | O92: =IF(Raw!BN92="","",Raw!BN92) -> D | P92: =IF(Raw!BO92="","",Raw!BO92) -> D | Q92: =IF(Raw!BP92="","",Raw!BP92) -> 100 | R92: =IF(Raw!BQ92="","",Raw!BQ92) -> Y_紓困-財危 | S92: =IF(Raw!BR92="","",Raw!BR92) ->  | T92: =IF(Raw!BS92="","",Raw!BS92) -> 6.54 | U92: =IF(Raw!BT92="","",Raw!BT92) ->  | V92: =IF(Raw!BU92="","",Raw!BU92) ->  | W92: =IF(Raw!BV92="","",Raw!BV92) -> Y | X92: =IF(Raw!BW92="","",Raw!BW92) ->  | Y92: =IF(Raw!BX92="","",Raw!BX92) ->  | Z92: =IF(Raw!BY92="","",Raw!BY92) ->  | AA92: =IF(Raw!BZ92="","",Raw!BZ92) -> Y | AB92: =IF(Raw!CA92="","",Raw!CA92) ->  | AC92: =IF(Raw!CB92="","",Raw!CB92) ->  | AD92: =IF(Raw!CC92="","",Raw!CC92) -> Y | AE92: =IF(Raw!CD92="","",Raw!CD92) ->  | AF92: =IF(Raw!CE92="","",Raw!CE92) ->  | AG92: =IF(Raw!CF92="","",Raw!CF92) ->  | AH92: =IF(Raw!CG92="","",Raw!CG92) ->  | AI92: =IF(Raw!CH92="","",Raw!CH92) -> -10.89 | AJ92: =IF(Raw!CI92="","",Raw!CI92) -> -28.84 | AK92: =IF(Raw!CJ92="","",Raw!CJ92) -> 2638.22 | AL92: =IF(Raw!CK92="","",Raw!CK92) -> 0 | AM92: =IF(Raw!CL92="","",Raw!CL92) -> 0 | AN92: =IF(Raw!CM92="","",Raw!CM92) -> 0 | AO92: =IF(Raw!CN92="","",Raw!CN92) ->  | AP92: =IF(Raw!CO92="","",Raw!CO92) -> 0 | AQ92: =IF(Raw!CP92="","",Raw!CP92) -> 51.48 | AR92: =IF(Raw!CQ92="","",Raw!CQ92) ->  | AS92: =IF(Raw!CR92="","",Raw!CR92) -> 3 | AT92: =IF(Raw!CS92="","",Raw!CS92) ->  | AU92: =IF(Raw!CT92="","",Raw!CT92) -> D | AV92: =IF(Raw!CU92="","",Raw!CU92) -> 100 | AW92: =IF(Raw!CV92="","",Raw!CV92) -> 16
A93: =IF(Raw!BA93="","",Raw!BA93) -> 5301 寶得利 | B93: =IF(Raw!BB93="","",Raw!BB93) -> OTC | C93: =IF(Raw!BC93="","",Raw!BC93) -> 20.4 | D93: =IF(Raw!BD93="","",Raw!BD93) -> 0.7407 | E93: =IF(Raw!BE93="","",Raw!BE93) -> -0.4878 | F93: =IF(Raw!BF93="","",Raw!BF93) -> 12390 | G93: =IF(Raw!BG93="","",Raw!BG93) -> -54.04 | H93: =IF(Raw!BH93="","",Raw!BH93) -> -73.54 | I93: =IF(Raw!BI93="","",Raw!BI93) -> 34.92 | J93: =IF(Raw!BJ93="","",Raw!BJ93) -> 21.82 | K93: =IFERROR(ROUND(VLOOKUP(A93,'Raw3'!A:F,6,0),2),"") -> 21.82 | L93: =IF(Raw!BK93="","",Raw!BK93) -> 79.24 | M93: =IF(Raw!BL93="","",Raw!BL93) -> 250773.6 | N93: =IF(Raw!BM93="","",Raw!BM93) -> 19.9 | O93: =IF(Raw!BN93="","",Raw!BN93) -> 9 | P93: =IF(Raw!BO93="","",Raw!BO93) -> 7 | Q93: =IF(Raw!BP93="","",Raw!BP93) -> 0 | R93: =IF(Raw!BQ93="","",Raw!BQ93) ->  | S93: =IF(Raw!BR93="","",Raw!BR93) -> 0.09 | T93: =IF(Raw!BS93="","",Raw!BS93) -> 1.76 | U93: =IF(Raw!BT93="","",Raw!BT93) -> Y | V93: =IF(Raw!BU93="","",Raw!BU93) -> Y | W93: =IF(Raw!BV93="","",Raw!BV93) ->  | X93: =IF(Raw!BW93="","",Raw!BW93) ->  | Y93: =IF(Raw!BX93="","",Raw!BX93) ->  | Z93: =IF(Raw!BY93="","",Raw!BY93) ->  | AA93: =IF(Raw!BZ93="","",Raw!BZ93) ->  | AB93: =IF(Raw!CA93="","",Raw!CA93) ->  | AC93: =IF(Raw!CB93="","",Raw!CB93) ->  | AD93: =IF(Raw!CC93="","",Raw!CC93) ->  | AE93: =IF(Raw!CD93="","",Raw!CD93) ->  | AF93: =IF(Raw!CE93="","",Raw!CE93) ->  | AG93: =IF(Raw!CF93="","",Raw!CF93) ->  | AH93: =IF(Raw!CG93="","",Raw!CG93) ->  | AI93: =IF(Raw!CH93="","",Raw!CH93) -> -54.04 | AJ93: =IF(Raw!CI93="","",Raw!CI93) -> -73.54 | AK93: =IF(Raw!CJ93="","",Raw!CJ93) -> 34.92 | AL93: =IF(Raw!CK93="","",Raw!CK93) -> 0 | AM93: =IF(Raw!CL93="","",Raw!CL93) -> 0 | AN93: =IF(Raw!CM93="","",Raw!CM93) -> 0 | AO93: =IF(Raw!CN93="","",Raw!CN93) -> 79.24 | AP93: =IF(Raw!CO93="","",Raw!CO93) -> 0 | AQ93: =IF(Raw!CP93="","",Raw!CP93) -> 19.9 | AR93: =IF(Raw!CQ93="","",Raw!CQ93) ->  | AS93: =IF(Raw!CR93="","",Raw!CR93) -> 0 | AT93: =IF(Raw!CS93="","",Raw!CS93) ->  | AU93: =IF(Raw!CT93="","",Raw!CT93) -> 9 | AV93: =IF(Raw!CU93="","",Raw!CU93) -> 0 | AW93: =IF(Raw!CV93="","",Raw!CV93) -> 12
A94: =IF(Raw!BA94="","",Raw!BA94) -> 5302 太欣 | B94: =IF(Raw!BB94="","",Raw!BB94) -> OTC | C94: =IF(Raw!BC94="","",Raw!BC94) -> 6.14 | D94: =IF(Raw!BD94="","",Raw!BD94) -> 1.4876 | E94: =IF(Raw!BE94="","",Raw!BE94) -> 4.9572 | F94: =IF(Raw!BF94="","",Raw!BF94) -> 3580 | G94: =IF(Raw!BG94="","",Raw!BG94) -> -37.58 | H94: =IF(Raw!BH94="","",Raw!BH94) -> -28.69 | I94: =IF(Raw!BI94="","",Raw!BI94) -> 16.47 | J94: =IF(Raw!BJ94="","",Raw!BJ94) -> 0 | K94: =IFERROR(ROUND(VLOOKUP(A94,'Raw3'!A:F,6,0),2),"") -> 0 | L94: =IF(Raw!BK94="","",Raw!BK94) -> 8.81 | M94: =IF(Raw!BL94="","",Raw!BL94) -> 22124.4 | N94: =IF(Raw!BM94="","",Raw!BM94) -> 34.13 | O94: =IF(Raw!BN94="","",Raw!BN94) -> 8 | P94: =IF(Raw!BO94="","",Raw!BO94) -> 6 | Q94: =IF(Raw!BP94="","",Raw!BP94) -> 0 | R94: =IF(Raw!BQ94="","",Raw!BQ94) ->  | S94: =IF(Raw!BR94="","",Raw!BR94) -> 0.5 | T94: =IF(Raw!BS94="","",Raw!BS94) -> 0.59 | U94: =IF(Raw!BT94="","",Raw!BT94) ->  | V94: =IF(Raw!BU94="","",Raw!BU94) ->  | W94: =IF(Raw!BV94="","",Raw!BV94) ->  | X94: =IF(Raw!BW94="","",Raw!BW94) ->  | Y94: =IF(Raw!BX94="","",Raw!BX94) ->  | Z94: =IF(Raw!BY94="","",Raw!BY94) ->  | AA94: =IF(Raw!BZ94="","",Raw!BZ94) ->  | AB94: =IF(Raw!CA94="","",Raw!CA94) ->  | AC94: =IF(Raw!CB94="","",Raw!CB94) ->  | AD94: =IF(Raw!CC94="","",Raw!CC94) ->  | AE94: =IF(Raw!CD94="","",Raw!CD94) ->  | AF94: =IF(Raw!CE94="","",Raw!CE94) ->  | AG94: =IF(Raw!CF94="","",Raw!CF94) ->  | AH94: =IF(Raw!CG94="","",Raw!CG94) ->  | AI94: =IF(Raw!CH94="","",Raw!CH94) -> -37.58 | AJ94: =IF(Raw!CI94="","",Raw!CI94) -> -28.69 | AK94: =IF(Raw!CJ94="","",Raw!CJ94) -> 16.47 | AL94: =IF(Raw!CK94="","",Raw!CK94) -> 0 | AM94: =IF(Raw!CL94="","",Raw!CL94) -> 0 | AN94: =IF(Raw!CM94="","",Raw!CM94) -> 0 | AO94: =IF(Raw!CN94="","",Raw!CN94) -> 8.81 | AP94: =IF(Raw!CO94="","",Raw!CO94) -> 0 | AQ94: =IF(Raw!CP94="","",Raw!CP94) -> 34.13 | AR94: =IF(Raw!CQ94="","",Raw!CQ94) ->  | AS94: =IF(Raw!CR94="","",Raw!CR94) -> 0 | AT94: =IF(Raw!CS94="","",Raw!CS94) ->  | AU94: =IF(Raw!CT94="","",Raw!CT94) -> 8 | AV94: =IF(Raw!CU94="","",Raw!CU94) -> 0 | AW94: =IF(Raw!CV94="","",Raw!CV94) -> 9
A95: =IF(Raw!BA95="","",Raw!BA95) -> 5304 鼎創達 | B95: =IF(Raw!BB95="","",Raw!BB95) -> OTC | C95: =IF(Raw!BC95="","",Raw!BC95) -> 2.05 | D95: =IF(Raw!BD95="","",Raw!BD95) -> 0 | E95: =IF(Raw!BE95="","",Raw!BE95) -> -1.4423 | F95: =IF(Raw!BF95="","",Raw!BF95) -> 0 | G95: =IF(Raw!BG95="","",Raw!BG95) -> 47.84 | H95: =IF(Raw!BH95="","",Raw!BH95) -> 11.06 | I95: =IF(Raw!BI95="","",Raw!BI95) -> 362.79 | J95: =IF(Raw!BJ95="","",Raw!BJ95) -> 0 | K95: =IFERROR(ROUND(VLOOKUP(A95,'Raw3'!A:F,6,0),2),"") -> 0 | L95: =IF(Raw!BK95="","",Raw!BK95) -> 0 | M95: =IF(Raw!BL95="","",Raw!BL95) -> 0 | N95: =IF(Raw!BM95="","",Raw!BM95) -> 47.94 | O95: =IF(Raw!BN95="","",Raw!BN95) -> 9 | P95: =IF(Raw!BO95="","",Raw!BO95) -> 9 | Q95: =IF(Raw!BP95="","",Raw!BP95) -> 100 | R95: =IF(Raw!BQ95="","",Raw!BQ95) ->  | S95: =IF(Raw!BR95="","",Raw!BR95) ->  | T95: =IF(Raw!BS95="","",Raw!BS95) -> 0.72 | U95: =IF(Raw!BT95="","",Raw!BT95) ->  | V95: =IF(Raw!BU95="","",Raw!BU95) ->  | W95: =IF(Raw!BV95="","",Raw!BV95) -> Y | X95: =IF(Raw!BW95="","",Raw!BW95) ->  | Y95: =IF(Raw!BX95="","",Raw!BX95) ->  | Z95: =IF(Raw!BY95="","",Raw!BY95) ->  | AA95: =IF(Raw!BZ95="","",Raw!BZ95) ->  | AB95: =IF(Raw!CA95="","",Raw!CA95) ->  | AC95: =IF(Raw!CB95="","",Raw!CB95) ->  | AD95: =IF(Raw!CC95="","",Raw!CC95) -> Y | AE95: =IF(Raw!CD95="","",Raw!CD95) ->  | AF95: =IF(Raw!CE95="","",Raw!CE95) ->  | AG95: =IF(Raw!CF95="","",Raw!CF95) ->  | AH95: =IF(Raw!CG95="","",Raw!CG95) ->  | AI95: =IF(Raw!CH95="","",Raw!CH95) -> 47.84 | AJ95: =IF(Raw!CI95="","",Raw!CI95) -> 11.06 | AK95: =IF(Raw!CJ95="","",Raw!CJ95) -> 362.79 | AL95: =IF(Raw!CK95="","",Raw!CK95) -> 0 | AM95: =IF(Raw!CL95="","",Raw!CL95) -> 0 | AN95: =IF(Raw!CM95="","",Raw!CM95) -> 0 | AO95: =IF(Raw!CN95="","",Raw!CN95) -> 0 | AP95: =IF(Raw!CO95="","",Raw!CO95) -> 0 | AQ95: =IF(Raw!CP95="","",Raw!CP95) -> 47.94 | AR95: =IF(Raw!CQ95="","",Raw!CQ95) ->  | AS95: =IF(Raw!CR95="","",Raw!CR95) -> 0 | AT95: =IF(Raw!CS95="","",Raw!CS95) ->  | AU95: =IF(Raw!CT95="","",Raw!CT95) -> 9 | AV95: =IF(Raw!CU95="","",Raw!CU95) -> 100 | AW95: =IF(Raw!CV95="","",Raw!CV95) -> 10
A96: =IF(Raw!BA96="","",Raw!BA96) -> 5345 天揚 | B96: =IF(Raw!BB96="","",Raw!BB96) -> OTC | C96: =IF(Raw!BC96="","",Raw!BC96) -> 7.69 | D96: =IF(Raw!BD96="","",Raw!BD96) -> 1.5852 | E96: =IF(Raw!BE96="","",Raw!BE96) -> 1.1842 | F96: =IF(Raw!BF96="","",Raw!BF96) -> 529 | G96: =IF(Raw!BG96="","",Raw!BG96) -> -27.63 | H96: =IF(Raw!BH96="","",Raw!BH96) -> -34.92 | I96: =IF(Raw!BI96="","",Raw!BI96) -> 13.22 | J96: =IF(Raw!BJ96="","",Raw!BJ96) -> 0 | K96: =IFERROR(ROUND(VLOOKUP(A96,'Raw3'!A:F,6,0),2),"") -> 0 | L96: =IF(Raw!BK96="","",Raw!BK96) -> 0 | M96: =IF(Raw!BL96="","",Raw!BL96) -> 3978.08 | N96: =IF(Raw!BM96="","",Raw!BM96) -> 42.29 | O96: =IF(Raw!BN96="","",Raw!BN96) -> 8 | P96: =IF(Raw!BO96="","",Raw!BO96) -> 6 | Q96: =IF(Raw!BP96="","",Raw!BP96) -> 0 | R96: =IF(Raw!BQ96="","",Raw!BQ96) ->  | S96: =IF(Raw!BR96="","",Raw!BR96) -> 0 | T96: =IF(Raw!BS96="","",Raw!BS96) -> 0.92 | U96: =IF(Raw!BT96="","",Raw!BT96) ->  | V96: =IF(Raw!BU96="","",Raw!BU96) ->  | W96: =IF(Raw!BV96="","",Raw!BV96) ->  | X96: =IF(Raw!BW96="","",Raw!BW96) ->  | Y96: =IF(Raw!BX96="","",Raw!BX96) ->  | Z96: =IF(Raw!BY96="","",Raw!BY96) ->  | AA96: =IF(Raw!BZ96="","",Raw!BZ96) ->  | AB96: =IF(Raw!CA96="","",Raw!CA96) ->  | AC96: =IF(Raw!CB96="","",Raw!CB96) ->  | AD96: =IF(Raw!CC96="","",Raw!CC96) ->  | AE96: =IF(Raw!CD96="","",Raw!CD96) ->  | AF96: =IF(Raw!CE96="","",Raw!CE96) ->  | AG96: =IF(Raw!CF96="","",Raw!CF96) ->  | AH96: =IF(Raw!CG96="","",Raw!CG96) ->  | AI96: =IF(Raw!CH96="","",Raw!CH96) -> -27.63 | AJ96: =IF(Raw!CI96="","",Raw!CI96) -> -34.92 | AK96: =IF(Raw!CJ96="","",Raw!CJ96) -> 13.22 | AL96: =IF(Raw!CK96="","",Raw!CK96) -> 0 | AM96: =IF(Raw!CL96="","",Raw!CL96) -> 0 | AN96: =IF(Raw!CM96="","",Raw!CM96) -> 0 | AO96: =IF(Raw!CN96="","",Raw!CN96) -> 0 | AP96: =IF(Raw!CO96="","",Raw!CO96) -> 0 | AQ96: =IF(Raw!CP96="","",Raw!CP96) -> 42.29 | AR96: =IF(Raw!CQ96="","",Raw!CQ96) ->  | AS96: =IF(Raw!CR96="","",Raw!CR96) -> 0 | AT96: =IF(Raw!CS96="","",Raw!CS96) ->  | AU96: =IF(Raw!CT96="","",Raw!CT96) -> 8 | AV96: =IF(Raw!CU96="","",Raw!CU96) -> 0 | AW96: =IF(Raw!CV96="","",Raw!CV96) -> 9
A97: =IF(Raw!BA97="","",Raw!BA97) -> 5348 系通 | B97: =IF(Raw!BB97="","",Raw!BB97) -> OTC | C97: =IF(Raw!BC97="","",Raw!BC97) -> 4.35 | D97: =IF(Raw!BD97="","",Raw!BD97) -> 0 | E97: =IF(Raw!BE97="","",Raw!BE97) -> 9.8485 | F97: =IF(Raw!BF97="","",Raw!BF97) ->  | G97: =IF(Raw!BG97="","",Raw!BG97) -> -60.76 | H97: =IF(Raw!BH97="","",Raw!BH97) -> -38.33 | I97: =IF(Raw!BI97="","",Raw!BI97) -> 265.85 | J97: =IF(Raw!BJ97="","",Raw!BJ97) -> 0 | K97: =IFERROR(ROUND(VLOOKUP(A97,'Raw3'!A:F,6,0),2),"") -> 0 | L97: =IF(Raw!BK97="","",Raw!BK97) ->  | M97: =IF(Raw!BL97="","",Raw!BL97) ->  | N97: =IF(Raw!BM97="","",Raw!BM97) -> 50 | O97: =IF(Raw!BN97="","",Raw!BN97) -> 9 | P97: =IF(Raw!BO97="","",Raw!BO97) -> 9 | Q97: =IF(Raw!BP97="","",Raw!BP97) -> 100 | R97: =IF(Raw!BQ97="","",Raw!BQ97) ->  | S97: =IF(Raw!BR97="","",Raw!BR97) ->  | T97: =IF(Raw!BS97="","",Raw!BS97) -> 2.39 | U97: =IF(Raw!BT97="","",Raw!BT97) -> Y | V97: =IF(Raw!BU97="","",Raw!BU97) ->  | W97: =IF(Raw!BV97="","",Raw!BV97) -> Y | X97: =IF(Raw!BW97="","",Raw!BW97) ->  | Y97: =IF(Raw!BX97="","",Raw!BX97) ->  | Z97: =IF(Raw!BY97="","",Raw!BY97) ->  | AA97: =IF(Raw!BZ97="","",Raw!BZ97) -> Y | AB97: =IF(Raw!CA97="","",Raw!CA97) ->  | AC97: =IF(Raw!CB97="","",Raw!CB97) ->  | AD97: =IF(Raw!CC97="","",Raw!CC97) -> Y | AE97: =IF(Raw!CD97="","",Raw!CD97) ->  | AF97: =IF(Raw!CE97="","",Raw!CE97) ->  | AG97: =IF(Raw!CF97="","",Raw!CF97) ->  | AH97: =IF(Raw!CG97="","",Raw!CG97) ->  | AI97: =IF(Raw!CH97="","",Raw!CH97) -> -60.76 | AJ97: =IF(Raw!CI97="","",Raw!CI97) -> -38.33 | AK97: =IF(Raw!CJ97="","",Raw!CJ97) -> 265.85 | AL97: =IF(Raw!CK97="","",Raw!CK97) -> 0 | AM97: =IF(Raw!CL97="","",Raw!CL97) -> 0 | AN97: =IF(Raw!CM97="","",Raw!CM97) -> 0 | AO97: =IF(Raw!CN97="","",Raw!CN97) ->  | AP97: =IF(Raw!CO97="","",Raw!CO97) -> 0 | AQ97: =IF(Raw!CP97="","",Raw!CP97) -> 50 | AR97: =IF(Raw!CQ97="","",Raw!CQ97) ->  | AS97: =IF(Raw!CR97="","",Raw!CR97) -> 0 | AT97: =IF(Raw!CS97="","",Raw!CS97) ->  | AU97: =IF(Raw!CT97="","",Raw!CT97) -> 9 | AV97: =IF(Raw!CU97="","",Raw!CU97) -> 100 | AW97: =IF(Raw!CV97="","",Raw!CV97) -> 16
A98: =IF(Raw!BA98="","",Raw!BA98) -> 5450 寶聯通 | B98: =IF(Raw!BB98="","",Raw!BB98) -> OTC | C98: =IF(Raw!BC98="","",Raw!BC98) -> 7.28 | D98: =IF(Raw!BD98="","",Raw!BD98) -> -2.8037 | E98: =IF(Raw!BE98="","",Raw!BE98) -> -1.4885 | F98: =IF(Raw!BF98="","",Raw!BF98) -> 0 | G98: =IF(Raw!BG98="","",Raw!BG98) -> -39.4 | H98: =IF(Raw!BH98="","",Raw!BH98) -> -21.11 | I98: =IF(Raw!BI98="","",Raw!BI98) -> 82.26 | J98: =IF(Raw!BJ98="","",Raw!BJ98) -> 40.61 | K98: =IFERROR(ROUND(VLOOKUP(A98,'Raw3'!A:F,6,0),2),"") -> 40.61 | L98: =IF(Raw!BK98="","",Raw!BK98) -> 0 | M98: =IF(Raw!BL98="","",Raw!BL98) -> 0 | N98: =IF(Raw!BM98="","",Raw!BM98) -> 30.38 | O98: =IF(Raw!BN98="","",Raw!BN98) -> 7 | P98: =IF(Raw!BO98="","",Raw!BO98) -> 6 | Q98: =IF(Raw!BP98="","",Raw!BP98) -> 0 | R98: =IF(Raw!BQ98="","",Raw!BQ98) ->  | S98: =IF(Raw!BR98="","",Raw!BR98) ->  | T98: =IF(Raw!BS98="","",Raw!BS98) -> 0.76 | U98: =IF(Raw!BT98="","",Raw!BT98) ->  | V98: =IF(Raw!BU98="","",Raw!BU98) ->  | W98: =IF(Raw!BV98="","",Raw!BV98) ->  | X98: =IF(Raw!BW98="","",Raw!BW98) ->  | Y98: =IF(Raw!BX98="","",Raw!BX98) ->  | Z98: =IF(Raw!BY98="","",Raw!BY98) ->  | AA98: =IF(Raw!BZ98="","",Raw!BZ98) ->  | AB98: =IF(Raw!CA98="","",Raw!CA98) ->  | AC98: =IF(Raw!CB98="","",Raw!CB98) ->  | AD98: =IF(Raw!CC98="","",Raw!CC98) ->  | AE98: =IF(Raw!CD98="","",Raw!CD98) ->  | AF98: =IF(Raw!CE98="","",Raw!CE98) ->  | AG98: =IF(Raw!CF98="","",Raw!CF98) ->  | AH98: =IF(Raw!CG98="","",Raw!CG98) ->  | AI98: =IF(Raw!CH98="","",Raw!CH98) -> -39.4 | AJ98: =IF(Raw!CI98="","",Raw!CI98) -> -21.11 | AK98: =IF(Raw!CJ98="","",Raw!CJ98) -> 82.26 | AL98: =IF(Raw!CK98="","",Raw!CK98) -> 0 | AM98: =IF(Raw!CL98="","",Raw!CL98) -> 2 | AN98: =IF(Raw!CM98="","",Raw!CM98) -> 0 | AO98: =IF(Raw!CN98="","",Raw!CN98) -> 0 | AP98: =IF(Raw!CO98="","",Raw!CO98) -> 0 | AQ98: =IF(Raw!CP98="","",Raw!CP98) -> 30.38 | AR98: =IF(Raw!CQ98="","",Raw!CQ98) ->  | AS98: =IF(Raw!CR98="","",Raw!CR98) -> 0 | AT98: =IF(Raw!CS98="","",Raw!CS98) ->  | AU98: =IF(Raw!CT98="","",Raw!CT98) -> 7 | AV98: =IF(Raw!CU98="","",Raw!CU98) -> 0 | AW98: =IF(Raw!CV98="","",Raw!CV98) -> 9
A99: =IF(Raw!BA99="","",Raw!BA99) -> 5455 昇益 | B99: =IF(Raw!BB99="","",Raw!BB99) -> OTC | C99: =IF(Raw!BC99="","",Raw!BC99) -> 8.63 | D99: =IF(Raw!BD99="","",Raw!BD99) -> 9.9363 | E99: =IF(Raw!BE99="","",Raw!BE99) -> -8.3863 | F99: =IF(Raw!BF99="","",Raw!BF99) -> 0 | G99: =IF(Raw!BG99="","",Raw!BG99) -> -49.49 | H99: =IF(Raw!BH99="","",Raw!BH99) -> -6.92 | I99: =IF(Raw!BI99="","",Raw!BI99) -> 48.01 | J99: =IF(Raw!BJ99="","",Raw!BJ99) -> 0 | K99: =IFERROR(ROUND(VLOOKUP(A99,'Raw3'!A:F,6,0),2),"") -> 0 | L99: =IF(Raw!BK99="","",Raw!BK99) -> 0 | M99: =IF(Raw!BL99="","",Raw!BL99) -> 0 | N99: =IF(Raw!BM99="","",Raw!BM99) -> 74.97 | O99: =IF(Raw!BN99="","",Raw!BN99) -> 8 | P99: =IF(Raw!BO99="","",Raw!BO99) -> 9 | Q99: =IF(Raw!BP99="","",Raw!BP99) -> 100 | R99: =IF(Raw!BQ99="","",Raw!BQ99) ->  | S99: =IF(Raw!BR99="","",Raw!BR99) ->  | T99: =IF(Raw!BS99="","",Raw!BS99) -> 1.98 | U99: =IF(Raw!BT99="","",Raw!BT99) ->  | V99: =IF(Raw!BU99="","",Raw!BU99) ->  | W99: =IF(Raw!BV99="","",Raw!BV99) ->  | X99: =IF(Raw!BW99="","",Raw!BW99) ->  | Y99: =IF(Raw!BX99="","",Raw!BX99) ->  | Z99: =IF(Raw!BY99="","",Raw!BY99) ->  | AA99: =IF(Raw!BZ99="","",Raw!BZ99) -> Y | AB99: =IF(Raw!CA99="","",Raw!CA99) ->  | AC99: =IF(Raw!CB99="","",Raw!CB99) ->  | AD99: =IF(Raw!CC99="","",Raw!CC99) -> Y | AE99: =IF(Raw!CD99="","",Raw!CD99) ->  | AF99: =IF(Raw!CE99="","",Raw!CE99) ->  | AG99: =IF(Raw!CF99="","",Raw!CF99) ->  | AH99: =IF(Raw!CG99="","",Raw!CG99) ->  | AI99: =IF(Raw!CH99="","",Raw!CH99) -> -49.49 | AJ99: =IF(Raw!CI99="","",Raw!CI99) -> -6.92 | AK99: =IF(Raw!CJ99="","",Raw!CJ99) -> 48.01 | AL99: =IF(Raw!CK99="","",Raw!CK99) -> 0 | AM99: =IF(Raw!CL99="","",Raw!CL99) -> 0 | AN99: =IF(Raw!CM99="","",Raw!CM99) -> 0 | AO99: =IF(Raw!CN99="","",Raw!CN99) -> 0 | AP99: =IF(Raw!CO99="","",Raw!CO99) -> 0 | AQ99: =IF(Raw!CP99="","",Raw!CP99) -> 74.97 | AR99: =IF(Raw!CQ99="","",Raw!CQ99) ->  | AS99: =IF(Raw!CR99="","",Raw!CR99) -> 0 | AT99: =IF(Raw!CS99="","",Raw!CS99) ->  | AU99: =IF(Raw!CT99="","",Raw!CT99) -> 8 | AV99: =IF(Raw!CU99="","",Raw!CU99) -> 100 | AW99: =IF(Raw!CV99="","",Raw!CV99) -> 9
A100: =IF(Raw!BA100="","",Raw!BA100) -> 5468 凱鈺 | B100: =IF(Raw!BB100="","",Raw!BB100) -> OTC | C100: =IF(Raw!BC100="","",Raw!BC100) -> 4.25 | D100: =IF(Raw!BD100="","",Raw!BD100) -> -7.0022 | E100: =IF(Raw!BE100="","",Raw!BE100) -> 2.1635 | F100: =IF(Raw!BF100="","",Raw!BF100) -> 0 | G100: =IF(Raw!BG100="","",Raw!BG100) -> -26.44 | H100: =IF(Raw!BH100="","",Raw!BH100) -> -22.47 | I100: =IF(Raw!BI100="","",Raw!BI100) -> 46.58 | J100: =IF(Raw!BJ100="","",Raw!BJ100) -> 0 | K100: =IFERROR(ROUND(VLOOKUP(A100,'Raw3'!A:F,6,0),2),"") -> 0 | L100: =IF(Raw!BK100="","",Raw!BK100) -> 0 | M100: =IF(Raw!BL100="","",Raw!BL100) -> 0 | N100: =IF(Raw!BM100="","",Raw!BM100) -> 50 | O100: =IF(Raw!BN100="","",Raw!BN100) -> 8 | P100: =IF(Raw!BO100="","",Raw!BO100) -> 8 | Q100: =IF(Raw!BP100="","",Raw!BP100) -> 100 | R100: =IF(Raw!BQ100="","",Raw!BQ100) ->  | S100: =IF(Raw!BR100="","",Raw!BR100) ->  | T100: =IF(Raw!BS100="","",Raw!BS100) -> 0.96 | U100: =IF(Raw!BT100="","",Raw!BT100) ->  | V100: =IF(Raw!BU100="","",Raw!BU100) ->  | W100: =IF(Raw!BV100="","",Raw!BV100) ->  | X100: =IF(Raw!BW100="","",Raw!BW100) ->  | Y100: =IF(Raw!BX100="","",Raw!BX100) ->  | Z100: =IF(Raw!BY100="","",Raw!BY100) ->  | AA100: =IF(Raw!BZ100="","",Raw!BZ100) -> Y | AB100: =IF(Raw!CA100="","",Raw!CA100) ->  | AC100: =IF(Raw!CB100="","",Raw!CB100) ->  | AD100: =IF(Raw!CC100="","",Raw!CC100) -> Y | AE100: =IF(Raw!CD100="","",Raw!CD100) ->  | AF100: =IF(Raw!CE100="","",Raw!CE100) ->  | AG100: =IF(Raw!CF100="","",Raw!CF100) ->  | AH100: =IF(Raw!CG100="","",Raw!CG100) ->  | AI100: =IF(Raw!CH100="","",Raw!CH100) -> -26.44 | AJ100: =IF(Raw!CI100="","",Raw!CI100) -> -22.47 | AK100: =IF(Raw!CJ100="","",Raw!CJ100) -> 46.58 | AL100: =IF(Raw!CK100="","",Raw!CK100) -> 0 | AM100: =IF(Raw!CL100="","",Raw!CL100) -> 0 | AN100: =IF(Raw!CM100="","",Raw!CM100) -> 0 | AO100: =IF(Raw!CN100="","",Raw!CN100) -> 0 | AP100: =IF(Raw!CO100="","",Raw!CO100) -> 0 | AQ100: =IF(Raw!CP100="","",Raw!CP100) -> 50 | AR100: =IF(Raw!CQ100="","",Raw!CQ100) ->  | AS100: =IF(Raw!CR100="","",Raw!CR100) -> 0 | AT100: =IF(Raw!CS100="","",Raw!CS100) ->  | AU100: =IF(Raw!CT100="","",Raw!CT100) -> 8 | AV100: =IF(Raw!CU100="","",Raw!CU100) -> 100 | AW100: =IF(Raw!CV100="","",Raw!CV100) -> 11
A101: =IF(Raw!BA101="","",Raw!BA101) -> 5475 德宏 | B101: =IF(Raw!BB101="","",Raw!BB101) -> OTC | C101: =IF(Raw!BC101="","",Raw!BC101) -> 10.3 | D101: =IF(Raw!BD101="","",Raw!BD101) -> -6.3636 | E101: =IF(Raw!BE101="","",Raw!BE101) -> 5.6411 | F101: =IF(Raw!BF101="","",Raw!BF101) -> 0 | G101: =IF(Raw!BG101="","",Raw!BG101) -> 19.07 | H101: =IF(Raw!BH101="","",Raw!BH101) -> 21.28 | I101: =IF(Raw!BI101="","",Raw!BI101) -> 313 | J101: =IF(Raw!BJ101="","",Raw!BJ101) -> 52.71 | K101: =IFERROR(ROUND(VLOOKUP(A101,'Raw3'!A:F,6,0),2),"") -> 52.71 | L101: =IF(Raw!BK101="","",Raw!BK101) -> 0 | M101: =IF(Raw!BL101="","",Raw!BL101) -> 0 | N101: =IF(Raw!BM101="","",Raw!BM101) -> 23.31 | O101: =IF(Raw!BN101="","",Raw!BN101) -> 8 | P101: =IF(Raw!BO101="","",Raw!BO101) -> 9 | Q101: =IF(Raw!BP101="","",Raw!BP101) -> 100 | R101: =IF(Raw!BQ101="","",Raw!BQ101) ->  | S101: =IF(Raw!BR101="","",Raw!BR101) ->  | T101: =IF(Raw!BS101="","",Raw!BS101) -> 1.75 | U101: =IF(Raw!BT101="","",Raw!BT101) ->  | V101: =IF(Raw!BU101="","",Raw!BU101) ->  | W101: =IF(Raw!BV101="","",Raw!BV101) -> Y | X101: =IF(Raw!BW101="","",Raw!BW101) ->  | Y101: =IF(Raw!BX101="","",Raw!BX101) ->  | Z101: =IF(Raw!BY101="","",Raw!BY101) ->  | AA101: =IF(Raw!BZ101="","",Raw!BZ101) ->  | AB101: =IF(Raw!CA101="","",Raw!CA101) ->  | AC101: =IF(Raw!CB101="","",Raw!CB101) -> Y | AD101: =IF(Raw!CC101="","",Raw!CC101) ->  | AE101: =IF(Raw!CD101="","",Raw!CD101) ->  | AF101: =IF(Raw!CE101="","",Raw!CE101) ->  | AG101: =IF(Raw!CF101="","",Raw!CF101) ->  | AH101: =IF(Raw!CG101="","",Raw!CG101) ->  | AI101: =IF(Raw!CH101="","",Raw!CH101) -> 19.07 | AJ101: =IF(Raw!CI101="","",Raw!CI101) -> 21.28 | AK101: =IF(Raw!CJ101="","",Raw!CJ101) -> 313 | AL101: =IF(Raw!CK101="","",Raw!CK101) -> 0 | AM101: =IF(Raw!CL101="","",Raw!CL101) -> 3 | AN101: =IF(Raw!CM101="","",Raw!CM101) -> 0 | AO101: =IF(Raw!CN101="","",Raw!CN101) -> 0 | AP101: =IF(Raw!CO101="","",Raw!CO101) -> 0 | AQ101: =IF(Raw!CP101="","",Raw!CP101) -> 23.31 | AR101: =IF(Raw!CQ101="","",Raw!CQ101) ->  | AS101: =IF(Raw!CR101="","",Raw!CR101) -> 0 | AT101: =IF(Raw!CS101="","",Raw!CS101) ->  | AU101: =IF(Raw!CT101="","",Raw!CT101) -> 8 | AV101: =IF(Raw!CU101="","",Raw!CU101) -> 100 | AW101: =IF(Raw!CV101="","",Raw!CV101) -> 11
A102: =IF(Raw!BA102="","",Raw!BA102) -> 5481 華韡 | B102: =IF(Raw!BB102="","",Raw!BB102) -> OTC | C102: =IF(Raw!BC102="","",Raw!BC102) -> 16.8 | D102: =IF(Raw!BD102="","",Raw!BD102) -> -0.885 | E102: =IF(Raw!BE102="","",Raw!BE102) -> 2.1277 | F102: =IF(Raw!BF102="","",Raw!BF102) -> 12313 | G102: =IF(Raw!BG102="","",Raw!BG102) -> -70.88 | H102: =IF(Raw!BH102="","",Raw!BH102) -> -90.69 | I102: =IF(Raw!BI102="","",Raw!BI102) -> 2.61 | J102: =IF(Raw!BJ102="","",Raw!BJ102) -> 0 | K102: =IFERROR(ROUND(VLOOKUP(A102,'Raw3'!A:F,6,0),2),"") -> 0 | L102: =IF(Raw!BK102="","",Raw!BK102) -> 52.01 | M102: =IF(Raw!BL102="","",Raw!BL102) -> 208951.61 | N102: =IF(Raw!BM102="","",Raw!BM102) -> 31.5 | O102: =IF(Raw!BN102="","",Raw!BN102) -> 8 | P102: =IF(Raw!BO102="","",Raw!BO102) -> 6 | Q102: =IF(Raw!BP102="","",Raw!BP102) -> 0 | R102: =IF(Raw!BQ102="","",Raw!BQ102) ->  | S102: =IF(Raw!BR102="","",Raw!BR102) -> 0.32 | T102: =IF(Raw!BS102="","",Raw!BS102) -> 1.44 | U102: =IF(Raw!BT102="","",Raw!BT102) -> Y | V102: =IF(Raw!BU102="","",Raw!BU102) -> Y | W102: =IF(Raw!BV102="","",Raw!BV102) ->  | X102: =IF(Raw!BW102="","",Raw!BW102) ->  | Y102: =IF(Raw!BX102="","",Raw!BX102) ->  | Z102: =IF(Raw!BY102="","",Raw!BY102) ->  | AA102: =IF(Raw!BZ102="","",Raw!BZ102) ->  | AB102: =IF(Raw!CA102="","",Raw!CA102) ->  | AC102: =IF(Raw!CB102="","",Raw!CB102) ->  | AD102: =IF(Raw!CC102="","",Raw!CC102) ->  | AE102: =IF(Raw!CD102="","",Raw!CD102) ->  | AF102: =IF(Raw!CE102="","",Raw!CE102) ->  | AG102: =IF(Raw!CF102="","",Raw!CF102) ->  | AH102: =IF(Raw!CG102="","",Raw!CG102) ->  | AI102: =IF(Raw!CH102="","",Raw!CH102) -> -70.88 | AJ102: =IF(Raw!CI102="","",Raw!CI102) -> -90.69 | AK102: =IF(Raw!CJ102="","",Raw!CJ102) -> 2.61 | AL102: =IF(Raw!CK102="","",Raw!CK102) -> 0 | AM102: =IF(Raw!CL102="","",Raw!CL102) -> 0 | AN102: =IF(Raw!CM102="","",Raw!CM102) -> 0 | AO102: =IF(Raw!CN102="","",Raw!CN102) -> 52.01 | AP102: =IF(Raw!CO102="","",Raw!CO102) -> 0 | AQ102: =IF(Raw!CP102="","",Raw!CP102) -> 31.5 | AR102: =IF(Raw!CQ102="","",Raw!CQ102) ->  | AS102: =IF(Raw!CR102="","",Raw!CR102) -> 0 | AT102: =IF(Raw!CS102="","",Raw!CS102) ->  | AU102: =IF(Raw!CT102="","",Raw!CT102) -> 8 | AV102: =IF(Raw!CU102="","",Raw!CU102) -> 0 | AW102: =IF(Raw!CV102="","",Raw!CV102) -> 11
A103: =IF(Raw!BA103="","",Raw!BA103) -> 5519 隆大 | B103: =IF(Raw!BB103="","",Raw!BB103) -> TSE | C103: =IF(Raw!BC103="","",Raw!BC103) -> 11.05 | D103: =IF(Raw!BD103="","",Raw!BD103) -> 0.4545 | E103: =IF(Raw!BE103="","",Raw!BE103) -> 1.3761 | F103: =IF(Raw!BF103="","",Raw!BF103) -> 1965 | G103: =IF(Raw!BG103="","",Raw!BG103) -> -20.1 | H103: =IF(Raw!BH103="","",Raw!BH103) -> 17.7 | I103: =IF(Raw!BI103="","",Raw!BI103) -> 151.76 | J103: =IF(Raw!BJ103="","",Raw!BJ103) -> 47.83 | K103: =IFERROR(ROUND(VLOOKUP(A103,'Raw3'!A:F,6,0),2),"") -> 49.01 | L103: =IF(Raw!BK103="","",Raw!BK103) -> 4.29 | M103: =IF(Raw!BL103="","",Raw!BL103) -> 21713.25 | N103: =IF(Raw!BM103="","",Raw!BM103) -> 42.89 | O103: =IF(Raw!BN103="","",Raw!BN103) -> 7 | P103: =IF(Raw!BO103="","",Raw!BO103) -> 7 | Q103: =IF(Raw!BP103="","",Raw!BP103) -> 100 | R103: =IF(Raw!BQ103="","",Raw!BQ103) ->  | S103: =IF(Raw!BR103="","",Raw!BR103) -> 0 | T103: =IF(Raw!BS103="","",Raw!BS103) -> 0.66 | U103: =IF(Raw!BT103="","",Raw!BT103) ->  | V103: =IF(Raw!BU103="","",Raw!BU103) ->  | W103: =IF(Raw!BV103="","",Raw!BV103) ->  | X103: =IF(Raw!BW103="","",Raw!BW103) ->  | Y103: =IF(Raw!BX103="","",Raw!BX103) ->  | Z103: =IF(Raw!BY103="","",Raw!BY103) ->  | AA103: =IF(Raw!BZ103="","",Raw!BZ103) ->  | AB103: =IF(Raw!CA103="","",Raw!CA103) ->  | AC103: =IF(Raw!CB103="","",Raw!CB103) ->  | AD103: =IF(Raw!CC103="","",Raw!CC103) ->  | AE103: =IF(Raw!CD103="","",Raw!CD103) ->  | AF103: =IF(Raw!CE103="","",Raw!CE103) ->  | AG103: =IF(Raw!CF103="","",Raw!CF103) ->  | AH103: =IF(Raw!CG103="","",Raw!CG103) ->  | AI103: =IF(Raw!CH103="","",Raw!CH103) -> -20.1 | AJ103: =IF(Raw!CI103="","",Raw!CI103) -> 17.7 | AK103: =IF(Raw!CJ103="","",Raw!CJ103) -> 151.76 | AL103: =IF(Raw!CK103="","",Raw!CK103) -> 0 | AM103: =IF(Raw!CL103="","",Raw!CL103) -> 2 | AN103: =IF(Raw!CM103="","",Raw!CM103) -> 0 | AO103: =IF(Raw!CN103="","",Raw!CN103) -> 4.29 | AP103: =IF(Raw!CO103="","",Raw!CO103) -> 0 | AQ103: =IF(Raw!CP103="","",Raw!CP103) -> 42.89 | AR103: =IF(Raw!CQ103="","",Raw!CQ103) ->  | AS103: =IF(Raw!CR103="","",Raw!CR103) -> 0 | AT103: =IF(Raw!CS103="","",Raw!CS103) ->  | AU103: =IF(Raw!CT103="","",Raw!CT103) -> 7 | AV103: =IF(Raw!CU103="","",Raw!CU103) -> 100 | AW103: =IF(Raw!CV103="","",Raw!CV103) -> 10
A104: =IF(Raw!BA104="","",Raw!BA104) -> 5523 豐謙 | B104: =IF(Raw!BB104="","",Raw!BB104) -> OTC | C104: =IF(Raw!BC104="","",Raw!BC104) -> 11.15 | D104: =IF(Raw!BD104="","",Raw!BD104) -> 3.2407 | E104: =IF(Raw!BE104="","",Raw!BE104) -> 7.2116 | F104: =IF(Raw!BF104="","",Raw!BF104) -> 1638 | G104: =IF(Raw!BG104="","",Raw!BG104) -> -33.03 | H104: =IF(Raw!BH104="","",Raw!BH104) -> 530.13 | I104: =IF(Raw!BI104="","",Raw!BI104) -> 225.3 | J104: =IF(Raw!BJ104="","",Raw!BJ104) -> 0 | K104: =IFERROR(ROUND(VLOOKUP(A104,'Raw3'!A:F,6,0),2),"") -> 0 | L104: =IF(Raw!BK104="","",Raw!BK104) -> 5.8 | M104: =IF(Raw!BL104="","",Raw!BL104) -> 18149.04 | N104: =IF(Raw!BM104="","",Raw!BM104) -> 21.64 | O104: =IF(Raw!BN104="","",Raw!BN104) -> 9 | P104: =IF(Raw!BO104="","",Raw!BO104) -> 7 | Q104: =IF(Raw!BP104="","",Raw!BP104) -> 100 | R104: =IF(Raw!BQ104="","",Raw!BQ104) ->  | S104: =IF(Raw!BR104="","",Raw!BR104) -> 2.5 | T104: =IF(Raw!BS104="","",Raw!BS104) -> 1.03 | U104: =IF(Raw!BT104="","",Raw!BT104) ->  | V104: =IF(Raw!BU104="","",Raw!BU104) ->  | W104: =IF(Raw!BV104="","",Raw!BV104) ->  | X104: =IF(Raw!BW104="","",Raw!BW104) ->  | Y104: =IF(Raw!BX104="","",Raw!BX104) ->  | Z104: =IF(Raw!BY104="","",Raw!BY104) ->  | AA104: =IF(Raw!BZ104="","",Raw!BZ104) ->  | AB104: =IF(Raw!CA104="","",Raw!CA104) ->  | AC104: =IF(Raw!CB104="","",Raw!CB104) ->  | AD104: =IF(Raw!CC104="","",Raw!CC104) ->  | AE104: =IF(Raw!CD104="","",Raw!CD104) ->  | AF104: =IF(Raw!CE104="","",Raw!CE104) ->  | AG104: =IF(Raw!CF104="","",Raw!CF104) ->  | AH104: =IF(Raw!CG104="","",Raw!CG104) ->  | AI104: =IF(Raw!CH104="","",Raw!CH104) -> -33.03 | AJ104: =IF(Raw!CI104="","",Raw!CI104) -> 530.13 | AK104: =IF(Raw!CJ104="","",Raw!CJ104) -> 225.3 | AL104: =IF(Raw!CK104="","",Raw!CK104) -> 0 | AM104: =IF(Raw!CL104="","",Raw!CL104) -> 0 | AN104: =IF(Raw!CM104="","",Raw!CM104) -> 0 | AO104: =IF(Raw!CN104="","",Raw!CN104) -> 5.8 | AP104: =IF(Raw!CO104="","",Raw!CO104) -> 0 | AQ104: =IF(Raw!CP104="","",Raw!CP104) -> 21.64 | AR104: =IF(Raw!CQ104="","",Raw!CQ104) ->  | AS104: =IF(Raw!CR104="","",Raw!CR104) -> 0 | AT104: =IF(Raw!CS104="","",Raw!CS104) ->  | AU104: =IF(Raw!CT104="","",Raw!CT104) -> 9 | AV104: =IF(Raw!CU104="","",Raw!CU104) -> 100 | AW104: =IF(Raw!CV104="","",Raw!CV104) -> 11
A105: =IF(Raw!BA105="","",Raw!BA105) -> 5529 志嘉 | B105: =IF(Raw!BB105="","",Raw!BB105) -> OTC | C105: =IF(Raw!BC105="","",Raw!BC105) -> 8.88 | D105: =IF(Raw!BD105="","",Raw!BD105) -> 3.7383 | E105: =IF(Raw!BE105="","",Raw!BE105) -> 5.5886 | F105: =IF(Raw!BF105="","",Raw!BF105) -> 535 | G105: =IF(Raw!BG105="","",Raw!BG105) -> 81.22 | H105: =IF(Raw!BH105="","",Raw!BH105) -> 487.96 | I105: =IF(Raw!BI105="","",Raw!BI105) -> 255.05 | J105: =IF(Raw!BJ105="","",Raw!BJ105) -> 29.81 | K105: =IFERROR(ROUND(VLOOKUP(A105,'Raw3'!A:F,6,0),2),"") -> 29.81 | L105: =IF(Raw!BK105="","",Raw!BK105) -> 0 | M105: =IF(Raw!BL105="","",Raw!BL105) -> 4691.95 | N105: =IF(Raw!BM105="","",Raw!BM105) -> 31.5 | O105: =IF(Raw!BN105="","",Raw!BN105) -> 8 | P105: =IF(Raw!BO105="","",Raw!BO105) -> 8 | Q105: =IF(Raw!BP105="","",Raw!BP105) -> 100 | R105: =IF(Raw!BQ105="","",Raw!BQ105) ->  | S105: =IF(Raw!BR105="","",Raw!BR105) -> 0 | T105: =IF(Raw!BS105="","",Raw!BS105) -> 1.04 | U105: =IF(Raw!BT105="","",Raw!BT105) ->  | V105: =IF(Raw!BU105="","",Raw!BU105) ->  | W105: =IF(Raw!BV105="","",Raw!BV105) -> Y | X105: =IF(Raw!BW105="","",Raw!BW105) ->  | Y105: =IF(Raw!BX105="","",Raw!BX105) ->  | Z105: =IF(Raw!BY105="","",Raw!BY105) ->  | AA105: =IF(Raw!BZ105="","",Raw!BZ105) ->  | AB105: =IF(Raw!CA105="","",Raw!CA105) ->  | AC105: =IF(Raw!CB105="","",Raw!CB105) ->  | AD105: =IF(Raw!CC105="","",Raw!CC105) ->  | AE105: =IF(Raw!CD105="","",Raw!CD105) ->  | AF105: =IF(Raw!CE105="","",Raw!CE105) ->  | AG105: =IF(Raw!CF105="","",Raw!CF105) ->  | AH105: =IF(Raw!CG105="","",Raw!CG105) ->  | AI105: =IF(Raw!CH105="","",Raw!CH105) -> 81.22 | AJ105: =IF(Raw!CI105="","",Raw!CI105) -> 487.96 | AK105: =IF(Raw!CJ105="","",Raw!CJ105) -> 255.05 | AL105: =IF(Raw!CK105="","",Raw!CK105) -> 0 | AM105: =IF(Raw!CL105="","",Raw!CL105) -> 0 | AN105: =IF(Raw!CM105="","",Raw!CM105) -> 0 | AO105: =IF(Raw!CN105="","",Raw!CN105) -> 0 | AP105: =IF(Raw!CO105="","",Raw!CO105) -> 0 | AQ105: =IF(Raw!CP105="","",Raw!CP105) -> 31.5 | AR105: =IF(Raw!CQ105="","",Raw!CQ105) ->  | AS105: =IF(Raw!CR105="","",Raw!CR105) -> 0 | AT105: =IF(Raw!CS105="","",Raw!CS105) ->  | AU105: =IF(Raw!CT105="","",Raw!CT105) -> 8 | AV105: =IF(Raw!CU105="","",Raw!CU105) -> 100 | AW105: =IF(Raw!CV105="","",Raw!CV105) -> 9
A106: =IF(Raw!BA106="","",Raw!BA106) -> 5531 鄉林 | B106: =IF(Raw!BB106="","",Raw!BB106) -> TSE | C106: =IF(Raw!BC106="","",Raw!BC106) -> 10.45 | D106: =IF(Raw!BD106="","",Raw!BD106) -> 1.4563 | E106: =IF(Raw!BE106="","",Raw!BE106) -> 1.9513 | F106: =IF(Raw!BF106="","",Raw!BF106) -> 11389 | G106: =IF(Raw!BG106="","",Raw!BG106) -> 13.36 | H106: =IF(Raw!BH106="","",Raw!BH106) -> -76.29 | I106: =IF(Raw!BI106="","",Raw!BI106) -> 260.66 | J106: =IF(Raw!BJ106="","",Raw!BJ106) -> 0 | K106: =IFERROR(ROUND(VLOOKUP(A106,'Raw3'!A:F,6,0),2),"") -> 0 | L106: =IF(Raw!BK106="","",Raw!BK106) -> 4.92 | M106: =IF(Raw!BL106="","",Raw!BL106) -> 118673.38 | N106: =IF(Raw!BM106="","",Raw!BM106) -> 18.91 | O106: =IF(Raw!BN106="","",Raw!BN106) -> 8 | P106: =IF(Raw!BO106="","",Raw!BO106) -> 8 | Q106: =IF(Raw!BP106="","",Raw!BP106) -> 100 | R106: =IF(Raw!BQ106="","",Raw!BQ106) ->  | S106: =IF(Raw!BR106="","",Raw!BR106) -> 0.05 | T106: =IF(Raw!BS106="","",Raw!BS106) -> 0.86 | U106: =IF(Raw!BT106="","",Raw!BT106) ->  | V106: =IF(Raw!BU106="","",Raw!BU106) -> Y | W106: =IF(Raw!BV106="","",Raw!BV106) -> Y | X106: =IF(Raw!BW106="","",Raw!BW106) ->  | Y106: =IF(Raw!BX106="","",Raw!BX106) ->  | Z106: =IF(Raw!BY106="","",Raw!BY106) ->  | AA106: =IF(Raw!BZ106="","",Raw!BZ106) ->  | AB106: =IF(Raw!CA106="","",Raw!CA106) ->  | AC106: =IF(Raw!CB106="","",Raw!CB106) ->  | AD106: =IF(Raw!CC106="","",Raw!CC106) ->  | AE106: =IF(Raw!CD106="","",Raw!CD106) ->  | AF106: =IF(Raw!CE106="","",Raw!CE106) ->  | AG106: =IF(Raw!CF106="","",Raw!CF106) ->  | AH106: =IF(Raw!CG106="","",Raw!CG106) ->  | AI106: =IF(Raw!CH106="","",Raw!CH106) -> 13.36 | AJ106: =IF(Raw!CI106="","",Raw!CI106) -> -76.29 | AK106: =IF(Raw!CJ106="","",Raw!CJ106) -> 260.66 | AL106: =IF(Raw!CK106="","",Raw!CK106) -> 0 | AM106: =IF(Raw!CL106="","",Raw!CL106) -> 0 | AN106: =IF(Raw!CM106="","",Raw!CM106) -> 0 | AO106: =IF(Raw!CN106="","",Raw!CN106) -> 4.92 | AP106: =IF(Raw!CO106="","",Raw!CO106) -> 0 | AQ106: =IF(Raw!CP106="","",Raw!CP106) -> 18.91 | AR106: =IF(Raw!CQ106="","",Raw!CQ106) ->  | AS106: =IF(Raw!CR106="","",Raw!CR106) -> 0 | AT106: =IF(Raw!CS106="","",Raw!CS106) ->  | AU106: =IF(Raw!CT106="","",Raw!CT106) -> 8 | AV106: =IF(Raw!CU106="","",Raw!CU106) -> 100 | AW106: =IF(Raw!CV106="","",Raw!CV106) -> 11
A107: =IF(Raw!BA107="","",Raw!BA107) -> 6101 寬魚國際 | B107: =IF(Raw!BB107="","",Raw!BB107) -> OTC | C107: =IF(Raw!BC107="","",Raw!BC107) -> 46.4 | D107: =IF(Raw!BD107="","",Raw!BD107) -> -1.2766 | E107: =IF(Raw!BE107="","",Raw!BE107) -> -7.9365 | F107: =IF(Raw!BF107="","",Raw!BF107) -> 0 | G107: =IF(Raw!BG107="","",Raw!BG107) -> -55.83 | H107: =IF(Raw!BH107="","",Raw!BH107) -> -78.96 | I107: =IF(Raw!BI107="","",Raw!BI107) -> 105.74 | J107: =IF(Raw!BJ107="","",Raw!BJ107) -> 68.05 | K107: =IFERROR(ROUND(VLOOKUP(A107,'Raw3'!A:F,6,0),2),"") -> 68.05 | L107: =IF(Raw!BK107="","",Raw!BK107) -> 0 | M107: =IF(Raw!BL107="","",Raw!BL107) -> 0 | N107: =IF(Raw!BM107="","",Raw!BM107) -> 15.78 | O107: =IF(Raw!BN107="","",Raw!BN107) -> 8 | P107: =IF(Raw!BO107="","",Raw!BO107) -> 6 | Q107: =IF(Raw!BP107="","",Raw!BP107) -> 0 | R107: =IF(Raw!BQ107="","",Raw!BQ107) ->  | S107: =IF(Raw!BR107="","",Raw!BR107) ->  | T107: =IF(Raw!BS107="","",Raw!BS107) -> 6.44 | U107: =IF(Raw!BT107="","",Raw!BT107) -> Y | V107: =IF(Raw!BU107="","",Raw!BU107) -> Y | W107: =IF(Raw!BV107="","",Raw!BV107) ->  | X107: =IF(Raw!BW107="","",Raw!BW107) ->  | Y107: =IF(Raw!BX107="","",Raw!BX107) ->  | Z107: =IF(Raw!BY107="","",Raw!BY107) ->  | AA107: =IF(Raw!BZ107="","",Raw!BZ107) ->  | AB107: =IF(Raw!CA107="","",Raw!CA107) ->  | AC107: =IF(Raw!CB107="","",Raw!CB107) ->  | AD107: =IF(Raw!CC107="","",Raw!CC107) ->  | AE107: =IF(Raw!CD107="","",Raw!CD107) ->  | AF107: =IF(Raw!CE107="","",Raw!CE107) ->  | AG107: =IF(Raw!CF107="","",Raw!CF107) ->  | AH107: =IF(Raw!CG107="","",Raw!CG107) ->  | AI107: =IF(Raw!CH107="","",Raw!CH107) -> -55.83 | AJ107: =IF(Raw!CI107="","",Raw!CI107) -> -78.96 | AK107: =IF(Raw!CJ107="","",Raw!CJ107) -> 105.74 | AL107: =IF(Raw!CK107="","",Raw!CK107) -> 0 | AM107: =IF(Raw!CL107="","",Raw!CL107) -> 3 | AN107: =IF(Raw!CM107="","",Raw!CM107) -> 0 | AO107: =IF(Raw!CN107="","",Raw!CN107) -> 0 | AP107: =IF(Raw!CO107="","",Raw!CO107) -> 0 | AQ107: =IF(Raw!CP107="","",Raw!CP107) -> 15.78 | AR107: =IF(Raw!CQ107="","",Raw!CQ107) ->  | AS107: =IF(Raw!CR107="","",Raw!CR107) -> 3 | AT107: =IF(Raw!CS107="","",Raw!CS107) ->  | AU107: =IF(Raw!CT107="","",Raw!CT107) -> 8 | AV107: =IF(Raw!CU107="","",Raw!CU107) -> 0 | AW107: =IF(Raw!CV107="","",Raw!CV107) -> 14
A108: =IF(Raw!BA108="","",Raw!BA108) -> 6103 合邦 | B108: =IF(Raw!BB108="","",Raw!BB108) -> OTC | C108: =IF(Raw!BC108="","",Raw!BC108) -> 10.1 | D108: =IF(Raw!BD108="","",Raw!BD108) -> 1 | E108: =IF(Raw!BE108="","",Raw!BE108) -> 1 | F108: =IF(Raw!BF108="","",Raw!BF108) -> 0 | G108: =IF(Raw!BG108="","",Raw!BG108) -> 61.47 | H108: =IF(Raw!BH108="","",Raw!BH108) -> 56.02 | I108: =IF(Raw!BI108="","",Raw!BI108) -> 537.29 | J108: =IF(Raw!BJ108="","",Raw!BJ108) -> 0 | K108: =IFERROR(ROUND(VLOOKUP(A108,'Raw3'!A:F,6,0),2),"") -> 0 | L108: =IF(Raw!BK108="","",Raw!BK108) -> 0 | M108: =IF(Raw!BL108="","",Raw!BL108) -> 0 | N108: =IF(Raw!BM108="","",Raw!BM108) -> 74.44 | O108: =IF(Raw!BN108="","",Raw!BN108) -> 9 | P108: =IF(Raw!BO108="","",Raw!BO108) -> 9 | Q108: =IF(Raw!BP108="","",Raw!BP108) -> 100 | R108: =IF(Raw!BQ108="","",Raw!BQ108) ->  | S108: =IF(Raw!BR108="","",Raw!BR108) ->  | T108: =IF(Raw!BS108="","",Raw!BS108) -> 6.56 | U108: =IF(Raw!BT108="","",Raw!BT108) ->  | V108: =IF(Raw!BU108="","",Raw!BU108) ->  | W108: =IF(Raw!BV108="","",Raw!BV108) -> Y | X108: =IF(Raw!BW108="","",Raw!BW108) ->  | Y108: =IF(Raw!BX108="","",Raw!BX108) ->  | Z108: =IF(Raw!BY108="","",Raw!BY108) ->  | AA108: =IF(Raw!BZ108="","",Raw!BZ108) -> Y | AB108: =IF(Raw!CA108="","",Raw!CA108) ->  | AC108: =IF(Raw!CB108="","",Raw!CB108) ->  | AD108: =IF(Raw!CC108="","",Raw!CC108) -> Y | AE108: =IF(Raw!CD108="","",Raw!CD108) ->  | AF108: =IF(Raw!CE108="","",Raw!CE108) ->  | AG108: =IF(Raw!CF108="","",Raw!CF108) ->  | AH108: =IF(Raw!CG108="","",Raw!CG108) ->  | AI108: =IF(Raw!CH108="","",Raw!CH108) -> 61.47 | AJ108: =IF(Raw!CI108="","",Raw!CI108) -> 56.02 | AK108: =IF(Raw!CJ108="","",Raw!CJ108) -> 537.29 | AL108: =IF(Raw!CK108="","",Raw!CK108) -> 0 | AM108: =IF(Raw!CL108="","",Raw!CL108) -> 0 | AN108: =IF(Raw!CM108="","",Raw!CM108) -> 0 | AO108: =IF(Raw!CN108="","",Raw!CN108) -> 0 | AP108: =IF(Raw!CO108="","",Raw!CO108) -> 0 | AQ108: =IF(Raw!CP108="","",Raw!CP108) -> 74.44 | AR108: =IF(Raw!CQ108="","",Raw!CQ108) ->  | AS108: =IF(Raw!CR108="","",Raw!CR108) -> 3 | AT108: =IF(Raw!CS108="","",Raw!CS108) ->  | AU108: =IF(Raw!CT108="","",Raw!CT108) -> 9 | AV108: =IF(Raw!CU108="","",Raw!CU108) -> 100 | AW108: =IF(Raw!CV108="","",Raw!CV108) -> 13
A109: =IF(Raw!BA109="","",Raw!BA109) -> 6107 華美 | B109: =IF(Raw!BB109="","",Raw!BB109) -> OTC | C109: =IF(Raw!BC109="","",Raw!BC109) -> 32 | D109: =IF(Raw!BD109="","",Raw!BD109) -> -2.1407 | E109: =IF(Raw!BE109="","",Raw!BE109) -> -4.1917 | F109: =IF(Raw!BF109="","",Raw!BF109) -> 8495 | G109: =IF(Raw!BG109="","",Raw!BG109) -> -26.36 | H109: =IF(Raw!BH109="","",Raw!BH109) -> -24.2 | I109: =IF(Raw!BI109="","",Raw!BI109) -> 275.45 | J109: =IF(Raw!BJ109="","",Raw!BJ109) -> 0 | K109: =IFERROR(ROUND(VLOOKUP(A109,'Raw3'!A:F,6,0),2),"") -> 0 | L109: =IF(Raw!BK109="","",Raw!BK109) -> 42.59 | M109: =IF(Raw!BL109="","",Raw!BL109) -> 275832.65 | N109: =IF(Raw!BM109="","",Raw!BM109) -> 34.79 | O109: =IF(Raw!BN109="","",Raw!BN109) -> 7 | P109: =IF(Raw!BO109="","",Raw!BO109) -> 6 | Q109: =IF(Raw!BP109="","",Raw!BP109) -> 0 | R109: =IF(Raw!BQ109="","",Raw!BQ109) ->  | S109: =IF(Raw!BR109="","",Raw!BR109) -> 0 | T109: =IF(Raw!BS109="","",Raw!BS109) -> 2.03 | U109: =IF(Raw!BT109="","",Raw!BT109) ->  | V109: =IF(Raw!BU109="","",Raw!BU109) ->  | W109: =IF(Raw!BV109="","",Raw!BV109) -> Y | X109: =IF(Raw!BW109="","",Raw!BW109) ->  | Y109: =IF(Raw!BX109="","",Raw!BX109) ->  | Z109: =IF(Raw!BY109="","",Raw!BY109) ->  | AA109: =IF(Raw!BZ109="","",Raw!BZ109) ->  | AB109: =IF(Raw!CA109="","",Raw!CA109) ->  | AC109: =IF(Raw!CB109="","",Raw!CB109) ->  | AD109: =IF(Raw!CC109="","",Raw!CC109) ->  | AE109: =IF(Raw!CD109="","",Raw!CD109) ->  | AF109: =IF(Raw!CE109="","",Raw!CE109) ->  | AG109: =IF(Raw!CF109="","",Raw!CF109) ->  | AH109: =IF(Raw!CG109="","",Raw!CG109) ->  | AI109: =IF(Raw!CH109="","",Raw!CH109) -> -26.36 | AJ109: =IF(Raw!CI109="","",Raw!CI109) -> -24.2 | AK109: =IF(Raw!CJ109="","",Raw!CJ109) -> 275.45 | AL109: =IF(Raw!CK109="","",Raw!CK109) -> 1 | AM109: =IF(Raw!CL109="","",Raw!CL109) -> 0 | AN109: =IF(Raw!CM109="","",Raw!CM109) -> 0 | AO109: =IF(Raw!CN109="","",Raw!CN109) -> 42.59 | AP109: =IF(Raw!CO109="","",Raw!CO109) -> 0 | AQ109: =IF(Raw!CP109="","",Raw!CP109) -> 34.79 | AR109: =IF(Raw!CQ109="","",Raw!CQ109) ->  | AS109: =IF(Raw!CR109="","",Raw!CR109) -> 0 | AT109: =IF(Raw!CS109="","",Raw!CS109) ->  | AU109: =IF(Raw!CT109="","",Raw!CT109) -> 7 | AV109: =IF(Raw!CU109="","",Raw!CU109) -> 0 | AW109: =IF(Raw!CV109="","",Raw!CV109) -> 12
A110: =IF(Raw!BA110="","",Raw!BA110) -> 6130 星寶國際 | B110: =IF(Raw!BB110="","",Raw!BB110) -> OTC | C110: =IF(Raw!BC110="","",Raw!BC110) -> 52.1 | D110: =IF(Raw!BD110="","",Raw!BD110) -> -0.5725 | E110: =IF(Raw!BE110="","",Raw!BE110) -> 0.1924 | F110: =IF(Raw!BF110="","",Raw!BF110) ->  | G110: =IF(Raw!BG110="","",Raw!BG110) -> -46 | H110: =IF(Raw!BH110="","",Raw!BH110) -> -55.01 | I110: =IF(Raw!BI110="","",Raw!BI110) -> 4.3 | J110: =IF(Raw!BJ110="","",Raw!BJ110) -> 0 | K110: =IFERROR(ROUND(VLOOKUP(A110,'Raw3'!A:F,6,0),2),"") -> 0 | L110: =IF(Raw!BK110="","",Raw!BK110) ->  | M110: =IF(Raw!BL110="","",Raw!BL110) ->  | N110: =IF(Raw!BM110="","",Raw!BM110) -> 24.35 | O110: =IF(Raw!BN110="","",Raw!BN110) -> 7 | P110: =IF(Raw!BO110="","",Raw!BO110) -> 5 | Q110: =IF(Raw!BP110="","",Raw!BP110) -> 0 | R110: =IF(Raw!BQ110="","",Raw!BQ110) ->  | S110: =IF(Raw!BR110="","",Raw!BR110) ->  | T110: =IF(Raw!BS110="","",Raw!BS110) -> 4.78 | U110: =IF(Raw!BT110="","",Raw!BT110) ->  | V110: =IF(Raw!BU110="","",Raw!BU110) -> Y | W110: =IF(Raw!BV110="","",Raw!BV110) ->  | X110: =IF(Raw!BW110="","",Raw!BW110) ->  | Y110: =IF(Raw!BX110="","",Raw!BX110) ->  | Z110: =IF(Raw!BY110="","",Raw!BY110) ->  | AA110: =IF(Raw!BZ110="","",Raw!BZ110) ->  | AB110: =IF(Raw!CA110="","",Raw!CA110) ->  | AC110: =IF(Raw!CB110="","",Raw!CB110) ->  | AD110: =IF(Raw!CC110="","",Raw!CC110) ->  | AE110: =IF(Raw!CD110="","",Raw!CD110) ->  | AF110: =IF(Raw!CE110="","",Raw!CE110) ->  | AG110: =IF(Raw!CF110="","",Raw!CF110) ->  | AH110: =IF(Raw!CG110="","",Raw!CG110) ->  | AI110: =IF(Raw!CH110="","",Raw!CH110) -> -46 | AJ110: =IF(Raw!CI110="","",Raw!CI110) -> -55.01 | AK110: =IF(Raw!CJ110="","",Raw!CJ110) -> 4.3 | AL110: =IF(Raw!CK110="","",Raw!CK110) -> 0 | AM110: =IF(Raw!CL110="","",Raw!CL110) -> 0 | AN110: =IF(Raw!CM110="","",Raw!CM110) -> 0 | AO110: =IF(Raw!CN110="","",Raw!CN110) ->  | AP110: =IF(Raw!CO110="","",Raw!CO110) -> 0 | AQ110: =IF(Raw!CP110="","",Raw!CP110) -> 24.35 | AR110: =IF(Raw!CQ110="","",Raw!CQ110) ->  | AS110: =IF(Raw!CR110="","",Raw!CR110) -> 2 | AT110: =IF(Raw!CS110="","",Raw!CS110) ->  | AU110: =IF(Raw!CT110="","",Raw!CT110) -> 7 | AV110: =IF(Raw!CU110="","",Raw!CU110) -> 0 | AW110: =IF(Raw!CV110="","",Raw!CV110) -> 9
A111: =IF(Raw!BA111="","",Raw!BA111) -> 6150 撼訊 | B111: =IF(Raw!BB111="","",Raw!BB111) -> OTC | C111: =IF(Raw!BC111="","",Raw!BC111) -> 34.1 | D111: =IF(Raw!BD111="","",Raw!BD111) -> 0.2941 | E111: =IF(Raw!BE111="","",Raw!BE111) -> 1.7911 | F111: =IF(Raw!BF111="","",Raw!BF111) -> 0 | G111: =IF(Raw!BG111="","",Raw!BG111) -> 175.48 | H111: =IF(Raw!BH111="","",Raw!BH111) -> 45.38 | I111: =IF(Raw!BI111="","",Raw!BI111) -> 386.8 | J111: =IF(Raw!BJ111="","",Raw!BJ111) -> 0 | K111: =IFERROR(ROUND(VLOOKUP(A111,'Raw3'!A:F,6,0),2),"") -> 0 | L111: =IF(Raw!BK111="","",Raw!BK111) -> 0 | M111: =IF(Raw!BL111="","",Raw!BL111) -> 0 | N111: =IF(Raw!BM111="","",Raw!BM111) -> 20.47 | O111: =IF(Raw!BN111="","",Raw!BN111) -> 9 | P111: =IF(Raw!BO111="","",Raw!BO111) -> 7 | Q111: =IF(Raw!BP111="","",Raw!BP111) -> 100 | R111: =IF(Raw!BQ111="","",Raw!BQ111) ->  | S111: =IF(Raw!BR111="","",Raw!BR111) ->  | T111: =IF(Raw!BS111="","",Raw!BS111) -> 3.73 | U111: =IF(Raw!BT111="","",Raw!BT111) ->  | V111: =IF(Raw!BU111="","",Raw!BU111) ->  | W111: =IF(Raw!BV111="","",Raw!BV111) -> Y | X111: =IF(Raw!BW111="","",Raw!BW111) ->  | Y111: =IF(Raw!BX111="","",Raw!BX111) ->  | Z111: =IF(Raw!BY111="","",Raw!BY111) ->  | AA111: =IF(Raw!BZ111="","",Raw!BZ111) ->  | AB111: =IF(Raw!CA111="","",Raw!CA111) ->  | AC111: =IF(Raw!CB111="","",Raw!CB111) ->  | AD111: =IF(Raw!CC111="","",Raw!CC111) ->  | AE111: =IF(Raw!CD111="","",Raw!CD111) ->  | AF111: =IF(Raw!CE111="","",Raw!CE111) ->  | AG111: =IF(Raw!CF111="","",Raw!CF111) ->  | AH111: =IF(Raw!CG111="","",Raw!CG111) ->  | AI111: =IF(Raw!CH111="","",Raw!CH111) -> 175.48 | AJ111: =IF(Raw!CI111="","",Raw!CI111) -> 45.38 | AK111: =IF(Raw!CJ111="","",Raw!CJ111) -> 386.8 | AL111: =IF(Raw!CK111="","",Raw!CK111) -> 0 | AM111: =IF(Raw!CL111="","",Raw!CL111) -> 0 | AN111: =IF(Raw!CM111="","",Raw!CM111) -> 0 | AO111: =IF(Raw!CN111="","",Raw!CN111) -> 0 | AP111: =IF(Raw!CO111="","",Raw!CO111) -> 0 | AQ111: =IF(Raw!CP111="","",Raw!CP111) -> 20.47 | AR111: =IF(Raw!CQ111="","",Raw!CQ111) ->  | AS111: =IF(Raw!CR111="","",Raw!CR111) -> 1 | AT111: =IF(Raw!CS111="","",Raw!CS111) ->  | AU111: =IF(Raw!CT111="","",Raw!CT111) -> 9 | AV111: =IF(Raw!CU111="","",Raw!CU111) -> 100 | AW111: =IF(Raw!CV111="","",Raw!CV111) -> 10
A112: =IF(Raw!BA112="","",Raw!BA112) -> 6165 捷泰 | B112: =IF(Raw!BB112="","",Raw!BB112) -> TSE | C112: =IF(Raw!BC112="","",Raw!BC112) -> 36.2 | D112: =IF(Raw!BD112="","",Raw!BD112) -> 0 | E112: =IF(Raw!BE112="","",Raw!BE112) -> 45.0902 | F112: =IF(Raw!BF112="","",Raw!BF112) -> 0 | G112: =IF(Raw!BG112="","",Raw!BG112) -> -88.5 | H112: =IF(Raw!BH112="","",Raw!BH112) -> -80.41 | I112: =IF(Raw!BI112="","",Raw!BI112) -> 4.16 | J112: =IF(Raw!BJ112="","",Raw!BJ112) -> 0 | K112: =IFERROR(ROUND(VLOOKUP(A112,'Raw3'!A:F,6,0),2),"") -> 0 | L112: =IF(Raw!BK112="","",Raw!BK112) ->  | M112: =IF(Raw!BL112="","",Raw!BL112) -> 0 | N112: =IF(Raw!BM112="","",Raw!BM112) -> 15.98 | O112: =IF(Raw!BN112="","",Raw!BN112) -> 8 | P112: =IF(Raw!BO112="","",Raw!BO112) -> 6 | Q112: =IF(Raw!BP112="","",Raw!BP112) -> 0 | R112: =IF(Raw!BQ112="","",Raw!BQ112) ->  | S112: =IF(Raw!BR112="","",Raw!BR112) ->  | T112: =IF(Raw!BS112="","",Raw!BS112) -> 4.2 | U112: =IF(Raw!BT112="","",Raw!BT112) -> Y | V112: =IF(Raw!BU112="","",Raw!BU112) -> Y | W112: =IF(Raw!BV112="","",Raw!BV112) ->  | X112: =IF(Raw!BW112="","",Raw!BW112) ->  | Y112: =IF(Raw!BX112="","",Raw!BX112) -> + | Z112: =IF(Raw!BY112="","",Raw!BY112) ->  | AA112: =IF(Raw!BZ112="","",Raw!BZ112) ->  | AB112: =IF(Raw!CA112="","",Raw!CA112) -> Y | AC112: =IF(Raw!CB112="","",Raw!CB112) ->  | AD112: =IF(Raw!CC112="","",Raw!CC112) ->  | AE112: =IF(Raw!CD112="","",Raw!CD112) ->  | AF112: =IF(Raw!CE112="","",Raw!CE112) ->  | AG112: =IF(Raw!CF112="","",Raw!CF112) ->  | AH112: =IF(Raw!CG112="","",Raw!CG112) ->  | AI112: =IF(Raw!CH112="","",Raw!CH112) -> -88.5 | AJ112: =IF(Raw!CI112="","",Raw!CI112) -> -80.41 | AK112: =IF(Raw!CJ112="","",Raw!CJ112) -> 4.16 | AL112: =IF(Raw!CK112="","",Raw!CK112) -> 0 | AM112: =IF(Raw!CL112="","",Raw!CL112) -> 0 | AN112: =IF(Raw!CM112="","",Raw!CM112) -> 3 | AO112: =IF(Raw!CN112="","",Raw!CN112) ->  | AP112: =IF(Raw!CO112="","",Raw!CO112) -> 0 | AQ112: =IF(Raw!CP112="","",Raw!CP112) -> 15.98 | AR112: =IF(Raw!CQ112="","",Raw!CQ112) ->  | AS112: =IF(Raw!CR112="","",Raw!CR112) -> 2 | AT112: =IF(Raw!CS112="","",Raw!CS112) ->  | AU112: =IF(Raw!CT112="","",Raw!CT112) -> 8 | AV112: =IF(Raw!CU112="","",Raw!CU112) -> 0 | AW112: =IF(Raw!CV112="","",Raw!CV112) -> 13
A113: =IF(Raw!BA113="","",Raw!BA113) -> 6169 昱泉 | B113: =IF(Raw!BB113="","",Raw!BB113) -> OTC | C113: =IF(Raw!BC113="","",Raw!BC113) -> 53.8 | D113: =IF(Raw!BD113="","",Raw!BD113) -> 9.2386 | E113: =IF(Raw!BE113="","",Raw!BE113) -> 31.5405 | F113: =IF(Raw!BF113="","",Raw!BF113) ->  | G113: =IF(Raw!BG113="","",Raw!BG113) -> 328.66 | H113: =IF(Raw!BH113="","",Raw!BH113) -> 64.92 | I113: =IF(Raw!BI113="","",Raw!BI113) -> 41.33 | J113: =IF(Raw!BJ113="","",Raw!BJ113) -> 72.51 | K113: =IFERROR(ROUND(VLOOKUP(A113,'Raw3'!A:F,6,0),2),"") -> 72.51 | L113: =IF(Raw!BK113="","",Raw!BK113) ->  | M113: =IF(Raw!BL113="","",Raw!BL113) ->  | N113: =IF(Raw!BM113="","",Raw!BM113) -> 22.23 | O113: =IF(Raw!BN113="","",Raw!BN113) -> 7 | P113: =IF(Raw!BO113="","",Raw!BO113) -> 5 | Q113: =IF(Raw!BP113="","",Raw!BP113) -> 0 | R113: =IF(Raw!BQ113="","",Raw!BQ113) ->  | S113: =IF(Raw!BR113="","",Raw!BR113) ->  | T113: =IF(Raw!BS113="","",Raw!BS113) -> 6.44 | U113: =IF(Raw!BT113="","",Raw!BT113) ->  | V113: =IF(Raw!BU113="","",Raw!BU113) ->  | W113: =IF(Raw!BV113="","",Raw!BV113) ->  | X113: =IF(Raw!BW113="","",Raw!BW113) ->  | Y113: =IF(Raw!BX113="","",Raw!BX113) -> + | Z113: =IF(Raw!BY113="","",Raw!BY113) ->  | AA113: =IF(Raw!BZ113="","",Raw!BZ113) ->  | AB113: =IF(Raw!CA113="","",Raw!CA113) -> Y | AC113: =IF(Raw!CB113="","",Raw!CB113) ->  | AD113: =IF(Raw!CC113="","",Raw!CC113) ->  | AE113: =IF(Raw!CD113="","",Raw!CD113) ->  | AF113: =IF(Raw!CE113="","",Raw!CE113) ->  | AG113: =IF(Raw!CF113="","",Raw!CF113) ->  | AH113: =IF(Raw!CG113="","",Raw!CG113) ->  | AI113: =IF(Raw!CH113="","",Raw!CH113) -> 328.66 | AJ113: =IF(Raw!CI113="","",Raw!CI113) -> 64.92 | AK113: =IF(Raw!CJ113="","",Raw!CJ113) -> 41.33 | AL113: =IF(Raw!CK113="","",Raw!CK113) -> 0 | AM113: =IF(Raw!CL113="","",Raw!CL113) -> 3 | AN113: =IF(Raw!CM113="","",Raw!CM113) -> 3 | AO113: =IF(Raw!CN113="","",Raw!CN113) ->  | AP113: =IF(Raw!CO113="","",Raw!CO113) -> 0 | AQ113: =IF(Raw!CP113="","",Raw!CP113) -> 22.23 | AR113: =IF(Raw!CQ113="","",Raw!CQ113) ->  | AS113: =IF(Raw!CR113="","",Raw!CR113) -> 3 | AT113: =IF(Raw!CS113="","",Raw!CS113) ->  | AU113: =IF(Raw!CT113="","",Raw!CT113) -> 7 | AV113: =IF(Raw!CU113="","",Raw!CU113) -> 0 | AW113: =IF(Raw!CV113="","",Raw!CV113) -> 10
A114: =IF(Raw!BA114="","",Raw!BA114) -> 6172 互億 | B114: =IF(Raw!BB114="","",Raw!BB114) -> TSE | C114: =IF(Raw!BC114="","",Raw!BC114) -> 12.75 | D114: =IF(Raw!BD114="","",Raw!BD114) -> 1.1905 | E114: =IF(Raw!BE114="","",Raw!BE114) -> 8.5107 | F114: =IF(Raw!BF114="","",Raw!BF114) -> 0 | G114: =IF(Raw!BG114="","",Raw!BG114) -> 5.83 | H114: =IF(Raw!BH114="","",Raw!BH114) -> -31.55 | I114: =IF(Raw!BI114="","",Raw!BI114) -> 109.36 | J114: =IF(Raw!BJ114="","",Raw!BJ114) -> 0 | K114: =IFERROR(ROUND(VLOOKUP(A114,'Raw3'!A:F,6,0),2),"") -> 0 | L114: =IF(Raw!BK114="","",Raw!BK114) ->  | M114: =IF(Raw!BL114="","",Raw!BL114) -> 0 | N114: =IF(Raw!BM114="","",Raw!BM114) -> 73.17 | O114: =IF(Raw!BN114="","",Raw!BN114) -> 9 | P114: =IF(Raw!BO114="","",Raw!BO114) -> 8 | Q114: =IF(Raw!BP114="","",Raw!BP114) -> 100 | R114: =IF(Raw!BQ114="","",Raw!BQ114) ->  | S114: =IF(Raw!BR114="","",Raw!BR114) ->  | T114: =IF(Raw!BS114="","",Raw!BS114) -> 1.31 | U114: =IF(Raw!BT114="","",Raw!BT114) ->  | V114: =IF(Raw!BU114="","",Raw!BU114) ->  | W114: =IF(Raw!BV114="","",Raw!BV114) ->  | X114: =IF(Raw!BW114="","",Raw!BW114) ->  | Y114: =IF(Raw!BX114="","",Raw!BX114) ->  | Z114: =IF(Raw!BY114="","",Raw!BY114) ->  | AA114: =IF(Raw!BZ114="","",Raw!BZ114) -> Y | AB114: =IF(Raw!CA114="","",Raw!CA114) ->  | AC114: =IF(Raw!CB114="","",Raw!CB114) ->  | AD114: =IF(Raw!CC114="","",Raw!CC114) -> Y | AE114: =IF(Raw!CD114="","",Raw!CD114) ->  | AF114: =IF(Raw!CE114="","",Raw!CE114) ->  | AG114: =IF(Raw!CF114="","",Raw!CF114) ->  | AH114: =IF(Raw!CG114="","",Raw!CG114) ->  | AI114: =IF(Raw!CH114="","",Raw!CH114) -> 5.83 | AJ114: =IF(Raw!CI114="","",Raw!CI114) -> -31.55 | AK114: =IF(Raw!CJ114="","",Raw!CJ114) -> 109.36 | AL114: =IF(Raw!CK114="","",Raw!CK114) -> 0 | AM114: =IF(Raw!CL114="","",Raw!CL114) -> 0 | AN114: =IF(Raw!CM114="","",Raw!CM114) -> 0 | AO114: =IF(Raw!CN114="","",Raw!CN114) ->  | AP114: =IF(Raw!CO114="","",Raw!CO114) -> 0 | AQ114: =IF(Raw!CP114="","",Raw!CP114) -> 73.17 | AR114: =IF(Raw!CQ114="","",Raw!CQ114) ->  | AS114: =IF(Raw!CR114="","",Raw!CR114) -> 0 | AT114: =IF(Raw!CS114="","",Raw!CS114) ->  | AU114: =IF(Raw!CT114="","",Raw!CT114) -> 9 | AV114: =IF(Raw!CU114="","",Raw!CU114) -> 100 | AW114: =IF(Raw!CV114="","",Raw!CV114) -> 10
A115: =IF(Raw!BA115="","",Raw!BA115) -> 6180 橘子 | B115: =IF(Raw!BB115="","",Raw!BB115) -> OTC | C115: =IF(Raw!BC115="","",Raw!BC115) -> 48.95 | D115: =IF(Raw!BD115="","",Raw!BD115) -> 10 | E115: =IF(Raw!BE115="","",Raw!BE115) -> 36.3508 | F115: =IF(Raw!BF115="","",Raw!BF115) -> 9150 | G115: =IF(Raw!BG115="","",Raw!BG115) -> -16.15 | H115: =IF(Raw!BH115="","",Raw!BH115) -> -8.87 | I115: =IF(Raw!BI115="","",Raw!BI115) -> 203.09 | J115: =IF(Raw!BJ115="","",Raw!BJ115) -> 43.28 | K115: =IFERROR(ROUND(VLOOKUP(A115,'Raw3'!A:F,6,0),2),"") -> 36.47 | L115: =IF(Raw!BK115="","",Raw!BK115) -> 23.22 | M115: =IF(Raw!BL115="","",Raw!BL115) -> 444690 | N115: =IF(Raw!BM115="","",Raw!BM115) -> 16.51 | O115: =IF(Raw!BN115="","",Raw!BN115) -> 7 | P115: =IF(Raw!BO115="","",Raw!BO115) -> 5 | Q115: =IF(Raw!BP115="","",Raw!BP115) -> 0 | R115: =IF(Raw!BQ115="","",Raw!BQ115) ->  | S115: =IF(Raw!BR115="","",Raw!BR115) -> 29.6 | T115: =IF(Raw!BS115="","",Raw!BS115) -> 3.42 | U115: =IF(Raw!BT115="","",Raw!BT115) ->  | V115: =IF(Raw!BU115="","",Raw!BU115) ->  | W115: =IF(Raw!BV115="","",Raw!BV115) ->  | X115: =IF(Raw!BW115="","",Raw!BW115) ->  | Y115: =IF(Raw!BX115="","",Raw!BX115) -> + | Z115: =IF(Raw!BY115="","",Raw!BY115) ->  | AA115: =IF(Raw!BZ115="","",Raw!BZ115) ->  | AB115: =IF(Raw!CA115="","",Raw!CA115) -> Y | AC115: =IF(Raw!CB115="","",Raw!CB115) ->  | AD115: =IF(Raw!CC115="","",Raw!CC115) ->  | AE115: =IF(Raw!CD115="","",Raw!CD115) ->  | AF115: =IF(Raw!CE115="","",Raw!CE115) ->  | AG115: =IF(Raw!CF115="","",Raw!CF115) ->  | AH115: =IF(Raw!CG115="","",Raw!CG115) ->  | AI115: =IF(Raw!CH115="","",Raw!CH115) -> -16.15 | AJ115: =IF(Raw!CI115="","",Raw!CI115) -> -8.87 | AK115: =IF(Raw!CJ115="","",Raw!CJ115) -> 203.09 | AL115: =IF(Raw!CK115="","",Raw!CK115) -> 0 | AM115: =IF(Raw!CL115="","",Raw!CL115) -> 2 | AN115: =IF(Raw!CM115="","",Raw!CM115) -> 3 | AO115: =IF(Raw!CN115="","",Raw!CN115) -> 23.22 | AP115: =IF(Raw!CO115="","",Raw!CO115) -> 3 | AQ115: =IF(Raw!CP115="","",Raw!CP115) -> 16.51 | AR115: =IF(Raw!CQ115="","",Raw!CQ115) ->  | AS115: =IF(Raw!CR115="","",Raw!CR115) -> 1 | AT115: =IF(Raw!CS115="","",Raw!CS115) ->  | AU115: =IF(Raw!CT115="","",Raw!CT115) -> 7 | AV115: =IF(Raw!CU115="","",Raw!CU115) -> 0 | AW115: =IF(Raw!CV115="","",Raw!CV115) -> 13
A116: =IF(Raw!BA116="","",Raw!BA116) -> 6182 合晶 | B116: =IF(Raw!BB116="","",Raw!BB116) -> OTC | C116: =IF(Raw!BC116="","",Raw!BC116) -> 21.8 | D116: =IF(Raw!BD116="","",Raw!BD116) -> 4.5564 | E116: =IF(Raw!BE116="","",Raw!BE116) -> 5.3141 | F116: =IF(Raw!BF116="","",Raw!BF116) -> 77915 | G116: =IF(Raw!BG116="","",Raw!BG116) -> 17.4 | H116: =IF(Raw!BH116="","",Raw!BH116) -> 10.23 | I116: =IF(Raw!BI116="","",Raw!BI116) -> 90.57 | J116: =IF(Raw!BJ116="","",Raw!BJ116) -> 2.43 | K116: =IFERROR(ROUND(VLOOKUP(A116,'Raw3'!A:F,6,0),2),"") -> 2.43 | L116: =IF(Raw!BK116="","",Raw!BK116) -> 69.06 | M116: =IF(Raw!BL116="","",Raw!BL116) -> 1671276.75 | N116: =IF(Raw!BM116="","",Raw!BM116) -> 15.84 | O116: =IF(Raw!BN116="","",Raw!BN116) -> 8 | P116: =IF(Raw!BO116="","",Raw!BO116) -> 7 | Q116: =IF(Raw!BP116="","",Raw!BP116) -> 95 | R116: =IF(Raw!BQ116="","",Raw!BQ116) ->  | S116: =IF(Raw!BR116="","",Raw!BR116) -> 16.11 | T116: =IF(Raw!BS116="","",Raw!BS116) -> 1.74 | U116: =IF(Raw!BT116="","",Raw!BT116) ->  | V116: =IF(Raw!BU116="","",Raw!BU116) ->  | W116: =IF(Raw!BV116="","",Raw!BV116) ->  | X116: =IF(Raw!BW116="","",Raw!BW116) ->  | Y116: =IF(Raw!BX116="","",Raw!BX116) ->  | Z116: =IF(Raw!BY116="","",Raw!BY116) ->  | AA116: =IF(Raw!BZ116="","",Raw!BZ116) ->  | AB116: =IF(Raw!CA116="","",Raw!CA116) ->  | AC116: =IF(Raw!CB116="","",Raw!CB116) ->  | AD116: =IF(Raw!CC116="","",Raw!CC116) ->  | AE116: =IF(Raw!CD116="","",Raw!CD116) ->  | AF116: =IF(Raw!CE116="","",Raw!CE116) ->  | AG116: =IF(Raw!CF116="","",Raw!CF116) ->  | AH116: =IF(Raw!CG116="","",Raw!CG116) ->  | AI116: =IF(Raw!CH116="","",Raw!CH116) -> 17.4 | AJ116: =IF(Raw!CI116="","",Raw!CI116) -> 10.23 | AK116: =IF(Raw!CJ116="","",Raw!CJ116) -> 90.57 | AL116: =IF(Raw!CK116="","",Raw!CK116) -> 0 | AM116: =IF(Raw!CL116="","",Raw!CL116) -> 0 | AN116: =IF(Raw!CM116="","",Raw!CM116) -> 0 | AO116: =IF(Raw!CN116="","",Raw!CN116) -> 69.06 | AP116: =IF(Raw!CO116="","",Raw!CO116) -> 2 | AQ116: =IF(Raw!CP116="","",Raw!CP116) -> 15.84 | AR116: =IF(Raw!CQ116="","",Raw!CQ116) ->  | AS116: =IF(Raw!CR116="","",Raw!CR116) -> 0 | AT116: =IF(Raw!CS116="","",Raw!CS116) ->  | AU116: =IF(Raw!CT116="","",Raw!CT116) -> 8 | AV116: =IF(Raw!CU116="","",Raw!CU116) -> 95 | AW116: =IF(Raw!CV116="","",Raw!CV116) -> 10
A117: =IF(Raw!BA117="","",Raw!BA117) -> 6186 新潤 | B117: =IF(Raw!BB117="","",Raw!BB117) -> OTC | C117: =IF(Raw!BC117="","",Raw!BC117) -> 19.85 | D117: =IF(Raw!BD117="","",Raw!BD117) -> 3.066 | E117: =IF(Raw!BE117="","",Raw!BE117) -> 4.2959 | F117: =IF(Raw!BF117="","",Raw!BF117) -> 1121 | G117: =IF(Raw!BG117="","",Raw!BG117) -> -95.73 | H117: =IF(Raw!BH117="","",Raw!BH117) -> -37.57 | I117: =IF(Raw!BI117="","",Raw!BI117) -> 262.59 | J117: =IF(Raw!BJ117="","",Raw!BJ117) -> 0 | K117: =IFERROR(ROUND(VLOOKUP(A117,'Raw3'!A:F,6,0),2),"") -> 0 | L117: =IF(Raw!BK117="","",Raw!BK117) -> 6.25 | M117: =IF(Raw!BL117="","",Raw!BL117) -> 21534.41 | N117: =IF(Raw!BM117="","",Raw!BM117) -> 32.43 | O117: =IF(Raw!BN117="","",Raw!BN117) -> 7 | P117: =IF(Raw!BO117="","",Raw!BO117) -> 6 | Q117: =IF(Raw!BP117="","",Raw!BP117) -> 0 | R117: =IF(Raw!BQ117="","",Raw!BQ117) ->  | S117: =IF(Raw!BR117="","",Raw!BR117) -> 3.75 | T117: =IF(Raw!BS117="","",Raw!BS117) -> 1.1 | U117: =IF(Raw!BT117="","",Raw!BT117) -> Y | V117: =IF(Raw!BU117="","",Raw!BU117) ->  | W117: =IF(Raw!BV117="","",Raw!BV117) -> Y | X117: =IF(Raw!BW117="","",Raw!BW117) ->  | Y117: =IF(Raw!BX117="","",Raw!BX117) ->  | Z117: =IF(Raw!BY117="","",Raw!BY117) ->  | AA117: =IF(Raw!BZ117="","",Raw!BZ117) ->  | AB117: =IF(Raw!CA117="","",Raw!CA117) ->  | AC117: =IF(Raw!CB117="","",Raw!CB117) ->  | AD117: =IF(Raw!CC117="","",Raw!CC117) ->  | AE117: =IF(Raw!CD117="","",Raw!CD117) ->  | AF117: =IF(Raw!CE117="","",Raw!CE117) ->  | AG117: =IF(Raw!CF117="","",Raw!CF117) ->  | AH117: =IF(Raw!CG117="","",Raw!CG117) ->  | AI117: =IF(Raw!CH117="","",Raw!CH117) -> -95.73 | AJ117: =IF(Raw!CI117="","",Raw!CI117) -> -37.57 | AK117: =IF(Raw!CJ117="","",Raw!CJ117) -> 262.59 | AL117: =IF(Raw!CK117="","",Raw!CK117) -> 0 | AM117: =IF(Raw!CL117="","",Raw!CL117) -> 0 | AN117: =IF(Raw!CM117="","",Raw!CM117) -> 0 | AO117: =IF(Raw!CN117="","",Raw!CN117) -> 6.25 | AP117: =IF(Raw!CO117="","",Raw!CO117) -> 0 | AQ117: =IF(Raw!CP117="","",Raw!CP117) -> 32.43 | AR117: =IF(Raw!CQ117="","",Raw!CQ117) ->  | AS117: =IF(Raw!CR117="","",Raw!CR117) -> 0 | AT117: =IF(Raw!CS117="","",Raw!CS117) ->  | AU117: =IF(Raw!CT117="","",Raw!CT117) -> 7 | AV117: =IF(Raw!CU117="","",Raw!CU117) -> 0 | AW117: =IF(Raw!CV117="","",Raw!CV117) -> 11
A118: =IF(Raw!BA118="","",Raw!BA118) -> 6222 上揚 | B118: =IF(Raw!BB118="","",Raw!BB118) -> OTC | C118: =IF(Raw!BC118="","",Raw!BC118) -> 3.8 | D118: =IF(Raw!BD118="","",Raw!BD118) -> 0.2639 | E118: =IF(Raw!BE118="","",Raw!BE118) -> -11.6278 | F118: =IF(Raw!BF118="","",Raw!BF118) -> 0 | G118: =IF(Raw!BG118="","",Raw!BG118) -> -82.48 | H118: =IF(Raw!BH118="","",Raw!BH118) -> -58.25 | I118: =IF(Raw!BI118="","",Raw!BI118) -> 148.93 | J118: =IF(Raw!BJ118="","",Raw!BJ118) -> 62.3 | K118: =IFERROR(ROUND(VLOOKUP(A118,'Raw3'!A:F,6,0),2),"") -> 62.3 | L118: =IF(Raw!BK118="","",Raw!BK118) -> 0 | M118: =IF(Raw!BL118="","",Raw!BL118) -> 0 | N118: =IF(Raw!BM118="","",Raw!BM118) -> 75 | O118: =IF(Raw!BN118="","",Raw!BN118) -> D | P118: =IF(Raw!BO118="","",Raw!BO118) -> D | Q118: =IF(Raw!BP118="","",Raw!BP118) -> 100 | R118: =IF(Raw!BQ118="","",Raw!BQ118) -> Y_繼續經營疑慮 | S118: =IF(Raw!BR118="","",Raw!BR118) ->  | T118: =IF(Raw!BS118="","",Raw!BS118) -> 1.03 | U118: =IF(Raw!BT118="","",Raw!BT118) -> Y | V118: =IF(Raw!BU118="","",Raw!BU118) -> Y | W118: =IF(Raw!BV118="","",Raw!BV118) ->  | X118: =IF(Raw!BW118="","",Raw!BW118) ->  | Y118: =IF(Raw!BX118="","",Raw!BX118) ->  | Z118: =IF(Raw!BY118="","",Raw!BY118) ->  | AA118: =IF(Raw!BZ118="","",Raw!BZ118) -> Y | AB118: =IF(Raw!CA118="","",Raw!CA118) ->  | AC118: =IF(Raw!CB118="","",Raw!CB118) ->  | AD118: =IF(Raw!CC118="","",Raw!CC118) -> Y | AE118: =IF(Raw!CD118="","",Raw!CD118) ->  | AF118: =IF(Raw!CE118="","",Raw!CE118) ->  | AG118: =IF(Raw!CF118="","",Raw!CF118) ->  | AH118: =IF(Raw!CG118="","",Raw!CG118) ->  | AI118: =IF(Raw!CH118="","",Raw!CH118) -> -82.48 | AJ118: =IF(Raw!CI118="","",Raw!CI118) -> -58.25 | AK118: =IF(Raw!CJ118="","",Raw!CJ118) -> 148.93 | AL118: =IF(Raw!CK118="","",Raw!CK118) -> 0 | AM118: =IF(Raw!CL118="","",Raw!CL118) -> 3 | AN118: =IF(Raw!CM118="","",Raw!CM118) -> 0 | AO118: =IF(Raw!CN118="","",Raw!CN118) -> 0 | AP118: =IF(Raw!CO118="","",Raw!CO118) -> 0 | AQ118: =IF(Raw!CP118="","",Raw!CP118) -> 75 | AR118: =IF(Raw!CQ118="","",Raw!CQ118) ->  | AS118: =IF(Raw!CR118="","",Raw!CR118) -> 0 | AT118: =IF(Raw!CS118="","",Raw!CS118) ->  | AU118: =IF(Raw!CT118="","",Raw!CT118) -> D | AV118: =IF(Raw!CU118="","",Raw!CU118) -> 100 | AW118: =IF(Raw!CV118="","",Raw!CV118) -> 16
A119: =IF(Raw!BA119="","",Raw!BA119) -> 6225 天瀚 | B119: =IF(Raw!BB119="","",Raw!BB119) -> TSE | C119: =IF(Raw!BC119="","",Raw!BC119) -> 2.85 | D119: =IF(Raw!BD119="","",Raw!BD119) -> -5 | E119: =IF(Raw!BE119="","",Raw!BE119) -> -3.3898 | F119: =IF(Raw!BF119="","",Raw!BF119) -> 0 | G119: =IF(Raw!BG119="","",Raw!BG119) ->  | H119: =IF(Raw!BH119="","",Raw!BH119) -> -93.35 | I119: =IF(Raw!BI119="","",Raw!BI119) -> 389.16 | J119: =IF(Raw!BJ119="","",Raw!BJ119) -> 0 | K119: =IFERROR(ROUND(VLOOKUP(A119,'Raw3'!A:F,6,0),2),"") -> 0 | L119: =IF(Raw!BK119="","",Raw!BK119) ->  | M119: =IF(Raw!BL119="","",Raw!BL119) -> 0 | N119: =IF(Raw!BM119="","",Raw!BM119) -> 40.87 | O119: =IF(Raw!BN119="","",Raw!BN119) -> D | P119: =IF(Raw!BO119="","",Raw!BO119) -> D | Q119: =IF(Raw!BP119="","",Raw!BP119) -> 0 | R119: =IF(Raw!BQ119="","",Raw!BQ119) -> Y_繼續經營疑慮 | S119: =IF(Raw!BR119="","",Raw!BR119) ->  | T119: =IF(Raw!BS119="","",Raw!BS119) -> 71.25 | U119: =IF(Raw!BT119="","",Raw!BT119) ->  | V119: =IF(Raw!BU119="","",Raw!BU119) -> Y | W119: =IF(Raw!BV119="","",Raw!BV119) -> Y | X119: =IF(Raw!BW119="","",Raw!BW119) ->  | Y119: =IF(Raw!BX119="","",Raw!BX119) ->  | Z119: =IF(Raw!BY119="","",Raw!BY119) ->  | AA119: =IF(Raw!BZ119="","",Raw!BZ119) ->  | AB119: =IF(Raw!CA119="","",Raw!CA119) ->  | AC119: =IF(Raw!CB119="","",Raw!CB119) ->  | AD119: =IF(Raw!CC119="","",Raw!CC119) -> Y | AE119: =IF(Raw!CD119="","",Raw!CD119) ->  | AF119: =IF(Raw!CE119="","",Raw!CE119) ->  | AG119: =IF(Raw!CF119="","",Raw!CF119) ->  | AH119: =IF(Raw!CG119="","",Raw!CG119) ->  | AI119: =IF(Raw!CH119="","",Raw!CH119) ->  | AJ119: =IF(Raw!CI119="","",Raw!CI119) -> -93.35 | AK119: =IF(Raw!CJ119="","",Raw!CJ119) -> 389.16 | AL119: =IF(Raw!CK119="","",Raw!CK119) -> 0 | AM119: =IF(Raw!CL119="","",Raw!CL119) -> 0 | AN119: =IF(Raw!CM119="","",Raw!CM119) -> 0 | AO119: =IF(Raw!CN119="","",Raw!CN119) ->  | AP119: =IF(Raw!CO119="","",Raw!CO119) -> 0 | AQ119: =IF(Raw!CP119="","",Raw!CP119) -> 40.87 | AR119: =IF(Raw!CQ119="","",Raw!CQ119) ->  | AS119: =IF(Raw!CR119="","",Raw!CR119) -> 3 | AT119: =IF(Raw!CS119="","",Raw!CS119) ->  | AU119: =IF(Raw!CT119="","",Raw!CT119) -> D | AV119: =IF(Raw!CU119="","",Raw!CU119) -> 0 | AW119: =IF(Raw!CV119="","",Raw!CV119) -> 13
A120: =IF(Raw!BA120="","",Raw!BA120) -> 6259 百徽 | B120: =IF(Raw!BB120="","",Raw!BB120) -> OTC | C120: =IF(Raw!BC120="","",Raw!BC120) -> 3.41 | D120: =IF(Raw!BD120="","",Raw!BD120) -> 0 | E120: =IF(Raw!BE120="","",Raw!BE120) -> 3.3334 | F120: =IF(Raw!BF120="","",Raw!BF120) ->  | G120: =IF(Raw!BG120="","",Raw!BG120) -> -10.9 | H120: =IF(Raw!BH120="","",Raw!BH120) -> -38.77 | I120: =IF(Raw!BI120="","",Raw!BI120) -> 151.17 | J120: =IF(Raw!BJ120="","",Raw!BJ120) -> 0 | K120: =IFERROR(ROUND(VLOOKUP(A120,'Raw3'!A:F,6,0),2),"") -> 0 | L120: =IF(Raw!BK120="","",Raw!BK120) ->  | M120: =IF(Raw!BL120="","",Raw!BL120) ->  | N120: =IF(Raw!BM120="","",Raw!BM120) -> 50 | O120: =IF(Raw!BN120="","",Raw!BN120) -> 9 | P120: =IF(Raw!BO120="","",Raw!BO120) -> 9 | Q120: =IF(Raw!BP120="","",Raw!BP120) -> 100 | R120: =IF(Raw!BQ120="","",Raw!BQ120) ->  | S120: =IF(Raw!BR120="","",Raw!BR120) ->  | T120: =IF(Raw!BS120="","",Raw!BS120) -> 1.92 | U120: =IF(Raw!BT120="","",Raw!BT120) ->  | V120: =IF(Raw!BU120="","",Raw!BU120) ->  | W120: =IF(Raw!BV120="","",Raw!BV120) ->  | X120: =IF(Raw!BW120="","",Raw!BW120) ->  | Y120: =IF(Raw!BX120="","",Raw!BX120) ->  | Z120: =IF(Raw!BY120="","",Raw!BY120) ->  | AA120: =IF(Raw!BZ120="","",Raw!BZ120) -> Y | AB120: =IF(Raw!CA120="","",Raw!CA120) ->  | AC120: =IF(Raw!CB120="","",Raw!CB120) ->  | AD120: =IF(Raw!CC120="","",Raw!CC120) -> Y | AE120: =IF(Raw!CD120="","",Raw!CD120) ->  | AF120: =IF(Raw!CE120="","",Raw!CE120) ->  | AG120: =IF(Raw!CF120="","",Raw!CF120) ->  | AH120: =IF(Raw!CG120="","",Raw!CG120) ->  | AI120: =IF(Raw!CH120="","",Raw!CH120) -> -10.9 | AJ120: =IF(Raw!CI120="","",Raw!CI120) -> -38.77 | AK120: =IF(Raw!CJ120="","",Raw!CJ120) -> 151.17 | AL120: =IF(Raw!CK120="","",Raw!CK120) -> 0 | AM120: =IF(Raw!CL120="","",Raw!CL120) -> 0 | AN120: =IF(Raw!CM120="","",Raw!CM120) -> 0 | AO120: =IF(Raw!CN120="","",Raw!CN120) ->  | AP120: =IF(Raw!CO120="","",Raw!CO120) -> 0 | AQ120: =IF(Raw!CP120="","",Raw!CP120) -> 50 | AR120: =IF(Raw!CQ120="","",Raw!CQ120) ->  | AS120: =IF(Raw!CR120="","",Raw!CR120) -> 0 | AT120: =IF(Raw!CS120="","",Raw!CS120) ->  | AU120: =IF(Raw!CT120="","",Raw!CT120) -> 9 | AV120: =IF(Raw!CU120="","",Raw!CU120) -> 100 | AW120: =IF(Raw!CV120="","",Raw!CV120) -> 11
A121: =IF(Raw!BA121="","",Raw!BA121) -> 6283 淳安 | B121: =IF(Raw!BB121="","",Raw!BB121) -> TSE | C121: =IF(Raw!BC121="","",Raw!BC121) -> 52 | D121: =IF(Raw!BD121="","",Raw!BD121) -> 4.9445 | E121: =IF(Raw!BE121="","",Raw!BE121) -> 16.8539 | F121: =IF(Raw!BF121="","",Raw!BF121) -> 15314 | G121: =IF(Raw!BG121="","",Raw!BG121) -> -9.31 | H121: =IF(Raw!BH121="","",Raw!BH121) -> -19.29 | I121: =IF(Raw!BI121="","",Raw!BI121) -> 15.32 | J121: =IF(Raw!BJ121="","",Raw!BJ121) -> 0 | K121: =IFERROR(ROUND(VLOOKUP(A121,'Raw3'!A:F,6,0),2),"") -> 0 | L121: =IF(Raw!BK121="","",Raw!BK121) -> 75.23 | M121: =IF(Raw!BL121="","",Raw!BL121) -> 786986.46 | N121: =IF(Raw!BM121="","",Raw!BM121) -> 23.9 | O121: =IF(Raw!BN121="","",Raw!BN121) -> 7 | P121: =IF(Raw!BO121="","",Raw!BO121) -> 5 | Q121: =IF(Raw!BP121="","",Raw!BP121) -> 0 | R121: =IF(Raw!BQ121="","",Raw!BQ121) ->  | S121: =IF(Raw!BR121="","",Raw!BR121) -> 12.91 | T121: =IF(Raw!BS121="","",Raw!BS121) -> 4.92 | U121: =IF(Raw!BT121="","",Raw!BT121) ->  | V121: =IF(Raw!BU121="","",Raw!BU121) ->  | W121: =IF(Raw!BV121="","",Raw!BV121) ->  | X121: =IF(Raw!BW121="","",Raw!BW121) ->  | Y121: =IF(Raw!BX121="","",Raw!BX121) ->  | Z121: =IF(Raw!BY121="","",Raw!BY121) ->  | AA121: =IF(Raw!BZ121="","",Raw!BZ121) ->  | AB121: =IF(Raw!CA121="","",Raw!CA121) ->  | AC121: =IF(Raw!CB121="","",Raw!CB121) ->  | AD121: =IF(Raw!CC121="","",Raw!CC121) ->  | AE121: =IF(Raw!CD121="","",Raw!CD121) ->  | AF121: =IF(Raw!CE121="","",Raw!CE121) ->  | AG121: =IF(Raw!CF121="","",Raw!CF121) ->  | AH121: =IF(Raw!CG121="","",Raw!CG121) ->  | AI121: =IF(Raw!CH121="","",Raw!CH121) -> -9.31 | AJ121: =IF(Raw!CI121="","",Raw!CI121) -> -19.29 | AK121: =IF(Raw!CJ121="","",Raw!CJ121) -> 15.32 | AL121: =IF(Raw!CK121="","",Raw!CK121) -> 0 | AM121: =IF(Raw!CL121="","",Raw!CL121) -> 0 | AN121: =IF(Raw!CM121="","",Raw!CM121) -> 1 | AO121: =IF(Raw!CN121="","",Raw!CN121) -> 75.23 | AP121: =IF(Raw!CO121="","",Raw!CO121) -> 1 | AQ121: =IF(Raw!CP121="","",Raw!CP121) -> 23.9 | AR121: =IF(Raw!CQ121="","",Raw!CQ121) ->  | AS121: =IF(Raw!CR121="","",Raw!CR121) -> 2 | AT121: =IF(Raw!CS121="","",Raw!CS121) ->  | AU121: =IF(Raw!CT121="","",Raw!CT121) -> 7 | AV121: =IF(Raw!CU121="","",Raw!CU121) -> 0 | AW121: =IF(Raw!CV121="","",Raw!CV121) -> 9
A122: =IF(Raw!BA122="","",Raw!BA122) -> 6287 元隆 | B122: =IF(Raw!BB122="","",Raw!BB122) -> OTC | C122: =IF(Raw!BC122="","",Raw!BC122) -> 3.79 | D122: =IF(Raw!BD122="","",Raw!BD122) -> 0 | E122: =IF(Raw!BE122="","",Raw!BE122) -> -0.2632 | F122: =IF(Raw!BF122="","",Raw!BF122) -> 0 | G122: =IF(Raw!BG122="","",Raw!BG122) -> 19.09 | H122: =IF(Raw!BH122="","",Raw!BH122) -> 2.72 | I122: =IF(Raw!BI122="","",Raw!BI122) -> 356.37 | J122: =IF(Raw!BJ122="","",Raw!BJ122) -> 0 | K122: =IFERROR(ROUND(VLOOKUP(A122,'Raw3'!A:F,6,0),2),"") -> 0 | L122: =IF(Raw!BK122="","",Raw!BK122) -> 0 | M122: =IF(Raw!BL122="","",Raw!BL122) -> 0 | N122: =IF(Raw!BM122="","",Raw!BM122) -> 43.34 | O122: =IF(Raw!BN122="","",Raw!BN122) -> 9 | P122: =IF(Raw!BO122="","",Raw!BO122) -> 8 | Q122: =IF(Raw!BP122="","",Raw!BP122) -> 100 | R122: =IF(Raw!BQ122="","",Raw!BQ122) ->  | S122: =IF(Raw!BR122="","",Raw!BR122) ->  | T122: =IF(Raw!BS122="","",Raw!BS122) -> 3.99 | U122: =IF(Raw!BT122="","",Raw!BT122) ->  | V122: =IF(Raw!BU122="","",Raw!BU122) ->  | W122: =IF(Raw!BV122="","",Raw!BV122) -> Y | X122: =IF(Raw!BW122="","",Raw!BW122) ->  | Y122: =IF(Raw!BX122="","",Raw!BX122) ->  | Z122: =IF(Raw!BY122="","",Raw!BY122) ->  | AA122: =IF(Raw!BZ122="","",Raw!BZ122) ->  | AB122: =IF(Raw!CA122="","",Raw!CA122) ->  | AC122: =IF(Raw!CB122="","",Raw!CB122) ->  | AD122: =IF(Raw!CC122="","",Raw!CC122) -> Y | AE122: =IF(Raw!CD122="","",Raw!CD122) ->  | AF122: =IF(Raw!CE122="","",Raw!CE122) ->  | AG122: =IF(Raw!CF122="","",Raw!CF122) ->  | AH122: =IF(Raw!CG122="","",Raw!CG122) ->  | AI122: =IF(Raw!CH122="","",Raw!CH122) -> 19.09 | AJ122: =IF(Raw!CI122="","",Raw!CI122) -> 2.72 | AK122: =IF(Raw!CJ122="","",Raw!CJ122) -> 356.37 | AL122: =IF(Raw!CK122="","",Raw!CK122) -> 0 | AM122: =IF(Raw!CL122="","",Raw!CL122) -> 0 | AN122: =IF(Raw!CM122="","",Raw!CM122) -> 0 | AO122: =IF(Raw!CN122="","",Raw!CN122) -> 0 | AP122: =IF(Raw!CO122="","",Raw!CO122) -> 0 | AQ122: =IF(Raw!CP122="","",Raw!CP122) -> 43.34 | AR122: =IF(Raw!CQ122="","",Raw!CQ122) ->  | AS122: =IF(Raw!CR122="","",Raw!CR122) -> 1 | AT122: =IF(Raw!CS122="","",Raw!CS122) ->  | AU122: =IF(Raw!CT122="","",Raw!CT122) -> 9 | AV122: =IF(Raw!CU122="","",Raw!CU122) -> 100 | AW122: =IF(Raw!CV122="","",Raw!CV122) -> 11
A123: =IF(Raw!BA123="","",Raw!BA123) -> 6289 華上 | B123: =IF(Raw!BB123="","",Raw!BB123) -> TSE | C123: =IF(Raw!BC123="","",Raw!BC123) -> 2.06 | D123: =IF(Raw!BD123="","",Raw!BD123) -> 0 | E123: =IF(Raw!BE123="","",Raw!BE123) -> 1.4778 | F123: =IF(Raw!BF123="","",Raw!BF123) -> 0 | G123: =IF(Raw!BG123="","",Raw!BG123) -> 78.89 | H123: =IF(Raw!BH123="","",Raw!BH123) -> 37.46 | I123: =IF(Raw!BI123="","",Raw!BI123) -> 334.16 | J123: =IF(Raw!BJ123="","",Raw!BJ123) -> 53.79 | K123: =IFERROR(ROUND(VLOOKUP(A123,'Raw3'!A:F,6,0),2),"") -> 53.79 | L123: =IF(Raw!BK123="","",Raw!BK123) ->  | M123: =IF(Raw!BL123="","",Raw!BL123) -> 0 | N123: =IF(Raw!BM123="","",Raw!BM123) -> 39.69 | O123: =IF(Raw!BN123="","",Raw!BN123) -> 9 | P123: =IF(Raw!BO123="","",Raw!BO123) -> 9 | Q123: =IF(Raw!BP123="","",Raw!BP123) -> 100 | R123: =IF(Raw!BQ123="","",Raw!BQ123) ->  | S123: =IF(Raw!BR123="","",Raw!BR123) ->  | T123: =IF(Raw!BS123="","",Raw!BS123) -> 2.58 | U123: =IF(Raw!BT123="","",Raw!BT123) ->  | V123: =IF(Raw!BU123="","",Raw!BU123) ->  | W123: =IF(Raw!BV123="","",Raw!BV123) -> Y | X123: =IF(Raw!BW123="","",Raw!BW123) ->  | Y123: =IF(Raw!BX123="","",Raw!BX123) ->  | Z123: =IF(Raw!BY123="","",Raw!BY123) ->  | AA123: =IF(Raw!BZ123="","",Raw!BZ123) ->  | AB123: =IF(Raw!CA123="","",Raw!CA123) ->  | AC123: =IF(Raw!CB123="","",Raw!CB123) ->  | AD123: =IF(Raw!CC123="","",Raw!CC123) -> Y | AE123: =IF(Raw!CD123="","",Raw!CD123) ->  | AF123: =IF(Raw!CE123="","",Raw!CE123) ->  | AG123: =IF(Raw!CF123="","",Raw!CF123) ->  | AH123: =IF(Raw!CG123="","",Raw!CG123) ->  | AI123: =IF(Raw!CH123="","",Raw!CH123) -> 78.89 | AJ123: =IF(Raw!CI123="","",Raw!CI123) -> 37.46 | AK123: =IF(Raw!CJ123="","",Raw!CJ123) -> 334.16 | AL123: =IF(Raw!CK123="","",Raw!CK123) -> 0 | AM123: =IF(Raw!CL123="","",Raw!CL123) -> 3 | AN123: =IF(Raw!CM123="","",Raw!CM123) -> 0 | AO123: =IF(Raw!CN123="","",Raw!CN123) ->  | AP123: =IF(Raw!CO123="","",Raw!CO123) -> 0 | AQ123: =IF(Raw!CP123="","",Raw!CP123) -> 39.69 | AR123: =IF(Raw!CQ123="","",Raw!CQ123) ->  | AS123: =IF(Raw!CR123="","",Raw!CR123) -> 0 | AT123: =IF(Raw!CS123="","",Raw!CS123) ->  | AU123: =IF(Raw!CT123="","",Raw!CT123) -> 9 | AV123: =IF(Raw!CU123="","",Raw!CU123) -> 100 | AW123: =IF(Raw!CV123="","",Raw!CV123) -> 13
A124: =IF(Raw!BA124="","",Raw!BA124) -> 6291 沛亨 | B124: =IF(Raw!BB124="","",Raw!BB124) -> OTC | C124: =IF(Raw!BC124="","",Raw!BC124) -> 2.65 | D124: =IF(Raw!BD124="","",Raw!BD124) -> 8.1633 | E124: =IF(Raw!BE124="","",Raw!BE124) -> 8.1633 | F124: =IF(Raw!BF124="","",Raw!BF124) -> 0 | G124: =IF(Raw!BG124="","",Raw!BG124) -> -18.05 | H124: =IF(Raw!BH124="","",Raw!BH124) -> -14.58 | I124: =IF(Raw!BI124="","",Raw!BI124) -> 734.93 | J124: =IF(Raw!BJ124="","",Raw!BJ124) -> 0 | K124: =IFERROR(ROUND(VLOOKUP(A124,'Raw3'!A:F,6,0),2),"") -> 0 | L124: =IF(Raw!BK124="","",Raw!BK124) -> 0 | M124: =IF(Raw!BL124="","",Raw!BL124) -> 0 | N124: =IF(Raw!BM124="","",Raw!BM124) -> 62.38 | O124: =IF(Raw!BN124="","",Raw!BN124) -> 9 | P124: =IF(Raw!BO124="","",Raw!BO124) -> 9 | Q124: =IF(Raw!BP124="","",Raw!BP124) -> 100 | R124: =IF(Raw!BQ124="","",Raw!BQ124) ->  | S124: =IF(Raw!BR124="","",Raw!BR124) ->  | T124: =IF(Raw!BS124="","",Raw!BS124) -> 4.02 | U124: =IF(Raw!BT124="","",Raw!BT124) ->  | V124: =IF(Raw!BU124="","",Raw!BU124) ->  | W124: =IF(Raw!BV124="","",Raw!BV124) -> Y | X124: =IF(Raw!BW124="","",Raw!BW124) ->  | Y124: =IF(Raw!BX124="","",Raw!BX124) ->  | Z124: =IF(Raw!BY124="","",Raw!BY124) ->  | AA124: =IF(Raw!BZ124="","",Raw!BZ124) -> Y | AB124: =IF(Raw!CA124="","",Raw!CA124) ->  | AC124: =IF(Raw!CB124="","",Raw!CB124) ->  | AD124: =IF(Raw!CC124="","",Raw!CC124) -> Y | AE124: =IF(Raw!CD124="","",Raw!CD124) ->  | AF124: =IF(Raw!CE124="","",Raw!CE124) ->  | AG124: =IF(Raw!CF124="","",Raw!CF124) ->  | AH124: =IF(Raw!CG124="","",Raw!CG124) ->  | AI124: =IF(Raw!CH124="","",Raw!CH124) -> -18.05 | AJ124: =IF(Raw!CI124="","",Raw!CI124) -> -14.58 | AK124: =IF(Raw!CJ124="","",Raw!CJ124) -> 734.93 | AL124: =IF(Raw!CK124="","",Raw!CK124) -> 0 | AM124: =IF(Raw!CL124="","",Raw!CL124) -> 0 | AN124: =IF(Raw!CM124="","",Raw!CM124) -> 0 | AO124: =IF(Raw!CN124="","",Raw!CN124) -> 0 | AP124: =IF(Raw!CO124="","",Raw!CO124) -> 0 | AQ124: =IF(Raw!CP124="","",Raw!CP124) -> 62.38 | AR124: =IF(Raw!CQ124="","",Raw!CQ124) ->  | AS124: =IF(Raw!CR124="","",Raw!CR124) -> 2 | AT124: =IF(Raw!CS124="","",Raw!CS124) ->  | AU124: =IF(Raw!CT124="","",Raw!CT124) -> 9 | AV124: =IF(Raw!CU124="","",Raw!CU124) -> 100 | AW124: =IF(Raw!CV124="","",Raw!CV124) -> 13
A125: =IF(Raw!BA125="","",Raw!BA125) -> 6446 藥華醫 | B125: =IF(Raw!BB125="","",Raw!BB125) -> OTC | C125: =IF(Raw!BC125="","",Raw!BC125) -> 142.5 | D125: =IF(Raw!BD125="","",Raw!BD125) -> -0.3497 | E125: =IF(Raw!BE125="","",Raw!BE125) -> 2.5179 | F125: =IF(Raw!BF125="","",Raw!BF125) ->  | G125: =IF(Raw!BG125="","",Raw!BG125) -> -19.12 | H125: =IF(Raw!BH125="","",Raw!BH125) -> -25.22 | I125: =IF(Raw!BI125="","",Raw!BI125) -> 4.2 | J125: =IF(Raw!BJ125="","",Raw!BJ125) -> 0 | K125: =IFERROR(ROUND(VLOOKUP(A125,'Raw3'!A:F,6,0),2),"") -> 0 | L125: =IF(Raw!BK125="","",Raw!BK125) ->  | M125: =IF(Raw!BL125="","",Raw!BL125) ->  | N125: =IF(Raw!BM125="","",Raw!BM125) -> 30.94 | O125: =IF(Raw!BN125="","",Raw!BN125) -> 7 | P125: =IF(Raw!BO125="","",Raw!BO125) -> 5 | Q125: =IF(Raw!BP125="","",Raw!BP125) -> 0 | R125: =IF(Raw!BQ125="","",Raw!BQ125) ->  | S125: =IF(Raw!BR125="","",Raw!BR125) ->  | T125: =IF(Raw!BS125="","",Raw!BS125) -> 8.03 | U125: =IF(Raw!BT125="","",Raw!BT125) ->  | V125: =IF(Raw!BU125="","",Raw!BU125) ->  | W125: =IF(Raw!BV125="","",Raw!BV125) ->  | X125: =IF(Raw!BW125="","",Raw!BW125) ->  | Y125: =IF(Raw!BX125="","",Raw!BX125) ->  | Z125: =IF(Raw!BY125="","",Raw!BY125) ->  | AA125: =IF(Raw!BZ125="","",Raw!BZ125) ->  | AB125: =IF(Raw!CA125="","",Raw!CA125) ->  | AC125: =IF(Raw!CB125="","",Raw!CB125) ->  | AD125: =IF(Raw!CC125="","",Raw!CC125) ->  | AE125: =IF(Raw!CD125="","",Raw!CD125) ->  | AF125: =IF(Raw!CE125="","",Raw!CE125) ->  | AG125: =IF(Raw!CF125="","",Raw!CF125) ->  | AH125: =IF(Raw!CG125="","",Raw!CG125) ->  | AI125: =IF(Raw!CH125="","",Raw!CH125) -> -19.12 | AJ125: =IF(Raw!CI125="","",Raw!CI125) -> -25.22 | AK125: =IF(Raw!CJ125="","",Raw!CJ125) -> 4.2 | AL125: =IF(Raw!CK125="","",Raw!CK125) -> 0 | AM125: =IF(Raw!CL125="","",Raw!CL125) -> 0 | AN125: =IF(Raw!CM125="","",Raw!CM125) -> 0 | AO125: =IF(Raw!CN125="","",Raw!CN125) ->  | AP125: =IF(Raw!CO125="","",Raw!CO125) -> 0 | AQ125: =IF(Raw!CP125="","",Raw!CP125) -> 30.94 | AR125: =IF(Raw!CQ125="","",Raw!CQ125) ->  | AS125: =IF(Raw!CR125="","",Raw!CR125) -> 3 | AT125: =IF(Raw!CS125="","",Raw!CS125) ->  | AU125: =IF(Raw!CT125="","",Raw!CT125) -> 7 | AV125: =IF(Raw!CU125="","",Raw!CU125) -> 0 | AW125: =IF(Raw!CV125="","",Raw!CV125) -> 9
A126: =IF(Raw!BA126="","",Raw!BA126) -> 8038 長園科 | B126: =IF(Raw!BB126="","",Raw!BB126) -> OTC | C126: =IF(Raw!BC126="","",Raw!BC126) -> 50.7 | D126: =IF(Raw!BD126="","",Raw!BD126) -> -1.1696 | E126: =IF(Raw!BE126="","",Raw!BE126) -> -8.4838 | F126: =IF(Raw!BF126="","",Raw!BF126) ->  | G126: =IF(Raw!BG126="","",Raw!BG126) -> -91.93 | H126: =IF(Raw!BH126="","",Raw!BH126) -> -91.67 | I126: =IF(Raw!BI126="","",Raw!BI126) -> 62.5 | J126: =IF(Raw!BJ126="","",Raw!BJ126) -> 0 | K126: =IFERROR(ROUND(VLOOKUP(A126,'Raw3'!A:F,6,0),2),"") -> 0 | L126: =IF(Raw!BK126="","",Raw!BK126) ->  | M126: =IF(Raw!BL126="","",Raw!BL126) ->  | N126: =IF(Raw!BM126="","",Raw!BM126) -> 20.21 | O126: =IF(Raw!BN126="","",Raw!BN126) -> 8 | P126: =IF(Raw!BO126="","",Raw!BO126) -> 6 | Q126: =IF(Raw!BP126="","",Raw!BP126) -> 0 | R126: =IF(Raw!BQ126="","",Raw!BQ126) ->  | S126: =IF(Raw!BR126="","",Raw!BR126) ->  | T126: =IF(Raw!BS126="","",Raw!BS126) -> 4.36 | U126: =IF(Raw!BT126="","",Raw!BT126) -> Y | V126: =IF(Raw!BU126="","",Raw!BU126) -> Y | W126: =IF(Raw!BV126="","",Raw!BV126) ->  | X126: =IF(Raw!BW126="","",Raw!BW126) ->  | Y126: =IF(Raw!BX126="","",Raw!BX126) ->  | Z126: =IF(Raw!BY126="","",Raw!BY126) ->  | AA126: =IF(Raw!BZ126="","",Raw!BZ126) ->  | AB126: =IF(Raw!CA126="","",Raw!CA126) ->  | AC126: =IF(Raw!CB126="","",Raw!CB126) ->  | AD126: =IF(Raw!CC126="","",Raw!CC126) ->  | AE126: =IF(Raw!CD126="","",Raw!CD126) ->  | AF126: =IF(Raw!CE126="","",Raw!CE126) ->  | AG126: =IF(Raw!CF126="","",Raw!CF126) ->  | AH126: =IF(Raw!CG126="","",Raw!CG126) ->  | AI126: =IF(Raw!CH126="","",Raw!CH126) -> -91.93 | AJ126: =IF(Raw!CI126="","",Raw!CI126) -> -91.67 | AK126: =IF(Raw!CJ126="","",Raw!CJ126) -> 62.5 | AL126: =IF(Raw!CK126="","",Raw!CK126) -> 0 | AM126: =IF(Raw!CL126="","",Raw!CL126) -> 0 | AN126: =IF(Raw!CM126="","",Raw!CM126) -> 0 | AO126: =IF(Raw!CN126="","",Raw!CN126) ->  | AP126: =IF(Raw!CO126="","",Raw!CO126) -> 0 | AQ126: =IF(Raw!CP126="","",Raw!CP126) -> 20.21 | AR126: =IF(Raw!CQ126="","",Raw!CQ126) ->  | AS126: =IF(Raw!CR126="","",Raw!CR126) -> 2 | AT126: =IF(Raw!CS126="","",Raw!CS126) ->  | AU126: =IF(Raw!CT126="","",Raw!CT126) -> 8 | AV126: =IF(Raw!CU126="","",Raw!CU126) -> 0 | AW126: =IF(Raw!CV126="","",Raw!CV126) -> 10
A127: =IF(Raw!BA127="","",Raw!BA127) -> 8067 志旭 | B127: =IF(Raw!BB127="","",Raw!BB127) -> OTC | C127: =IF(Raw!BC127="","",Raw!BC127) -> 6.68 | D127: =IF(Raw!BD127="","",Raw!BD127) -> 8.7948 | E127: =IF(Raw!BE127="","",Raw!BE127) -> 30.2145 | F127: =IF(Raw!BF127="","",Raw!BF127) ->  | G127: =IF(Raw!BG127="","",Raw!BG127) -> -28.93 | H127: =IF(Raw!BH127="","",Raw!BH127) -> -37.56 | I127: =IF(Raw!BI127="","",Raw!BI127) -> 85.19 | J127: =IF(Raw!BJ127="","",Raw!BJ127) -> 0 | K127: =IFERROR(ROUND(VLOOKUP(A127,'Raw3'!A:F,6,0),2),"") -> 0 | L127: =IF(Raw!BK127="","",Raw!BK127) ->  | M127: =IF(Raw!BL127="","",Raw!BL127) ->  | N127: =IF(Raw!BM127="","",Raw!BM127) -> 36.2 | O127: =IF(Raw!BN127="","",Raw!BN127) -> 8 | P127: =IF(Raw!BO127="","",Raw!BO127) -> 8 | Q127: =IF(Raw!BP127="","",Raw!BP127) -> 100 | R127: =IF(Raw!BQ127="","",Raw!BQ127) ->  | S127: =IF(Raw!BR127="","",Raw!BR127) ->  | T127: =IF(Raw!BS127="","",Raw!BS127) -> 1.02 | U127: =IF(Raw!BT127="","",Raw!BT127) ->  | V127: =IF(Raw!BU127="","",Raw!BU127) ->  | W127: =IF(Raw!BV127="","",Raw!BV127) ->  | X127: =IF(Raw!BW127="","",Raw!BW127) ->  | Y127: =IF(Raw!BX127="","",Raw!BX127) -> + | Z127: =IF(Raw!BY127="","",Raw!BY127) ->  | AA127: =IF(Raw!BZ127="","",Raw!BZ127) ->  | AB127: =IF(Raw!CA127="","",Raw!CA127) ->  | AC127: =IF(Raw!CB127="","",Raw!CB127) ->  | AD127: =IF(Raw!CC127="","",Raw!CC127) ->  | AE127: =IF(Raw!CD127="","",Raw!CD127) ->  | AF127: =IF(Raw!CE127="","",Raw!CE127) ->  | AG127: =IF(Raw!CF127="","",Raw!CF127) ->  | AH127: =IF(Raw!CG127="","",Raw!CG127) ->  | AI127: =IF(Raw!CH127="","",Raw!CH127) -> -28.93 | AJ127: =IF(Raw!CI127="","",Raw!CI127) -> -37.56 | AK127: =IF(Raw!CJ127="","",Raw!CJ127) -> 85.19 | AL127: =IF(Raw!CK127="","",Raw!CK127) -> 0 | AM127: =IF(Raw!CL127="","",Raw!CL127) -> 0 | AN127: =IF(Raw!CM127="","",Raw!CM127) -> 3 | AO127: =IF(Raw!CN127="","",Raw!CN127) ->  | AP127: =IF(Raw!CO127="","",Raw!CO127) -> 0 | AQ127: =IF(Raw!CP127="","",Raw!CP127) -> 36.2 | AR127: =IF(Raw!CQ127="","",Raw!CQ127) ->  | AS127: =IF(Raw!CR127="","",Raw!CR127) -> 0 | AT127: =IF(Raw!CS127="","",Raw!CS127) ->  | AU127: =IF(Raw!CT127="","",Raw!CT127) -> 8 | AV127: =IF(Raw!CU127="","",Raw!CU127) -> 100 | AW127: =IF(Raw!CV127="","",Raw!CV127) -> 15
A128: =IF(Raw!BA128="","",Raw!BA128) -> 8068 全達 | B128: =IF(Raw!BB128="","",Raw!BB128) -> OTC | C128: =IF(Raw!BC128="","",Raw!BC128) -> 31.4 | D128: =IF(Raw!BD128="","",Raw!BD128) -> -0.9464 | E128: =IF(Raw!BE128="","",Raw!BE128) -> 0.641 | F128: =IF(Raw!BF128="","",Raw!BF128) -> 0 | G128: =IF(Raw!BG128="","",Raw!BG128) -> 29.33 | H128: =IF(Raw!BH128="","",Raw!BH128) -> 53.56 | I128: =IF(Raw!BI128="","",Raw!BI128) -> 219.31 | J128: =IF(Raw!BJ128="","",Raw!BJ128) -> 0 | K128: =IFERROR(ROUND(VLOOKUP(A128,'Raw3'!A:F,6,0),2),"") -> 0 | L128: =IF(Raw!BK128="","",Raw!BK128) -> 0 | M128: =IF(Raw!BL128="","",Raw!BL128) -> 0 | N128: =IF(Raw!BM128="","",Raw!BM128) -> 33.33 | O128: =IF(Raw!BN128="","",Raw!BN128) -> 8 | P128: =IF(Raw!BO128="","",Raw!BO128) -> 7 | Q128: =IF(Raw!BP128="","",Raw!BP128) -> 100 | R128: =IF(Raw!BQ128="","",Raw!BQ128) ->  | S128: =IF(Raw!BR128="","",Raw!BR128) ->  | T128: =IF(Raw!BS128="","",Raw!BS128) -> 3.74 | U128: =IF(Raw!BT128="","",Raw!BT128) ->  | V128: =IF(Raw!BU128="","",Raw!BU128) ->  | W128: =IF(Raw!BV128="","",Raw!BV128) ->  | X128: =IF(Raw!BW128="","",Raw!BW128) ->  | Y128: =IF(Raw!BX128="","",Raw!BX128) ->  | Z128: =IF(Raw!BY128="","",Raw!BY128) ->  | AA128: =IF(Raw!BZ128="","",Raw!BZ128) ->  | AB128: =IF(Raw!CA128="","",Raw!CA128) ->  | AC128: =IF(Raw!CB128="","",Raw!CB128) ->  | AD128: =IF(Raw!CC128="","",Raw!CC128) ->  | AE128: =IF(Raw!CD128="","",Raw!CD128) ->  | AF128: =IF(Raw!CE128="","",Raw!CE128) ->  | AG128: =IF(Raw!CF128="","",Raw!CF128) ->  | AH128: =IF(Raw!CG128="","",Raw!CG128) ->  | AI128: =IF(Raw!CH128="","",Raw!CH128) -> 29.33 | AJ128: =IF(Raw!CI128="","",Raw!CI128) -> 53.56 | AK128: =IF(Raw!CJ128="","",Raw!CJ128) -> 219.31 | AL128: =IF(Raw!CK128="","",Raw!CK128) -> 0 | AM128: =IF(Raw!CL128="","",Raw!CL128) -> 0 | AN128: =IF(Raw!CM128="","",Raw!CM128) -> 0 | AO128: =IF(Raw!CN128="","",Raw!CN128) -> 0 | AP128: =IF(Raw!CO128="","",Raw!CO128) -> 0 | AQ128: =IF(Raw!CP128="","",Raw!CP128) -> 33.33 | AR128: =IF(Raw!CQ128="","",Raw!CQ128) ->  | AS128: =IF(Raw!CR128="","",Raw!CR128) -> 1 | AT128: =IF(Raw!CS128="","",Raw!CS128) ->  | AU128: =IF(Raw!CT128="","",Raw!CT128) -> 8 | AV128: =IF(Raw!CU128="","",Raw!CU128) -> 100 | AW128: =IF(Raw!CV128="","",Raw!CV128) -> 9
A129: =IF(Raw!BA129="","",Raw!BA129) -> 8097 常珵 | B129: =IF(Raw!BB129="","",Raw!BB129) -> OTC | C129: =IF(Raw!BC129="","",Raw!BC129) -> 10.95 | D129: =IF(Raw!BD129="","",Raw!BD129) -> -0.4545 | E129: =IF(Raw!BE129="","",Raw!BE129) -> -0.4545 | F129: =IF(Raw!BF129="","",Raw!BF129) -> 1078 | G129: =IF(Raw!BG129="","",Raw!BG129) -> 28.21 | H129: =IF(Raw!BH129="","",Raw!BH129) -> 11.47 | I129: =IF(Raw!BI129="","",Raw!BI129) -> 100.65 | J129: =IF(Raw!BJ129="","",Raw!BJ129) -> 23.71 | K129: =IFERROR(ROUND(VLOOKUP(A129,'Raw3'!A:F,6,0),2),"") -> 23.71 | L129: =IF(Raw!BK129="","",Raw!BK129) -> 62.52 | M129: =IF(Raw!BL129="","",Raw!BL129) -> 11804.1 | N129: =IF(Raw!BM129="","",Raw!BM129) -> 50 | O129: =IF(Raw!BN129="","",Raw!BN129) -> 9 | P129: =IF(Raw!BO129="","",Raw!BO129) -> 7 | Q129: =IF(Raw!BP129="","",Raw!BP129) -> 0 | R129: =IF(Raw!BQ129="","",Raw!BQ129) ->  | S129: =IF(Raw!BR129="","",Raw!BR129) -> 0 | T129: =IF(Raw!BS129="","",Raw!BS129) -> 1.09 | U129: =IF(Raw!BT129="","",Raw!BT129) ->  | V129: =IF(Raw!BU129="","",Raw!BU129) ->  | W129: =IF(Raw!BV129="","",Raw!BV129) ->  | X129: =IF(Raw!BW129="","",Raw!BW129) ->  | Y129: =IF(Raw!BX129="","",Raw!BX129) ->  | Z129: =IF(Raw!BY129="","",Raw!BY129) ->  | AA129: =IF(Raw!BZ129="","",Raw!BZ129) -> Y | AB129: =IF(Raw!CA129="","",Raw!CA129) ->  | AC129: =IF(Raw!CB129="","",Raw!CB129) ->  | AD129: =IF(Raw!CC129="","",Raw!CC129) ->  | AE129: =IF(Raw!CD129="","",Raw!CD129) ->  | AF129: =IF(Raw!CE129="","",Raw!CE129) ->  | AG129: =IF(Raw!CF129="","",Raw!CF129) ->  | AH129: =IF(Raw!CG129="","",Raw!CG129) ->  | AI129: =IF(Raw!CH129="","",Raw!CH129) -> 28.21 | AJ129: =IF(Raw!CI129="","",Raw!CI129) -> 11.47 | AK129: =IF(Raw!CJ129="","",Raw!CJ129) -> 100.65 | AL129: =IF(Raw!CK129="","",Raw!CK129) -> 2 | AM129: =IF(Raw!CL129="","",Raw!CL129) -> 0 | AN129: =IF(Raw!CM129="","",Raw!CM129) -> 0 | AO129: =IF(Raw!CN129="","",Raw!CN129) -> 62.52 | AP129: =IF(Raw!CO129="","",Raw!CO129) -> 0 | AQ129: =IF(Raw!CP129="","",Raw!CP129) -> 50 | AR129: =IF(Raw!CQ129="","",Raw!CQ129) ->  | AS129: =IF(Raw!CR129="","",Raw!CR129) -> 0 | AT129: =IF(Raw!CS129="","",Raw!CS129) ->  | AU129: =IF(Raw!CT129="","",Raw!CT129) -> 9 | AV129: =IF(Raw!CU129="","",Raw!CU129) -> 0 | AW129: =IF(Raw!CV129="","",Raw!CV129) -> 9
A130: =IF(Raw!BA130="","",Raw!BA130) -> 8101 華冠 | B130: =IF(Raw!BB130="","",Raw!BB130) -> TSE | C130: =IF(Raw!BC130="","",Raw!BC130) -> 4.2 | D130: =IF(Raw!BD130="","",Raw!BD130) -> 2.439 | E130: =IF(Raw!BE130="","",Raw!BE130) -> 2.439 | F130: =IF(Raw!BF130="","",Raw!BF130) -> 299 | G130: =IF(Raw!BG130="","",Raw!BG130) -> -15.85 | H130: =IF(Raw!BH130="","",Raw!BH130) -> -10.9 | I130: =IF(Raw!BI130="","",Raw!BI130) -> 437.33 | J130: =IF(Raw!BJ130="","",Raw!BJ130) -> 74.73 | K130: =IFERROR(ROUND(VLOOKUP(A130,'Raw3'!A:F,6,0),2),"") -> 74.73 | L130: =IF(Raw!BK130="","",Raw!BK130) ->  | M130: =IF(Raw!BL130="","",Raw!BL130) -> 1240.85 | N130: =IF(Raw!BM130="","",Raw!BM130) -> 28.2 | O130: =IF(Raw!BN130="","",Raw!BN130) -> 8 | P130: =IF(Raw!BO130="","",Raw!BO130) -> 9 | Q130: =IF(Raw!BP130="","",Raw!BP130) -> 100 | R130: =IF(Raw!BQ130="","",Raw!BQ130) ->  | S130: =IF(Raw!BR130="","",Raw!BR130) -> 0 | T130: =IF(Raw!BS130="","",Raw!BS130) -> 0.77 | U130: =IF(Raw!BT130="","",Raw!BT130) ->  | V130: =IF(Raw!BU130="","",Raw!BU130) ->  | W130: =IF(Raw!BV130="","",Raw!BV130) -> Y | X130: =IF(Raw!BW130="","",Raw!BW130) ->  | Y130: =IF(Raw!BX130="","",Raw!BX130) ->  | Z130: =IF(Raw!BY130="","",Raw!BY130) ->  | AA130: =IF(Raw!BZ130="","",Raw!BZ130) ->  | AB130: =IF(Raw!CA130="","",Raw!CA130) ->  | AC130: =IF(Raw!CB130="","",Raw!CB130) ->  | AD130: =IF(Raw!CC130="","",Raw!CC130) ->  | AE130: =IF(Raw!CD130="","",Raw!CD130) ->  | AF130: =IF(Raw!CE130="","",Raw!CE130) ->  | AG130: =IF(Raw!CF130="","",Raw!CF130) ->  | AH130: =IF(Raw!CG130="","",Raw!CG130) ->  | AI130: =IF(Raw!CH130="","",Raw!CH130) -> -15.85 | AJ130: =IF(Raw!CI130="","",Raw!CI130) -> -10.9 | AK130: =IF(Raw!CJ130="","",Raw!CJ130) -> 437.33 | AL130: =IF(Raw!CK130="","",Raw!CK130) -> 0 | AM130: =IF(Raw!CL130="","",Raw!CL130) -> 3 | AN130: =IF(Raw!CM130="","",Raw!CM130) -> 0 | AO130: =IF(Raw!CN130="","",Raw!CN130) ->  | AP130: =IF(Raw!CO130="","",Raw!CO130) -> 0 | AQ130: =IF(Raw!CP130="","",Raw!CP130) -> 28.2 | AR130: =IF(Raw!CQ130="","",Raw!CQ130) ->  | AS130: =IF(Raw!CR130="","",Raw!CR130) -> 0 | AT130: =IF(Raw!CS130="","",Raw!CS130) ->  | AU130: =IF(Raw!CT130="","",Raw!CT130) -> 8 | AV130: =IF(Raw!CU130="","",Raw!CU130) -> 100 | AW130: =IF(Raw!CV130="","",Raw!CV130) -> 12
A131: =IF(Raw!BA131="","",Raw!BA131) -> 8171 天宇 | B131: =IF(Raw!BB131="","",Raw!BB131) -> OTC | C131: =IF(Raw!BC131="","",Raw!BC131) -> 8.05 | D131: =IF(Raw!BD131="","",Raw!BD131) -> 1.8987 | E131: =IF(Raw!BE131="","",Raw!BE131) -> -1.7094 | F131: =IF(Raw!BF131="","",Raw!BF131) -> 4942 | G131: =IF(Raw!BG131="","",Raw!BG131) -> -65.73 | H131: =IF(Raw!BH131="","",Raw!BH131) -> -32.81 | I131: =IF(Raw!BI131="","",Raw!BI131) -> 87.09 | J131: =IF(Raw!BJ131="","",Raw!BJ131) -> 0 | K131: =IFERROR(ROUND(VLOOKUP(A131,'Raw3'!A:F,6,0),2),"") -> 0 | L131: =IF(Raw!BK131="","",Raw!BK131) -> 38.39 | M131: =IF(Raw!BL131="","",Raw!BL131) -> 39684.26 | N131: =IF(Raw!BM131="","",Raw!BM131) -> 37.86 | O131: =IF(Raw!BN131="","",Raw!BN131) -> 7 | P131: =IF(Raw!BO131="","",Raw!BO131) -> 7 | Q131: =IF(Raw!BP131="","",Raw!BP131) -> 90 | R131: =IF(Raw!BQ131="","",Raw!BQ131) ->  | S131: =IF(Raw!BR131="","",Raw!BR131) -> 0 | T131: =IF(Raw!BS131="","",Raw!BS131) -> 0.8 | U131: =IF(Raw!BT131="","",Raw!BT131) -> Y | V131: =IF(Raw!BU131="","",Raw!BU131) ->  | W131: =IF(Raw!BV131="","",Raw!BV131) ->  | X131: =IF(Raw!BW131="","",Raw!BW131) ->  | Y131: =IF(Raw!BX131="","",Raw!BX131) ->  | Z131: =IF(Raw!BY131="","",Raw!BY131) ->  | AA131: =IF(Raw!BZ131="","",Raw!BZ131) ->  | AB131: =IF(Raw!CA131="","",Raw!CA131) ->  | AC131: =IF(Raw!CB131="","",Raw!CB131) ->  | AD131: =IF(Raw!CC131="","",Raw!CC131) ->  | AE131: =IF(Raw!CD131="","",Raw!CD131) ->  | AF131: =IF(Raw!CE131="","",Raw!CE131) ->  | AG131: =IF(Raw!CF131="","",Raw!CF131) ->  | AH131: =IF(Raw!CG131="","",Raw!CG131) ->  | AI131: =IF(Raw!CH131="","",Raw!CH131) -> -65.73 | AJ131: =IF(Raw!CI131="","",Raw!CI131) -> -32.81 | AK131: =IF(Raw!CJ131="","",Raw!CJ131) -> 87.09 | AL131: =IF(Raw!CK131="","",Raw!CK131) -> 0 | AM131: =IF(Raw!CL131="","",Raw!CL131) -> 0 | AN131: =IF(Raw!CM131="","",Raw!CM131) -> 0 | AO131: =IF(Raw!CN131="","",Raw!CN131) -> 38.39 | AP131: =IF(Raw!CO131="","",Raw!CO131) -> 0 | AQ131: =IF(Raw!CP131="","",Raw!CP131) -> 37.86 | AR131: =IF(Raw!CQ131="","",Raw!CQ131) ->  | AS131: =IF(Raw!CR131="","",Raw!CR131) -> 0 | AT131: =IF(Raw!CS131="","",Raw!CS131) ->  | AU131: =IF(Raw!CT131="","",Raw!CT131) -> 7 | AV131: =IF(Raw!CU131="","",Raw!CU131) -> 90 | AW131: =IF(Raw!CV131="","",Raw!CV131) -> 11
A132: =IF(Raw!BA132="","",Raw!BA132) -> 8418 捷必勝-KY | B132: =IF(Raw!BB132="","",Raw!BB132) -> OTC | C132: =IF(Raw!BC132="","",Raw!BC132) -> 16.1 | D132: =IF(Raw!BD132="","",Raw!BD132) -> 1.2579 | E132: =IF(Raw!BE132="","",Raw!BE132) -> 0.6251 | F132: =IF(Raw!BF132="","",Raw!BF132) -> 1484 | G132: =IF(Raw!BG132="","",Raw!BG132) -> -47.03 | H132: =IF(Raw!BH132="","",Raw!BH132) -> -22.57 | I132: =IF(Raw!BI132="","",Raw!BI132) -> 156.82 | J132: =IF(Raw!BJ132="","",Raw!BJ132) -> 0 | K132: =IFERROR(ROUND(VLOOKUP(A132,'Raw3'!A:F,6,0),2),"") -> 0 | L132: =IF(Raw!BK132="","",Raw!BK132) -> 8.73 | M132: =IF(Raw!BL132="","",Raw!BL132) -> 23625.28 | N132: =IF(Raw!BM132="","",Raw!BM132) -> 43.9 | O132: =IF(Raw!BN132="","",Raw!BN132) -> 9 | P132: =IF(Raw!BO132="","",Raw!BO132) -> 7 | Q132: =IF(Raw!BP132="","",Raw!BP132) -> 100 | R132: =IF(Raw!BQ132="","",Raw!BQ132) ->  | S132: =IF(Raw!BR132="","",Raw!BR132) -> 0 | T132: =IF(Raw!BS132="","",Raw!BS132) -> 0.73 | U132: =IF(Raw!BT132="","",Raw!BT132) ->  | V132: =IF(Raw!BU132="","",Raw!BU132) ->  | W132: =IF(Raw!BV132="","",Raw!BV132) ->  | X132: =IF(Raw!BW132="","",Raw!BW132) ->  | Y132: =IF(Raw!BX132="","",Raw!BX132) ->  | Z132: =IF(Raw!BY132="","",Raw!BY132) ->  | AA132: =IF(Raw!BZ132="","",Raw!BZ132) ->  | AB132: =IF(Raw!CA132="","",Raw!CA132) ->  | AC132: =IF(Raw!CB132="","",Raw!CB132) ->  | AD132: =IF(Raw!CC132="","",Raw!CC132) ->  | AE132: =IF(Raw!CD132="","",Raw!CD132) ->  | AF132: =IF(Raw!CE132="","",Raw!CE132) ->  | AG132: =IF(Raw!CF132="","",Raw!CF132) ->  | AH132: =IF(Raw!CG132="","",Raw!CG132) ->  | AI132: =IF(Raw!CH132="","",Raw!CH132) -> -47.03 | AJ132: =IF(Raw!CI132="","",Raw!CI132) -> -22.57 | AK132: =IF(Raw!CJ132="","",Raw!CJ132) -> 156.82 | AL132: =IF(Raw!CK132="","",Raw!CK132) -> 0 | AM132: =IF(Raw!CL132="","",Raw!CL132) -> 0 | AN132: =IF(Raw!CM132="","",Raw!CM132) -> 0 | AO132: =IF(Raw!CN132="","",Raw!CN132) -> 8.73 | AP132: =IF(Raw!CO132="","",Raw!CO132) -> 0 | AQ132: =IF(Raw!CP132="","",Raw!CP132) -> 43.9 | AR132: =IF(Raw!CQ132="","",Raw!CQ132) ->  | AS132: =IF(Raw!CR132="","",Raw!CR132) -> 0 | AT132: =IF(Raw!CS132="","",Raw!CS132) ->  | AU132: =IF(Raw!CT132="","",Raw!CT132) -> 9 | AV132: =IF(Raw!CU132="","",Raw!CU132) -> 100 | AW132: =IF(Raw!CV132="","",Raw!CV132) -> 13
A133: =IF(Raw!BA133="","",Raw!BA133) -> 8932 宏大 | B133: =IF(Raw!BB133="","",Raw!BB133) -> OTC | C133: =IF(Raw!BC133="","",Raw!BC133) -> 7.34 | D133: =IF(Raw!BD133="","",Raw!BD133) -> 1.2414 | E133: =IF(Raw!BE133="","",Raw!BE133) -> -1.4766 | F133: =IF(Raw!BF133="","",Raw!BF133) ->  | G133: =IF(Raw!BG133="","",Raw!BG133) -> -19.41 | H133: =IF(Raw!BH133="","",Raw!BH133) -> -17.26 | I133: =IF(Raw!BI133="","",Raw!BI133) -> 272.11 | J133: =IF(Raw!BJ133="","",Raw!BJ133) -> 35.06 | K133: =IFERROR(ROUND(VLOOKUP(A133,'Raw3'!A:F,6,0),2),"") -> 35.06 | L133: =IF(Raw!BK133="","",Raw!BK133) ->  | M133: =IF(Raw!BL133="","",Raw!BL133) ->  | N133: =IF(Raw!BM133="","",Raw!BM133) -> 55.56 | O133: =IF(Raw!BN133="","",Raw!BN133) -> 8 | P133: =IF(Raw!BO133="","",Raw!BO133) -> 8 | Q133: =IF(Raw!BP133="","",Raw!BP133) -> 100 | R133: =IF(Raw!BQ133="","",Raw!BQ133) ->  | S133: =IF(Raw!BR133="","",Raw!BR133) ->  | T133: =IF(Raw!BS133="","",Raw!BS133) -> 0.82 | U133: =IF(Raw!BT133="","",Raw!BT133) ->  | V133: =IF(Raw!BU133="","",Raw!BU133) ->  | W133: =IF(Raw!BV133="","",Raw!BV133) -> Y | X133: =IF(Raw!BW133="","",Raw!BW133) ->  | Y133: =IF(Raw!BX133="","",Raw!BX133) ->  | Z133: =IF(Raw!BY133="","",Raw!BY133) ->  | AA133: =IF(Raw!BZ133="","",Raw!BZ133) -> Y | AB133: =IF(Raw!CA133="","",Raw!CA133) ->  | AC133: =IF(Raw!CB133="","",Raw!CB133) ->  | AD133: =IF(Raw!CC133="","",Raw!CC133) ->  | AE133: =IF(Raw!CD133="","",Raw!CD133) ->  | AF133: =IF(Raw!CE133="","",Raw!CE133) ->  | AG133: =IF(Raw!CF133="","",Raw!CF133) ->  | AH133: =IF(Raw!CG133="","",Raw!CG133) ->  | AI133: =IF(Raw!CH133="","",Raw!CH133) -> -19.41 | AJ133: =IF(Raw!CI133="","",Raw!CI133) -> -17.26 | AK133: =IF(Raw!CJ133="","",Raw!CJ133) -> 272.11 | AL133: =IF(Raw!CK133="","",Raw!CK133) -> 0 | AM133: =IF(Raw!CL133="","",Raw!CL133) -> 1 | AN133: =IF(Raw!CM133="","",Raw!CM133) -> 0 | AO133: =IF(Raw!CN133="","",Raw!CN133) ->  | AP133: =IF(Raw!CO133="","",Raw!CO133) -> 0 | AQ133: =IF(Raw!CP133="","",Raw!CP133) -> 55.56 | AR133: =IF(Raw!CQ133="","",Raw!CQ133) ->  | AS133: =IF(Raw!CR133="","",Raw!CR133) -> 0 | AT133: =IF(Raw!CS133="","",Raw!CS133) ->  | AU133: =IF(Raw!CT133="","",Raw!CT133) -> 8 | AV133: =IF(Raw!CU133="","",Raw!CU133) -> 100 | AW133: =IF(Raw!CV133="","",Raw!CV133) -> 12
A134: =IF(Raw!BA134="","",Raw!BA134) -> 8934 衡平 | B134: =IF(Raw!BB134="","",Raw!BB134) -> OTC | C134: =IF(Raw!BC134="","",Raw!BC134) -> 43.8 | D134: =IF(Raw!BD134="","",Raw!BD134) -> 0.6897 | E134: =IF(Raw!BE134="","",Raw!BE134) -> -5.3996 | F134: =IF(Raw!BF134="","",Raw!BF134) ->  | G134: =IF(Raw!BG134="","",Raw!BG134) -> -11.26 | H134: =IF(Raw!BH134="","",Raw!BH134) -> -16.49 | I134: =IF(Raw!BI134="","",Raw!BI134) -> 376.49 | J134: =IF(Raw!BJ134="","",Raw!BJ134) -> 0 | K134: =IFERROR(ROUND(VLOOKUP(A134,'Raw3'!A:F,6,0),2),"") -> 0 | L134: =IF(Raw!BK134="","",Raw!BK134) ->  | M134: =IF(Raw!BL134="","",Raw!BL134) ->  | N134: =IF(Raw!BM134="","",Raw!BM134) -> 50 | O134: =IF(Raw!BN134="","",Raw!BN134) -> 7 | P134: =IF(Raw!BO134="","",Raw!BO134) -> 8 | Q134: =IF(Raw!BP134="","",Raw!BP134) -> 100 | R134: =IF(Raw!BQ134="","",Raw!BQ134) ->  | S134: =IF(Raw!BR134="","",Raw!BR134) ->  | T134: =IF(Raw!BS134="","",Raw!BS134) -> 1.75 | U134: =IF(Raw!BT134="","",Raw!BT134) ->  | V134: =IF(Raw!BU134="","",Raw!BU134) ->  | W134: =IF(Raw!BV134="","",Raw!BV134) -> Y | X134: =IF(Raw!BW134="","",Raw!BW134) ->  | Y134: =IF(Raw!BX134="","",Raw!BX134) ->  | Z134: =IF(Raw!BY134="","",Raw!BY134) ->  | AA134: =IF(Raw!BZ134="","",Raw!BZ134) -> Y | AB134: =IF(Raw!CA134="","",Raw!CA134) ->  | AC134: =IF(Raw!CB134="","",Raw!CB134) ->  | AD134: =IF(Raw!CC134="","",Raw!CC134) ->  | AE134: =IF(Raw!CD134="","",Raw!CD134) ->  | AF134: =IF(Raw!CE134="","",Raw!CE134) ->  | AG134: =IF(Raw!CF134="","",Raw!CF134) ->  | AH134: =IF(Raw!CG134="","",Raw!CG134) ->  | AI134: =IF(Raw!CH134="","",Raw!CH134) -> -11.26 | AJ134: =IF(Raw!CI134="","",Raw!CI134) -> -16.49 | AK134: =IF(Raw!CJ134="","",Raw!CJ134) -> 376.49 | AL134: =IF(Raw!CK134="","",Raw!CK134) -> 0 | AM134: =IF(Raw!CL134="","",Raw!CL134) -> 0 | AN134: =IF(Raw!CM134="","",Raw!CM134) -> 0 | AO134: =IF(Raw!CN134="","",Raw!CN134) ->  | AP134: =IF(Raw!CO134="","",Raw!CO134) -> 0 | AQ134: =IF(Raw!CP134="","",Raw!CP134) -> 50 | AR134: =IF(Raw!CQ134="","",Raw!CQ134) ->  | AS134: =IF(Raw!CR134="","",Raw!CR134) -> 0 | AT134: =IF(Raw!CS134="","",Raw!CS134) ->  | AU134: =IF(Raw!CT134="","",Raw!CT134) -> 7 | AV134: =IF(Raw!CU134="","",Raw!CU134) -> 100 | AW134: =IF(Raw!CV134="","",Raw!CV134) -> 9
A135: =IF(Raw!BA135="","",Raw!BA135) ->  | B135: =IF(Raw!BB135="","",Raw!BB135) ->  | C135: =IF(Raw!BC135="","",Raw!BC135) ->  | D135: =IF(Raw!BD135="","",Raw!BD135) ->  | E135: =IF(Raw!BE135="","",Raw!BE135) ->  | F135: =IF(Raw!BF135="","",Raw!BF135) ->  | G135: =IF(Raw!BG135="","",Raw!BG135) ->  | H135: =IF(Raw!BH135="","",Raw!BH135) ->  | I135: =IF(Raw!BI135="","",Raw!BI135) ->  | J135: =IF(Raw!BJ135="","",Raw!BJ135) ->  | K135: =IFERROR(ROUND(VLOOKUP(A135,'Raw3'!A:F,6,0),2),"") ->  | L135: =IF(Raw!BK135="","",Raw!BK135) ->  | M135: =IF(Raw!BL135="","",Raw!BL135) ->  | N135: =IF(Raw!BM135="","",Raw!BM135) ->  | O135: =IF(Raw!BN135="","",Raw!BN135) ->  | P135: =IF(Raw!BO135="","",Raw!BO135) ->  | Q135: =IF(Raw!BP135="","",Raw!BP135) ->  | R135: =IF(Raw!BQ135="","",Raw!BQ135) ->  | S135: =IF(Raw!BR135="","",Raw!BR135) ->  | T135: =IF(Raw!BS135="","",Raw!BS135) ->  | U135: =IF(Raw!BT135="","",Raw!BT135) ->  | V135: =IF(Raw!BU135="","",Raw!BU135) ->  | W135: =IF(Raw!BV135="","",Raw!BV135) ->  | X135: =IF(Raw!BW135="","",Raw!BW135) ->  | Y135: =IF(Raw!BX135="","",Raw!BX135) ->  | Z135: =IF(Raw!BY135="","",Raw!BY135) ->  | AA135: =IF(Raw!BZ135="","",Raw!BZ135) ->  | AB135: =IF(Raw!CA135="","",Raw!CA135) ->  | AC135: =IF(Raw!CB135="","",Raw!CB135) ->  | AD135: =IF(Raw!CC135="","",Raw!CC135) ->  | AE135: =IF(Raw!CD135="","",Raw!CD135) ->  | AF135: =IF(Raw!CE135="","",Raw!CE135) ->  | AG135: =IF(Raw!CF135="","",Raw!CF135) ->  | AH135: =IF(Raw!CG135="","",Raw!CG135) ->  | AI135: =IF(Raw!CH135="","",Raw!CH135) ->  | AJ135: =IF(Raw!CI135="","",Raw!CI135) ->  | AK135: =IF(Raw!CJ135="","",Raw!CJ135) ->  | AL135: =IF(Raw!CK135="","",Raw!CK135) ->  | AM135: =IF(Raw!CL135="","",Raw!CL135) ->  | AN135: =IF(Raw!CM135="","",Raw!CM135) ->  | AO135: =IF(Raw!CN135="","",Raw!CN135) ->  | AP135: =IF(Raw!CO135="","",Raw!CO135) ->  | AQ135: =IF(Raw!CP135="","",Raw!CP135) ->  | AR135: =IF(Raw!CQ135="","",Raw!CQ135) ->  | AS135: =IF(Raw!CR135="","",Raw!CR135) ->  | AT135: =IF(Raw!CS135="","",Raw!CS135) ->  | AU135: =IF(Raw!CT135="","",Raw!CT135) ->  | AV135: =IF(Raw!CU135="","",Raw!CU135) ->  | AW135: =IF(Raw!CV135="","",Raw!CV135) -> 
A136: =IF(Raw!BA136="","",Raw!BA136) ->  | B136: =IF(Raw!BB136="","",Raw!BB136) ->  | C136: =IF(Raw!BC136="","",Raw!BC136) ->  | D136: =IF(Raw!BD136="","",Raw!BD136) ->  | E136: =IF(Raw!BE136="","",Raw!BE136) ->  | F136: =IF(Raw!BF136="","",Raw!BF136) ->  | G136: =IF(Raw!BG136="","",Raw!BG136) ->  | H136: =IF(Raw!BH136="","",Raw!BH136) ->  | I136: =IF(Raw!BI136="","",Raw!BI136) ->  | J136: =IF(Raw!BJ136="","",Raw!BJ136) ->  | K136: =IFERROR(ROUND(VLOOKUP(A136,'Raw3'!A:F,6,0),2),"") ->  | L136: =IF(Raw!BK136="","",Raw!BK136) ->  | M136: =IF(Raw!BL136="","",Raw!BL136) ->  | N136: =IF(Raw!BM136="","",Raw!BM136) ->  | O136: =IF(Raw!BN136="","",Raw!BN136) ->  | P136: =IF(Raw!BO136="","",Raw!BO136) ->  | Q136: =IF(Raw!BP136="","",Raw!BP136) ->  | R136: =IF(Raw!BQ136="","",Raw!BQ136) ->  | S136: =IF(Raw!BR136="","",Raw!BR136) ->  | T136: =IF(Raw!BS136="","",Raw!BS136) ->  | U136: =IF(Raw!BT136="","",Raw!BT136) ->  | V136: =IF(Raw!BU136="","",Raw!BU136) ->  | W136: =IF(Raw!BV136="","",Raw!BV136) ->  | X136: =IF(Raw!BW136="","",Raw!BW136) ->  | Y136: =IF(Raw!BX136="","",Raw!BX136) ->  | Z136: =IF(Raw!BY136="","",Raw!BY136) ->  | AA136: =IF(Raw!BZ136="","",Raw!BZ136) ->  | AB136: =IF(Raw!CA136="","",Raw!CA136) ->  | AC136: =IF(Raw!CB136="","",Raw!CB136) ->  | AD136: =IF(Raw!CC136="","",Raw!CC136) ->  | AE136: =IF(Raw!CD136="","",Raw!CD136) ->  | AF136: =IF(Raw!CE136="","",Raw!CE136) ->  | AG136: =IF(Raw!CF136="","",Raw!CF136) ->  | AH136: =IF(Raw!CG136="","",Raw!CG136) ->  | AI136: =IF(Raw!CH136="","",Raw!CH136) ->  | AJ136: =IF(Raw!CI136="","",Raw!CI136) ->  | AK136: =IF(Raw!CJ136="","",Raw!CJ136) ->  | AL136: =IF(Raw!CK136="","",Raw!CK136) ->  | AM136: =IF(Raw!CL136="","",Raw!CL136) ->  | AN136: =IF(Raw!CM136="","",Raw!CM136) ->  | AO136: =IF(Raw!CN136="","",Raw!CN136) ->  | AP136: =IF(Raw!CO136="","",Raw!CO136) ->  | AQ136: =IF(Raw!CP136="","",Raw!CP136) ->  | AR136: =IF(Raw!CQ136="","",Raw!CQ136) ->  | AS136: =IF(Raw!CR136="","",Raw!CR136) ->  | AT136: =IF(Raw!CS136="","",Raw!CS136) ->  | AU136: =IF(Raw!CT136="","",Raw!CT136) ->  | AV136: =IF(Raw!CU136="","",Raw!CU136) ->  | AW136: =IF(Raw!CV136="","",Raw!CV136) -> 
A137: =IF(Raw!BA137="","",Raw!BA137) ->  | B137: =IF(Raw!BB137="","",Raw!BB137) ->  | C137: =IF(Raw!BC137="","",Raw!BC137) ->  | D137: =IF(Raw!BD137="","",Raw!BD137) ->  | E137: =IF(Raw!BE137="","",Raw!BE137) ->  | F137: =IF(Raw!BF137="","",Raw!BF137) ->  | G137: =IF(Raw!BG137="","",Raw!BG137) ->  | H137: =IF(Raw!BH137="","",Raw!BH137) ->  | I137: =IF(Raw!BI137="","",Raw!BI137) ->  | J137: =IF(Raw!BJ137="","",Raw!BJ137) ->  | K137: =IFERROR(ROUND(VLOOKUP(A137,'Raw3'!A:F,6,0),2),"") ->  | L137: =IF(Raw!BK137="","",Raw!BK137) ->  | M137: =IF(Raw!BL137="","",Raw!BL137) ->  | N137: =IF(Raw!BM137="","",Raw!BM137) ->  | O137: =IF(Raw!BN137="","",Raw!BN137) ->  | P137: =IF(Raw!BO137="","",Raw!BO137) ->  | Q137: =IF(Raw!BP137="","",Raw!BP137) ->  | R137: =IF(Raw!BQ137="","",Raw!BQ137) ->  | S137: =IF(Raw!BR137="","",Raw!BR137) ->  | T137: =IF(Raw!BS137="","",Raw!BS137) ->  | U137: =IF(Raw!BT137="","",Raw!BT137) ->  | V137: =IF(Raw!BU137="","",Raw!BU137) ->  | W137: =IF(Raw!BV137="","",Raw!BV137) ->  | X137: =IF(Raw!BW137="","",Raw!BW137) ->  | Y137: =IF(Raw!BX137="","",Raw!BX137) ->  | Z137: =IF(Raw!BY137="","",Raw!BY137) ->  | AA137: =IF(Raw!BZ137="","",Raw!BZ137) ->  | AB137: =IF(Raw!CA137="","",Raw!CA137) ->  | AC137: =IF(Raw!CB137="","",Raw!CB137) ->  | AD137: =IF(Raw!CC137="","",Raw!CC137) ->  | AE137: =IF(Raw!CD137="","",Raw!CD137) ->  | AF137: =IF(Raw!CE137="","",Raw!CE137) ->  | AG137: =IF(Raw!CF137="","",Raw!CF137) ->  | AH137: =IF(Raw!CG137="","",Raw!CG137) ->  | AI137: =IF(Raw!CH137="","",Raw!CH137) ->  | AJ137: =IF(Raw!CI137="","",Raw!CI137) ->  | AK137: =IF(Raw!CJ137="","",Raw!CJ137) ->  | AL137: =IF(Raw!CK137="","",Raw!CK137) ->  | AM137: =IF(Raw!CL137="","",Raw!CL137) ->  | AN137: =IF(Raw!CM137="","",Raw!CM137) ->  | AO137: =IF(Raw!CN137="","",Raw!CN137) ->  | AP137: =IF(Raw!CO137="","",Raw!CO137) ->  | AQ137: =IF(Raw!CP137="","",Raw!CP137) ->  | AR137: =IF(Raw!CQ137="","",Raw!CQ137) ->  | AS137: =IF(Raw!CR137="","",Raw!CR137) ->  | AT137: =IF(Raw!CS137="","",Raw!CS137) ->  | AU137: =IF(Raw!CT137="","",Raw!CT137) ->  | AV137: =IF(Raw!CU137="","",Raw!CU137) ->  | AW137: =IF(Raw!CV137="","",Raw!CV137) -> 
A138: =IF(Raw!BA138="","",Raw!BA138) ->  | B138: =IF(Raw!BB138="","",Raw!BB138) ->  | C138: =IF(Raw!BC138="","",Raw!BC138) ->  | D138: =IF(Raw!BD138="","",Raw!BD138) ->  | E138: =IF(Raw!BE138="","",Raw!BE138) ->  | F138: =IF(Raw!BF138="","",Raw!BF138) ->  | G138: =IF(Raw!BG138="","",Raw!BG138) ->  | H138: =IF(Raw!BH138="","",Raw!BH138) ->  | I138: =IF(Raw!BI138="","",Raw!BI138) ->  | J138: =IF(Raw!BJ138="","",Raw!BJ138) ->  | K138: =IFERROR(ROUND(VLOOKUP(A138,'Raw3'!A:F,6,0),2),"") ->  | L138: =IF(Raw!BK138="","",Raw!BK138) ->  | M138: =IF(Raw!BL138="","",Raw!BL138) ->  | N138: =IF(Raw!BM138="","",Raw!BM138) ->  | O138: =IF(Raw!BN138="","",Raw!BN138) ->  | P138: =IF(Raw!BO138="","",Raw!BO138) ->  | Q138: =IF(Raw!BP138="","",Raw!BP138) ->  | R138: =IF(Raw!BQ138="","",Raw!BQ138) ->  | S138: =IF(Raw!BR138="","",Raw!BR138) ->  | T138: =IF(Raw!BS138="","",Raw!BS138) ->  | U138: =IF(Raw!BT138="","",Raw!BT138) ->  | V138: =IF(Raw!BU138="","",Raw!BU138) ->  | W138: =IF(Raw!BV138="","",Raw!BV138) ->  | X138: =IF(Raw!BW138="","",Raw!BW138) ->  | Y138: =IF(Raw!BX138="","",Raw!BX138) ->  | Z138: =IF(Raw!BY138="","",Raw!BY138) ->  | AA138: =IF(Raw!BZ138="","",Raw!BZ138) ->  | AB138: =IF(Raw!CA138="","",Raw!CA138) ->  | AC138: =IF(Raw!CB138="","",Raw!CB138) ->  | AD138: =IF(Raw!CC138="","",Raw!CC138) ->  | AE138: =IF(Raw!CD138="","",Raw!CD138) ->  | AF138: =IF(Raw!CE138="","",Raw!CE138) ->  | AG138: =IF(Raw!CF138="","",Raw!CF138) ->  | AH138: =IF(Raw!CG138="","",Raw!CG138) ->  | AI138: =IF(Raw!CH138="","",Raw!CH138) ->  | AJ138: =IF(Raw!CI138="","",Raw!CI138) ->  | AK138: =IF(Raw!CJ138="","",Raw!CJ138) ->  | AL138: =IF(Raw!CK138="","",Raw!CK138) ->  | AM138: =IF(Raw!CL138="","",Raw!CL138) ->  | AN138: =IF(Raw!CM138="","",Raw!CM138) ->  | AO138: =IF(Raw!CN138="","",Raw!CN138) ->  | AP138: =IF(Raw!CO138="","",Raw!CO138) ->  | AQ138: =IF(Raw!CP138="","",Raw!CP138) ->  | AR138: =IF(Raw!CQ138="","",Raw!CQ138) ->  | AS138: =IF(Raw!CR138="","",Raw!CR138) ->  | AT138: =IF(Raw!CS138="","",Raw!CS138) ->  | AU138: =IF(Raw!CT138="","",Raw!CT138) ->  | AV138: =IF(Raw!CU138="","",Raw!CU138) ->  | AW138: =IF(Raw!CV138="","",Raw!CV138) -> 
A139: =IF(Raw!BA139="","",Raw!BA139) ->  | B139: =IF(Raw!BB139="","",Raw!BB139) ->  | C139: =IF(Raw!BC139="","",Raw!BC139) ->  | D139: =IF(Raw!BD139="","",Raw!BD139) ->  | E139: =IF(Raw!BE139="","",Raw!BE139) ->  | F139: =IF(Raw!BF139="","",Raw!BF139) ->  | G139: =IF(Raw!BG139="","",Raw!BG139) ->  | H139: =IF(Raw!BH139="","",Raw!BH139) ->  | I139: =IF(Raw!BI139="","",Raw!BI139) ->  | J139: =IF(Raw!BJ139="","",Raw!BJ139) ->  | K139: =IFERROR(ROUND(VLOOKUP(A139,'Raw3'!A:F,6,0),2),"") ->  | L139: =IF(Raw!BK139="","",Raw!BK139) ->  | M139: =IF(Raw!BL139="","",Raw!BL139) ->  | N139: =IF(Raw!BM139="","",Raw!BM139) ->  | O139: =IF(Raw!BN139="","",Raw!BN139) ->  | P139: =IF(Raw!BO139="","",Raw!BO139) ->  | Q139: =IF(Raw!BP139="","",Raw!BP139) ->  | R139: =IF(Raw!BQ139="","",Raw!BQ139) ->  | S139: =IF(Raw!BR139="","",Raw!BR139) ->  | T139: =IF(Raw!BS139="","",Raw!BS139) ->  | U139: =IF(Raw!BT139="","",Raw!BT139) ->  | V139: =IF(Raw!BU139="","",Raw!BU139) ->  | W139: =IF(Raw!BV139="","",Raw!BV139) ->  | X139: =IF(Raw!BW139="","",Raw!BW139) ->  | Y139: =IF(Raw!BX139="","",Raw!BX139) ->  | Z139: =IF(Raw!BY139="","",Raw!BY139) ->  | AA139: =IF(Raw!BZ139="","",Raw!BZ139) ->  | AB139: =IF(Raw!CA139="","",Raw!CA139) ->  | AC139: =IF(Raw!CB139="","",Raw!CB139) ->  | AD139: =IF(Raw!CC139="","",Raw!CC139) ->  | AE139: =IF(Raw!CD139="","",Raw!CD139) ->  | AF139: =IF(Raw!CE139="","",Raw!CE139) ->  | AG139: =IF(Raw!CF139="","",Raw!CF139) ->  | AH139: =IF(Raw!CG139="","",Raw!CG139) ->  | AI139: =IF(Raw!CH139="","",Raw!CH139) ->  | AJ139: =IF(Raw!CI139="","",Raw!CI139) ->  | AK139: =IF(Raw!CJ139="","",Raw!CJ139) ->  | AL139: =IF(Raw!CK139="","",Raw!CK139) ->  | AM139: =IF(Raw!CL139="","",Raw!CL139) ->  | AN139: =IF(Raw!CM139="","",Raw!CM139) ->  | AO139: =IF(Raw!CN139="","",Raw!CN139) ->  | AP139: =IF(Raw!CO139="","",Raw!CO139) ->  | AQ139: =IF(Raw!CP139="","",Raw!CP139) ->  | AR139: =IF(Raw!CQ139="","",Raw!CQ139) ->  | AS139: =IF(Raw!CR139="","",Raw!CR139) ->  | AT139: =IF(Raw!CS139="","",Raw!CS139) ->  | AU139: =IF(Raw!CT139="","",Raw!CT139) ->  | AV139: =IF(Raw!CU139="","",Raw!CU139) ->  | AW139: =IF(Raw!CV139="","",Raw!CV139) -> 
A140: =IF(Raw!BA140="","",Raw!BA140) ->  | B140: =IF(Raw!BB140="","",Raw!BB140) ->  | C140: =IF(Raw!BC140="","",Raw!BC140) ->  | D140: =IF(Raw!BD140="","",Raw!BD140) ->  | E140: =IF(Raw!BE140="","",Raw!BE140) ->  | F140: =IF(Raw!BF140="","",Raw!BF140) ->  | G140: =IF(Raw!BG140="","",Raw!BG140) ->  | H140: =IF(Raw!BH140="","",Raw!BH140) ->  | I140: =IF(Raw!BI140="","",Raw!BI140) ->  | J140: =IF(Raw!BJ140="","",Raw!BJ140) ->  | K140: =IFERROR(ROUND(VLOOKUP(A140,'Raw3'!A:F,6,0),2),"") ->  | L140: =IF(Raw!BK140="","",Raw!BK140) ->  | M140: =IF(Raw!BL140="","",Raw!BL140) ->  | N140: =IF(Raw!BM140="","",Raw!BM140) ->  | O140: =IF(Raw!BN140="","",Raw!BN140) ->  | P140: =IF(Raw!BO140="","",Raw!BO140) ->  | Q140: =IF(Raw!BP140="","",Raw!BP140) ->  | R140: =IF(Raw!BQ140="","",Raw!BQ140) ->  | S140: =IF(Raw!BR140="","",Raw!BR140) ->  | T140: =IF(Raw!BS140="","",Raw!BS140) ->  | U140: =IF(Raw!BT140="","",Raw!BT140) ->  | V140: =IF(Raw!BU140="","",Raw!BU140) ->  | W140: =IF(Raw!BV140="","",Raw!BV140) ->  | X140: =IF(Raw!BW140="","",Raw!BW140) ->  | Y140: =IF(Raw!BX140="","",Raw!BX140) ->  | Z140: =IF(Raw!BY140="","",Raw!BY140) ->  | AA140: =IF(Raw!BZ140="","",Raw!BZ140) ->  | AB140: =IF(Raw!CA140="","",Raw!CA140) ->  | AC140: =IF(Raw!CB140="","",Raw!CB140) ->  | AD140: =IF(Raw!CC140="","",Raw!CC140) ->  | AE140: =IF(Raw!CD140="","",Raw!CD140) ->  | AF140: =IF(Raw!CE140="","",Raw!CE140) ->  | AG140: =IF(Raw!CF140="","",Raw!CF140) ->  | AH140: =IF(Raw!CG140="","",Raw!CG140) ->  | AI140: =IF(Raw!CH140="","",Raw!CH140) ->  | AJ140: =IF(Raw!CI140="","",Raw!CI140) ->  | AK140: =IF(Raw!CJ140="","",Raw!CJ140) ->  | AL140: =IF(Raw!CK140="","",Raw!CK140) ->  | AM140: =IF(Raw!CL140="","",Raw!CL140) ->  | AN140: =IF(Raw!CM140="","",Raw!CM140) ->  | AO140: =IF(Raw!CN140="","",Raw!CN140) ->  | AP140: =IF(Raw!CO140="","",Raw!CO140) ->  | AQ140: =IF(Raw!CP140="","",Raw!CP140) ->  | AR140: =IF(Raw!CQ140="","",Raw!CQ140) ->  | AS140: =IF(Raw!CR140="","",Raw!CR140) ->  | AT140: =IF(Raw!CS140="","",Raw!CS140) ->  | AU140: =IF(Raw!CT140="","",Raw!CT140) ->  | AV140: =IF(Raw!CU140="","",Raw!CU140) ->  | AW140: =IF(Raw!CV140="","",Raw!CV140) -> 
A141: =IF(Raw!BA141="","",Raw!BA141) ->  | B141: =IF(Raw!BB141="","",Raw!BB141) ->  | C141: =IF(Raw!BC141="","",Raw!BC141) ->  | D141: =IF(Raw!BD141="","",Raw!BD141) ->  | E141: =IF(Raw!BE141="","",Raw!BE141) ->  | F141: =IF(Raw!BF141="","",Raw!BF141) ->  | G141: =IF(Raw!BG141="","",Raw!BG141) ->  | H141: =IF(Raw!BH141="","",Raw!BH141) ->  | I141: =IF(Raw!BI141="","",Raw!BI141) ->  | J141: =IF(Raw!BJ141="","",Raw!BJ141) ->  | K141: =IFERROR(ROUND(VLOOKUP(A141,'Raw3'!A:F,6,0),2),"") ->  | L141: =IF(Raw!BK141="","",Raw!BK141) ->  | M141: =IF(Raw!BL141="","",Raw!BL141) ->  | N141: =IF(Raw!BM141="","",Raw!BM141) ->  | O141: =IF(Raw!BN141="","",Raw!BN141) ->  | P141: =IF(Raw!BO141="","",Raw!BO141) ->  | Q141: =IF(Raw!BP141="","",Raw!BP141) ->  | R141: =IF(Raw!BQ141="","",Raw!BQ141) ->  | S141: =IF(Raw!BR141="","",Raw!BR141) ->  | T141: =IF(Raw!BS141="","",Raw!BS141) ->  | U141: =IF(Raw!BT141="","",Raw!BT141) ->  | V141: =IF(Raw!BU141="","",Raw!BU141) ->  | W141: =IF(Raw!BV141="","",Raw!BV141) ->  | X141: =IF(Raw!BW141="","",Raw!BW141) ->  | Y141: =IF(Raw!BX141="","",Raw!BX141) ->  | Z141: =IF(Raw!BY141="","",Raw!BY141) ->  | AA141: =IF(Raw!BZ141="","",Raw!BZ141) ->  | AB141: =IF(Raw!CA141="","",Raw!CA141) ->  | AC141: =IF(Raw!CB141="","",Raw!CB141) ->  | AD141: =IF(Raw!CC141="","",Raw!CC141) ->  | AE141: =IF(Raw!CD141="","",Raw!CD141) ->  | AF141: =IF(Raw!CE141="","",Raw!CE141) ->  | AG141: =IF(Raw!CF141="","",Raw!CF141) ->  | AH141: =IF(Raw!CG141="","",Raw!CG141) ->  | AI141: =IF(Raw!CH141="","",Raw!CH141) ->  | AJ141: =IF(Raw!CI141="","",Raw!CI141) ->  | AK141: =IF(Raw!CJ141="","",Raw!CJ141) ->  | AL141: =IF(Raw!CK141="","",Raw!CK141) ->  | AM141: =IF(Raw!CL141="","",Raw!CL141) ->  | AN141: =IF(Raw!CM141="","",Raw!CM141) ->  | AO141: =IF(Raw!CN141="","",Raw!CN141) ->  | AP141: =IF(Raw!CO141="","",Raw!CO141) ->  | AQ141: =IF(Raw!CP141="","",Raw!CP141) ->  | AR141: =IF(Raw!CQ141="","",Raw!CQ141) ->  | AS141: =IF(Raw!CR141="","",Raw!CR141) ->  | AT141: =IF(Raw!CS141="","",Raw!CS141) ->  | AU141: =IF(Raw!CT141="","",Raw!CT141) ->  | AV141: =IF(Raw!CU141="","",Raw!CU141) ->  | AW141: =IF(Raw!CV141="","",Raw!CV141) -> 
